{"text_format":"1","workbook":"xlsx","n_sheets":7,"sheets":["Início","RELATÓRIO","EXORB.","INEXEQ.","MET. ESTATÍSTICO","R0","LISTAS"],"not_rendered":{"charts":0,"images":10,"macros":1,"external_links":0,"defined_names":6,"comments":3,"pivot_tables":0},"unopened":[],"bounds":{"document_bytes":16777216,"sheet_cells":100000,"rows_first":2000,"rows_last":500,"rows_between":2000,"halvings":0,"cell_chars":16384,"cell_head_chars":4096},"cells_cut":0,"cells_raw":0,"read":"whole","date_system":"1900"}

{"sheet":"Início","index":0,"n_rows":0,"n_cols":0,"rows_kept":0,"cut":false,"hidden":false,"merged":[]}

{"sheet":"RELATÓRIO","index":1,"n_rows":54,"n_cols":12,"rows_kept":54,"cut":false,"hidden":true,"merged":[[7,1,7,6],[10,3,10,4],[14,1,14,6],[17,5,17,6],[10,5,10,6],[12,3,12,4],[27,2,27,6],[23,4,25,5],[23,6,25,6],[21,5,21,6],[19,5,19,6]]}
[]
[null,"INSTRUÇÃO: DIGITAR ONDE A CÉLULA ESTÁ COMO O CAMPO AO LADO","CAMPO PARA DIGITAÇÃO"]
[]
[1]
[1]
[1]
[1]
[1,"INFORMAÇÕES INICIAIS"]
[1]
[1]
[1,"PROCESSO Nº",null,"ITEM PESQUISADO:",null,null,null,null,{"$f":"IFERROR(_xlfn.IFS(C11=\"\",1,F11=\"\",1,C13=\"\",1,AND(C13=\"SIM\",F13=\"\"),1),0)","v":1}]
[1]
[1,"PRORROGAÇÃO CONTRATUAL?","Não","PREÇO CONTRATADO",null,null,{"$f":"IFERROR(_xlfn.IFS(COUNTA(E32:E54)=0,\"\",OR(I32<>0,I11<>0),\"\",AND(C13=\"SIM\",E24=\"Preço Único\",F13>C26),UPPER(\"Preço contratado é desvantajoso. Negociar preços\"),F13>G24,UPPER(\"Preço contratado é desvantajoso. Negociar preços\")),\"\")","v":""}]
[1]
[1,"CRITÉRIOS ESTATÍSTICOS"]
[1]
[1]
[1,"MÉDIA",{"$f":"IFERROR(IF(OR(I32>0,I11>0),\"\",'MET. ESTATÍSTICO'!G3),\"Não foi possível calcular.\")","v":""},null,0.25,{"$f":"\"Excessivamente elevado: valor superior a \"&TEXT(E18,\"0,00%\")&\" da média dos demais preços.\"","v":"Excessivamente elevado: valor superior a 25,00% da média dos demais preços."}]
[1]
[1,"DESVIO PADRÃO AMOSTRAL",{"$f":"IF(OR(I32>0,I11>0),\"\",'MET. ESTATÍSTICO'!G2)","v":""},null,0.75,{"$f":"\"Inexequíveis: valor inferior a \"&TEXT(E20,\"0,00%\")&\" da média dos demais preços.\"","v":"Inexequíveis: valor inferior a 75,00% da média dos demais preços."}]
[1]
[1,"COEFICIENTE DE VARIAÇÃO",{"$f":"IF(OR(I32>0,I11>0),\"\",'MET. ESTATÍSTICO'!G4)","v":""},null,"Não","Utilizar PREÇO MÍNIMO?"]
[1]
[1,"MÉTODO ESTATÍSTICO UTILIZADO",{"$f":"IF(OR(I32>0,I11>0),\"\",'MET. ESTATÍSTICO'!G5)","v":""},null,{"$f":"IF(E22=\"SIM\",\"PREÇO MÍNIMO\",IF(C24=\"PREÇO ÚNICO\",\"Preço Único\",\"PREÇO DE MERCADO\"))","v":"PREÇO DE MERCADO"},null,{"$f":"_xlfn.IFS(\nOR(I32>0,I11>0,J32<1),\"INFORME OS DADOS DA PESQUISA DE PREÇOS\",\nC24=\"PREÇO ÚNICO\",\"Devido às poucas fontes válidas, não foi possível obter o preço de mercado. Recomenda-se ampliar a pesquisa ou justificar a impossibilidade de sua ampliação.\",\nE22=\"SIM\",C26,\nE22<>\"SIM\",'MET. ESTATÍSTICO'!G10)","v":"INFORME OS DADOS DA PESQUISA DE PREÇOS"}]
[1]
[1,"PREÇO MÍNIMO",{"$f":"IF(OR(I32>0,I11>0),\"\",'MET. ESTATÍSTICO'!G11)","v":""}]
[1]
[1,{"$f":"IF(C28=\"\",\"\",\"PROBLEMAS DA PESQUISA\")","v":""},{"$f":"_xlfn.IFS(OR(K30=\"nok\",K30=\"ok\"),\"\",\nK30=1,\"Justificar no processo a impossibilidade de ampliação da pesquisa, pois foi encontrado o seguinte problema: 1. \"&K32,\nK30=2,\"Justificar no processo a impossibilidade de ampliação da pesquisa, pois foi encontrado o seguinte problema: 1. \"&K36,\nK30=3,\"Justificar no processo a impossibilidade de ampliação da pesquisa, pois foram encontrados os seguintes problemas: 1. \"&K32&\"2. \"&K36)","v":""}]
[1]
[1,"EMPRESA/FONTE","TIPO DE FONTE","LOCALIZADOR SEI!","PREÇO","AVALIAÇÃO","OBSERVAÇÃO",null,null,null,{"$f":"_xlfn.IFS(OR(I32>0,I11>0,J32<1),\"nok\",\nAND(K32=\"ok\",K36=\"ok\"),\"ok\",\nAND(K32<>\"ok\",K36=\"ok\"),1,\nAND(K32=\"ok\",K36<>\"ok\"),2,\nAND(K32<>\"ok\",K36<>\"ok\"),3)","v":"nok"},"Validação do relatório e dos preços"]
[1,null,null,null,null,null,null,"Obs"]
[{"$f":"IF(COUNTIF(H33:H$54,\"ok\")<>0,1,IF(H32=\"\",\"\",1))","v":""},null,null,null,null,{"$f":"IF($I$11<>0,\"\",IF($I$32=0,INEXEQ.!J2,\"\"))","v":""},{"$f":"IF($I$11<>0,\"Informe a descrição do item pesquisado e/ou o nº do processo e/ou se é uma prorrogação contratual (e o valor contratado)\",IF($I$32=0,INEXEQ.!M2,IF(AND($I$32>0,H32=\"OK\"),\"\",H32)))","v":"Informe a descrição do item pesquisado e/ou o nº do processo e/ou se é uma prorrogação contratual (e o valor contratado)"},{"$f":"EXORB.!F2","v":""},{"$f":"COUNTIF(H32:H54,\"INFORME A FONTE, O TIPO DA FONTE, REFERÊNCIA SEI! E O PREÇO\")","v":0},{"$f":"COUNT(E30:E52)","v":0},{"$f":"IF(J33>J34,\"ok\",\"Os preços praticados pela Administração Pública não são a maioria das fontes - Capítulo 3, item II do Manual. \")","v":"Os preços praticados pela Administração Pública não são a maioria das fontes - Capítulo 3, item II do Manual. "}]
[{"$f":"IF(COUNTIF(H34:H$54,\"ok\")<>0,1,IF(H33=\"\",\"\",1))","v":""},null,null,null,null,{"$f":"IF($I$11<>0,\"\",IF($I$32=0,INEXEQ.!J3,\"\"))","v":""},{"$f":"IF($I$11<>0,\"Informe a descrição do item pesquisado e/ou o nº do processo e/ou se é uma prorrogação contratual (e o valor contratado)\",IF($I$32=0,INEXEQ.!M3,IF(AND($I$32>0,H33=\"OK\"),\"\",H33)))","v":"Informe a descrição do item pesquisado e/ou o nº do processo e/ou se é uma prorrogação contratual (e o valor contratado)"},{"$f":"EXORB.!F3","v":""},null,{"$f":"COUNTIFS(C32:$C$54,LISTAS!A1)+COUNTIFS(C32:$C$54,LISTAS!A2)+COUNTIFS(C32:$C$54,LISTAS!A3)","v":0},"número de fontes de preços praticados na Adm"]
[{"$f":"IF(COUNTIF(H35:H$54,\"ok\")<>0,1,IF(H34=\"\",\"\",1))","v":""},null,null,null,null,{"$f":"IF($I$11<>0,\"\",IF($I$32=0,INEXEQ.!J4,\"\"))","v":""},{"$f":"IF($I$11<>0,\"Informe a descrição do item pesquisado e/ou o nº do processo e/ou se é uma prorrogação contratual (e o valor contratado)\",IF($I$32=0,INEXEQ.!M4,IF(AND($I$32>0,H34=\"OK\"),\"\",H34)))","v":"Informe a descrição do item pesquisado e/ou o nº do processo e/ou se é uma prorrogação contratual (e o valor contratado)"},{"$f":"EXORB.!F4","v":""},null,{"$f":"COUNTA($C$32:$C$54)/2","v":0},"metade do total de fontes "]
[{"$f":"IF(COUNTIF(H36:H$54,\"ok\")<>0,1,IF(H35=\"\",\"\",1))","v":""},null,null,null,null,{"$f":"IF($I$11<>0,\"\",IF($I$32=0,INEXEQ.!J5,\"\"))","v":""},{"$f":"IF($I$11<>0,\"Informe a descrição do item pesquisado e/ou o nº do processo e/ou se é uma prorrogação contratual (e o valor contratado)\",IF($I$32=0,INEXEQ.!M5,IF(AND($I$32>0,H35=\"OK\"),\"\",H35)))","v":"Informe a descrição do item pesquisado e/ou o nº do processo e/ou se é uma prorrogação contratual (e o valor contratado)"},{"$f":"EXORB.!F5","v":""},null,{"$f":"COUNT(E32:E54)","v":0},"total de fontes "]
[{"$f":"IF(COUNTIF(H37:H$54,\"ok\")<>0,1,IF(H36=\"\",\"\",1))","v":""},null,null,null,null,{"$f":"IF($I$11<>0,\"\",IF($I$32=0,INEXEQ.!J6,\"\"))","v":""},{"$f":"IF($I$11<>0,\"Informe a descrição do item pesquisado e/ou o nº do processo e/ou se é uma prorrogação contratual (e o valor contratado)\",IF($I$32=0,INEXEQ.!M6,IF(AND($I$32>0,H36=\"OK\"),\"\",H36)))","v":"Informe a descrição do item pesquisado e/ou o nº do processo e/ou se é uma prorrogação contratual (e o valor contratado)"},{"$f":"EXORB.!F6","v":""},null,{"$f":"COUNT(ANÁLISE24[PREÇOS VÁLIDOS APÓS AV. 3])","v":0},{"$f":"IF(J36>2,\"ok\",\"Pesquisa composta com menos de 3 propostas válidas - Capítulo 3, item IX do Manual. \")","v":"Pesquisa composta com menos de 3 propostas válidas - Capítulo 3, item IX do Manual. "}]
[{"$f":"IF(COUNTIF(H38:H$54,\"ok\")<>0,1,IF(H37=\"\",\"\",1))","v":""},null,null,null,null,{"$f":"IF($I$11<>0,\"\",IF($I$32=0,INEXEQ.!J7,\"\"))","v":""},{"$f":"IF($I$11<>0,\"Informe a descrição do item pesquisado e/ou o nº do processo e/ou se é uma prorrogação contratual (e o valor contratado)\",IF($I$32=0,INEXEQ.!M7,IF(AND($I$32>0,H37=\"OK\"),\"\",H37)))","v":"Informe a descrição do item pesquisado e/ou o nº do processo e/ou se é uma prorrogação contratual (e o valor contratado)"},{"$f":"EXORB.!F7","v":""},null,null,{"$f":"IF(E22=\"SIM\",\"ok\",\"Não foi adotado o PREÇO MÍNIMO como critério de obtenção do preço de mercado - Capítulo 3, item XVIII do Manual. \")","v":"Não foi adotado o PREÇO MÍNIMO como critério de obtenção do preço de mercado - Capítulo 3, item XVIII do Manual. "}]
[{"$f":"IF(COUNTIF(H39:H$54,\"ok\")<>0,1,IF(H38=\"\",\"\",1))","v":""},null,null,null,null,{"$f":"IF($I$11<>0,\"\",IF($I$32=0,INEXEQ.!J8,\"\"))","v":""},{"$f":"IF($I$11<>0,\"Informe a descrição do item pesquisado e/ou o nº do processo e/ou se é uma prorrogação contratual (e o valor contratado)\",IF($I$32=0,INEXEQ.!M8,IF(AND($I$32>0,H38=\"OK\"),\"\",H38)))","v":"Informe a descrição do item pesquisado e/ou o nº do processo e/ou se é uma prorrogação contratual (e o valor contratado)"},{"$f":"EXORB.!F8","v":""}]
[{"$f":"IF(COUNTIF(H40:H$54,\"ok\")<>0,1,IF(H39=\"\",\"\",1))","v":""},null,null,null,null,{"$f":"IF($I$11<>0,\"\",IF($I$32=0,INEXEQ.!J9,\"\"))","v":""},{"$f":"IF($I$11<>0,\"Informe a descrição do item pesquisado e/ou o nº do processo e/ou se é uma prorrogação contratual (e o valor contratado)\",IF($I$32=0,INEXEQ.!M9,IF(AND($I$32>0,H39=\"OK\"),\"\",H39)))","v":"Informe a descrição do item pesquisado e/ou o nº do processo e/ou se é uma prorrogação contratual (e o valor contratado)"},{"$f":"EXORB.!F9","v":""}]
[{"$f":"IF(COUNTIF(H41:H$54,\"ok\")<>0,1,IF(H40=\"\",\"\",1))","v":""},null,null,null,null,{"$f":"IF($I$11<>0,\"\",IF($I$32=0,INEXEQ.!J10,\"\"))","v":""},{"$f":"IF($I$11<>0,\"Informe a descrição do item pesquisado e/ou o nº do processo e/ou se é uma prorrogação contratual (e o valor contratado)\",IF($I$32=0,INEXEQ.!M10,IF(AND($I$32>0,H40=\"OK\"),\"\",H40)))","v":"Informe a descrição do item pesquisado e/ou o nº do processo e/ou se é uma prorrogação contratual (e o valor contratado)"},{"$f":"EXORB.!F10","v":""}]
[{"$f":"IF(COUNTIF(H42:H$54,\"ok\")<>0,1,IF(H41=\"\",\"\",1))","v":""},null,null,null,null,{"$f":"IF($I$11<>0,\"\",IF($I$32=0,INEXEQ.!J11,\"\"))","v":""},{"$f":"IF($I$11<>0,\"Informe a descrição do item pesquisado e/ou o nº do processo e/ou se é uma prorrogação contratual (e o valor contratado)\",IF($I$32=0,INEXEQ.!M11,IF(AND($I$32>0,H41=\"OK\"),\"\",H41)))","v":"Informe a descrição do item pesquisado e/ou o nº do processo e/ou se é uma prorrogação contratual (e o valor contratado)"},{"$f":"EXORB.!F11","v":""}]
[{"$f":"IF(COUNTIF(H43:H$54,\"ok\")<>0,1,IF(H42=\"\",\"\",1))","v":""},null,null,null,null,{"$f":"IF($I$11<>0,\"\",IF($I$32=0,INEXEQ.!J12,\"\"))","v":""},{"$f":"IF($I$11<>0,\"Informe a descrição do item pesquisado e/ou o nº do processo e/ou se é uma prorrogação contratual (e o valor contratado)\",IF($I$32=0,INEXEQ.!M12,IF(AND($I$32>0,H42=\"OK\"),\"\",H42)))","v":"Informe a descrição do item pesquisado e/ou o nº do processo e/ou se é uma prorrogação contratual (e o valor contratado)"},{"$f":"EXORB.!F12","v":""}]
[{"$f":"IF(COUNTIF(H44:H$54,\"ok\")<>0,1,IF(H43=\"\",\"\",1))","v":""},null,null,null,null,{"$f":"IF($I$11<>0,\"\",IF($I$32=0,INEXEQ.!J13,\"\"))","v":""},{"$f":"IF($I$11<>0,\"Informe a descrição do item pesquisado e/ou o nº do processo e/ou se é uma prorrogação contratual (e o valor contratado)\",IF($I$32=0,INEXEQ.!M13,IF(AND($I$32>0,H43=\"OK\"),\"\",H43)))","v":"Informe a descrição do item pesquisado e/ou o nº do processo e/ou se é uma prorrogação contratual (e o valor contratado)"},{"$f":"EXORB.!F13","v":""}]
[{"$f":"IF(COUNTIF(H45:H$54,\"ok\")<>0,1,IF(H44=\"\",\"\",1))","v":""},null,null,null,null,{"$f":"IF($I$11<>0,\"\",IF($I$32=0,INEXEQ.!J14,\"\"))","v":""},{"$f":"IF($I$11<>0,\"Informe a descrição do item pesquisado e/ou o nº do processo e/ou se é uma prorrogação contratual (e o valor contratado)\",IF($I$32=0,INEXEQ.!M14,IF(AND($I$32>0,H44=\"OK\"),\"\",H44)))","v":"Informe a descrição do item pesquisado e/ou o nº do processo e/ou se é uma prorrogação contratual (e o valor contratado)"},{"$f":"EXORB.!F14","v":""}]
[{"$f":"IF(COUNTIF(H46:H$54,\"ok\")<>0,1,IF(H45=\"\",\"\",1))","v":""},null,null,null,null,{"$f":"IF($I$11<>0,\"\",IF($I$32=0,INEXEQ.!J15,\"\"))","v":""},{"$f":"IF($I$11<>0,\"Informe a descrição do item pesquisado e/ou o nº do processo e/ou se é uma prorrogação contratual (e o valor contratado)\",IF($I$32=0,INEXEQ.!M15,IF(AND($I$32>0,H45=\"OK\"),\"\",H45)))","v":"Informe a descrição do item pesquisado e/ou o nº do processo e/ou se é uma prorrogação contratual (e o valor contratado)"},{"$f":"EXORB.!F15","v":""}]
[{"$f":"IF(COUNTIF(H47:H$54,\"ok\")<>0,1,IF(H46=\"\",\"\",1))","v":""},null,null,null,null,{"$f":"IF($I$11<>0,\"\",IF($I$32=0,INEXEQ.!J16,\"\"))","v":""},{"$f":"IF($I$11<>0,\"Informe a descrição do item pesquisado e/ou o nº do processo e/ou se é uma prorrogação contratual (e o valor contratado)\",IF($I$32=0,INEXEQ.!M16,IF(AND($I$32>0,H46=\"OK\"),\"\",H46)))","v":"Informe a descrição do item pesquisado e/ou o nº do processo e/ou se é uma prorrogação contratual (e o valor contratado)"},{"$f":"EXORB.!F16","v":""}]
[{"$f":"IF(COUNTIF(H48:H$54,\"ok\")<>0,1,IF(H47=\"\",\"\",1))","v":""},null,null,null,null,{"$f":"IF($I$11<>0,\"\",IF($I$32=0,INEXEQ.!J17,\"\"))","v":""},{"$f":"IF($I$11<>0,\"Informe a descrição do item pesquisado e/ou o nº do processo e/ou se é uma prorrogação contratual (e o valor contratado)\",IF($I$32=0,INEXEQ.!M17,IF(AND($I$32>0,H47=\"OK\"),\"\",H47)))","v":"Informe a descrição do item pesquisado e/ou o nº do processo e/ou se é uma prorrogação contratual (e o valor contratado)"},{"$f":"EXORB.!F17","v":""}]
[{"$f":"IF(COUNTIF(H49:H$54,\"ok\")<>0,1,IF(H48=\"\",\"\",1))","v":""},null,null,null,null,{"$f":"IF($I$11<>0,\"\",IF($I$32=0,INEXEQ.!J18,\"\"))","v":""},{"$f":"IF($I$11<>0,\"Informe a descrição do item pesquisado e/ou o nº do processo e/ou se é uma prorrogação contratual (e o valor contratado)\",IF($I$32=0,INEXEQ.!M18,IF(AND($I$32>0,H48=\"OK\"),\"\",H48)))","v":"Informe a descrição do item pesquisado e/ou o nº do processo e/ou se é uma prorrogação contratual (e o valor contratado)"},{"$f":"EXORB.!F18","v":""}]
[{"$f":"IF(COUNTIF(H50:H$54,\"ok\")<>0,1,IF(H49=\"\",\"\",1))","v":""},null,null,null,null,{"$f":"IF($I$11<>0,\"\",IF($I$32=0,INEXEQ.!J19,\"\"))","v":""},{"$f":"IF($I$11<>0,\"Informe a descrição do item pesquisado e/ou o nº do processo e/ou se é uma prorrogação contratual (e o valor contratado)\",IF($I$32=0,INEXEQ.!M19,IF(AND($I$32>0,H49=\"OK\"),\"\",H49)))","v":"Informe a descrição do item pesquisado e/ou o nº do processo e/ou se é uma prorrogação contratual (e o valor contratado)"},{"$f":"EXORB.!F19","v":""}]
[{"$f":"IF(COUNTIF(H51:H$54,\"ok\")<>0,1,IF(H50=\"\",\"\",1))","v":""},null,null,null,null,{"$f":"IF($I$11<>0,\"\",IF($I$32=0,INEXEQ.!J20,\"\"))","v":""},{"$f":"IF($I$11<>0,\"Informe a descrição do item pesquisado e/ou o nº do processo e/ou se é uma prorrogação contratual (e o valor contratado)\",IF($I$32=0,INEXEQ.!M20,IF(AND($I$32>0,H50=\"OK\"),\"\",H50)))","v":"Informe a descrição do item pesquisado e/ou o nº do processo e/ou se é uma prorrogação contratual (e o valor contratado)"},{"$f":"EXORB.!F20","v":""}]
[{"$f":"IF(COUNTIF(H52:H$54,\"ok\")<>0,1,IF(H51=\"\",\"\",1))","v":""},null,null,null,null,{"$f":"IF($I$11<>0,\"\",IF($I$32=0,INEXEQ.!J21,\"\"))","v":""},{"$f":"IF($I$11<>0,\"Informe a descrição do item pesquisado e/ou o nº do processo e/ou se é uma prorrogação contratual (e o valor contratado)\",IF($I$32=0,INEXEQ.!M21,IF(AND($I$32>0,H51=\"OK\"),\"\",H51)))","v":"Informe a descrição do item pesquisado e/ou o nº do processo e/ou se é uma prorrogação contratual (e o valor contratado)"},{"$f":"EXORB.!F21","v":""}]
[{"$f":"IF(COUNTIF(H53:H$54,\"ok\")<>0,1,IF(H52=\"\",\"\",1))","v":""},null,null,null,null,{"$f":"IF($I$11<>0,\"\",IF($I$32=0,INEXEQ.!J22,\"\"))","v":""},{"$f":"IF($I$11<>0,\"Informe a descrição do item pesquisado e/ou o nº do processo e/ou se é uma prorrogação contratual (e o valor contratado)\",IF($I$32=0,INEXEQ.!M22,IF(AND($I$32>0,H52=\"OK\"),\"\",H52)))","v":"Informe a descrição do item pesquisado e/ou o nº do processo e/ou se é uma prorrogação contratual (e o valor contratado)"},{"$f":"EXORB.!F22","v":""}]
[{"$f":"IF(COUNTIF(H54:H$54,\"ok\")<>0,1,IF(H53=\"\",\"\",1))","v":""},null,null,null,null,{"$f":"IF($I$11<>0,\"\",IF($I$32=0,INEXEQ.!J23,\"\"))","v":""},{"$f":"IF($I$11<>0,\"Informe a descrição do item pesquisado e/ou o nº do processo e/ou se é uma prorrogação contratual (e o valor contratado)\",IF($I$32=0,INEXEQ.!M23,IF(AND($I$32>0,H53=\"OK\"),\"\",H53)))","v":"Informe a descrição do item pesquisado e/ou o nº do processo e/ou se é uma prorrogação contratual (e o valor contratado)"},{"$f":"EXORB.!F23","v":""}]
[{"$f":"IF(COUNTIF(H$54:H55,\"ok\")<>0,1,IF(H54=\"\",\"\",1))","v":""},null,null,null,null,{"$f":"IF($I$11<>0,\"\",IF($I$32=0,INEXEQ.!J24,\"\"))","v":""},{"$f":"IF($I$11<>0,\"Informe a descrição do item pesquisado e/ou o nº do processo e/ou se é uma prorrogação contratual (e o valor contratado)\",IF($I$32=0,INEXEQ.!M24,IF(AND($I$32>0,H54=\"OK\"),\"\",H54)))","v":"Informe a descrição do item pesquisado e/ou o nº do processo e/ou se é uma prorrogação contratual (e o valor contratado)"},{"$f":"EXORB.!F24","v":""}]

{"sheet":"EXORB.","index":2,"n_rows":25,"n_cols":10,"rows_kept":25,"cut":false,"hidden":true,"merged":[]}
["FONTE ","TIPO DE FONTE","LOCALIZADOR SEI","PREÇO","Validação 1.1","Verificação 1.2","MÉDIA DOS DEMAIS PREÇOS","% EM RELAÇÃO AOS DEMAIS","AVALIAÇÃO 1","PREÇOS VÁLIDOS APÓS AV. 1"]
[{"$f":"IF(RELATÓRIO!B32=\"\",\"\",RELATÓRIO!B32)","v":""},{"$f":"IF(RELATÓRIO!C32=\"\",\"\",RELATÓRIO!C32)","v":""},{"$f":"IF(RELATÓRIO!D32=\"\",\"\",RELATÓRIO!D32)","v":""},{"$f":"IF(RELATÓRIO!E32=\"\",\"\",RELATÓRIO!E32)","v":""},{"$f":"COUNTBLANK(ANÁLISE1[[#This Row],[FONTE ]:[PREÇO]])","v":4},{"$f":"_xlfn.IFS(OR(ANÁLISE1[[#This Row],[Validação 1.1]]=1,ANÁLISE1[[#This Row],[Validação 1.1]]=2,ANÁLISE1[[#This Row],[Validação 1.1]]=3),\"INFORME A FONTE, O TIPO DA FONTE, REFERÊNCIA SEI! E O PREÇO\",ANÁLISE1[[#This Row],[Validação 1.1]]=4,\"\",ANÁLISE1[[#This Row],[Validação 1.1]]=0,\"ok\")","v":""},{"$f":"IFERROR(IF(AND(ANÁLISE1[[#This Row],[FONTE ]]=\"\",ANÁLISE1[[#This Row],[TIPO DE FONTE]]=\"\",ANÁLISE1[[#This Row],[PREÇO]]=\"\"),\"\",(SUM(ANÁLISE1[PREÇO])-ANÁLISE1[[#This Row],[PREÇO]])/(COUNT(ANÁLISE1[PREÇO])-1)),ANÁLISE1[[#This Row],[PREÇO]])","v":""},{"$f":"IFERROR(ANÁLISE1[[#This Row],[PREÇO]]/ANÁLISE1[[#This Row],[MÉDIA DOS DEMAIS PREÇOS]],\"\")","v":""},{"$f":"_xlfn.IFS(ANÁLISE1[[#This Row],[% EM RELAÇÃO AOS DEMAIS]]=\"\",\"\",ANÁLISE1[[#This Row],[% EM RELAÇÃO AOS DEMAIS]]>(1+RELATÓRIO!$E$18),\"EXCESSIVAMENTE ELEVADO\",ANÁLISE1[[#This Row],[% EM RELAÇÃO AOS DEMAIS]]<>\"\",\"VÁLIDO\")","v":""},{"$f":"IF(ANÁLISE1[[#This Row],[AVALIAÇÃO 1]]=\"VÁLIDO\",ANÁLISE1[[#This Row],[PREÇO]],\"\")","v":""}]
[{"$f":"IF(RELATÓRIO!B33=\"\",\"\",RELATÓRIO!B33)","v":""},{"$f":"IF(RELATÓRIO!C33=\"\",\"\",RELATÓRIO!C33)","v":""},{"$f":"IF(RELATÓRIO!D33=\"\",\"\",RELATÓRIO!D33)","v":""},{"$f":"IF(RELATÓRIO!E33=\"\",\"\",RELATÓRIO!E33)","v":""},{"$f":"COUNTBLANK(ANÁLISE1[[#This Row],[FONTE ]:[PREÇO]])","v":4},{"$f":"_xlfn.IFS(OR(ANÁLISE1[[#This Row],[Validação 1.1]]=1,ANÁLISE1[[#This Row],[Validação 1.1]]=2,ANÁLISE1[[#This Row],[Validação 1.1]]=3),\"INFORME A FONTE, O TIPO DA FONTE, REFERÊNCIA SEI! E O PREÇO\",ANÁLISE1[[#This Row],[Validação 1.1]]=4,\"\",ANÁLISE1[[#This Row],[Validação 1.1]]=0,\"ok\")","v":""},{"$f":"IFERROR(IF(AND(ANÁLISE1[[#This Row],[FONTE ]]=\"\",ANÁLISE1[[#This Row],[TIPO DE FONTE]]=\"\",ANÁLISE1[[#This Row],[PREÇO]]=\"\"),\"\",(SUM(ANÁLISE1[PREÇO])-ANÁLISE1[[#This Row],[PREÇO]])/(COUNT(ANÁLISE1[PREÇO])-1)),ANÁLISE1[[#This Row],[PREÇO]])","v":""},{"$f":"IFERROR(ANÁLISE1[[#This Row],[PREÇO]]/ANÁLISE1[[#This Row],[MÉDIA DOS DEMAIS PREÇOS]],\"\")","v":""},{"$f":"_xlfn.IFS(ANÁLISE1[[#This Row],[% EM RELAÇÃO AOS DEMAIS]]=\"\",\"\",ANÁLISE1[[#This Row],[% EM RELAÇÃO AOS DEMAIS]]>(1+RELATÓRIO!$E$18),\"EXCESSIVAMENTE ELEVADO\",ANÁLISE1[[#This Row],[% EM RELAÇÃO AOS DEMAIS]]<>\"\",\"VÁLIDO\")","v":""},{"$f":"IF(ANÁLISE1[[#This Row],[AVALIAÇÃO 1]]=\"VÁLIDO\",ANÁLISE1[[#This Row],[PREÇO]],\"\")","v":""}]
[{"$f":"IF(RELATÓRIO!B34=\"\",\"\",RELATÓRIO!B34)","v":""},{"$f":"IF(RELATÓRIO!C34=\"\",\"\",RELATÓRIO!C34)","v":""},{"$f":"IF(RELATÓRIO!D34=\"\",\"\",RELATÓRIO!D34)","v":""},{"$f":"IF(RELATÓRIO!E34=\"\",\"\",RELATÓRIO!E34)","v":""},{"$f":"COUNTBLANK(ANÁLISE1[[#This Row],[FONTE ]:[PREÇO]])","v":4},{"$f":"_xlfn.IFS(OR(ANÁLISE1[[#This Row],[Validação 1.1]]=1,ANÁLISE1[[#This Row],[Validação 1.1]]=2,ANÁLISE1[[#This Row],[Validação 1.1]]=3),\"INFORME A FONTE, O TIPO DA FONTE, REFERÊNCIA SEI! E O PREÇO\",ANÁLISE1[[#This Row],[Validação 1.1]]=4,\"\",ANÁLISE1[[#This Row],[Validação 1.1]]=0,\"ok\")","v":""},{"$f":"IFERROR(IF(AND(ANÁLISE1[[#This Row],[FONTE ]]=\"\",ANÁLISE1[[#This Row],[TIPO DE FONTE]]=\"\",ANÁLISE1[[#This Row],[PREÇO]]=\"\"),\"\",(SUM(ANÁLISE1[PREÇO])-ANÁLISE1[[#This Row],[PREÇO]])/(COUNT(ANÁLISE1[PREÇO])-1)),ANÁLISE1[[#This Row],[PREÇO]])","v":""},{"$f":"IFERROR(ANÁLISE1[[#This Row],[PREÇO]]/ANÁLISE1[[#This Row],[MÉDIA DOS DEMAIS PREÇOS]],\"\")","v":""},{"$f":"_xlfn.IFS(ANÁLISE1[[#This Row],[% EM RELAÇÃO AOS DEMAIS]]=\"\",\"\",ANÁLISE1[[#This Row],[% EM RELAÇÃO AOS DEMAIS]]>(1+RELATÓRIO!$E$18),\"EXCESSIVAMENTE ELEVADO\",ANÁLISE1[[#This Row],[% EM RELAÇÃO AOS DEMAIS]]<>\"\",\"VÁLIDO\")","v":""},{"$f":"IF(ANÁLISE1[[#This Row],[AVALIAÇÃO 1]]=\"VÁLIDO\",ANÁLISE1[[#This Row],[PREÇO]],\"\")","v":""}]
[{"$f":"IF(RELATÓRIO!B35=\"\",\"\",RELATÓRIO!B35)","v":""},{"$f":"IF(RELATÓRIO!C35=\"\",\"\",RELATÓRIO!C35)","v":""},{"$f":"IF(RELATÓRIO!D35=\"\",\"\",RELATÓRIO!D35)","v":""},{"$f":"IF(RELATÓRIO!E35=\"\",\"\",RELATÓRIO!E35)","v":""},{"$f":"COUNTBLANK(ANÁLISE1[[#This Row],[FONTE ]:[PREÇO]])","v":4},{"$f":"_xlfn.IFS(OR(ANÁLISE1[[#This Row],[Validação 1.1]]=1,ANÁLISE1[[#This Row],[Validação 1.1]]=2,ANÁLISE1[[#This Row],[Validação 1.1]]=3),\"INFORME A FONTE, O TIPO DA FONTE, REFERÊNCIA SEI! E O PREÇO\",ANÁLISE1[[#This Row],[Validação 1.1]]=4,\"\",ANÁLISE1[[#This Row],[Validação 1.1]]=0,\"ok\")","v":""},{"$f":"IFERROR(IF(AND(ANÁLISE1[[#This Row],[FONTE ]]=\"\",ANÁLISE1[[#This Row],[TIPO DE FONTE]]=\"\",ANÁLISE1[[#This Row],[PREÇO]]=\"\"),\"\",(SUM(ANÁLISE1[PREÇO])-ANÁLISE1[[#This Row],[PREÇO]])/(COUNT(ANÁLISE1[PREÇO])-1)),ANÁLISE1[[#This Row],[PREÇO]])","v":""},{"$f":"IFERROR(ANÁLISE1[[#This Row],[PREÇO]]/ANÁLISE1[[#This Row],[MÉDIA DOS DEMAIS PREÇOS]],\"\")","v":""},{"$f":"_xlfn.IFS(ANÁLISE1[[#This Row],[% EM RELAÇÃO AOS DEMAIS]]=\"\",\"\",ANÁLISE1[[#This Row],[% EM RELAÇÃO AOS DEMAIS]]>(1+RELATÓRIO!$E$18),\"EXCESSIVAMENTE ELEVADO\",ANÁLISE1[[#This Row],[% EM RELAÇÃO AOS DEMAIS]]<>\"\",\"VÁLIDO\")","v":""},{"$f":"IF(ANÁLISE1[[#This Row],[AVALIAÇÃO 1]]=\"VÁLIDO\",ANÁLISE1[[#This Row],[PREÇO]],\"\")","v":""}]
[{"$f":"IF(RELATÓRIO!B36=\"\",\"\",RELATÓRIO!B36)","v":""},{"$f":"IF(RELATÓRIO!C36=\"\",\"\",RELATÓRIO!C36)","v":""},{"$f":"IF(RELATÓRIO!D36=\"\",\"\",RELATÓRIO!D36)","v":""},{"$f":"IF(RELATÓRIO!E36=\"\",\"\",RELATÓRIO!E36)","v":""},{"$f":"COUNTBLANK(ANÁLISE1[[#This Row],[FONTE ]:[PREÇO]])","v":4},{"$f":"_xlfn.IFS(OR(ANÁLISE1[[#This Row],[Validação 1.1]]=1,ANÁLISE1[[#This Row],[Validação 1.1]]=2,ANÁLISE1[[#This Row],[Validação 1.1]]=3),\"INFORME A FONTE, O TIPO DA FONTE, REFERÊNCIA SEI! E O PREÇO\",ANÁLISE1[[#This Row],[Validação 1.1]]=4,\"\",ANÁLISE1[[#This Row],[Validação 1.1]]=0,\"ok\")","v":""},{"$f":"IFERROR(IF(AND(ANÁLISE1[[#This Row],[FONTE ]]=\"\",ANÁLISE1[[#This Row],[TIPO DE FONTE]]=\"\",ANÁLISE1[[#This Row],[PREÇO]]=\"\"),\"\",(SUM(ANÁLISE1[PREÇO])-ANÁLISE1[[#This Row],[PREÇO]])/(COUNT(ANÁLISE1[PREÇO])-1)),ANÁLISE1[[#This Row],[PREÇO]])","v":""},{"$f":"IFERROR(ANÁLISE1[[#This Row],[PREÇO]]/ANÁLISE1[[#This Row],[MÉDIA DOS DEMAIS PREÇOS]],\"\")","v":""},{"$f":"_xlfn.IFS(ANÁLISE1[[#This Row],[% EM RELAÇÃO AOS DEMAIS]]=\"\",\"\",ANÁLISE1[[#This Row],[% EM RELAÇÃO AOS DEMAIS]]>(1+RELATÓRIO!$E$18),\"EXCESSIVAMENTE ELEVADO\",ANÁLISE1[[#This Row],[% EM RELAÇÃO AOS DEMAIS]]<>\"\",\"VÁLIDO\")","v":""},{"$f":"IF(ANÁLISE1[[#This Row],[AVALIAÇÃO 1]]=\"VÁLIDO\",ANÁLISE1[[#This Row],[PREÇO]],\"\")","v":""}]
[{"$f":"IF(RELATÓRIO!B37=\"\",\"\",RELATÓRIO!B37)","v":""},{"$f":"IF(RELATÓRIO!C37=\"\",\"\",RELATÓRIO!C37)","v":""},{"$f":"IF(RELATÓRIO!D37=\"\",\"\",RELATÓRIO!D37)","v":""},{"$f":"IF(RELATÓRIO!E37=\"\",\"\",RELATÓRIO!E37)","v":""},{"$f":"COUNTBLANK(ANÁLISE1[[#This Row],[FONTE ]:[PREÇO]])","v":4},{"$f":"_xlfn.IFS(OR(ANÁLISE1[[#This Row],[Validação 1.1]]=1,ANÁLISE1[[#This Row],[Validação 1.1]]=2,ANÁLISE1[[#This Row],[Validação 1.1]]=3),\"INFORME A FONTE, O TIPO DA FONTE, REFERÊNCIA SEI! E O PREÇO\",ANÁLISE1[[#This Row],[Validação 1.1]]=4,\"\",ANÁLISE1[[#This Row],[Validação 1.1]]=0,\"ok\")","v":""},{"$f":"IFERROR(IF(AND(ANÁLISE1[[#This Row],[FONTE ]]=\"\",ANÁLISE1[[#This Row],[TIPO DE FONTE]]=\"\",ANÁLISE1[[#This Row],[PREÇO]]=\"\"),\"\",(SUM(ANÁLISE1[PREÇO])-ANÁLISE1[[#This Row],[PREÇO]])/(COUNT(ANÁLISE1[PREÇO])-1)),ANÁLISE1[[#This Row],[PREÇO]])","v":""},{"$f":"IFERROR(ANÁLISE1[[#This Row],[PREÇO]]/ANÁLISE1[[#This Row],[MÉDIA DOS DEMAIS PREÇOS]],\"\")","v":""},{"$f":"_xlfn.IFS(ANÁLISE1[[#This Row],[% EM RELAÇÃO AOS DEMAIS]]=\"\",\"\",ANÁLISE1[[#This Row],[% EM RELAÇÃO AOS DEMAIS]]>(1+RELATÓRIO!$E$18),\"EXCESSIVAMENTE ELEVADO\",ANÁLISE1[[#This Row],[% EM RELAÇÃO AOS DEMAIS]]<>\"\",\"VÁLIDO\")","v":""},{"$f":"IF(ANÁLISE1[[#This Row],[AVALIAÇÃO 1]]=\"VÁLIDO\",ANÁLISE1[[#This Row],[PREÇO]],\"\")","v":""}]
[{"$f":"IF(RELATÓRIO!B38=\"\",\"\",RELATÓRIO!B38)","v":""},{"$f":"IF(RELATÓRIO!C38=\"\",\"\",RELATÓRIO!C38)","v":""},{"$f":"IF(RELATÓRIO!D38=\"\",\"\",RELATÓRIO!D38)","v":""},{"$f":"IF(RELATÓRIO!E38=\"\",\"\",RELATÓRIO!E38)","v":""},{"$f":"COUNTBLANK(ANÁLISE1[[#This Row],[FONTE ]:[PREÇO]])","v":4},{"$f":"_xlfn.IFS(OR(ANÁLISE1[[#This Row],[Validação 1.1]]=1,ANÁLISE1[[#This Row],[Validação 1.1]]=2,ANÁLISE1[[#This Row],[Validação 1.1]]=3),\"INFORME A FONTE, O TIPO DA FONTE, REFERÊNCIA SEI! E O PREÇO\",ANÁLISE1[[#This Row],[Validação 1.1]]=4,\"\",ANÁLISE1[[#This Row],[Validação 1.1]]=0,\"ok\")","v":""},{"$f":"IFERROR(IF(AND(ANÁLISE1[[#This Row],[FONTE ]]=\"\",ANÁLISE1[[#This Row],[TIPO DE FONTE]]=\"\",ANÁLISE1[[#This Row],[PREÇO]]=\"\"),\"\",(SUM(ANÁLISE1[PREÇO])-ANÁLISE1[[#This Row],[PREÇO]])/(COUNT(ANÁLISE1[PREÇO])-1)),ANÁLISE1[[#This Row],[PREÇO]])","v":""},{"$f":"IFERROR(ANÁLISE1[[#This Row],[PREÇO]]/ANÁLISE1[[#This Row],[MÉDIA DOS DEMAIS PREÇOS]],\"\")","v":""},{"$f":"_xlfn.IFS(ANÁLISE1[[#This Row],[% EM RELAÇÃO AOS DEMAIS]]=\"\",\"\",ANÁLISE1[[#This Row],[% EM RELAÇÃO AOS DEMAIS]]>(1+RELATÓRIO!$E$18),\"EXCESSIVAMENTE ELEVADO\",ANÁLISE1[[#This Row],[% EM RELAÇÃO AOS DEMAIS]]<>\"\",\"VÁLIDO\")","v":""},{"$f":"IF(ANÁLISE1[[#This Row],[AVALIAÇÃO 1]]=\"VÁLIDO\",ANÁLISE1[[#This Row],[PREÇO]],\"\")","v":""}]
[{"$f":"IF(RELATÓRIO!B39=\"\",\"\",RELATÓRIO!B39)","v":""},{"$f":"IF(RELATÓRIO!C39=\"\",\"\",RELATÓRIO!C39)","v":""},{"$f":"IF(RELATÓRIO!D39=\"\",\"\",RELATÓRIO!D39)","v":""},{"$f":"IF(RELATÓRIO!E39=\"\",\"\",RELATÓRIO!E39)","v":""},{"$f":"COUNTBLANK(ANÁLISE1[[#This Row],[FONTE ]:[PREÇO]])","v":4},{"$f":"_xlfn.IFS(OR(ANÁLISE1[[#This Row],[Validação 1.1]]=1,ANÁLISE1[[#This Row],[Validação 1.1]]=2,ANÁLISE1[[#This Row],[Validação 1.1]]=3),\"INFORME A FONTE, O TIPO DA FONTE, REFERÊNCIA SEI! E O PREÇO\",ANÁLISE1[[#This Row],[Validação 1.1]]=4,\"\",ANÁLISE1[[#This Row],[Validação 1.1]]=0,\"ok\")","v":""},{"$f":"IFERROR(IF(AND(ANÁLISE1[[#This Row],[FONTE ]]=\"\",ANÁLISE1[[#This Row],[TIPO DE FONTE]]=\"\",ANÁLISE1[[#This Row],[PREÇO]]=\"\"),\"\",(SUM(ANÁLISE1[PREÇO])-ANÁLISE1[[#This Row],[PREÇO]])/(COUNT(ANÁLISE1[PREÇO])-1)),ANÁLISE1[[#This Row],[PREÇO]])","v":""},{"$f":"IFERROR(ANÁLISE1[[#This Row],[PREÇO]]/ANÁLISE1[[#This Row],[MÉDIA DOS DEMAIS PREÇOS]],\"\")","v":""},{"$f":"_xlfn.IFS(ANÁLISE1[[#This Row],[% EM RELAÇÃO AOS DEMAIS]]=\"\",\"\",ANÁLISE1[[#This Row],[% EM RELAÇÃO AOS DEMAIS]]>(1+RELATÓRIO!$E$18),\"EXCESSIVAMENTE ELEVADO\",ANÁLISE1[[#This Row],[% EM RELAÇÃO AOS DEMAIS]]<>\"\",\"VÁLIDO\")","v":""},{"$f":"IF(ANÁLISE1[[#This Row],[AVALIAÇÃO 1]]=\"VÁLIDO\",ANÁLISE1[[#This Row],[PREÇO]],\"\")","v":""}]
[{"$f":"IF(RELATÓRIO!B40=\"\",\"\",RELATÓRIO!B40)","v":""},{"$f":"IF(RELATÓRIO!C40=\"\",\"\",RELATÓRIO!C40)","v":""},{"$f":"IF(RELATÓRIO!D40=\"\",\"\",RELATÓRIO!D40)","v":""},{"$f":"IF(RELATÓRIO!E40=\"\",\"\",RELATÓRIO!E40)","v":""},{"$f":"COUNTBLANK(ANÁLISE1[[#This Row],[FONTE ]:[PREÇO]])","v":4},{"$f":"_xlfn.IFS(OR(ANÁLISE1[[#This Row],[Validação 1.1]]=1,ANÁLISE1[[#This Row],[Validação 1.1]]=2,ANÁLISE1[[#This Row],[Validação 1.1]]=3),\"INFORME A FONTE, O TIPO DA FONTE, REFERÊNCIA SEI! E O PREÇO\",ANÁLISE1[[#This Row],[Validação 1.1]]=4,\"\",ANÁLISE1[[#This Row],[Validação 1.1]]=0,\"ok\")","v":""},{"$f":"IFERROR(IF(AND(ANÁLISE1[[#This Row],[FONTE ]]=\"\",ANÁLISE1[[#This Row],[TIPO DE FONTE]]=\"\",ANÁLISE1[[#This Row],[PREÇO]]=\"\"),\"\",(SUM(ANÁLISE1[PREÇO])-ANÁLISE1[[#This Row],[PREÇO]])/(COUNT(ANÁLISE1[PREÇO])-1)),ANÁLISE1[[#This Row],[PREÇO]])","v":""},{"$f":"IFERROR(ANÁLISE1[[#This Row],[PREÇO]]/ANÁLISE1[[#This Row],[MÉDIA DOS DEMAIS PREÇOS]],\"\")","v":""},{"$f":"_xlfn.IFS(ANÁLISE1[[#This Row],[% EM RELAÇÃO AOS DEMAIS]]=\"\",\"\",ANÁLISE1[[#This Row],[% EM RELAÇÃO AOS DEMAIS]]>(1+RELATÓRIO!$E$18),\"EXCESSIVAMENTE ELEVADO\",ANÁLISE1[[#This Row],[% EM RELAÇÃO AOS DEMAIS]]<>\"\",\"VÁLIDO\")","v":""},{"$f":"IF(ANÁLISE1[[#This Row],[AVALIAÇÃO 1]]=\"VÁLIDO\",ANÁLISE1[[#This Row],[PREÇO]],\"\")","v":""}]
[{"$f":"IF(RELATÓRIO!B41=\"\",\"\",RELATÓRIO!B41)","v":""},{"$f":"IF(RELATÓRIO!C41=\"\",\"\",RELATÓRIO!C41)","v":""},{"$f":"IF(RELATÓRIO!D41=\"\",\"\",RELATÓRIO!D41)","v":""},{"$f":"IF(RELATÓRIO!E41=\"\",\"\",RELATÓRIO!E41)","v":""},{"$f":"COUNTBLANK(ANÁLISE1[[#This Row],[FONTE ]:[PREÇO]])","v":4},{"$f":"_xlfn.IFS(OR(ANÁLISE1[[#This Row],[Validação 1.1]]=1,ANÁLISE1[[#This Row],[Validação 1.1]]=2,ANÁLISE1[[#This Row],[Validação 1.1]]=3),\"INFORME A FONTE, O TIPO DA FONTE, REFERÊNCIA SEI! E O PREÇO\",ANÁLISE1[[#This Row],[Validação 1.1]]=4,\"\",ANÁLISE1[[#This Row],[Validação 1.1]]=0,\"ok\")","v":""},{"$f":"IFERROR(IF(AND(ANÁLISE1[[#This Row],[FONTE ]]=\"\",ANÁLISE1[[#This Row],[TIPO DE FONTE]]=\"\",ANÁLISE1[[#This Row],[PREÇO]]=\"\"),\"\",(SUM(ANÁLISE1[PREÇO])-ANÁLISE1[[#This Row],[PREÇO]])/(COUNT(ANÁLISE1[PREÇO])-1)),ANÁLISE1[[#This Row],[PREÇO]])","v":""},{"$f":"IFERROR(ANÁLISE1[[#This Row],[PREÇO]]/ANÁLISE1[[#This Row],[MÉDIA DOS DEMAIS PREÇOS]],\"\")","v":""},{"$f":"_xlfn.IFS(ANÁLISE1[[#This Row],[% EM RELAÇÃO AOS DEMAIS]]=\"\",\"\",ANÁLISE1[[#This Row],[% EM RELAÇÃO AOS DEMAIS]]>(1+RELATÓRIO!$E$18),\"EXCESSIVAMENTE ELEVADO\",ANÁLISE1[[#This Row],[% EM RELAÇÃO AOS DEMAIS]]<>\"\",\"VÁLIDO\")","v":""},{"$f":"IF(ANÁLISE1[[#This Row],[AVALIAÇÃO 1]]=\"VÁLIDO\",ANÁLISE1[[#This Row],[PREÇO]],\"\")","v":""}]
[{"$f":"IF(RELATÓRIO!B42=\"\",\"\",RELATÓRIO!B42)","v":""},{"$f":"IF(RELATÓRIO!C42=\"\",\"\",RELATÓRIO!C42)","v":""},{"$f":"IF(RELATÓRIO!D42=\"\",\"\",RELATÓRIO!D42)","v":""},{"$f":"IF(RELATÓRIO!E42=\"\",\"\",RELATÓRIO!E42)","v":""},{"$f":"COUNTBLANK(ANÁLISE1[[#This Row],[FONTE ]:[PREÇO]])","v":4},{"$f":"_xlfn.IFS(OR(ANÁLISE1[[#This Row],[Validação 1.1]]=1,ANÁLISE1[[#This Row],[Validação 1.1]]=2,ANÁLISE1[[#This Row],[Validação 1.1]]=3),\"INFORME A FONTE, O TIPO DA FONTE, REFERÊNCIA SEI! E O PREÇO\",ANÁLISE1[[#This Row],[Validação 1.1]]=4,\"\",ANÁLISE1[[#This Row],[Validação 1.1]]=0,\"ok\")","v":""},{"$f":"IFERROR(IF(AND(ANÁLISE1[[#This Row],[FONTE ]]=\"\",ANÁLISE1[[#This Row],[TIPO DE FONTE]]=\"\",ANÁLISE1[[#This Row],[PREÇO]]=\"\"),\"\",(SUM(ANÁLISE1[PREÇO])-ANÁLISE1[[#This Row],[PREÇO]])/(COUNT(ANÁLISE1[PREÇO])-1)),ANÁLISE1[[#This Row],[PREÇO]])","v":""},{"$f":"IFERROR(ANÁLISE1[[#This Row],[PREÇO]]/ANÁLISE1[[#This Row],[MÉDIA DOS DEMAIS PREÇOS]],\"\")","v":""},{"$f":"_xlfn.IFS(ANÁLISE1[[#This Row],[% EM RELAÇÃO AOS DEMAIS]]=\"\",\"\",ANÁLISE1[[#This Row],[% EM RELAÇÃO AOS DEMAIS]]>(1+RELATÓRIO!$E$18),\"EXCESSIVAMENTE ELEVADO\",ANÁLISE1[[#This Row],[% EM RELAÇÃO AOS DEMAIS]]<>\"\",\"VÁLIDO\")","v":""},{"$f":"IF(ANÁLISE1[[#This Row],[AVALIAÇÃO 1]]=\"VÁLIDO\",ANÁLISE1[[#This Row],[PREÇO]],\"\")","v":""}]
[{"$f":"IF(RELATÓRIO!B43=\"\",\"\",RELATÓRIO!B43)","v":""},{"$f":"IF(RELATÓRIO!C43=\"\",\"\",RELATÓRIO!C43)","v":""},{"$f":"IF(RELATÓRIO!D43=\"\",\"\",RELATÓRIO!D43)","v":""},{"$f":"IF(RELATÓRIO!E43=\"\",\"\",RELATÓRIO!E43)","v":""},{"$f":"COUNTBLANK(ANÁLISE1[[#This Row],[FONTE ]:[PREÇO]])","v":4},{"$f":"_xlfn.IFS(OR(ANÁLISE1[[#This Row],[Validação 1.1]]=1,ANÁLISE1[[#This Row],[Validação 1.1]]=2,ANÁLISE1[[#This Row],[Validação 1.1]]=3),\"INFORME A FONTE, O TIPO DA FONTE, REFERÊNCIA SEI! E O PREÇO\",ANÁLISE1[[#This Row],[Validação 1.1]]=4,\"\",ANÁLISE1[[#This Row],[Validação 1.1]]=0,\"ok\")","v":""},{"$f":"IFERROR(IF(AND(ANÁLISE1[[#This Row],[FONTE ]]=\"\",ANÁLISE1[[#This Row],[TIPO DE FONTE]]=\"\",ANÁLISE1[[#This Row],[PREÇO]]=\"\"),\"\",(SUM(ANÁLISE1[PREÇO])-ANÁLISE1[[#This Row],[PREÇO]])/(COUNT(ANÁLISE1[PREÇO])-1)),ANÁLISE1[[#This Row],[PREÇO]])","v":""},{"$f":"IFERROR(ANÁLISE1[[#This Row],[PREÇO]]/ANÁLISE1[[#This Row],[MÉDIA DOS DEMAIS PREÇOS]],\"\")","v":""},{"$f":"_xlfn.IFS(ANÁLISE1[[#This Row],[% EM RELAÇÃO AOS DEMAIS]]=\"\",\"\",ANÁLISE1[[#This Row],[% EM RELAÇÃO AOS DEMAIS]]>(1+RELATÓRIO!$E$18),\"EXCESSIVAMENTE ELEVADO\",ANÁLISE1[[#This Row],[% EM RELAÇÃO AOS DEMAIS]]<>\"\",\"VÁLIDO\")","v":""},{"$f":"IF(ANÁLISE1[[#This Row],[AVALIAÇÃO 1]]=\"VÁLIDO\",ANÁLISE1[[#This Row],[PREÇO]],\"\")","v":""}]
[{"$f":"IF(RELATÓRIO!B44=\"\",\"\",RELATÓRIO!B44)","v":""},{"$f":"IF(RELATÓRIO!C44=\"\",\"\",RELATÓRIO!C44)","v":""},{"$f":"IF(RELATÓRIO!D44=\"\",\"\",RELATÓRIO!D44)","v":""},{"$f":"IF(RELATÓRIO!E44=\"\",\"\",RELATÓRIO!E44)","v":""},{"$f":"COUNTBLANK(ANÁLISE1[[#This Row],[FONTE ]:[PREÇO]])","v":4},{"$f":"_xlfn.IFS(OR(ANÁLISE1[[#This Row],[Validação 1.1]]=1,ANÁLISE1[[#This Row],[Validação 1.1]]=2,ANÁLISE1[[#This Row],[Validação 1.1]]=3),\"INFORME A FONTE, O TIPO DA FONTE, REFERÊNCIA SEI! E O PREÇO\",ANÁLISE1[[#This Row],[Validação 1.1]]=4,\"\",ANÁLISE1[[#This Row],[Validação 1.1]]=0,\"ok\")","v":""},{"$f":"IFERROR(IF(AND(ANÁLISE1[[#This Row],[FONTE ]]=\"\",ANÁLISE1[[#This Row],[TIPO DE FONTE]]=\"\",ANÁLISE1[[#This Row],[PREÇO]]=\"\"),\"\",(SUM(ANÁLISE1[PREÇO])-ANÁLISE1[[#This Row],[PREÇO]])/(COUNT(ANÁLISE1[PREÇO])-1)),ANÁLISE1[[#This Row],[PREÇO]])","v":""},{"$f":"IFERROR(ANÁLISE1[[#This Row],[PREÇO]]/ANÁLISE1[[#This Row],[MÉDIA DOS DEMAIS PREÇOS]],\"\")","v":""},{"$f":"_xlfn.IFS(ANÁLISE1[[#This Row],[% EM RELAÇÃO AOS DEMAIS]]=\"\",\"\",ANÁLISE1[[#This Row],[% EM RELAÇÃO AOS DEMAIS]]>(1+RELATÓRIO!$E$18),\"EXCESSIVAMENTE ELEVADO\",ANÁLISE1[[#This Row],[% EM RELAÇÃO AOS DEMAIS]]<>\"\",\"VÁLIDO\")","v":""},{"$f":"IF(ANÁLISE1[[#This Row],[AVALIAÇÃO 1]]=\"VÁLIDO\",ANÁLISE1[[#This Row],[PREÇO]],\"\")","v":""}]
[{"$f":"IF(RELATÓRIO!B45=\"\",\"\",RELATÓRIO!B45)","v":""},{"$f":"IF(RELATÓRIO!C45=\"\",\"\",RELATÓRIO!C45)","v":""},{"$f":"IF(RELATÓRIO!D45=\"\",\"\",RELATÓRIO!D45)","v":""},{"$f":"IF(RELATÓRIO!E45=\"\",\"\",RELATÓRIO!E45)","v":""},{"$f":"COUNTBLANK(ANÁLISE1[[#This Row],[FONTE ]:[PREÇO]])","v":4},{"$f":"_xlfn.IFS(OR(ANÁLISE1[[#This Row],[Validação 1.1]]=1,ANÁLISE1[[#This Row],[Validação 1.1]]=2,ANÁLISE1[[#This Row],[Validação 1.1]]=3),\"INFORME A FONTE, O TIPO DA FONTE, REFERÊNCIA SEI! E O PREÇO\",ANÁLISE1[[#This Row],[Validação 1.1]]=4,\"\",ANÁLISE1[[#This Row],[Validação 1.1]]=0,\"ok\")","v":""},{"$f":"IFERROR(IF(AND(ANÁLISE1[[#This Row],[FONTE ]]=\"\",ANÁLISE1[[#This Row],[TIPO DE FONTE]]=\"\",ANÁLISE1[[#This Row],[PREÇO]]=\"\"),\"\",(SUM(ANÁLISE1[PREÇO])-ANÁLISE1[[#This Row],[PREÇO]])/(COUNT(ANÁLISE1[PREÇO])-1)),ANÁLISE1[[#This Row],[PREÇO]])","v":""},{"$f":"IFERROR(ANÁLISE1[[#This Row],[PREÇO]]/ANÁLISE1[[#This Row],[MÉDIA DOS DEMAIS PREÇOS]],\"\")","v":""},{"$f":"_xlfn.IFS(ANÁLISE1[[#This Row],[% EM RELAÇÃO AOS DEMAIS]]=\"\",\"\",ANÁLISE1[[#This Row],[% EM RELAÇÃO AOS DEMAIS]]>(1+RELATÓRIO!$E$18),\"EXCESSIVAMENTE ELEVADO\",ANÁLISE1[[#This Row],[% EM RELAÇÃO AOS DEMAIS]]<>\"\",\"VÁLIDO\")","v":""},{"$f":"IF(ANÁLISE1[[#This Row],[AVALIAÇÃO 1]]=\"VÁLIDO\",ANÁLISE1[[#This Row],[PREÇO]],\"\")","v":""}]
[{"$f":"IF(RELATÓRIO!B46=\"\",\"\",RELATÓRIO!B46)","v":""},{"$f":"IF(RELATÓRIO!C46=\"\",\"\",RELATÓRIO!C46)","v":""},{"$f":"IF(RELATÓRIO!D46=\"\",\"\",RELATÓRIO!D46)","v":""},{"$f":"IF(RELATÓRIO!E46=\"\",\"\",RELATÓRIO!E46)","v":""},{"$f":"COUNTBLANK(ANÁLISE1[[#This Row],[FONTE ]:[PREÇO]])","v":4},{"$f":"_xlfn.IFS(OR(ANÁLISE1[[#This Row],[Validação 1.1]]=1,ANÁLISE1[[#This Row],[Validação 1.1]]=2,ANÁLISE1[[#This Row],[Validação 1.1]]=3),\"INFORME A FONTE, O TIPO DA FONTE, REFERÊNCIA SEI! E O PREÇO\",ANÁLISE1[[#This Row],[Validação 1.1]]=4,\"\",ANÁLISE1[[#This Row],[Validação 1.1]]=0,\"ok\")","v":""},{"$f":"IFERROR(IF(AND(ANÁLISE1[[#This Row],[FONTE ]]=\"\",ANÁLISE1[[#This Row],[TIPO DE FONTE]]=\"\",ANÁLISE1[[#This Row],[PREÇO]]=\"\"),\"\",(SUM(ANÁLISE1[PREÇO])-ANÁLISE1[[#This Row],[PREÇO]])/(COUNT(ANÁLISE1[PREÇO])-1)),ANÁLISE1[[#This Row],[PREÇO]])","v":""},{"$f":"IFERROR(ANÁLISE1[[#This Row],[PREÇO]]/ANÁLISE1[[#This Row],[MÉDIA DOS DEMAIS PREÇOS]],\"\")","v":""},{"$f":"_xlfn.IFS(ANÁLISE1[[#This Row],[% EM RELAÇÃO AOS DEMAIS]]=\"\",\"\",ANÁLISE1[[#This Row],[% EM RELAÇÃO AOS DEMAIS]]>(1+RELATÓRIO!$E$18),\"EXCESSIVAMENTE ELEVADO\",ANÁLISE1[[#This Row],[% EM RELAÇÃO AOS DEMAIS]]<>\"\",\"VÁLIDO\")","v":""},{"$f":"IF(ANÁLISE1[[#This Row],[AVALIAÇÃO 1]]=\"VÁLIDO\",ANÁLISE1[[#This Row],[PREÇO]],\"\")","v":""}]
[{"$f":"IF(RELATÓRIO!B47=\"\",\"\",RELATÓRIO!B47)","v":""},{"$f":"IF(RELATÓRIO!C47=\"\",\"\",RELATÓRIO!C47)","v":""},{"$f":"IF(RELATÓRIO!D47=\"\",\"\",RELATÓRIO!D47)","v":""},{"$f":"IF(RELATÓRIO!E47=\"\",\"\",RELATÓRIO!E47)","v":""},{"$f":"COUNTBLANK(ANÁLISE1[[#This Row],[FONTE ]:[PREÇO]])","v":4},{"$f":"_xlfn.IFS(OR(ANÁLISE1[[#This Row],[Validação 1.1]]=1,ANÁLISE1[[#This Row],[Validação 1.1]]=2,ANÁLISE1[[#This Row],[Validação 1.1]]=3),\"INFORME A FONTE, O TIPO DA FONTE, REFERÊNCIA SEI! E O PREÇO\",ANÁLISE1[[#This Row],[Validação 1.1]]=4,\"\",ANÁLISE1[[#This Row],[Validação 1.1]]=0,\"ok\")","v":""},{"$f":"IFERROR(IF(AND(ANÁLISE1[[#This Row],[FONTE ]]=\"\",ANÁLISE1[[#This Row],[TIPO DE FONTE]]=\"\",ANÁLISE1[[#This Row],[PREÇO]]=\"\"),\"\",(SUM(ANÁLISE1[PREÇO])-ANÁLISE1[[#This Row],[PREÇO]])/(COUNT(ANÁLISE1[PREÇO])-1)),ANÁLISE1[[#This Row],[PREÇO]])","v":""},{"$f":"IFERROR(ANÁLISE1[[#This Row],[PREÇO]]/ANÁLISE1[[#This Row],[MÉDIA DOS DEMAIS PREÇOS]],\"\")","v":""},{"$f":"_xlfn.IFS(ANÁLISE1[[#This Row],[% EM RELAÇÃO AOS DEMAIS]]=\"\",\"\",ANÁLISE1[[#This Row],[% EM RELAÇÃO AOS DEMAIS]]>(1+RELATÓRIO!$E$18),\"EXCESSIVAMENTE ELEVADO\",ANÁLISE1[[#This Row],[% EM RELAÇÃO AOS DEMAIS]]<>\"\",\"VÁLIDO\")","v":""},{"$f":"IF(ANÁLISE1[[#This Row],[AVALIAÇÃO 1]]=\"VÁLIDO\",ANÁLISE1[[#This Row],[PREÇO]],\"\")","v":""}]
[{"$f":"IF(RELATÓRIO!B48=\"\",\"\",RELATÓRIO!B48)","v":""},{"$f":"IF(RELATÓRIO!C48=\"\",\"\",RELATÓRIO!C48)","v":""},{"$f":"IF(RELATÓRIO!D48=\"\",\"\",RELATÓRIO!D48)","v":""},{"$f":"IF(RELATÓRIO!E48=\"\",\"\",RELATÓRIO!E48)","v":""},{"$f":"COUNTBLANK(ANÁLISE1[[#This Row],[FONTE ]:[PREÇO]])","v":4},{"$f":"_xlfn.IFS(OR(ANÁLISE1[[#This Row],[Validação 1.1]]=1,ANÁLISE1[[#This Row],[Validação 1.1]]=2,ANÁLISE1[[#This Row],[Validação 1.1]]=3),\"INFORME A FONTE, O TIPO DA FONTE, REFERÊNCIA SEI! E O PREÇO\",ANÁLISE1[[#This Row],[Validação 1.1]]=4,\"\",ANÁLISE1[[#This Row],[Validação 1.1]]=0,\"ok\")","v":""},{"$f":"IFERROR(IF(AND(ANÁLISE1[[#This Row],[FONTE ]]=\"\",ANÁLISE1[[#This Row],[TIPO DE FONTE]]=\"\",ANÁLISE1[[#This Row],[PREÇO]]=\"\"),\"\",(SUM(ANÁLISE1[PREÇO])-ANÁLISE1[[#This Row],[PREÇO]])/(COUNT(ANÁLISE1[PREÇO])-1)),ANÁLISE1[[#This Row],[PREÇO]])","v":""},{"$f":"IFERROR(ANÁLISE1[[#This Row],[PREÇO]]/ANÁLISE1[[#This Row],[MÉDIA DOS DEMAIS PREÇOS]],\"\")","v":""},{"$f":"_xlfn.IFS(ANÁLISE1[[#This Row],[% EM RELAÇÃO AOS DEMAIS]]=\"\",\"\",ANÁLISE1[[#This Row],[% EM RELAÇÃO AOS DEMAIS]]>(1+RELATÓRIO!$E$18),\"EXCESSIVAMENTE ELEVADO\",ANÁLISE1[[#This Row],[% EM RELAÇÃO AOS DEMAIS]]<>\"\",\"VÁLIDO\")","v":""},{"$f":"IF(ANÁLISE1[[#This Row],[AVALIAÇÃO 1]]=\"VÁLIDO\",ANÁLISE1[[#This Row],[PREÇO]],\"\")","v":""}]
[{"$f":"IF(RELATÓRIO!B49=\"\",\"\",RELATÓRIO!B49)","v":""},{"$f":"IF(RELATÓRIO!C49=\"\",\"\",RELATÓRIO!C49)","v":""},{"$f":"IF(RELATÓRIO!D49=\"\",\"\",RELATÓRIO!D49)","v":""},{"$f":"IF(RELATÓRIO!E49=\"\",\"\",RELATÓRIO!E49)","v":""},{"$f":"COUNTBLANK(ANÁLISE1[[#This Row],[FONTE ]:[PREÇO]])","v":4},{"$f":"_xlfn.IFS(OR(ANÁLISE1[[#This Row],[Validação 1.1]]=1,ANÁLISE1[[#This Row],[Validação 1.1]]=2,ANÁLISE1[[#This Row],[Validação 1.1]]=3),\"INFORME A FONTE, O TIPO DA FONTE, REFERÊNCIA SEI! E O PREÇO\",ANÁLISE1[[#This Row],[Validação 1.1]]=4,\"\",ANÁLISE1[[#This Row],[Validação 1.1]]=0,\"ok\")","v":""},{"$f":"IFERROR(IF(AND(ANÁLISE1[[#This Row],[FONTE ]]=\"\",ANÁLISE1[[#This Row],[TIPO DE FONTE]]=\"\",ANÁLISE1[[#This Row],[PREÇO]]=\"\"),\"\",(SUM(ANÁLISE1[PREÇO])-ANÁLISE1[[#This Row],[PREÇO]])/(COUNT(ANÁLISE1[PREÇO])-1)),ANÁLISE1[[#This Row],[PREÇO]])","v":""},{"$f":"IFERROR(ANÁLISE1[[#This Row],[PREÇO]]/ANÁLISE1[[#This Row],[MÉDIA DOS DEMAIS PREÇOS]],\"\")","v":""},{"$f":"_xlfn.IFS(ANÁLISE1[[#This Row],[% EM RELAÇÃO AOS DEMAIS]]=\"\",\"\",ANÁLISE1[[#This Row],[% EM RELAÇÃO AOS DEMAIS]]>(1+RELATÓRIO!$E$18),\"EXCESSIVAMENTE ELEVADO\",ANÁLISE1[[#This Row],[% EM RELAÇÃO AOS DEMAIS]]<>\"\",\"VÁLIDO\")","v":""},{"$f":"IF(ANÁLISE1[[#This Row],[AVALIAÇÃO 1]]=\"VÁLIDO\",ANÁLISE1[[#This Row],[PREÇO]],\"\")","v":""}]
[{"$f":"IF(RELATÓRIO!B50=\"\",\"\",RELATÓRIO!B50)","v":""},{"$f":"IF(RELATÓRIO!C50=\"\",\"\",RELATÓRIO!C50)","v":""},{"$f":"IF(RELATÓRIO!D50=\"\",\"\",RELATÓRIO!D50)","v":""},{"$f":"IF(RELATÓRIO!E50=\"\",\"\",RELATÓRIO!E50)","v":""},{"$f":"COUNTBLANK(ANÁLISE1[[#This Row],[FONTE ]:[PREÇO]])","v":4},{"$f":"_xlfn.IFS(OR(ANÁLISE1[[#This Row],[Validação 1.1]]=1,ANÁLISE1[[#This Row],[Validação 1.1]]=2,ANÁLISE1[[#This Row],[Validação 1.1]]=3),\"INFORME A FONTE, O TIPO DA FONTE, REFERÊNCIA SEI! E O PREÇO\",ANÁLISE1[[#This Row],[Validação 1.1]]=4,\"\",ANÁLISE1[[#This Row],[Validação 1.1]]=0,\"ok\")","v":""},{"$f":"IFERROR(IF(AND(ANÁLISE1[[#This Row],[FONTE ]]=\"\",ANÁLISE1[[#This Row],[TIPO DE FONTE]]=\"\",ANÁLISE1[[#This Row],[PREÇO]]=\"\"),\"\",(SUM(ANÁLISE1[PREÇO])-ANÁLISE1[[#This Row],[PREÇO]])/(COUNT(ANÁLISE1[PREÇO])-1)),ANÁLISE1[[#This Row],[PREÇO]])","v":""},{"$f":"IFERROR(ANÁLISE1[[#This Row],[PREÇO]]/ANÁLISE1[[#This Row],[MÉDIA DOS DEMAIS PREÇOS]],\"\")","v":""},{"$f":"_xlfn.IFS(ANÁLISE1[[#This Row],[% EM RELAÇÃO AOS DEMAIS]]=\"\",\"\",ANÁLISE1[[#This Row],[% EM RELAÇÃO AOS DEMAIS]]>(1+RELATÓRIO!$E$18),\"EXCESSIVAMENTE ELEVADO\",ANÁLISE1[[#This Row],[% EM RELAÇÃO AOS DEMAIS]]<>\"\",\"VÁLIDO\")","v":""},{"$f":"IF(ANÁLISE1[[#This Row],[AVALIAÇÃO 1]]=\"VÁLIDO\",ANÁLISE1[[#This Row],[PREÇO]],\"\")","v":""}]
[{"$f":"IF(RELATÓRIO!B51=\"\",\"\",RELATÓRIO!B51)","v":""},{"$f":"IF(RELATÓRIO!C51=\"\",\"\",RELATÓRIO!C51)","v":""},{"$f":"IF(RELATÓRIO!D51=\"\",\"\",RELATÓRIO!D51)","v":""},{"$f":"IF(RELATÓRIO!E51=\"\",\"\",RELATÓRIO!E51)","v":""},{"$f":"COUNTBLANK(ANÁLISE1[[#This Row],[FONTE ]:[PREÇO]])","v":4},{"$f":"_xlfn.IFS(OR(ANÁLISE1[[#This Row],[Validação 1.1]]=1,ANÁLISE1[[#This Row],[Validação 1.1]]=2,ANÁLISE1[[#This Row],[Validação 1.1]]=3),\"INFORME A FONTE, O TIPO DA FONTE, REFERÊNCIA SEI! E O PREÇO\",ANÁLISE1[[#This Row],[Validação 1.1]]=4,\"\",ANÁLISE1[[#This Row],[Validação 1.1]]=0,\"ok\")","v":""},{"$f":"IFERROR(IF(AND(ANÁLISE1[[#This Row],[FONTE ]]=\"\",ANÁLISE1[[#This Row],[TIPO DE FONTE]]=\"\",ANÁLISE1[[#This Row],[PREÇO]]=\"\"),\"\",(SUM(ANÁLISE1[PREÇO])-ANÁLISE1[[#This Row],[PREÇO]])/(COUNT(ANÁLISE1[PREÇO])-1)),ANÁLISE1[[#This Row],[PREÇO]])","v":""},{"$f":"IFERROR(ANÁLISE1[[#This Row],[PREÇO]]/ANÁLISE1[[#This Row],[MÉDIA DOS DEMAIS PREÇOS]],\"\")","v":""},{"$f":"_xlfn.IFS(ANÁLISE1[[#This Row],[% EM RELAÇÃO AOS DEMAIS]]=\"\",\"\",ANÁLISE1[[#This Row],[% EM RELAÇÃO AOS DEMAIS]]>(1+RELATÓRIO!$E$18),\"EXCESSIVAMENTE ELEVADO\",ANÁLISE1[[#This Row],[% EM RELAÇÃO AOS DEMAIS]]<>\"\",\"VÁLIDO\")","v":""},{"$f":"IF(ANÁLISE1[[#This Row],[AVALIAÇÃO 1]]=\"VÁLIDO\",ANÁLISE1[[#This Row],[PREÇO]],\"\")","v":""}]
[{"$f":"IF(RELATÓRIO!B52=\"\",\"\",RELATÓRIO!B52)","v":""},{"$f":"IF(RELATÓRIO!C52=\"\",\"\",RELATÓRIO!C52)","v":""},{"$f":"IF(RELATÓRIO!D52=\"\",\"\",RELATÓRIO!D52)","v":""},{"$f":"IF(RELATÓRIO!E52=\"\",\"\",RELATÓRIO!E52)","v":""},{"$f":"COUNTBLANK(ANÁLISE1[[#This Row],[FONTE ]:[PREÇO]])","v":4},{"$f":"_xlfn.IFS(OR(ANÁLISE1[[#This Row],[Validação 1.1]]=1,ANÁLISE1[[#This Row],[Validação 1.1]]=2,ANÁLISE1[[#This Row],[Validação 1.1]]=3),\"INFORME A FONTE, O TIPO DA FONTE, REFERÊNCIA SEI! E O PREÇO\",ANÁLISE1[[#This Row],[Validação 1.1]]=4,\"\",ANÁLISE1[[#This Row],[Validação 1.1]]=0,\"ok\")","v":""},{"$f":"IFERROR(IF(AND(ANÁLISE1[[#This Row],[FONTE ]]=\"\",ANÁLISE1[[#This Row],[TIPO DE FONTE]]=\"\",ANÁLISE1[[#This Row],[PREÇO]]=\"\"),\"\",(SUM(ANÁLISE1[PREÇO])-ANÁLISE1[[#This Row],[PREÇO]])/(COUNT(ANÁLISE1[PREÇO])-1)),ANÁLISE1[[#This Row],[PREÇO]])","v":""},{"$f":"IFERROR(ANÁLISE1[[#This Row],[PREÇO]]/ANÁLISE1[[#This Row],[MÉDIA DOS DEMAIS PREÇOS]],\"\")","v":""},{"$f":"_xlfn.IFS(ANÁLISE1[[#This Row],[% EM RELAÇÃO AOS DEMAIS]]=\"\",\"\",ANÁLISE1[[#This Row],[% EM RELAÇÃO AOS DEMAIS]]>(1+RELATÓRIO!$E$18),\"EXCESSIVAMENTE ELEVADO\",ANÁLISE1[[#This Row],[% EM RELAÇÃO AOS DEMAIS]]<>\"\",\"VÁLIDO\")","v":""},{"$f":"IF(ANÁLISE1[[#This Row],[AVALIAÇÃO 1]]=\"VÁLIDO\",ANÁLISE1[[#This Row],[PREÇO]],\"\")","v":""}]
[{"$f":"IF(RELATÓRIO!B53=\"\",\"\",RELATÓRIO!B53)","v":""},{"$f":"IF(RELATÓRIO!C53=\"\",\"\",RELATÓRIO!C53)","v":""},{"$f":"IF(RELATÓRIO!D53=\"\",\"\",RELATÓRIO!D53)","v":""},{"$f":"IF(RELATÓRIO!E53=\"\",\"\",RELATÓRIO!E53)","v":""},{"$f":"COUNTBLANK(ANÁLISE1[[#This Row],[FONTE ]:[PREÇO]])","v":4},{"$f":"_xlfn.IFS(OR(ANÁLISE1[[#This Row],[Validação 1.1]]=1,ANÁLISE1[[#This Row],[Validação 1.1]]=2,ANÁLISE1[[#This Row],[Validação 1.1]]=3),\"INFORME A FONTE, O TIPO DA FONTE, REFERÊNCIA SEI! E O PREÇO\",ANÁLISE1[[#This Row],[Validação 1.1]]=4,\"\",ANÁLISE1[[#This Row],[Validação 1.1]]=0,\"ok\")","v":""},{"$f":"IFERROR(IF(AND(ANÁLISE1[[#This Row],[FONTE ]]=\"\",ANÁLISE1[[#This Row],[TIPO DE FONTE]]=\"\",ANÁLISE1[[#This Row],[PREÇO]]=\"\"),\"\",(SUM(ANÁLISE1[PREÇO])-ANÁLISE1[[#This Row],[PREÇO]])/(COUNT(ANÁLISE1[PREÇO])-1)),ANÁLISE1[[#This Row],[PREÇO]])","v":""},{"$f":"IFERROR(ANÁLISE1[[#This Row],[PREÇO]]/ANÁLISE1[[#This Row],[MÉDIA DOS DEMAIS PREÇOS]],\"\")","v":""},{"$f":"_xlfn.IFS(ANÁLISE1[[#This Row],[% EM RELAÇÃO AOS DEMAIS]]=\"\",\"\",ANÁLISE1[[#This Row],[% EM RELAÇÃO AOS DEMAIS]]>(1+RELATÓRIO!$E$18),\"EXCESSIVAMENTE ELEVADO\",ANÁLISE1[[#This Row],[% EM RELAÇÃO AOS DEMAIS]]<>\"\",\"VÁLIDO\")","v":""},{"$f":"IF(ANÁLISE1[[#This Row],[AVALIAÇÃO 1]]=\"VÁLIDO\",ANÁLISE1[[#This Row],[PREÇO]],\"\")","v":""}]
[{"$f":"IF(RELATÓRIO!B54=\"\",\"\",RELATÓRIO!B54)","v":""},{"$f":"IF(RELATÓRIO!C54=\"\",\"\",RELATÓRIO!C54)","v":""},{"$f":"IF(RELATÓRIO!D54=\"\",\"\",RELATÓRIO!D54)","v":""},{"$f":"IF(RELATÓRIO!E54=\"\",\"\",RELATÓRIO!E54)","v":""},{"$f":"COUNTBLANK(ANÁLISE1[[#This Row],[FONTE ]:[PREÇO]])","v":4},{"$f":"_xlfn.IFS(OR(ANÁLISE1[[#This Row],[Validação 1.1]]=1,ANÁLISE1[[#This Row],[Validação 1.1]]=2,ANÁLISE1[[#This Row],[Validação 1.1]]=3),\"INFORME A FONTE, O TIPO DA FONTE, REFERÊNCIA SEI! E O PREÇO\",ANÁLISE1[[#This Row],[Validação 1.1]]=4,\"\",ANÁLISE1[[#This Row],[Validação 1.1]]=0,\"ok\")","v":""},{"$f":"IFERROR(IF(AND(ANÁLISE1[[#This Row],[FONTE ]]=\"\",ANÁLISE1[[#This Row],[TIPO DE FONTE]]=\"\",ANÁLISE1[[#This Row],[PREÇO]]=\"\"),\"\",(SUM(ANÁLISE1[PREÇO])-ANÁLISE1[[#This Row],[PREÇO]])/(COUNT(ANÁLISE1[PREÇO])-1)),ANÁLISE1[[#This Row],[PREÇO]])","v":""},{"$f":"IFERROR(ANÁLISE1[[#This Row],[PREÇO]]/ANÁLISE1[[#This Row],[MÉDIA DOS DEMAIS PREÇOS]],\"\")","v":""},{"$f":"_xlfn.IFS(ANÁLISE1[[#This Row],[% EM RELAÇÃO AOS DEMAIS]]=\"\",\"\",ANÁLISE1[[#This Row],[% EM RELAÇÃO AOS DEMAIS]]>(1+RELATÓRIO!$E$18),\"EXCESSIVAMENTE ELEVADO\",ANÁLISE1[[#This Row],[% EM RELAÇÃO AOS DEMAIS]]<>\"\",\"VÁLIDO\")","v":""},{"$f":"IF(ANÁLISE1[[#This Row],[AVALIAÇÃO 1]]=\"VÁLIDO\",ANÁLISE1[[#This Row],[PREÇO]],\"\")","v":""}]
[{"$f":"IF(RELATÓRIO!B55=\"\",\"\",RELATÓRIO!B55)","v":""},{"$f":"IF(RELATÓRIO!C55=\"\",\"\",RELATÓRIO!C55)","v":""},{"$f":"IF(RELATÓRIO!D55=\"\",\"\",RELATÓRIO!D55)","v":""},{"$f":"IF(RELATÓRIO!E55=\"\",\"\",RELATÓRIO!E55)","v":""},{"$f":"COUNTBLANK(ANÁLISE1[[#This Row],[FONTE ]:[PREÇO]])","v":4},{"$f":"_xlfn.IFS(OR(ANÁLISE1[[#This Row],[Validação 1.1]]=1,ANÁLISE1[[#This Row],[Validação 1.1]]=2,ANÁLISE1[[#This Row],[Validação 1.1]]=3),\"INFORME A FONTE, O TIPO DA FONTE, REFERÊNCIA SEI! E O PREÇO\",ANÁLISE1[[#This Row],[Validação 1.1]]=4,\"\",ANÁLISE1[[#This Row],[Validação 1.1]]=0,\"ok\")","v":""},{"$f":"IFERROR(IF(AND(ANÁLISE1[[#This Row],[FONTE ]]=\"\",ANÁLISE1[[#This Row],[TIPO DE FONTE]]=\"\",ANÁLISE1[[#This Row],[PREÇO]]=\"\"),\"\",(SUM(ANÁLISE1[PREÇO])-ANÁLISE1[[#This Row],[PREÇO]])/(COUNT(ANÁLISE1[PREÇO])-1)),ANÁLISE1[[#This Row],[PREÇO]])","v":""},{"$f":"IFERROR(ANÁLISE1[[#This Row],[PREÇO]]/ANÁLISE1[[#This Row],[MÉDIA DOS DEMAIS PREÇOS]],\"\")","v":""},{"$f":"_xlfn.IFS(ANÁLISE1[[#This Row],[% EM RELAÇÃO AOS DEMAIS]]=\"\",\"\",ANÁLISE1[[#This Row],[% EM RELAÇÃO AOS DEMAIS]]>(1+RELATÓRIO!$E$18),\"EXCESSIVAMENTE ELEVADO\",ANÁLISE1[[#This Row],[% EM RELAÇÃO AOS DEMAIS]]<>\"\",\"VÁLIDO\")","v":""},{"$f":"IF(ANÁLISE1[[#This Row],[AVALIAÇÃO 1]]=\"VÁLIDO\",ANÁLISE1[[#This Row],[PREÇO]],\"\")","v":""}]

{"sheet":"INEXEQ.","index":3,"n_rows":25,"n_cols":19,"rows_kept":25,"cut":false,"hidden":true,"merged":[]}
["FONTE ","TIPO DE FONTE","PREÇO","MÉDIA DOS DEMAIS PREÇOS","% EM RELAÇÃO AOS DEMAIS","AVALIAÇÃO 2","PREÇOS VÁLIDOS APÓS AV. 2","AVALIAÇÃO 3 - Parte 1 ","AVALIAÇÃO 3 - Parte 2","AVALIAÇÃO 3 - Parte 3","PREÇOS VÁLIDOS APÓS AV. 3 - Parte 2","PREÇOS VÁLIDOS - ANÁLISE FINAL","ANÁLISE FINAL","Há EXC. ELEVADO?","PREÇOS PÚBLICOS","RESP. VERIFICAÇÃO","PREÇOS PÚBLICOS REPETIDOS?","MENOR PREÇO PÚBLICO VÁLIDO","MENOR PREÇO PÚBLICO VÁLIDO2"]
[{"$f":"IF(RELATÓRIO!B32=\"\",\"\",RELATÓRIO!B32)","v":""},{"$f":"IF(RELATÓRIO!C32=\"\",\"\",RELATÓRIO!C32)","v":""},{"$f":"ANÁLISE1[[#This Row],[PREÇOS VÁLIDOS APÓS AV. 1]]","v":""},{"$f":"IFERROR((SUM(ANÁLISE2[PREÇO])-ANÁLISE2[[#This Row],[PREÇO]])/(COUNT(ANÁLISE2[PREÇO])-1),\"\")","v":""},{"$f":"IFERROR(ANÁLISE2[[#This Row],[PREÇO]]/ANÁLISE2[[#This Row],[MÉDIA DOS DEMAIS PREÇOS]],\"\")","v":""},{"$f":"IF(ANÁLISE2[[#This Row],[% EM RELAÇÃO AOS DEMAIS]]<RELATÓRIO!$E$20,\"INEXEQUÍVEL\",ANÁLISE1[[#This Row],[AVALIAÇÃO 1]])","v":""},{"$f":"IF(ANÁLISE2[[#This Row],[AVALIAÇÃO 2]]=\"VÁLIDO\",ANÁLISE1[[#This Row],[PREÇO]],\"\")","v":""},{"$f":"IF(ANÁLISE1[[#This Row],[Verificação 1.2]]=\"OK\",IF(OR(ANÁLISE2[[#This Row],[TIPO DE FONTE]]=LISTAS!$A$1,ANÁLISE2[[#This Row],[TIPO DE FONTE]]=LISTAS!$A$2,ANÁLISE2[[#This Row],[TIPO DE FONTE]]=LISTAS!$A$3),1,2),\"\")","v":""},{"$f":"_xlfn.IFS(AND(ANÁLISE2[[#This Row],[AVALIAÇÃO 2]]=\"INEXEQUÍVEL\",ANÁLISE2[[#This Row],[AVALIAÇÃO 3 - Parte 1 ]]=1),\"VÁLIDO - PREÇO PÚBLICO\",AND(ANÁLISE2[[#This Row],[AVALIAÇÃO 2]]=\"INEXEQUÍVEL\",ANÁLISE2[[#This Row],[PREÇOS PÚBLICOS REPETIDOS?]]=\"SIM\"),\"VÁLIDO - IGUAL A PREÇO PÚBLICO\",ANÁLISE2[[#This Row],[AVALIAÇÃO 2]]<>\"\",ANÁLISE2[[#This Row],[AVALIAÇÃO 2]],ANÁLISE2[[#This Row],[AVALIAÇÃO 2]]=\"\",\"\")","v":""},{"$f":"_xlfn.IFS(ANÁLISE2[[#This Row],[AVALIAÇÃO 3 - Parte 2]]=\"VÁLIDO - PREÇO PÚBLICO\",ANÁLISE2[[#This Row],[AVALIAÇÃO 3 - Parte 2]],ANÁLISE2[[#This Row],[MENOR PREÇO PÚBLICO VÁLIDO2]]<>\"\",ANÁLISE2[[#This Row],[MENOR PREÇO PÚBLICO VÁLIDO2]],ANÁLISE2[[#This Row],[MENOR PREÇO PÚBLICO VÁLIDO2]]=\"\",ANÁLISE2[[#This Row],[AVALIAÇÃO 3 - Parte 2]])","v":""},{"$f":"IF(OR(ANÁLISE2[[#This Row],[AVALIAÇÃO 3 - Parte 2]]=\"EXCESSIVAMENTE ELEVADO\",ANÁLISE2[[#This Row],[AVALIAÇÃO 3 - Parte 2]]=\"INEXEQUÍVEL\"),\"\",ANÁLISE1[[#This Row],[PREÇO]])","v":""},{"$f":"IF(OR(ANÁLISE2[[#This Row],[AVALIAÇÃO 3 - Parte 3]]=\"EXCESSIVAMENTE ELEVADO\",ANÁLISE2[[#This Row],[AVALIAÇÃO 3 - Parte 3]]=\"INEXEQUÍVEL\"),\"\",ANÁLISE1[[#This Row],[PREÇO]])","v":""},{"$f":"_xlfn.IFS(\nAND(ANÁLISE2[[#This Row],[AVALIAÇÃO 3 - Parte 3]]=\"INEXEQUÍVEL\",ANÁLISE2[[#This Row],[Há EXC. ELEVADO?]]>0),\"Retirando preço(s) excessivamente elevado(s), o valor é \"&TEXT(ANÁLISE2[[#This Row],[% EM RELAÇÃO AOS DEMAIS]],\"#.###.###,##%\")&\" da média dos demais preços.\",\n\nAND(ANÁLISE2[[#This Row],[AVALIAÇÃO 3 - Parte 3]]=\"INEXEQUÍVEL\",ANÁLISE2[[#This Row],[Há EXC. ELEVADO?]]=0,ANÁLISE2[[#This Row],[% EM RELAÇÃO AOS DEMAIS]]=\"\"),\"O valor é \"&TEXT(ANÁLISE1[[#This Row],[% EM RELAÇÃO AOS DEMAIS]],\"#.###.###,##%\")&\"  da média dos demais preços.\",\n\nAND(ANÁLISE2[[#This Row],[AVALIAÇÃO 3 - Parte 3]]=\"INEXEQUÍVEL\",ANÁLISE2[[#This Row],[Há EXC. ELEVADO?]]=0),\"O valor é \"&TEXT(ANÁLISE2[[#This Row],[% EM RELAÇÃO AOS DEMAIS]],\"#.###.###,##%\")&\" da média dos demais preços.\",\n\nANÁLISE2[[#This Row],[AVALIAÇÃO 3 - Parte 3]]=\"EXCESSIVAMENTE ELEVADO\",\"O valor é \"&TEXT(ANÁLISE1[[#This Row],[% EM RELAÇÃO AOS DEMAIS]]-1,\"#.###.###,##%\")&\" superior à média dos demais preços.\",\n\nAND(ANÁLISE2[[#This Row],[Há EXC. ELEVADO?]]>0,ANÁLISE2[[#This Row],[AVALIAÇÃO 3 - Parte 3]]=\"VÁLIDO - PREÇO PÚBLICO\"),\"Retirando preço(s) excessivamente elevado(s), o valor é inexequível (\"&TEXT(ANÁLISE2[[#This Row],[% EM RELAÇÃO AOS DEMAIS]],\"#.###.###,##%\")&\" da média dos demais preços). Todavia é considerado válido por ser um preço praticado pela Administração Pública.\",\nAND(ANÁLISE2[[#This Row],[Há EXC. ELEVADO?]]=0,ANÁLISE2[[#This Row],[AVALIAÇÃO 3 - Parte 3]]=\"VÁLIDO - PREÇO PÚBLICO\",ANÁLISE2[[#This Row],[% EM RELAÇÃO AOS DEMAIS]]=\"\"),\"O valor é inexequível (\"&TEXT(ANÁLISE1[[#This Row],[% EM RELAÇÃO AOS DEMAIS]],\"#.###.###,##%\")&\" da média dos demais preços). Todavia é considerado válido por ser um preço praticado pela Administração Pública.\",\nAND(ANÁLISE2[[#This Row],[Há EXC. ELEVADO?]]=0,ANÁLISE2[[#This Row],[AVALIAÇÃO 3 - Parte 3]]=\"VÁLIDO - PREÇO PÚBLICO\",ANÁLISE2[[#This Row],[% EM RELAÇÃO AOS DEMAIS]]<>\"\"),\"O valor é inexequível (\"&TEXT(ANÁLISE2[[#This Row],[% EM RELAÇÃO AOS DEMAIS]],\"#.###.###,##%\")&\" da média dos demais preços). Todavia é considerado válido por ser um preço praticado pela Administração Pública.\",\n\nAND(ANÁLISE2[[#This Row],[Há EXC. ELEVADO?]]>0,ANÁLISE2[[#This Row],[AVALIAÇÃO 3 - Parte 3]]=\"VÁLIDO - IGUAL A PREÇO PÚBLICO\"),\"Retirando preço(s) excessivamente elevado(s), o valor é inexequível (\"&TEXT(ANÁLISE2[[#This Row],[% EM RELAÇÃO AOS DEMAIS]],\"#.###.###,##%\")&\" da média dos demais preços). Porém, é considerado válido por ser igual a um preço praticado pela Administração Pública.\",\nAND(ANÁLISE2[[#This Row],[Há EXC. ELEVADO?]]=0,ANÁLISE2[[#This Row],[AVALIAÇÃO 3 - Parte 3]]=\"VÁLIDO - IGUAL A PREÇO PÚBLICO\",ANÁLISE2[[#This Row],[% EM RELAÇÃO AOS DEMAIS]]<>\"\"),\"O valor é inexequível (\"&TEXT(ANÁLISE2[[#This Row],[% EM RELAÇÃO AOS DEMAIS]],\"#.###.###,##%\")&\" da média dos demais preços). No entanto, é considerado válido por ser igual a um preço praticado pela Administração Pública.\",\n\n\nAND(ANÁLISE2[[#This Row],[Há EXC. ELEVADO?]]=0,ANÁLISE2[[#This Row],[AVALIAÇÃO 3 - Parte 3]]=\"VÁLIDO - MAIOR QUE PREÇO PÚBLICO\",ANÁLISE2[[#This Row],[% EM RELAÇÃO AOS DEMAIS]]<>\"\"),\"O valor é inexequível (\"&TEXT(ANÁLISE2[[#This Row],[% EM RELAÇÃO AOS DEMAIS]],\"#.###.###,##%\")&\" da média dos demais preços). No entanto, é considerado válido por ser maior do um preço praticado pela Administração Pública.\",\nAND(ANÁLISE2[[#This Row],[Há EXC. ELEVADO?]]>0,ANÁLISE2[[#This Row],[AVALIAÇÃO 3 - Parte 3]]=\"VÁLIDO - MAIOR QUE PREÇO PÚBLICO\"),\"Retirando preço(s) excessivamente elevado(s), o valor é inexequível (\"&TEXT(ANÁLISE2[[#This Row],[% EM RELAÇÃO AOS DEMAIS]],\"#.###.###,##%\")&\" da média dos demais preços). Porém, é considerado válido por ser maior do que um preço praticado pela Administração Pública.\",\n\nOR(ANÁLISE2[[#This Row],[AVALIAÇÃO 3 - Parte 3]]=\"VÁLIDO\",ANÁLISE2[[#This Row],[AVALIAÇÃO 3 - Parte 3]]=\"\"),\"\")","v":""},{"$f":"COUNTIF(ANÁLISE2[AVALIAÇÃO 2],\"EXCESSIVAMENTE ELEVADO\")","v":0},{"$f":"IF(ANÁLISE2[[#This Row],[AVALIAÇÃO 3 - Parte 1 ]]=1,ANÁLISE1[[#This Row],[PREÇO]],\"\")","v":""},"SIM",{"$f":"IF(OR(ANÁLISE1[[#This Row],[PREÇO]]=\"\",EXORB.!B2=LISTAS!$A$1,EXORB.!B2=LISTAS!$A$2,EXORB.!B2=LISTAS!$A$3),\"\",IFERROR(VLOOKUP(ANÁLISE1[[#This Row],[PREÇO]],ANÁLISE2[[PREÇOS PÚBLICOS]:[RESP. VERIFICAÇÃO]],2,FALSE),\"\"))","v":""},{"$f":"IF(MIN(ANÁLISE2[PREÇOS PÚBLICOS])=0,\"\",MIN(ANÁLISE2[PREÇOS PÚBLICOS]))","v":""},{"$f":"IF(AND(ANÁLISE2[[#This Row],[AVALIAÇÃO 2]]=\"INEXEQUÍVEL\",ANÁLISE2[[#This Row],[PREÇOS PÚBLICOS REPETIDOS?]]<>\"SIM\",ANÁLISE1[[#This Row],[PREÇO]]>ANÁLISE2[[#This Row],[MENOR PREÇO PÚBLICO VÁLIDO]]),\"VÁLIDO - MAIOR QUE PREÇO PÚBLICO\",\"\")","v":""}]
[{"$f":"IF(RELATÓRIO!B33=\"\",\"\",RELATÓRIO!B33)","v":""},{"$f":"IF(RELATÓRIO!C33=\"\",\"\",RELATÓRIO!C33)","v":""},{"$f":"ANÁLISE1[[#This Row],[PREÇOS VÁLIDOS APÓS AV. 1]]","v":""},{"$f":"IFERROR((SUM(ANÁLISE2[PREÇO])-ANÁLISE2[[#This Row],[PREÇO]])/(COUNT(ANÁLISE2[PREÇO])-1),\"\")","v":""},{"$f":"IFERROR(ANÁLISE2[[#This Row],[PREÇO]]/ANÁLISE2[[#This Row],[MÉDIA DOS DEMAIS PREÇOS]],\"\")","v":""},{"$f":"IF(ANÁLISE2[[#This Row],[% EM RELAÇÃO AOS DEMAIS]]<RELATÓRIO!$E$20,\"INEXEQUÍVEL\",ANÁLISE1[[#This Row],[AVALIAÇÃO 1]])","v":""},{"$f":"IF(ANÁLISE2[[#This Row],[AVALIAÇÃO 2]]=\"VÁLIDO\",ANÁLISE1[[#This Row],[PREÇO]],\"\")","v":""},{"$f":"IF(ANÁLISE1[[#This Row],[Verificação 1.2]]=\"OK\",IF(OR(ANÁLISE2[[#This Row],[TIPO DE FONTE]]=LISTAS!$A$1,ANÁLISE2[[#This Row],[TIPO DE FONTE]]=LISTAS!$A$2,ANÁLISE2[[#This Row],[TIPO DE FONTE]]=LISTAS!$A$3),1,2),\"\")","v":""},{"$f":"_xlfn.IFS(AND(ANÁLISE2[[#This Row],[AVALIAÇÃO 2]]=\"INEXEQUÍVEL\",ANÁLISE2[[#This Row],[AVALIAÇÃO 3 - Parte 1 ]]=1),\"VÁLIDO - PREÇO PÚBLICO\",AND(ANÁLISE2[[#This Row],[AVALIAÇÃO 2]]=\"INEXEQUÍVEL\",ANÁLISE2[[#This Row],[PREÇOS PÚBLICOS REPETIDOS?]]=\"SIM\"),\"VÁLIDO - IGUAL A PREÇO PÚBLICO\",ANÁLISE2[[#This Row],[AVALIAÇÃO 2]]<>\"\",ANÁLISE2[[#This Row],[AVALIAÇÃO 2]],ANÁLISE2[[#This Row],[AVALIAÇÃO 2]]=\"\",\"\")","v":""},{"$f":"_xlfn.IFS(ANÁLISE2[[#This Row],[AVALIAÇÃO 3 - Parte 2]]=\"VÁLIDO - PREÇO PÚBLICO\",ANÁLISE2[[#This Row],[AVALIAÇÃO 3 - Parte 2]],ANÁLISE2[[#This Row],[MENOR PREÇO PÚBLICO VÁLIDO2]]<>\"\",ANÁLISE2[[#This Row],[MENOR PREÇO PÚBLICO VÁLIDO2]],ANÁLISE2[[#This Row],[MENOR PREÇO PÚBLICO VÁLIDO2]]=\"\",ANÁLISE2[[#This Row],[AVALIAÇÃO 3 - Parte 2]])","v":""},{"$f":"IF(OR(ANÁLISE2[[#This Row],[AVALIAÇÃO 3 - Parte 2]]=\"EXCESSIVAMENTE ELEVADO\",ANÁLISE2[[#This Row],[AVALIAÇÃO 3 - Parte 2]]=\"INEXEQUÍVEL\"),\"\",ANÁLISE1[[#This Row],[PREÇO]])","v":""},{"$f":"IF(OR(ANÁLISE2[[#This Row],[AVALIAÇÃO 3 - Parte 3]]=\"EXCESSIVAMENTE ELEVADO\",ANÁLISE2[[#This Row],[AVALIAÇÃO 3 - Parte 3]]=\"INEXEQUÍVEL\"),\"\",ANÁLISE1[[#This Row],[PREÇO]])","v":""},{"$f":"_xlfn.IFS(\nAND(ANÁLISE2[[#This Row],[AVALIAÇÃO 3 - Parte 3]]=\"INEXEQUÍVEL\",ANÁLISE2[[#This Row],[Há EXC. ELEVADO?]]>0),\"Retirando preço(s) excessivamente elevado(s), o valor é \"&TEXT(ANÁLISE2[[#This Row],[% EM RELAÇÃO AOS DEMAIS]],\"#.###.###,##%\")&\" da média dos demais preços.\",\n\nAND(ANÁLISE2[[#This Row],[AVALIAÇÃO 3 - Parte 3]]=\"INEXEQUÍVEL\",ANÁLISE2[[#This Row],[Há EXC. ELEVADO?]]=0,ANÁLISE2[[#This Row],[% EM RELAÇÃO AOS DEMAIS]]=\"\"),\"O valor é \"&TEXT(ANÁLISE1[[#This Row],[% EM RELAÇÃO AOS DEMAIS]],\"#.###.###,##%\")&\"  da média dos demais preços.\",\n\nAND(ANÁLISE2[[#This Row],[AVALIAÇÃO 3 - Parte 3]]=\"INEXEQUÍVEL\",ANÁLISE2[[#This Row],[Há EXC. ELEVADO?]]=0),\"O valor é \"&TEXT(ANÁLISE2[[#This Row],[% EM RELAÇÃO AOS DEMAIS]],\"#.###.###,##%\")&\" da média dos demais preços.\",\n\nANÁLISE2[[#This Row],[AVALIAÇÃO 3 - Parte 3]]=\"EXCESSIVAMENTE ELEVADO\",\"O valor é \"&TEXT(ANÁLISE1[[#This Row],[% EM RELAÇÃO AOS DEMAIS]]-1,\"#.###.###,##%\")&\" superior à média dos demais preços.\",\n\nAND(ANÁLISE2[[#This Row],[Há EXC. ELEVADO?]]>0,ANÁLISE2[[#This Row],[AVALIAÇÃO 3 - Parte 3]]=\"VÁLIDO - PREÇO PÚBLICO\"),\"Retirando preço(s) excessivamente elevado(s), o valor é inexequível (\"&TEXT(ANÁLISE2[[#This Row],[% EM RELAÇÃO AOS DEMAIS]],\"#.###.###,##%\")&\" da média dos demais preços). Todavia é considerado válido por ser um preço praticado pela Administração Pública.\",\nAND(ANÁLISE2[[#This Row],[Há EXC. ELEVADO?]]=0,ANÁLISE2[[#This Row],[AVALIAÇÃO 3 - Parte 3]]=\"VÁLIDO - PREÇO PÚBLICO\",ANÁLISE2[[#This Row],[% EM RELAÇÃO AOS DEMAIS]]=\"\"),\"O valor é inexequível (\"&TEXT(ANÁLISE1[[#This Row],[% EM RELAÇÃO AOS DEMAIS]],\"#.###.###,##%\")&\" da média dos demais preços). Todavia é considerado válido por ser um preço praticado pela Administração Pública.\",\nAND(ANÁLISE2[[#This Row],[Há EXC. ELEVADO?]]=0,ANÁLISE2[[#This Row],[AVALIAÇÃO 3 - Parte 3]]=\"VÁLIDO - PREÇO PÚBLICO\",ANÁLISE2[[#This Row],[% EM RELAÇÃO AOS DEMAIS]]<>\"\"),\"O valor é inexequível (\"&TEXT(ANÁLISE2[[#This Row],[% EM RELAÇÃO AOS DEMAIS]],\"#.###.###,##%\")&\" da média dos demais preços). Todavia é considerado válido por ser um preço praticado pela Administração Pública.\",\n\nAND(ANÁLISE2[[#This Row],[Há EXC. ELEVADO?]]>0,ANÁLISE2[[#This Row],[AVALIAÇÃO 3 - Parte 3]]=\"VÁLIDO - IGUAL A PREÇO PÚBLICO\"),\"Retirando preço(s) excessivamente elevado(s), o valor é inexequível (\"&TEXT(ANÁLISE2[[#This Row],[% EM RELAÇÃO AOS DEMAIS]],\"#.###.###,##%\")&\" da média dos demais preços). Porém, é considerado válido por ser igual a um preço praticado pela Administração Pública.\",\nAND(ANÁLISE2[[#This Row],[Há EXC. ELEVADO?]]=0,ANÁLISE2[[#This Row],[AVALIAÇÃO 3 - Parte 3]]=\"VÁLIDO - IGUAL A PREÇO PÚBLICO\",ANÁLISE2[[#This Row],[% EM RELAÇÃO AOS DEMAIS]]<>\"\"),\"O valor é inexequível (\"&TEXT(ANÁLISE2[[#This Row],[% EM RELAÇÃO AOS DEMAIS]],\"#.###.###,##%\")&\" da média dos demais preços). No entanto, é considerado válido por ser igual a um preço praticado pela Administração Pública.\",\n\n\nAND(ANÁLISE2[[#This Row],[Há EXC. ELEVADO?]]=0,ANÁLISE2[[#This Row],[AVALIAÇÃO 3 - Parte 3]]=\"VÁLIDO - MAIOR QUE PREÇO PÚBLICO\",ANÁLISE2[[#This Row],[% EM RELAÇÃO AOS DEMAIS]]<>\"\"),\"O valor é inexequível (\"&TEXT(ANÁLISE2[[#This Row],[% EM RELAÇÃO AOS DEMAIS]],\"#.###.###,##%\")&\" da média dos demais preços). No entanto, é considerado válido por ser maior do um preço praticado pela Administração Pública.\",\nAND(ANÁLISE2[[#This Row],[Há EXC. ELEVADO?]]>0,ANÁLISE2[[#This Row],[AVALIAÇÃO 3 - Parte 3]]=\"VÁLIDO - MAIOR QUE PREÇO PÚBLICO\"),\"Retirando preço(s) excessivamente elevado(s), o valor é inexequível (\"&TEXT(ANÁLISE2[[#This Row],[% EM RELAÇÃO AOS DEMAIS]],\"#.###.###,##%\")&\" da média dos demais preços). Porém, é considerado válido por ser maior do que um preço praticado pela Administração Pública.\",\n\nOR(ANÁLISE2[[#This Row],[AVALIAÇÃO 3 - Parte 3]]=\"VÁLIDO\",ANÁLISE2[[#This Row],[AVALIAÇÃO 3 - Parte 3]]=\"\"),\"\")","v":""},{"$f":"COUNTIF(ANÁLISE2[AVALIAÇÃO 2],\"EXCESSIVAMENTE ELEVADO\")","v":0},{"$f":"IF(ANÁLISE2[[#This Row],[AVALIAÇÃO 3 - Parte 1 ]]=1,ANÁLISE1[[#This Row],[PREÇO]],\"\")","v":""},"SIM",{"$f":"IF(OR(ANÁLISE1[[#This Row],[PREÇO]]=\"\",EXORB.!B3=LISTAS!$A$1,EXORB.!B3=LISTAS!$A$2,EXORB.!B3=LISTAS!$A$3),\"\",IFERROR(VLOOKUP(ANÁLISE1[[#This Row],[PREÇO]],ANÁLISE2[[PREÇOS PÚBLICOS]:[RESP. VERIFICAÇÃO]],2,FALSE),\"\"))","v":""},{"$f":"IF(MIN(ANÁLISE2[PREÇOS PÚBLICOS])=0,\"\",MIN(ANÁLISE2[PREÇOS PÚBLICOS]))","v":""},{"$f":"IF(AND(ANÁLISE2[[#This Row],[AVALIAÇÃO 2]]=\"INEXEQUÍVEL\",ANÁLISE2[[#This Row],[PREÇOS PÚBLICOS REPETIDOS?]]<>\"SIM\",ANÁLISE1[[#This Row],[PREÇO]]>ANÁLISE2[[#This Row],[MENOR PREÇO PÚBLICO VÁLIDO]]),\"VÁLIDO - MAIOR QUE PREÇO PÚBLICO\",\"\")","v":""}]
[{"$f":"IF(RELATÓRIO!B34=\"\",\"\",RELATÓRIO!B34)","v":""},{"$f":"IF(RELATÓRIO!C34=\"\",\"\",RELATÓRIO!C34)","v":""},{"$f":"ANÁLISE1[[#This Row],[PREÇOS VÁLIDOS APÓS AV. 1]]","v":""},{"$f":"IFERROR((SUM(ANÁLISE2[PREÇO])-ANÁLISE2[[#This Row],[PREÇO]])/(COUNT(ANÁLISE2[PREÇO])-1),\"\")","v":""},{"$f":"IFERROR(ANÁLISE2[[#This Row],[PREÇO]]/ANÁLISE2[[#This Row],[MÉDIA DOS DEMAIS PREÇOS]],\"\")","v":""},{"$f":"IF(ANÁLISE2[[#This Row],[% EM RELAÇÃO AOS DEMAIS]]<RELATÓRIO!$E$20,\"INEXEQUÍVEL\",ANÁLISE1[[#This Row],[AVALIAÇÃO 1]])","v":""},{"$f":"IF(ANÁLISE2[[#This Row],[AVALIAÇÃO 2]]=\"VÁLIDO\",ANÁLISE1[[#This Row],[PREÇO]],\"\")","v":""},{"$f":"IF(ANÁLISE1[[#This Row],[Verificação 1.2]]=\"OK\",IF(OR(ANÁLISE2[[#This Row],[TIPO DE FONTE]]=LISTAS!$A$1,ANÁLISE2[[#This Row],[TIPO DE FONTE]]=LISTAS!$A$2,ANÁLISE2[[#This Row],[TIPO DE FONTE]]=LISTAS!$A$3),1,2),\"\")","v":""},{"$f":"_xlfn.IFS(AND(ANÁLISE2[[#This Row],[AVALIAÇÃO 2]]=\"INEXEQUÍVEL\",ANÁLISE2[[#This Row],[AVALIAÇÃO 3 - Parte 1 ]]=1),\"VÁLIDO - PREÇO PÚBLICO\",AND(ANÁLISE2[[#This Row],[AVALIAÇÃO 2]]=\"INEXEQUÍVEL\",ANÁLISE2[[#This Row],[PREÇOS PÚBLICOS REPETIDOS?]]=\"SIM\"),\"VÁLIDO - IGUAL A PREÇO PÚBLICO\",ANÁLISE2[[#This Row],[AVALIAÇÃO 2]]<>\"\",ANÁLISE2[[#This Row],[AVALIAÇÃO 2]],ANÁLISE2[[#This Row],[AVALIAÇÃO 2]]=\"\",\"\")","v":""},{"$f":"_xlfn.IFS(ANÁLISE2[[#This Row],[AVALIAÇÃO 3 - Parte 2]]=\"VÁLIDO - PREÇO PÚBLICO\",ANÁLISE2[[#This Row],[AVALIAÇÃO 3 - Parte 2]],ANÁLISE2[[#This Row],[MENOR PREÇO PÚBLICO VÁLIDO2]]<>\"\",ANÁLISE2[[#This Row],[MENOR PREÇO PÚBLICO VÁLIDO2]],ANÁLISE2[[#This Row],[MENOR PREÇO PÚBLICO VÁLIDO2]]=\"\",ANÁLISE2[[#This Row],[AVALIAÇÃO 3 - Parte 2]])","v":""},{"$f":"IF(OR(ANÁLISE2[[#This Row],[AVALIAÇÃO 3 - Parte 2]]=\"EXCESSIVAMENTE ELEVADO\",ANÁLISE2[[#This Row],[AVALIAÇÃO 3 - Parte 2]]=\"INEXEQUÍVEL\"),\"\",ANÁLISE1[[#This Row],[PREÇO]])","v":""},{"$f":"IF(OR(ANÁLISE2[[#This Row],[AVALIAÇÃO 3 - Parte 3]]=\"EXCESSIVAMENTE ELEVADO\",ANÁLISE2[[#This Row],[AVALIAÇÃO 3 - Parte 3]]=\"INEXEQUÍVEL\"),\"\",ANÁLISE1[[#This Row],[PREÇO]])","v":""},{"$f":"_xlfn.IFS(\nAND(ANÁLISE2[[#This Row],[AVALIAÇÃO 3 - Parte 3]]=\"INEXEQUÍVEL\",ANÁLISE2[[#This Row],[Há EXC. ELEVADO?]]>0),\"Retirando preço(s) excessivamente elevado(s), o valor é \"&TEXT(ANÁLISE2[[#This Row],[% EM RELAÇÃO AOS DEMAIS]],\"#.###.###,##%\")&\" da média dos demais preços.\",\n\nAND(ANÁLISE2[[#This Row],[AVALIAÇÃO 3 - Parte 3]]=\"INEXEQUÍVEL\",ANÁLISE2[[#This Row],[Há EXC. ELEVADO?]]=0,ANÁLISE2[[#This Row],[% EM RELAÇÃO AOS DEMAIS]]=\"\"),\"O valor é \"&TEXT(ANÁLISE1[[#This Row],[% EM RELAÇÃO AOS DEMAIS]],\"#.###.###,##%\")&\"  da média dos demais preços.\",\n\nAND(ANÁLISE2[[#This Row],[AVALIAÇÃO 3 - Parte 3]]=\"INEXEQUÍVEL\",ANÁLISE2[[#This Row],[Há EXC. ELEVADO?]]=0),\"O valor é \"&TEXT(ANÁLISE2[[#This Row],[% EM RELAÇÃO AOS DEMAIS]],\"#.###.###,##%\")&\" da média dos demais preços.\",\n\nANÁLISE2[[#This Row],[AVALIAÇÃO 3 - Parte 3]]=\"EXCESSIVAMENTE ELEVADO\",\"O valor é \"&TEXT(ANÁLISE1[[#This Row],[% EM RELAÇÃO AOS DEMAIS]]-1,\"#.###.###,##%\")&\" superior à média dos demais preços.\",\n\nAND(ANÁLISE2[[#This Row],[Há EXC. ELEVADO?]]>0,ANÁLISE2[[#This Row],[AVALIAÇÃO 3 - Parte 3]]=\"VÁLIDO - PREÇO PÚBLICO\"),\"Retirando preço(s) excessivamente elevado(s), o valor é inexequível (\"&TEXT(ANÁLISE2[[#This Row],[% EM RELAÇÃO AOS DEMAIS]],\"#.###.###,##%\")&\" da média dos demais preços). Todavia é considerado válido por ser um preço praticado pela Administração Pública.\",\nAND(ANÁLISE2[[#This Row],[Há EXC. ELEVADO?]]=0,ANÁLISE2[[#This Row],[AVALIAÇÃO 3 - Parte 3]]=\"VÁLIDO - PREÇO PÚBLICO\",ANÁLISE2[[#This Row],[% EM RELAÇÃO AOS DEMAIS]]=\"\"),\"O valor é inexequível (\"&TEXT(ANÁLISE1[[#This Row],[% EM RELAÇÃO AOS DEMAIS]],\"#.###.###,##%\")&\" da média dos demais preços). Todavia é considerado válido por ser um preço praticado pela Administração Pública.\",\nAND(ANÁLISE2[[#This Row],[Há EXC. ELEVADO?]]=0,ANÁLISE2[[#This Row],[AVALIAÇÃO 3 - Parte 3]]=\"VÁLIDO - PREÇO PÚBLICO\",ANÁLISE2[[#This Row],[% EM RELAÇÃO AOS DEMAIS]]<>\"\"),\"O valor é inexequível (\"&TEXT(ANÁLISE2[[#This Row],[% EM RELAÇÃO AOS DEMAIS]],\"#.###.###,##%\")&\" da média dos demais preços). Todavia é considerado válido por ser um preço praticado pela Administração Pública.\",\n\nAND(ANÁLISE2[[#This Row],[Há EXC. ELEVADO?]]>0,ANÁLISE2[[#This Row],[AVALIAÇÃO 3 - Parte 3]]=\"VÁLIDO - IGUAL A PREÇO PÚBLICO\"),\"Retirando preço(s) excessivamente elevado(s), o valor é inexequível (\"&TEXT(ANÁLISE2[[#This Row],[% EM RELAÇÃO AOS DEMAIS]],\"#.###.###,##%\")&\" da média dos demais preços). Porém, é considerado válido por ser igual a um preço praticado pela Administração Pública.\",\nAND(ANÁLISE2[[#This Row],[Há EXC. ELEVADO?]]=0,ANÁLISE2[[#This Row],[AVALIAÇÃO 3 - Parte 3]]=\"VÁLIDO - IGUAL A PREÇO PÚBLICO\",ANÁLISE2[[#This Row],[% EM RELAÇÃO AOS DEMAIS]]<>\"\"),\"O valor é inexequível (\"&TEXT(ANÁLISE2[[#This Row],[% EM RELAÇÃO AOS DEMAIS]],\"#.###.###,##%\")&\" da média dos demais preços). No entanto, é considerado válido por ser igual a um preço praticado pela Administração Pública.\",\n\n\nAND(ANÁLISE2[[#This Row],[Há EXC. ELEVADO?]]=0,ANÁLISE2[[#This Row],[AVALIAÇÃO 3 - Parte 3]]=\"VÁLIDO - MAIOR QUE PREÇO PÚBLICO\",ANÁLISE2[[#This Row],[% EM RELAÇÃO AOS DEMAIS]]<>\"\"),\"O valor é inexequível (\"&TEXT(ANÁLISE2[[#This Row],[% EM RELAÇÃO AOS DEMAIS]],\"#.###.###,##%\")&\" da média dos demais preços). No entanto, é considerado válido por ser maior do um preço praticado pela Administração Pública.\",\nAND(ANÁLISE2[[#This Row],[Há EXC. ELEVADO?]]>0,ANÁLISE2[[#This Row],[AVALIAÇÃO 3 - Parte 3]]=\"VÁLIDO - MAIOR QUE PREÇO PÚBLICO\"),\"Retirando preço(s) excessivamente elevado(s), o valor é inexequível (\"&TEXT(ANÁLISE2[[#This Row],[% EM RELAÇÃO AOS DEMAIS]],\"#.###.###,##%\")&\" da média dos demais preços). Porém, é considerado válido por ser maior do que um preço praticado pela Administração Pública.\",\n\nOR(ANÁLISE2[[#This Row],[AVALIAÇÃO 3 - Parte 3]]=\"VÁLIDO\",ANÁLISE2[[#This Row],[AVALIAÇÃO 3 - Parte 3]]=\"\"),\"\")","v":""},{"$f":"COUNTIF(ANÁLISE2[AVALIAÇÃO 2],\"EXCESSIVAMENTE ELEVADO\")","v":0},{"$f":"IF(ANÁLISE2[[#This Row],[AVALIAÇÃO 3 - Parte 1 ]]=1,ANÁLISE1[[#This Row],[PREÇO]],\"\")","v":""},"SIM",{"$f":"IF(OR(ANÁLISE1[[#This Row],[PREÇO]]=\"\",EXORB.!B4=LISTAS!$A$1,EXORB.!B4=LISTAS!$A$2,EXORB.!B4=LISTAS!$A$3),\"\",IFERROR(VLOOKUP(ANÁLISE1[[#This Row],[PREÇO]],ANÁLISE2[[PREÇOS PÚBLICOS]:[RESP. VERIFICAÇÃO]],2,FALSE),\"\"))","v":""},{"$f":"IF(MIN(ANÁLISE2[PREÇOS PÚBLICOS])=0,\"\",MIN(ANÁLISE2[PREÇOS PÚBLICOS]))","v":""},{"$f":"IF(AND(ANÁLISE2[[#This Row],[AVALIAÇÃO 2]]=\"INEXEQUÍVEL\",ANÁLISE2[[#This Row],[PREÇOS PÚBLICOS REPETIDOS?]]<>\"SIM\",ANÁLISE1[[#This Row],[PREÇO]]>ANÁLISE2[[#This Row],[MENOR PREÇO PÚBLICO VÁLIDO]]),\"VÁLIDO - MAIOR QUE PREÇO PÚBLICO\",\"\")","v":""}]
[{"$f":"IF(RELATÓRIO!B35=\"\",\"\",RELATÓRIO!B35)","v":""},{"$f":"IF(RELATÓRIO!C35=\"\",\"\",RELATÓRIO!C35)","v":""},{"$f":"ANÁLISE1[[#This Row],[PREÇOS VÁLIDOS APÓS AV. 1]]","v":""},{"$f":"IFERROR((SUM(ANÁLISE2[PREÇO])-ANÁLISE2[[#This Row],[PREÇO]])/(COUNT(ANÁLISE2[PREÇO])-1),\"\")","v":""},{"$f":"IFERROR(ANÁLISE2[[#This Row],[PREÇO]]/ANÁLISE2[[#This Row],[MÉDIA DOS DEMAIS PREÇOS]],\"\")","v":""},{"$f":"IF(ANÁLISE2[[#This Row],[% EM RELAÇÃO AOS DEMAIS]]<RELATÓRIO!$E$20,\"INEXEQUÍVEL\",ANÁLISE1[[#This Row],[AVALIAÇÃO 1]])","v":""},{"$f":"IF(ANÁLISE2[[#This Row],[AVALIAÇÃO 2]]=\"VÁLIDO\",ANÁLISE1[[#This Row],[PREÇO]],\"\")","v":""},{"$f":"IF(ANÁLISE1[[#This Row],[Verificação 1.2]]=\"OK\",IF(OR(ANÁLISE2[[#This Row],[TIPO DE FONTE]]=LISTAS!$A$1,ANÁLISE2[[#This Row],[TIPO DE FONTE]]=LISTAS!$A$2,ANÁLISE2[[#This Row],[TIPO DE FONTE]]=LISTAS!$A$3),1,2),\"\")","v":""},{"$f":"_xlfn.IFS(AND(ANÁLISE2[[#This Row],[AVALIAÇÃO 2]]=\"INEXEQUÍVEL\",ANÁLISE2[[#This Row],[AVALIAÇÃO 3 - Parte 1 ]]=1),\"VÁLIDO - PREÇO PÚBLICO\",AND(ANÁLISE2[[#This Row],[AVALIAÇÃO 2]]=\"INEXEQUÍVEL\",ANÁLISE2[[#This Row],[PREÇOS PÚBLICOS REPETIDOS?]]=\"SIM\"),\"VÁLIDO - IGUAL A PREÇO PÚBLICO\",ANÁLISE2[[#This Row],[AVALIAÇÃO 2]]<>\"\",ANÁLISE2[[#This Row],[AVALIAÇÃO 2]],ANÁLISE2[[#This Row],[AVALIAÇÃO 2]]=\"\",\"\")","v":""},{"$f":"_xlfn.IFS(ANÁLISE2[[#This Row],[AVALIAÇÃO 3 - Parte 2]]=\"VÁLIDO - PREÇO PÚBLICO\",ANÁLISE2[[#This Row],[AVALIAÇÃO 3 - Parte 2]],ANÁLISE2[[#This Row],[MENOR PREÇO PÚBLICO VÁLIDO2]]<>\"\",ANÁLISE2[[#This Row],[MENOR PREÇO PÚBLICO VÁLIDO2]],ANÁLISE2[[#This Row],[MENOR PREÇO PÚBLICO VÁLIDO2]]=\"\",ANÁLISE2[[#This Row],[AVALIAÇÃO 3 - Parte 2]])","v":""},{"$f":"IF(OR(ANÁLISE2[[#This Row],[AVALIAÇÃO 3 - Parte 2]]=\"EXCESSIVAMENTE ELEVADO\",ANÁLISE2[[#This Row],[AVALIAÇÃO 3 - Parte 2]]=\"INEXEQUÍVEL\"),\"\",ANÁLISE1[[#This Row],[PREÇO]])","v":""},{"$f":"IF(OR(ANÁLISE2[[#This Row],[AVALIAÇÃO 3 - Parte 3]]=\"EXCESSIVAMENTE ELEVADO\",ANÁLISE2[[#This Row],[AVALIAÇÃO 3 - Parte 3]]=\"INEXEQUÍVEL\"),\"\",ANÁLISE1[[#This Row],[PREÇO]])","v":""},{"$f":"_xlfn.IFS(\nAND(ANÁLISE2[[#This Row],[AVALIAÇÃO 3 - Parte 3]]=\"INEXEQUÍVEL\",ANÁLISE2[[#This Row],[Há EXC. ELEVADO?]]>0),\"Retirando preço(s) excessivamente elevado(s), o valor é \"&TEXT(ANÁLISE2[[#This Row],[% EM RELAÇÃO AOS DEMAIS]],\"#.###.###,##%\")&\" da média dos demais preços.\",\n\nAND(ANÁLISE2[[#This Row],[AVALIAÇÃO 3 - Parte 3]]=\"INEXEQUÍVEL\",ANÁLISE2[[#This Row],[Há EXC. ELEVADO?]]=0,ANÁLISE2[[#This Row],[% EM RELAÇÃO AOS DEMAIS]]=\"\"),\"O valor é \"&TEXT(ANÁLISE1[[#This Row],[% EM RELAÇÃO AOS DEMAIS]],\"#.###.###,##%\")&\"  da média dos demais preços.\",\n\nAND(ANÁLISE2[[#This Row],[AVALIAÇÃO 3 - Parte 3]]=\"INEXEQUÍVEL\",ANÁLISE2[[#This Row],[Há EXC. ELEVADO?]]=0),\"O valor é \"&TEXT(ANÁLISE2[[#This Row],[% EM RELAÇÃO AOS DEMAIS]],\"#.###.###,##%\")&\" da média dos demais preços.\",\n\nANÁLISE2[[#This Row],[AVALIAÇÃO 3 - Parte 3]]=\"EXCESSIVAMENTE ELEVADO\",\"O valor é \"&TEXT(ANÁLISE1[[#This Row],[% EM RELAÇÃO AOS DEMAIS]]-1,\"#.###.###,##%\")&\" superior à média dos demais preços.\",\n\nAND(ANÁLISE2[[#This Row],[Há EXC. ELEVADO?]]>0,ANÁLISE2[[#This Row],[AVALIAÇÃO 3 - Parte 3]]=\"VÁLIDO - PREÇO PÚBLICO\"),\"Retirando preço(s) excessivamente elevado(s), o valor é inexequível (\"&TEXT(ANÁLISE2[[#This Row],[% EM RELAÇÃO AOS DEMAIS]],\"#.###.###,##%\")&\" da média dos demais preços). Todavia é considerado válido por ser um preço praticado pela Administração Pública.\",\nAND(ANÁLISE2[[#This Row],[Há EXC. ELEVADO?]]=0,ANÁLISE2[[#This Row],[AVALIAÇÃO 3 - Parte 3]]=\"VÁLIDO - PREÇO PÚBLICO\",ANÁLISE2[[#This Row],[% EM RELAÇÃO AOS DEMAIS]]=\"\"),\"O valor é inexequível (\"&TEXT(ANÁLISE1[[#This Row],[% EM RELAÇÃO AOS DEMAIS]],\"#.###.###,##%\")&\" da média dos demais preços). Todavia é considerado válido por ser um preço praticado pela Administração Pública.\",\nAND(ANÁLISE2[[#This Row],[Há EXC. ELEVADO?]]=0,ANÁLISE2[[#This Row],[AVALIAÇÃO 3 - Parte 3]]=\"VÁLIDO - PREÇO PÚBLICO\",ANÁLISE2[[#This Row],[% EM RELAÇÃO AOS DEMAIS]]<>\"\"),\"O valor é inexequível (\"&TEXT(ANÁLISE2[[#This Row],[% EM RELAÇÃO AOS DEMAIS]],\"#.###.###,##%\")&\" da média dos demais preços). Todavia é considerado válido por ser um preço praticado pela Administração Pública.\",\n\nAND(ANÁLISE2[[#This Row],[Há EXC. ELEVADO?]]>0,ANÁLISE2[[#This Row],[AVALIAÇÃO 3 - Parte 3]]=\"VÁLIDO - IGUAL A PREÇO PÚBLICO\"),\"Retirando preço(s) excessivamente elevado(s), o valor é inexequível (\"&TEXT(ANÁLISE2[[#This Row],[% EM RELAÇÃO AOS DEMAIS]],\"#.###.###,##%\")&\" da média dos demais preços). Porém, é considerado válido por ser igual a um preço praticado pela Administração Pública.\",\nAND(ANÁLISE2[[#This Row],[Há EXC. ELEVADO?]]=0,ANÁLISE2[[#This Row],[AVALIAÇÃO 3 - Parte 3]]=\"VÁLIDO - IGUAL A PREÇO PÚBLICO\",ANÁLISE2[[#This Row],[% EM RELAÇÃO AOS DEMAIS]]<>\"\"),\"O valor é inexequível (\"&TEXT(ANÁLISE2[[#This Row],[% EM RELAÇÃO AOS DEMAIS]],\"#.###.###,##%\")&\" da média dos demais preços). No entanto, é considerado válido por ser igual a um preço praticado pela Administração Pública.\",\n\n\nAND(ANÁLISE2[[#This Row],[Há EXC. ELEVADO?]]=0,ANÁLISE2[[#This Row],[AVALIAÇÃO 3 - Parte 3]]=\"VÁLIDO - MAIOR QUE PREÇO PÚBLICO\",ANÁLISE2[[#This Row],[% EM RELAÇÃO AOS DEMAIS]]<>\"\"),\"O valor é inexequível (\"&TEXT(ANÁLISE2[[#This Row],[% EM RELAÇÃO AOS DEMAIS]],\"#.###.###,##%\")&\" da média dos demais preços). No entanto, é considerado válido por ser maior do um preço praticado pela Administração Pública.\",\nAND(ANÁLISE2[[#This Row],[Há EXC. ELEVADO?]]>0,ANÁLISE2[[#This Row],[AVALIAÇÃO 3 - Parte 3]]=\"VÁLIDO - MAIOR QUE PREÇO PÚBLICO\"),\"Retirando preço(s) excessivamente elevado(s), o valor é inexequível (\"&TEXT(ANÁLISE2[[#This Row],[% EM RELAÇÃO AOS DEMAIS]],\"#.###.###,##%\")&\" da média dos demais preços). Porém, é considerado válido por ser maior do que um preço praticado pela Administração Pública.\",\n\nOR(ANÁLISE2[[#This Row],[AVALIAÇÃO 3 - Parte 3]]=\"VÁLIDO\",ANÁLISE2[[#This Row],[AVALIAÇÃO 3 - Parte 3]]=\"\"),\"\")","v":""},{"$f":"COUNTIF(ANÁLISE2[AVALIAÇÃO 2],\"EXCESSIVAMENTE ELEVADO\")","v":0},{"$f":"IF(ANÁLISE2[[#This Row],[AVALIAÇÃO 3 - Parte 1 ]]=1,ANÁLISE1[[#This Row],[PREÇO]],\"\")","v":""},"SIM",{"$f":"IF(OR(ANÁLISE1[[#This Row],[PREÇO]]=\"\",EXORB.!B5=LISTAS!$A$1,EXORB.!B5=LISTAS!$A$2,EXORB.!B5=LISTAS!$A$3),\"\",IFERROR(VLOOKUP(ANÁLISE1[[#This Row],[PREÇO]],ANÁLISE2[[PREÇOS PÚBLICOS]:[RESP. VERIFICAÇÃO]],2,FALSE),\"\"))","v":""},{"$f":"IF(MIN(ANÁLISE2[PREÇOS PÚBLICOS])=0,\"\",MIN(ANÁLISE2[PREÇOS PÚBLICOS]))","v":""},{"$f":"IF(AND(ANÁLISE2[[#This Row],[AVALIAÇÃO 2]]=\"INEXEQUÍVEL\",ANÁLISE2[[#This Row],[PREÇOS PÚBLICOS REPETIDOS?]]<>\"SIM\",ANÁLISE1[[#This Row],[PREÇO]]>ANÁLISE2[[#This Row],[MENOR PREÇO PÚBLICO VÁLIDO]]),\"VÁLIDO - MAIOR QUE PREÇO PÚBLICO\",\"\")","v":""}]
[{"$f":"IF(RELATÓRIO!B36=\"\",\"\",RELATÓRIO!B36)","v":""},{"$f":"IF(RELATÓRIO!C36=\"\",\"\",RELATÓRIO!C36)","v":""},{"$f":"ANÁLISE1[[#This Row],[PREÇOS VÁLIDOS APÓS AV. 1]]","v":""},{"$f":"IFERROR((SUM(ANÁLISE2[PREÇO])-ANÁLISE2[[#This Row],[PREÇO]])/(COUNT(ANÁLISE2[PREÇO])-1),\"\")","v":""},{"$f":"IFERROR(ANÁLISE2[[#This Row],[PREÇO]]/ANÁLISE2[[#This Row],[MÉDIA DOS DEMAIS PREÇOS]],\"\")","v":""},{"$f":"IF(ANÁLISE2[[#This Row],[% EM RELAÇÃO AOS DEMAIS]]<RELATÓRIO!$E$20,\"INEXEQUÍVEL\",ANÁLISE1[[#This Row],[AVALIAÇÃO 1]])","v":""},{"$f":"IF(ANÁLISE2[[#This Row],[AVALIAÇÃO 2]]=\"VÁLIDO\",ANÁLISE1[[#This Row],[PREÇO]],\"\")","v":""},{"$f":"IF(ANÁLISE1[[#This Row],[Verificação 1.2]]=\"OK\",IF(OR(ANÁLISE2[[#This Row],[TIPO DE FONTE]]=LISTAS!$A$1,ANÁLISE2[[#This Row],[TIPO DE FONTE]]=LISTAS!$A$2,ANÁLISE2[[#This Row],[TIPO DE FONTE]]=LISTAS!$A$3),1,2),\"\")","v":""},{"$f":"_xlfn.IFS(AND(ANÁLISE2[[#This Row],[AVALIAÇÃO 2]]=\"INEXEQUÍVEL\",ANÁLISE2[[#This Row],[AVALIAÇÃO 3 - Parte 1 ]]=1),\"VÁLIDO - PREÇO PÚBLICO\",AND(ANÁLISE2[[#This Row],[AVALIAÇÃO 2]]=\"INEXEQUÍVEL\",ANÁLISE2[[#This Row],[PREÇOS PÚBLICOS REPETIDOS?]]=\"SIM\"),\"VÁLIDO - IGUAL A PREÇO PÚBLICO\",ANÁLISE2[[#This Row],[AVALIAÇÃO 2]]<>\"\",ANÁLISE2[[#This Row],[AVALIAÇÃO 2]],ANÁLISE2[[#This Row],[AVALIAÇÃO 2]]=\"\",\"\")","v":""},{"$f":"_xlfn.IFS(ANÁLISE2[[#This Row],[AVALIAÇÃO 3 - Parte 2]]=\"VÁLIDO - PREÇO PÚBLICO\",ANÁLISE2[[#This Row],[AVALIAÇÃO 3 - Parte 2]],ANÁLISE2[[#This Row],[MENOR PREÇO PÚBLICO VÁLIDO2]]<>\"\",ANÁLISE2[[#This Row],[MENOR PREÇO PÚBLICO VÁLIDO2]],ANÁLISE2[[#This Row],[MENOR PREÇO PÚBLICO VÁLIDO2]]=\"\",ANÁLISE2[[#This Row],[AVALIAÇÃO 3 - Parte 2]])","v":""},{"$f":"IF(OR(ANÁLISE2[[#This Row],[AVALIAÇÃO 3 - Parte 2]]=\"EXCESSIVAMENTE ELEVADO\",ANÁLISE2[[#This Row],[AVALIAÇÃO 3 - Parte 2]]=\"INEXEQUÍVEL\"),\"\",ANÁLISE1[[#This Row],[PREÇO]])","v":""},{"$f":"IF(OR(ANÁLISE2[[#This Row],[AVALIAÇÃO 3 - Parte 3]]=\"EXCESSIVAMENTE ELEVADO\",ANÁLISE2[[#This Row],[AVALIAÇÃO 3 - Parte 3]]=\"INEXEQUÍVEL\"),\"\",ANÁLISE1[[#This Row],[PREÇO]])","v":""},{"$f":"_xlfn.IFS(\nAND(ANÁLISE2[[#This Row],[AVALIAÇÃO 3 - Parte 3]]=\"INEXEQUÍVEL\",ANÁLISE2[[#This Row],[Há EXC. ELEVADO?]]>0),\"Retirando preço(s) excessivamente elevado(s), o valor é \"&TEXT(ANÁLISE2[[#This Row],[% EM RELAÇÃO AOS DEMAIS]],\"#.###.###,##%\")&\" da média dos demais preços.\",\n\nAND(ANÁLISE2[[#This Row],[AVALIAÇÃO 3 - Parte 3]]=\"INEXEQUÍVEL\",ANÁLISE2[[#This Row],[Há EXC. ELEVADO?]]=0,ANÁLISE2[[#This Row],[% EM RELAÇÃO AOS DEMAIS]]=\"\"),\"O valor é \"&TEXT(ANÁLISE1[[#This Row],[% EM RELAÇÃO AOS DEMAIS]],\"#.###.###,##%\")&\"  da média dos demais preços.\",\n\nAND(ANÁLISE2[[#This Row],[AVALIAÇÃO 3 - Parte 3]]=\"INEXEQUÍVEL\",ANÁLISE2[[#This Row],[Há EXC. ELEVADO?]]=0),\"O valor é \"&TEXT(ANÁLISE2[[#This Row],[% EM RELAÇÃO AOS DEMAIS]],\"#.###.###,##%\")&\" da média dos demais preços.\",\n\nANÁLISE2[[#This Row],[AVALIAÇÃO 3 - Parte 3]]=\"EXCESSIVAMENTE ELEVADO\",\"O valor é \"&TEXT(ANÁLISE1[[#This Row],[% EM RELAÇÃO AOS DEMAIS]]-1,\"#.###.###,##%\")&\" superior à média dos demais preços.\",\n\nAND(ANÁLISE2[[#This Row],[Há EXC. ELEVADO?]]>0,ANÁLISE2[[#This Row],[AVALIAÇÃO 3 - Parte 3]]=\"VÁLIDO - PREÇO PÚBLICO\"),\"Retirando preço(s) excessivamente elevado(s), o valor é inexequível (\"&TEXT(ANÁLISE2[[#This Row],[% EM RELAÇÃO AOS DEMAIS]],\"#.###.###,##%\")&\" da média dos demais preços). Todavia é considerado válido por ser um preço praticado pela Administração Pública.\",\nAND(ANÁLISE2[[#This Row],[Há EXC. ELEVADO?]]=0,ANÁLISE2[[#This Row],[AVALIAÇÃO 3 - Parte 3]]=\"VÁLIDO - PREÇO PÚBLICO\",ANÁLISE2[[#This Row],[% EM RELAÇÃO AOS DEMAIS]]=\"\"),\"O valor é inexequível (\"&TEXT(ANÁLISE1[[#This Row],[% EM RELAÇÃO AOS DEMAIS]],\"#.###.###,##%\")&\" da média dos demais preços). Todavia é considerado válido por ser um preço praticado pela Administração Pública.\",\nAND(ANÁLISE2[[#This Row],[Há EXC. ELEVADO?]]=0,ANÁLISE2[[#This Row],[AVALIAÇÃO 3 - Parte 3]]=\"VÁLIDO - PREÇO PÚBLICO\",ANÁLISE2[[#This Row],[% EM RELAÇÃO AOS DEMAIS]]<>\"\"),\"O valor é inexequível (\"&TEXT(ANÁLISE2[[#This Row],[% EM RELAÇÃO AOS DEMAIS]],\"#.###.###,##%\")&\" da média dos demais preços). Todavia é considerado válido por ser um preço praticado pela Administração Pública.\",\n\nAND(ANÁLISE2[[#This Row],[Há EXC. ELEVADO?]]>0,ANÁLISE2[[#This Row],[AVALIAÇÃO 3 - Parte 3]]=\"VÁLIDO - IGUAL A PREÇO PÚBLICO\"),\"Retirando preço(s) excessivamente elevado(s), o valor é inexequível (\"&TEXT(ANÁLISE2[[#This Row],[% EM RELAÇÃO AOS DEMAIS]],\"#.###.###,##%\")&\" da média dos demais preços). Porém, é considerado válido por ser igual a um preço praticado pela Administração Pública.\",\nAND(ANÁLISE2[[#This Row],[Há EXC. ELEVADO?]]=0,ANÁLISE2[[#This Row],[AVALIAÇÃO 3 - Parte 3]]=\"VÁLIDO - IGUAL A PREÇO PÚBLICO\",ANÁLISE2[[#This Row],[% EM RELAÇÃO AOS DEMAIS]]<>\"\"),\"O valor é inexequível (\"&TEXT(ANÁLISE2[[#This Row],[% EM RELAÇÃO AOS DEMAIS]],\"#.###.###,##%\")&\" da média dos demais preços). No entanto, é considerado válido por ser igual a um preço praticado pela Administração Pública.\",\n\n\nAND(ANÁLISE2[[#This Row],[Há EXC. ELEVADO?]]=0,ANÁLISE2[[#This Row],[AVALIAÇÃO 3 - Parte 3]]=\"VÁLIDO - MAIOR QUE PREÇO PÚBLICO\",ANÁLISE2[[#This Row],[% EM RELAÇÃO AOS DEMAIS]]<>\"\"),\"O valor é inexequível (\"&TEXT(ANÁLISE2[[#This Row],[% EM RELAÇÃO AOS DEMAIS]],\"#.###.###,##%\")&\" da média dos demais preços). No entanto, é considerado válido por ser maior do um preço praticado pela Administração Pública.\",\nAND(ANÁLISE2[[#This Row],[Há EXC. ELEVADO?]]>0,ANÁLISE2[[#This Row],[AVALIAÇÃO 3 - Parte 3]]=\"VÁLIDO - MAIOR QUE PREÇO PÚBLICO\"),\"Retirando preço(s) excessivamente elevado(s), o valor é inexequível (\"&TEXT(ANÁLISE2[[#This Row],[% EM RELAÇÃO AOS DEMAIS]],\"#.###.###,##%\")&\" da média dos demais preços). Porém, é considerado válido por ser maior do que um preço praticado pela Administração Pública.\",\n\nOR(ANÁLISE2[[#This Row],[AVALIAÇÃO 3 - Parte 3]]=\"VÁLIDO\",ANÁLISE2[[#This Row],[AVALIAÇÃO 3 - Parte 3]]=\"\"),\"\")","v":""},{"$f":"COUNTIF(ANÁLISE2[AVALIAÇÃO 2],\"EXCESSIVAMENTE ELEVADO\")","v":0},{"$f":"IF(ANÁLISE2[[#This Row],[AVALIAÇÃO 3 - Parte 1 ]]=1,ANÁLISE1[[#This Row],[PREÇO]],\"\")","v":""},"SIM",{"$f":"IF(OR(ANÁLISE1[[#This Row],[PREÇO]]=\"\",EXORB.!B6=LISTAS!$A$1,EXORB.!B6=LISTAS!$A$2,EXORB.!B6=LISTAS!$A$3),\"\",IFERROR(VLOOKUP(ANÁLISE1[[#This Row],[PREÇO]],ANÁLISE2[[PREÇOS PÚBLICOS]:[RESP. VERIFICAÇÃO]],2,FALSE),\"\"))","v":""},{"$f":"IF(MIN(ANÁLISE2[PREÇOS PÚBLICOS])=0,\"\",MIN(ANÁLISE2[PREÇOS PÚBLICOS]))","v":""},{"$f":"IF(AND(ANÁLISE2[[#This Row],[AVALIAÇÃO 2]]=\"INEXEQUÍVEL\",ANÁLISE2[[#This Row],[PREÇOS PÚBLICOS REPETIDOS?]]<>\"SIM\",ANÁLISE1[[#This Row],[PREÇO]]>ANÁLISE2[[#This Row],[MENOR PREÇO PÚBLICO VÁLIDO]]),\"VÁLIDO - MAIOR QUE PREÇO PÚBLICO\",\"\")","v":""}]
[{"$f":"IF(RELATÓRIO!B37=\"\",\"\",RELATÓRIO!B37)","v":""},{"$f":"IF(RELATÓRIO!C37=\"\",\"\",RELATÓRIO!C37)","v":""},{"$f":"ANÁLISE1[[#This Row],[PREÇOS VÁLIDOS APÓS AV. 1]]","v":""},{"$f":"IFERROR((SUM(ANÁLISE2[PREÇO])-ANÁLISE2[[#This Row],[PREÇO]])/(COUNT(ANÁLISE2[PREÇO])-1),\"\")","v":""},{"$f":"IFERROR(ANÁLISE2[[#This Row],[PREÇO]]/ANÁLISE2[[#This Row],[MÉDIA DOS DEMAIS PREÇOS]],\"\")","v":""},{"$f":"IF(ANÁLISE2[[#This Row],[% EM RELAÇÃO AOS DEMAIS]]<RELATÓRIO!$E$20,\"INEXEQUÍVEL\",ANÁLISE1[[#This Row],[AVALIAÇÃO 1]])","v":""},{"$f":"IF(ANÁLISE2[[#This Row],[AVALIAÇÃO 2]]=\"VÁLIDO\",ANÁLISE1[[#This Row],[PREÇO]],\"\")","v":""},{"$f":"IF(ANÁLISE1[[#This Row],[Verificação 1.2]]=\"OK\",IF(OR(ANÁLISE2[[#This Row],[TIPO DE FONTE]]=LISTAS!$A$1,ANÁLISE2[[#This Row],[TIPO DE FONTE]]=LISTAS!$A$2,ANÁLISE2[[#This Row],[TIPO DE FONTE]]=LISTAS!$A$3),1,2),\"\")","v":""},{"$f":"_xlfn.IFS(AND(ANÁLISE2[[#This Row],[AVALIAÇÃO 2]]=\"INEXEQUÍVEL\",ANÁLISE2[[#This Row],[AVALIAÇÃO 3 - Parte 1 ]]=1),\"VÁLIDO - PREÇO PÚBLICO\",AND(ANÁLISE2[[#This Row],[AVALIAÇÃO 2]]=\"INEXEQUÍVEL\",ANÁLISE2[[#This Row],[PREÇOS PÚBLICOS REPETIDOS?]]=\"SIM\"),\"VÁLIDO - IGUAL A PREÇO PÚBLICO\",ANÁLISE2[[#This Row],[AVALIAÇÃO 2]]<>\"\",ANÁLISE2[[#This Row],[AVALIAÇÃO 2]],ANÁLISE2[[#This Row],[AVALIAÇÃO 2]]=\"\",\"\")","v":""},{"$f":"_xlfn.IFS(ANÁLISE2[[#This Row],[AVALIAÇÃO 3 - Parte 2]]=\"VÁLIDO - PREÇO PÚBLICO\",ANÁLISE2[[#This Row],[AVALIAÇÃO 3 - Parte 2]],ANÁLISE2[[#This Row],[MENOR PREÇO PÚBLICO VÁLIDO2]]<>\"\",ANÁLISE2[[#This Row],[MENOR PREÇO PÚBLICO VÁLIDO2]],ANÁLISE2[[#This Row],[MENOR PREÇO PÚBLICO VÁLIDO2]]=\"\",ANÁLISE2[[#This Row],[AVALIAÇÃO 3 - Parte 2]])","v":""},{"$f":"IF(OR(ANÁLISE2[[#This Row],[AVALIAÇÃO 3 - Parte 2]]=\"EXCESSIVAMENTE ELEVADO\",ANÁLISE2[[#This Row],[AVALIAÇÃO 3 - Parte 2]]=\"INEXEQUÍVEL\"),\"\",ANÁLISE1[[#This Row],[PREÇO]])","v":""},{"$f":"IF(OR(ANÁLISE2[[#This Row],[AVALIAÇÃO 3 - Parte 3]]=\"EXCESSIVAMENTE ELEVADO\",ANÁLISE2[[#This Row],[AVALIAÇÃO 3 - Parte 3]]=\"INEXEQUÍVEL\"),\"\",ANÁLISE1[[#This Row],[PREÇO]])","v":""},{"$f":"_xlfn.IFS(\nAND(ANÁLISE2[[#This Row],[AVALIAÇÃO 3 - Parte 3]]=\"INEXEQUÍVEL\",ANÁLISE2[[#This Row],[Há EXC. ELEVADO?]]>0),\"Retirando preço(s) excessivamente elevado(s), o valor é \"&TEXT(ANÁLISE2[[#This Row],[% EM RELAÇÃO AOS DEMAIS]],\"#.###.###,##%\")&\" da média dos demais preços.\",\n\nAND(ANÁLISE2[[#This Row],[AVALIAÇÃO 3 - Parte 3]]=\"INEXEQUÍVEL\",ANÁLISE2[[#This Row],[Há EXC. ELEVADO?]]=0,ANÁLISE2[[#This Row],[% EM RELAÇÃO AOS DEMAIS]]=\"\"),\"O valor é \"&TEXT(ANÁLISE1[[#This Row],[% EM RELAÇÃO AOS DEMAIS]],\"#.###.###,##%\")&\"  da média dos demais preços.\",\n\nAND(ANÁLISE2[[#This Row],[AVALIAÇÃO 3 - Parte 3]]=\"INEXEQUÍVEL\",ANÁLISE2[[#This Row],[Há EXC. ELEVADO?]]=0),\"O valor é \"&TEXT(ANÁLISE2[[#This Row],[% EM RELAÇÃO AOS DEMAIS]],\"#.###.###,##%\")&\" da média dos demais preços.\",\n\nANÁLISE2[[#This Row],[AVALIAÇÃO 3 - Parte 3]]=\"EXCESSIVAMENTE ELEVADO\",\"O valor é \"&TEXT(ANÁLISE1[[#This Row],[% EM RELAÇÃO AOS DEMAIS]]-1,\"#.###.###,##%\")&\" superior à média dos demais preços.\",\n\nAND(ANÁLISE2[[#This Row],[Há EXC. ELEVADO?]]>0,ANÁLISE2[[#This Row],[AVALIAÇÃO 3 - Parte 3]]=\"VÁLIDO - PREÇO PÚBLICO\"),\"Retirando preço(s) excessivamente elevado(s), o valor é inexequível (\"&TEXT(ANÁLISE2[[#This Row],[% EM RELAÇÃO AOS DEMAIS]],\"#.###.###,##%\")&\" da média dos demais preços). Todavia é considerado válido por ser um preço praticado pela Administração Pública.\",\nAND(ANÁLISE2[[#This Row],[Há EXC. ELEVADO?]]=0,ANÁLISE2[[#This Row],[AVALIAÇÃO 3 - Parte 3]]=\"VÁLIDO - PREÇO PÚBLICO\",ANÁLISE2[[#This Row],[% EM RELAÇÃO AOS DEMAIS]]=\"\"),\"O valor é inexequível (\"&TEXT(ANÁLISE1[[#This Row],[% EM RELAÇÃO AOS DEMAIS]],\"#.###.###,##%\")&\" da média dos demais preços). Todavia é considerado válido por ser um preço praticado pela Administração Pública.\",\nAND(ANÁLISE2[[#This Row],[Há EXC. ELEVADO?]]=0,ANÁLISE2[[#This Row],[AVALIAÇÃO 3 - Parte 3]]=\"VÁLIDO - PREÇO PÚBLICO\",ANÁLISE2[[#This Row],[% EM RELAÇÃO AOS DEMAIS]]<>\"\"),\"O valor é inexequível (\"&TEXT(ANÁLISE2[[#This Row],[% EM RELAÇÃO AOS DEMAIS]],\"#.###.###,##%\")&\" da média dos demais preços). Todavia é considerado válido por ser um preço praticado pela Administração Pública.\",\n\nAND(ANÁLISE2[[#This Row],[Há EXC. ELEVADO?]]>0,ANÁLISE2[[#This Row],[AVALIAÇÃO 3 - Parte 3]]=\"VÁLIDO - IGUAL A PREÇO PÚBLICO\"),\"Retirando preço(s) excessivamente elevado(s), o valor é inexequível (\"&TEXT(ANÁLISE2[[#This Row],[% EM RELAÇÃO AOS DEMAIS]],\"#.###.###,##%\")&\" da média dos demais preços). Porém, é considerado válido por ser igual a um preço praticado pela Administração Pública.\",\nAND(ANÁLISE2[[#This Row],[Há EXC. ELEVADO?]]=0,ANÁLISE2[[#This Row],[AVALIAÇÃO 3 - Parte 3]]=\"VÁLIDO - IGUAL A PREÇO PÚBLICO\",ANÁLISE2[[#This Row],[% EM RELAÇÃO AOS DEMAIS]]<>\"\"),\"O valor é inexequível (\"&TEXT(ANÁLISE2[[#This Row],[% EM RELAÇÃO AOS DEMAIS]],\"#.###.###,##%\")&\" da média dos demais preços). No entanto, é considerado válido por ser igual a um preço praticado pela Administração Pública.\",\n\n\nAND(ANÁLISE2[[#This Row],[Há EXC. ELEVADO?]]=0,ANÁLISE2[[#This Row],[AVALIAÇÃO 3 - Parte 3]]=\"VÁLIDO - MAIOR QUE PREÇO PÚBLICO\",ANÁLISE2[[#This Row],[% EM RELAÇÃO AOS DEMAIS]]<>\"\"),\"O valor é inexequível (\"&TEXT(ANÁLISE2[[#This Row],[% EM RELAÇÃO AOS DEMAIS]],\"#.###.###,##%\")&\" da média dos demais preços). No entanto, é considerado válido por ser maior do um preço praticado pela Administração Pública.\",\nAND(ANÁLISE2[[#This Row],[Há EXC. ELEVADO?]]>0,ANÁLISE2[[#This Row],[AVALIAÇÃO 3 - Parte 3]]=\"VÁLIDO - MAIOR QUE PREÇO PÚBLICO\"),\"Retirando preço(s) excessivamente elevado(s), o valor é inexequível (\"&TEXT(ANÁLISE2[[#This Row],[% EM RELAÇÃO AOS DEMAIS]],\"#.###.###,##%\")&\" da média dos demais preços). Porém, é considerado válido por ser maior do que um preço praticado pela Administração Pública.\",\n\nOR(ANÁLISE2[[#This Row],[AVALIAÇÃO 3 - Parte 3]]=\"VÁLIDO\",ANÁLISE2[[#This Row],[AVALIAÇÃO 3 - Parte 3]]=\"\"),\"\")","v":""},{"$f":"COUNTIF(ANÁLISE2[AVALIAÇÃO 2],\"EXCESSIVAMENTE ELEVADO\")","v":0},{"$f":"IF(ANÁLISE2[[#This Row],[AVALIAÇÃO 3 - Parte 1 ]]=1,ANÁLISE1[[#This Row],[PREÇO]],\"\")","v":""},"SIM",{"$f":"IF(OR(ANÁLISE1[[#This Row],[PREÇO]]=\"\",EXORB.!B7=LISTAS!$A$1,EXORB.!B7=LISTAS!$A$2,EXORB.!B7=LISTAS!$A$3),\"\",IFERROR(VLOOKUP(ANÁLISE1[[#This Row],[PREÇO]],ANÁLISE2[[PREÇOS PÚBLICOS]:[RESP. VERIFICAÇÃO]],2,FALSE),\"\"))","v":""},{"$f":"IF(MIN(ANÁLISE2[PREÇOS PÚBLICOS])=0,\"\",MIN(ANÁLISE2[PREÇOS PÚBLICOS]))","v":""},{"$f":"IF(AND(ANÁLISE2[[#This Row],[AVALIAÇÃO 2]]=\"INEXEQUÍVEL\",ANÁLISE2[[#This Row],[PREÇOS PÚBLICOS REPETIDOS?]]<>\"SIM\",ANÁLISE1[[#This Row],[PREÇO]]>ANÁLISE2[[#This Row],[MENOR PREÇO PÚBLICO VÁLIDO]]),\"VÁLIDO - MAIOR QUE PREÇO PÚBLICO\",\"\")","v":""}]
[{"$f":"IF(RELATÓRIO!B38=\"\",\"\",RELATÓRIO!B38)","v":""},{"$f":"IF(RELATÓRIO!C38=\"\",\"\",RELATÓRIO!C38)","v":""},{"$f":"ANÁLISE1[[#This Row],[PREÇOS VÁLIDOS APÓS AV. 1]]","v":""},{"$f":"IFERROR((SUM(ANÁLISE2[PREÇO])-ANÁLISE2[[#This Row],[PREÇO]])/(COUNT(ANÁLISE2[PREÇO])-1),\"\")","v":""},{"$f":"IFERROR(ANÁLISE2[[#This Row],[PREÇO]]/ANÁLISE2[[#This Row],[MÉDIA DOS DEMAIS PREÇOS]],\"\")","v":""},{"$f":"IF(ANÁLISE2[[#This Row],[% EM RELAÇÃO AOS DEMAIS]]<RELATÓRIO!$E$20,\"INEXEQUÍVEL\",ANÁLISE1[[#This Row],[AVALIAÇÃO 1]])","v":""},{"$f":"IF(ANÁLISE2[[#This Row],[AVALIAÇÃO 2]]=\"VÁLIDO\",ANÁLISE1[[#This Row],[PREÇO]],\"\")","v":""},{"$f":"IF(ANÁLISE1[[#This Row],[Verificação 1.2]]=\"OK\",IF(OR(ANÁLISE2[[#This Row],[TIPO DE FONTE]]=LISTAS!$A$1,ANÁLISE2[[#This Row],[TIPO DE FONTE]]=LISTAS!$A$2,ANÁLISE2[[#This Row],[TIPO DE FONTE]]=LISTAS!$A$3),1,2),\"\")","v":""},{"$f":"_xlfn.IFS(AND(ANÁLISE2[[#This Row],[AVALIAÇÃO 2]]=\"INEXEQUÍVEL\",ANÁLISE2[[#This Row],[AVALIAÇÃO 3 - Parte 1 ]]=1),\"VÁLIDO - PREÇO PÚBLICO\",AND(ANÁLISE2[[#This Row],[AVALIAÇÃO 2]]=\"INEXEQUÍVEL\",ANÁLISE2[[#This Row],[PREÇOS PÚBLICOS REPETIDOS?]]=\"SIM\"),\"VÁLIDO - IGUAL A PREÇO PÚBLICO\",ANÁLISE2[[#This Row],[AVALIAÇÃO 2]]<>\"\",ANÁLISE2[[#This Row],[AVALIAÇÃO 2]],ANÁLISE2[[#This Row],[AVALIAÇÃO 2]]=\"\",\"\")","v":""},{"$f":"_xlfn.IFS(ANÁLISE2[[#This Row],[AVALIAÇÃO 3 - Parte 2]]=\"VÁLIDO - PREÇO PÚBLICO\",ANÁLISE2[[#This Row],[AVALIAÇÃO 3 - Parte 2]],ANÁLISE2[[#This Row],[MENOR PREÇO PÚBLICO VÁLIDO2]]<>\"\",ANÁLISE2[[#This Row],[MENOR PREÇO PÚBLICO VÁLIDO2]],ANÁLISE2[[#This Row],[MENOR PREÇO PÚBLICO VÁLIDO2]]=\"\",ANÁLISE2[[#This Row],[AVALIAÇÃO 3 - Parte 2]])","v":""},{"$f":"IF(OR(ANÁLISE2[[#This Row],[AVALIAÇÃO 3 - Parte 2]]=\"EXCESSIVAMENTE ELEVADO\",ANÁLISE2[[#This Row],[AVALIAÇÃO 3 - Parte 2]]=\"INEXEQUÍVEL\"),\"\",ANÁLISE1[[#This Row],[PREÇO]])","v":""},{"$f":"IF(OR(ANÁLISE2[[#This Row],[AVALIAÇÃO 3 - Parte 3]]=\"EXCESSIVAMENTE ELEVADO\",ANÁLISE2[[#This Row],[AVALIAÇÃO 3 - Parte 3]]=\"INEXEQUÍVEL\"),\"\",ANÁLISE1[[#This Row],[PREÇO]])","v":""},{"$f":"_xlfn.IFS(\nAND(ANÁLISE2[[#This Row],[AVALIAÇÃO 3 - Parte 3]]=\"INEXEQUÍVEL\",ANÁLISE2[[#This Row],[Há EXC. ELEVADO?]]>0),\"Retirando preço(s) excessivamente elevado(s), o valor é \"&TEXT(ANÁLISE2[[#This Row],[% EM RELAÇÃO AOS DEMAIS]],\"#.###.###,##%\")&\" da média dos demais preços.\",\n\nAND(ANÁLISE2[[#This Row],[AVALIAÇÃO 3 - Parte 3]]=\"INEXEQUÍVEL\",ANÁLISE2[[#This Row],[Há EXC. ELEVADO?]]=0,ANÁLISE2[[#This Row],[% EM RELAÇÃO AOS DEMAIS]]=\"\"),\"O valor é \"&TEXT(ANÁLISE1[[#This Row],[% EM RELAÇÃO AOS DEMAIS]],\"#.###.###,##%\")&\"  da média dos demais preços.\",\n\nAND(ANÁLISE2[[#This Row],[AVALIAÇÃO 3 - Parte 3]]=\"INEXEQUÍVEL\",ANÁLISE2[[#This Row],[Há EXC. ELEVADO?]]=0),\"O valor é \"&TEXT(ANÁLISE2[[#This Row],[% EM RELAÇÃO AOS DEMAIS]],\"#.###.###,##%\")&\" da média dos demais preços.\",\n\nANÁLISE2[[#This Row],[AVALIAÇÃO 3 - Parte 3]]=\"EXCESSIVAMENTE ELEVADO\",\"O valor é \"&TEXT(ANÁLISE1[[#This Row],[% EM RELAÇÃO AOS DEMAIS]]-1,\"#.###.###,##%\")&\" superior à média dos demais preços.\",\n\nAND(ANÁLISE2[[#This Row],[Há EXC. ELEVADO?]]>0,ANÁLISE2[[#This Row],[AVALIAÇÃO 3 - Parte 3]]=\"VÁLIDO - PREÇO PÚBLICO\"),\"Retirando preço(s) excessivamente elevado(s), o valor é inexequível (\"&TEXT(ANÁLISE2[[#This Row],[% EM RELAÇÃO AOS DEMAIS]],\"#.###.###,##%\")&\" da média dos demais preços). Todavia é considerado válido por ser um preço praticado pela Administração Pública.\",\nAND(ANÁLISE2[[#This Row],[Há EXC. ELEVADO?]]=0,ANÁLISE2[[#This Row],[AVALIAÇÃO 3 - Parte 3]]=\"VÁLIDO - PREÇO PÚBLICO\",ANÁLISE2[[#This Row],[% EM RELAÇÃO AOS DEMAIS]]=\"\"),\"O valor é inexequível (\"&TEXT(ANÁLISE1[[#This Row],[% EM RELAÇÃO AOS DEMAIS]],\"#.###.###,##%\")&\" da média dos demais preços). Todavia é considerado válido por ser um preço praticado pela Administração Pública.\",\nAND(ANÁLISE2[[#This Row],[Há EXC. ELEVADO?]]=0,ANÁLISE2[[#This Row],[AVALIAÇÃO 3 - Parte 3]]=\"VÁLIDO - PREÇO PÚBLICO\",ANÁLISE2[[#This Row],[% EM RELAÇÃO AOS DEMAIS]]<>\"\"),\"O valor é inexequível (\"&TEXT(ANÁLISE2[[#This Row],[% EM RELAÇÃO AOS DEMAIS]],\"#.###.###,##%\")&\" da média dos demais preços). Todavia é considerado válido por ser um preço praticado pela Administração Pública.\",\n\nAND(ANÁLISE2[[#This Row],[Há EXC. ELEVADO?]]>0,ANÁLISE2[[#This Row],[AVALIAÇÃO 3 - Parte 3]]=\"VÁLIDO - IGUAL A PREÇO PÚBLICO\"),\"Retirando preço(s) excessivamente elevado(s), o valor é inexequível (\"&TEXT(ANÁLISE2[[#This Row],[% EM RELAÇÃO AOS DEMAIS]],\"#.###.###,##%\")&\" da média dos demais preços). Porém, é considerado válido por ser igual a um preço praticado pela Administração Pública.\",\nAND(ANÁLISE2[[#This Row],[Há EXC. ELEVADO?]]=0,ANÁLISE2[[#This Row],[AVALIAÇÃO 3 - Parte 3]]=\"VÁLIDO - IGUAL A PREÇO PÚBLICO\",ANÁLISE2[[#This Row],[% EM RELAÇÃO AOS DEMAIS]]<>\"\"),\"O valor é inexequível (\"&TEXT(ANÁLISE2[[#This Row],[% EM RELAÇÃO AOS DEMAIS]],\"#.###.###,##%\")&\" da média dos demais preços). No entanto, é considerado válido por ser igual a um preço praticado pela Administração Pública.\",\n\n\nAND(ANÁLISE2[[#This Row],[Há EXC. ELEVADO?]]=0,ANÁLISE2[[#This Row],[AVALIAÇÃO 3 - Parte 3]]=\"VÁLIDO - MAIOR QUE PREÇO PÚBLICO\",ANÁLISE2[[#This Row],[% EM RELAÇÃO AOS DEMAIS]]<>\"\"),\"O valor é inexequível (\"&TEXT(ANÁLISE2[[#This Row],[% EM RELAÇÃO AOS DEMAIS]],\"#.###.###,##%\")&\" da média dos demais preços). No entanto, é considerado válido por ser maior do um preço praticado pela Administração Pública.\",\nAND(ANÁLISE2[[#This Row],[Há EXC. ELEVADO?]]>0,ANÁLISE2[[#This Row],[AVALIAÇÃO 3 - Parte 3]]=\"VÁLIDO - MAIOR QUE PREÇO PÚBLICO\"),\"Retirando preço(s) excessivamente elevado(s), o valor é inexequível (\"&TEXT(ANÁLISE2[[#This Row],[% EM RELAÇÃO AOS DEMAIS]],\"#.###.###,##%\")&\" da média dos demais preços). Porém, é considerado válido por ser maior do que um preço praticado pela Administração Pública.\",\n\nOR(ANÁLISE2[[#This Row],[AVALIAÇÃO 3 - Parte 3]]=\"VÁLIDO\",ANÁLISE2[[#This Row],[AVALIAÇÃO 3 - Parte 3]]=\"\"),\"\")","v":""},{"$f":"COUNTIF(ANÁLISE2[AVALIAÇÃO 2],\"EXCESSIVAMENTE ELEVADO\")","v":0},{"$f":"IF(ANÁLISE2[[#This Row],[AVALIAÇÃO 3 - Parte 1 ]]=1,ANÁLISE1[[#This Row],[PREÇO]],\"\")","v":""},"SIM",{"$f":"IF(OR(ANÁLISE1[[#This Row],[PREÇO]]=\"\",EXORB.!B8=LISTAS!$A$1,EXORB.!B8=LISTAS!$A$2,EXORB.!B8=LISTAS!$A$3),\"\",IFERROR(VLOOKUP(ANÁLISE1[[#This Row],[PREÇO]],ANÁLISE2[[PREÇOS PÚBLICOS]:[RESP. VERIFICAÇÃO]],2,FALSE),\"\"))","v":""},{"$f":"IF(MIN(ANÁLISE2[PREÇOS PÚBLICOS])=0,\"\",MIN(ANÁLISE2[PREÇOS PÚBLICOS]))","v":""},{"$f":"IF(AND(ANÁLISE2[[#This Row],[AVALIAÇÃO 2]]=\"INEXEQUÍVEL\",ANÁLISE2[[#This Row],[PREÇOS PÚBLICOS REPETIDOS?]]<>\"SIM\",ANÁLISE1[[#This Row],[PREÇO]]>ANÁLISE2[[#This Row],[MENOR PREÇO PÚBLICO VÁLIDO]]),\"VÁLIDO - MAIOR QUE PREÇO PÚBLICO\",\"\")","v":""}]
[{"$f":"IF(RELATÓRIO!B39=\"\",\"\",RELATÓRIO!B39)","v":""},{"$f":"IF(RELATÓRIO!C39=\"\",\"\",RELATÓRIO!C39)","v":""},{"$f":"ANÁLISE1[[#This Row],[PREÇOS VÁLIDOS APÓS AV. 1]]","v":""},{"$f":"IFERROR((SUM(ANÁLISE2[PREÇO])-ANÁLISE2[[#This Row],[PREÇO]])/(COUNT(ANÁLISE2[PREÇO])-1),\"\")","v":""},{"$f":"IFERROR(ANÁLISE2[[#This Row],[PREÇO]]/ANÁLISE2[[#This Row],[MÉDIA DOS DEMAIS PREÇOS]],\"\")","v":""},{"$f":"IF(ANÁLISE2[[#This Row],[% EM RELAÇÃO AOS DEMAIS]]<RELATÓRIO!$E$20,\"INEXEQUÍVEL\",ANÁLISE1[[#This Row],[AVALIAÇÃO 1]])","v":""},{"$f":"IF(ANÁLISE2[[#This Row],[AVALIAÇÃO 2]]=\"VÁLIDO\",ANÁLISE1[[#This Row],[PREÇO]],\"\")","v":""},{"$f":"IF(ANÁLISE1[[#This Row],[Verificação 1.2]]=\"OK\",IF(OR(ANÁLISE2[[#This Row],[TIPO DE FONTE]]=LISTAS!$A$1,ANÁLISE2[[#This Row],[TIPO DE FONTE]]=LISTAS!$A$2,ANÁLISE2[[#This Row],[TIPO DE FONTE]]=LISTAS!$A$3),1,2),\"\")","v":""},{"$f":"_xlfn.IFS(AND(ANÁLISE2[[#This Row],[AVALIAÇÃO 2]]=\"INEXEQUÍVEL\",ANÁLISE2[[#This Row],[AVALIAÇÃO 3 - Parte 1 ]]=1),\"VÁLIDO - PREÇO PÚBLICO\",AND(ANÁLISE2[[#This Row],[AVALIAÇÃO 2]]=\"INEXEQUÍVEL\",ANÁLISE2[[#This Row],[PREÇOS PÚBLICOS REPETIDOS?]]=\"SIM\"),\"VÁLIDO - IGUAL A PREÇO PÚBLICO\",ANÁLISE2[[#This Row],[AVALIAÇÃO 2]]<>\"\",ANÁLISE2[[#This Row],[AVALIAÇÃO 2]],ANÁLISE2[[#This Row],[AVALIAÇÃO 2]]=\"\",\"\")","v":""},{"$f":"_xlfn.IFS(ANÁLISE2[[#This Row],[AVALIAÇÃO 3 - Parte 2]]=\"VÁLIDO - PREÇO PÚBLICO\",ANÁLISE2[[#This Row],[AVALIAÇÃO 3 - Parte 2]],ANÁLISE2[[#This Row],[MENOR PREÇO PÚBLICO VÁLIDO2]]<>\"\",ANÁLISE2[[#This Row],[MENOR PREÇO PÚBLICO VÁLIDO2]],ANÁLISE2[[#This Row],[MENOR PREÇO PÚBLICO VÁLIDO2]]=\"\",ANÁLISE2[[#This Row],[AVALIAÇÃO 3 - Parte 2]])","v":""},{"$f":"IF(OR(ANÁLISE2[[#This Row],[AVALIAÇÃO 3 - Parte 2]]=\"EXCESSIVAMENTE ELEVADO\",ANÁLISE2[[#This Row],[AVALIAÇÃO 3 - Parte 2]]=\"INEXEQUÍVEL\"),\"\",ANÁLISE1[[#This Row],[PREÇO]])","v":""},{"$f":"IF(OR(ANÁLISE2[[#This Row],[AVALIAÇÃO 3 - Parte 3]]=\"EXCESSIVAMENTE ELEVADO\",ANÁLISE2[[#This Row],[AVALIAÇÃO 3 - Parte 3]]=\"INEXEQUÍVEL\"),\"\",ANÁLISE1[[#This Row],[PREÇO]])","v":""},{"$f":"_xlfn.IFS(\nAND(ANÁLISE2[[#This Row],[AVALIAÇÃO 3 - Parte 3]]=\"INEXEQUÍVEL\",ANÁLISE2[[#This Row],[Há EXC. ELEVADO?]]>0),\"Retirando preço(s) excessivamente elevado(s), o valor é \"&TEXT(ANÁLISE2[[#This Row],[% EM RELAÇÃO AOS DEMAIS]],\"#.###.###,##%\")&\" da média dos demais preços.\",\n\nAND(ANÁLISE2[[#This Row],[AVALIAÇÃO 3 - Parte 3]]=\"INEXEQUÍVEL\",ANÁLISE2[[#This Row],[Há EXC. ELEVADO?]]=0,ANÁLISE2[[#This Row],[% EM RELAÇÃO AOS DEMAIS]]=\"\"),\"O valor é \"&TEXT(ANÁLISE1[[#This Row],[% EM RELAÇÃO AOS DEMAIS]],\"#.###.###,##%\")&\"  da média dos demais preços.\",\n\nAND(ANÁLISE2[[#This Row],[AVALIAÇÃO 3 - Parte 3]]=\"INEXEQUÍVEL\",ANÁLISE2[[#This Row],[Há EXC. ELEVADO?]]=0),\"O valor é \"&TEXT(ANÁLISE2[[#This Row],[% EM RELAÇÃO AOS DEMAIS]],\"#.###.###,##%\")&\" da média dos demais preços.\",\n\nANÁLISE2[[#This Row],[AVALIAÇÃO 3 - Parte 3]]=\"EXCESSIVAMENTE ELEVADO\",\"O valor é \"&TEXT(ANÁLISE1[[#This Row],[% EM RELAÇÃO AOS DEMAIS]]-1,\"#.###.###,##%\")&\" superior à média dos demais preços.\",\n\nAND(ANÁLISE2[[#This Row],[Há EXC. ELEVADO?]]>0,ANÁLISE2[[#This Row],[AVALIAÇÃO 3 - Parte 3]]=\"VÁLIDO - PREÇO PÚBLICO\"),\"Retirando preço(s) excessivamente elevado(s), o valor é inexequível (\"&TEXT(ANÁLISE2[[#This Row],[% EM RELAÇÃO AOS DEMAIS]],\"#.###.###,##%\")&\" da média dos demais preços). Todavia é considerado válido por ser um preço praticado pela Administração Pública.\",\nAND(ANÁLISE2[[#This Row],[Há EXC. ELEVADO?]]=0,ANÁLISE2[[#This Row],[AVALIAÇÃO 3 - Parte 3]]=\"VÁLIDO - PREÇO PÚBLICO\",ANÁLISE2[[#This Row],[% EM RELAÇÃO AOS DEMAIS]]=\"\"),\"O valor é inexequível (\"&TEXT(ANÁLISE1[[#This Row],[% EM RELAÇÃO AOS DEMAIS]],\"#.###.###,##%\")&\" da média dos demais preços). Todavia é considerado válido por ser um preço praticado pela Administração Pública.\",\nAND(ANÁLISE2[[#This Row],[Há EXC. ELEVADO?]]=0,ANÁLISE2[[#This Row],[AVALIAÇÃO 3 - Parte 3]]=\"VÁLIDO - PREÇO PÚBLICO\",ANÁLISE2[[#This Row],[% EM RELAÇÃO AOS DEMAIS]]<>\"\"),\"O valor é inexequível (\"&TEXT(ANÁLISE2[[#This Row],[% EM RELAÇÃO AOS DEMAIS]],\"#.###.###,##%\")&\" da média dos demais preços). Todavia é considerado válido por ser um preço praticado pela Administração Pública.\",\n\nAND(ANÁLISE2[[#This Row],[Há EXC. ELEVADO?]]>0,ANÁLISE2[[#This Row],[AVALIAÇÃO 3 - Parte 3]]=\"VÁLIDO - IGUAL A PREÇO PÚBLICO\"),\"Retirando preço(s) excessivamente elevado(s), o valor é inexequível (\"&TEXT(ANÁLISE2[[#This Row],[% EM RELAÇÃO AOS DEMAIS]],\"#.###.###,##%\")&\" da média dos demais preços). Porém, é considerado válido por ser igual a um preço praticado pela Administração Pública.\",\nAND(ANÁLISE2[[#This Row],[Há EXC. ELEVADO?]]=0,ANÁLISE2[[#This Row],[AVALIAÇÃO 3 - Parte 3]]=\"VÁLIDO - IGUAL A PREÇO PÚBLICO\",ANÁLISE2[[#This Row],[% EM RELAÇÃO AOS DEMAIS]]<>\"\"),\"O valor é inexequível (\"&TEXT(ANÁLISE2[[#This Row],[% EM RELAÇÃO AOS DEMAIS]],\"#.###.###,##%\")&\" da média dos demais preços). No entanto, é considerado válido por ser igual a um preço praticado pela Administração Pública.\",\n\n\nAND(ANÁLISE2[[#This Row],[Há EXC. ELEVADO?]]=0,ANÁLISE2[[#This Row],[AVALIAÇÃO 3 - Parte 3]]=\"VÁLIDO - MAIOR QUE PREÇO PÚBLICO\",ANÁLISE2[[#This Row],[% EM RELAÇÃO AOS DEMAIS]]<>\"\"),\"O valor é inexequível (\"&TEXT(ANÁLISE2[[#This Row],[% EM RELAÇÃO AOS DEMAIS]],\"#.###.###,##%\")&\" da média dos demais preços). No entanto, é considerado válido por ser maior do um preço praticado pela Administração Pública.\",\nAND(ANÁLISE2[[#This Row],[Há EXC. ELEVADO?]]>0,ANÁLISE2[[#This Row],[AVALIAÇÃO 3 - Parte 3]]=\"VÁLIDO - MAIOR QUE PREÇO PÚBLICO\"),\"Retirando preço(s) excessivamente elevado(s), o valor é inexequível (\"&TEXT(ANÁLISE2[[#This Row],[% EM RELAÇÃO AOS DEMAIS]],\"#.###.###,##%\")&\" da média dos demais preços). Porém, é considerado válido por ser maior do que um preço praticado pela Administração Pública.\",\n\nOR(ANÁLISE2[[#This Row],[AVALIAÇÃO 3 - Parte 3]]=\"VÁLIDO\",ANÁLISE2[[#This Row],[AVALIAÇÃO 3 - Parte 3]]=\"\"),\"\")","v":""},{"$f":"COUNTIF(ANÁLISE2[AVALIAÇÃO 2],\"EXCESSIVAMENTE ELEVADO\")","v":0},{"$f":"IF(ANÁLISE2[[#This Row],[AVALIAÇÃO 3 - Parte 1 ]]=1,ANÁLISE1[[#This Row],[PREÇO]],\"\")","v":""},"SIM",{"$f":"IF(OR(ANÁLISE1[[#This Row],[PREÇO]]=\"\",EXORB.!B9=LISTAS!$A$1,EXORB.!B9=LISTAS!$A$2,EXORB.!B9=LISTAS!$A$3),\"\",IFERROR(VLOOKUP(ANÁLISE1[[#This Row],[PREÇO]],ANÁLISE2[[PREÇOS PÚBLICOS]:[RESP. VERIFICAÇÃO]],2,FALSE),\"\"))","v":""},{"$f":"IF(MIN(ANÁLISE2[PREÇOS PÚBLICOS])=0,\"\",MIN(ANÁLISE2[PREÇOS PÚBLICOS]))","v":""},{"$f":"IF(AND(ANÁLISE2[[#This Row],[AVALIAÇÃO 2]]=\"INEXEQUÍVEL\",ANÁLISE2[[#This Row],[PREÇOS PÚBLICOS REPETIDOS?]]<>\"SIM\",ANÁLISE1[[#This Row],[PREÇO]]>ANÁLISE2[[#This Row],[MENOR PREÇO PÚBLICO VÁLIDO]]),\"VÁLIDO - MAIOR QUE PREÇO PÚBLICO\",\"\")","v":""}]
[{"$f":"IF(RELATÓRIO!B40=\"\",\"\",RELATÓRIO!B40)","v":""},{"$f":"IF(RELATÓRIO!C40=\"\",\"\",RELATÓRIO!C40)","v":""},{"$f":"ANÁLISE1[[#This Row],[PREÇOS VÁLIDOS APÓS AV. 1]]","v":""},{"$f":"IFERROR((SUM(ANÁLISE2[PREÇO])-ANÁLISE2[[#This Row],[PREÇO]])/(COUNT(ANÁLISE2[PREÇO])-1),\"\")","v":""},{"$f":"IFERROR(ANÁLISE2[[#This Row],[PREÇO]]/ANÁLISE2[[#This Row],[MÉDIA DOS DEMAIS PREÇOS]],\"\")","v":""},{"$f":"IF(ANÁLISE2[[#This Row],[% EM RELAÇÃO AOS DEMAIS]]<RELATÓRIO!$E$20,\"INEXEQUÍVEL\",ANÁLISE1[[#This Row],[AVALIAÇÃO 1]])","v":""},{"$f":"IF(ANÁLISE2[[#This Row],[AVALIAÇÃO 2]]=\"VÁLIDO\",ANÁLISE1[[#This Row],[PREÇO]],\"\")","v":""},{"$f":"IF(ANÁLISE1[[#This Row],[Verificação 1.2]]=\"OK\",IF(OR(ANÁLISE2[[#This Row],[TIPO DE FONTE]]=LISTAS!$A$1,ANÁLISE2[[#This Row],[TIPO DE FONTE]]=LISTAS!$A$2,ANÁLISE2[[#This Row],[TIPO DE FONTE]]=LISTAS!$A$3),1,2),\"\")","v":""},{"$f":"_xlfn.IFS(AND(ANÁLISE2[[#This Row],[AVALIAÇÃO 2]]=\"INEXEQUÍVEL\",ANÁLISE2[[#This Row],[AVALIAÇÃO 3 - Parte 1 ]]=1),\"VÁLIDO - PREÇO PÚBLICO\",AND(ANÁLISE2[[#This Row],[AVALIAÇÃO 2]]=\"INEXEQUÍVEL\",ANÁLISE2[[#This Row],[PREÇOS PÚBLICOS REPETIDOS?]]=\"SIM\"),\"VÁLIDO - IGUAL A PREÇO PÚBLICO\",ANÁLISE2[[#This Row],[AVALIAÇÃO 2]]<>\"\",ANÁLISE2[[#This Row],[AVALIAÇÃO 2]],ANÁLISE2[[#This Row],[AVALIAÇÃO 2]]=\"\",\"\")","v":""},{"$f":"_xlfn.IFS(ANÁLISE2[[#This Row],[AVALIAÇÃO 3 - Parte 2]]=\"VÁLIDO - PREÇO PÚBLICO\",ANÁLISE2[[#This Row],[AVALIAÇÃO 3 - Parte 2]],ANÁLISE2[[#This Row],[MENOR PREÇO PÚBLICO VÁLIDO2]]<>\"\",ANÁLISE2[[#This Row],[MENOR PREÇO PÚBLICO VÁLIDO2]],ANÁLISE2[[#This Row],[MENOR PREÇO PÚBLICO VÁLIDO2]]=\"\",ANÁLISE2[[#This Row],[AVALIAÇÃO 3 - Parte 2]])","v":""},{"$f":"IF(OR(ANÁLISE2[[#This Row],[AVALIAÇÃO 3 - Parte 2]]=\"EXCESSIVAMENTE ELEVADO\",ANÁLISE2[[#This Row],[AVALIAÇÃO 3 - Parte 2]]=\"INEXEQUÍVEL\"),\"\",ANÁLISE1[[#This Row],[PREÇO]])","v":""},{"$f":"IF(OR(ANÁLISE2[[#This Row],[AVALIAÇÃO 3 - Parte 3]]=\"EXCESSIVAMENTE ELEVADO\",ANÁLISE2[[#This Row],[AVALIAÇÃO 3 - Parte 3]]=\"INEXEQUÍVEL\"),\"\",ANÁLISE1[[#This Row],[PREÇO]])","v":""},{"$f":"_xlfn.IFS(\nAND(ANÁLISE2[[#This Row],[AVALIAÇÃO 3 - Parte 3]]=\"INEXEQUÍVEL\",ANÁLISE2[[#This Row],[Há EXC. ELEVADO?]]>0),\"Retirando preço(s) excessivamente elevado(s), o valor é \"&TEXT(ANÁLISE2[[#This Row],[% EM RELAÇÃO AOS DEMAIS]],\"#.###.###,##%\")&\" da média dos demais preços.\",\n\nAND(ANÁLISE2[[#This Row],[AVALIAÇÃO 3 - Parte 3]]=\"INEXEQUÍVEL\",ANÁLISE2[[#This Row],[Há EXC. ELEVADO?]]=0,ANÁLISE2[[#This Row],[% EM RELAÇÃO AOS DEMAIS]]=\"\"),\"O valor é \"&TEXT(ANÁLISE1[[#This Row],[% EM RELAÇÃO AOS DEMAIS]],\"#.###.###,##%\")&\"  da média dos demais preços.\",\n\nAND(ANÁLISE2[[#This Row],[AVALIAÇÃO 3 - Parte 3]]=\"INEXEQUÍVEL\",ANÁLISE2[[#This Row],[Há EXC. ELEVADO?]]=0),\"O valor é \"&TEXT(ANÁLISE2[[#This Row],[% EM RELAÇÃO AOS DEMAIS]],\"#.###.###,##%\")&\" da média dos demais preços.\",\n\nANÁLISE2[[#This Row],[AVALIAÇÃO 3 - Parte 3]]=\"EXCESSIVAMENTE ELEVADO\",\"O valor é \"&TEXT(ANÁLISE1[[#This Row],[% EM RELAÇÃO AOS DEMAIS]]-1,\"#.###.###,##%\")&\" superior à média dos demais preços.\",\n\nAND(ANÁLISE2[[#This Row],[Há EXC. ELEVADO?]]>0,ANÁLISE2[[#This Row],[AVALIAÇÃO 3 - Parte 3]]=\"VÁLIDO - PREÇO PÚBLICO\"),\"Retirando preço(s) excessivamente elevado(s), o valor é inexequível (\"&TEXT(ANÁLISE2[[#This Row],[% EM RELAÇÃO AOS DEMAIS]],\"#.###.###,##%\")&\" da média dos demais preços). Todavia é considerado válido por ser um preço praticado pela Administração Pública.\",\nAND(ANÁLISE2[[#This Row],[Há EXC. ELEVADO?]]=0,ANÁLISE2[[#This Row],[AVALIAÇÃO 3 - Parte 3]]=\"VÁLIDO - PREÇO PÚBLICO\",ANÁLISE2[[#This Row],[% EM RELAÇÃO AOS DEMAIS]]=\"\"),\"O valor é inexequível (\"&TEXT(ANÁLISE1[[#This Row],[% EM RELAÇÃO AOS DEMAIS]],\"#.###.###,##%\")&\" da média dos demais preços). Todavia é considerado válido por ser um preço praticado pela Administração Pública.\",\nAND(ANÁLISE2[[#This Row],[Há EXC. ELEVADO?]]=0,ANÁLISE2[[#This Row],[AVALIAÇÃO 3 - Parte 3]]=\"VÁLIDO - PREÇO PÚBLICO\",ANÁLISE2[[#This Row],[% EM RELAÇÃO AOS DEMAIS]]<>\"\"),\"O valor é inexequível (\"&TEXT(ANÁLISE2[[#This Row],[% EM RELAÇÃO AOS DEMAIS]],\"#.###.###,##%\")&\" da média dos demais preços). Todavia é considerado válido por ser um preço praticado pela Administração Pública.\",\n\nAND(ANÁLISE2[[#This Row],[Há EXC. ELEVADO?]]>0,ANÁLISE2[[#This Row],[AVALIAÇÃO 3 - Parte 3]]=\"VÁLIDO - IGUAL A PREÇO PÚBLICO\"),\"Retirando preço(s) excessivamente elevado(s), o valor é inexequível (\"&TEXT(ANÁLISE2[[#This Row],[% EM RELAÇÃO AOS DEMAIS]],\"#.###.###,##%\")&\" da média dos demais preços). Porém, é considerado válido por ser igual a um preço praticado pela Administração Pública.\",\nAND(ANÁLISE2[[#This Row],[Há EXC. ELEVADO?]]=0,ANÁLISE2[[#This Row],[AVALIAÇÃO 3 - Parte 3]]=\"VÁLIDO - IGUAL A PREÇO PÚBLICO\",ANÁLISE2[[#This Row],[% EM RELAÇÃO AOS DEMAIS]]<>\"\"),\"O valor é inexequível (\"&TEXT(ANÁLISE2[[#This Row],[% EM RELAÇÃO AOS DEMAIS]],\"#.###.###,##%\")&\" da média dos demais preços). No entanto, é considerado válido por ser igual a um preço praticado pela Administração Pública.\",\n\n\nAND(ANÁLISE2[[#This Row],[Há EXC. ELEVADO?]]=0,ANÁLISE2[[#This Row],[AVALIAÇÃO 3 - Parte 3]]=\"VÁLIDO - MAIOR QUE PREÇO PÚBLICO\",ANÁLISE2[[#This Row],[% EM RELAÇÃO AOS DEMAIS]]<>\"\"),\"O valor é inexequível (\"&TEXT(ANÁLISE2[[#This Row],[% EM RELAÇÃO AOS DEMAIS]],\"#.###.###,##%\")&\" da média dos demais preços). No entanto, é considerado válido por ser maior do um preço praticado pela Administração Pública.\",\nAND(ANÁLISE2[[#This Row],[Há EXC. ELEVADO?]]>0,ANÁLISE2[[#This Row],[AVALIAÇÃO 3 - Parte 3]]=\"VÁLIDO - MAIOR QUE PREÇO PÚBLICO\"),\"Retirando preço(s) excessivamente elevado(s), o valor é inexequível (\"&TEXT(ANÁLISE2[[#This Row],[% EM RELAÇÃO AOS DEMAIS]],\"#.###.###,##%\")&\" da média dos demais preços). Porém, é considerado válido por ser maior do que um preço praticado pela Administração Pública.\",\n\nOR(ANÁLISE2[[#This Row],[AVALIAÇÃO 3 - Parte 3]]=\"VÁLIDO\",ANÁLISE2[[#This Row],[AVALIAÇÃO 3 - Parte 3]]=\"\"),\"\")","v":""},{"$f":"COUNTIF(ANÁLISE2[AVALIAÇÃO 2],\"EXCESSIVAMENTE ELEVADO\")","v":0},{"$f":"IF(ANÁLISE2[[#This Row],[AVALIAÇÃO 3 - Parte 1 ]]=1,ANÁLISE1[[#This Row],[PREÇO]],\"\")","v":""},"SIM",{"$f":"IF(OR(ANÁLISE1[[#This Row],[PREÇO]]=\"\",EXORB.!B10=LISTAS!$A$1,EXORB.!B10=LISTAS!$A$2,EXORB.!B10=LISTAS!$A$3),\"\",IFERROR(VLOOKUP(ANÁLISE1[[#This Row],[PREÇO]],ANÁLISE2[[PREÇOS PÚBLICOS]:[RESP. VERIFICAÇÃO]],2,FALSE),\"\"))","v":""},{"$f":"IF(MIN(ANÁLISE2[PREÇOS PÚBLICOS])=0,\"\",MIN(ANÁLISE2[PREÇOS PÚBLICOS]))","v":""},{"$f":"IF(AND(ANÁLISE2[[#This Row],[AVALIAÇÃO 2]]=\"INEXEQUÍVEL\",ANÁLISE2[[#This Row],[PREÇOS PÚBLICOS REPETIDOS?]]<>\"SIM\",ANÁLISE1[[#This Row],[PREÇO]]>ANÁLISE2[[#This Row],[MENOR PREÇO PÚBLICO VÁLIDO]]),\"VÁLIDO - MAIOR QUE PREÇO PÚBLICO\",\"\")","v":""}]
[{"$f":"IF(RELATÓRIO!B41=\"\",\"\",RELATÓRIO!B41)","v":""},{"$f":"IF(RELATÓRIO!C41=\"\",\"\",RELATÓRIO!C41)","v":""},{"$f":"ANÁLISE1[[#This Row],[PREÇOS VÁLIDOS APÓS AV. 1]]","v":""},{"$f":"IFERROR((SUM(ANÁLISE2[PREÇO])-ANÁLISE2[[#This Row],[PREÇO]])/(COUNT(ANÁLISE2[PREÇO])-1),\"\")","v":""},{"$f":"IFERROR(ANÁLISE2[[#This Row],[PREÇO]]/ANÁLISE2[[#This Row],[MÉDIA DOS DEMAIS PREÇOS]],\"\")","v":""},{"$f":"IF(ANÁLISE2[[#This Row],[% EM RELAÇÃO AOS DEMAIS]]<RELATÓRIO!$E$20,\"INEXEQUÍVEL\",ANÁLISE1[[#This Row],[AVALIAÇÃO 1]])","v":""},{"$f":"IF(ANÁLISE2[[#This Row],[AVALIAÇÃO 2]]=\"VÁLIDO\",ANÁLISE1[[#This Row],[PREÇO]],\"\")","v":""},{"$f":"IF(ANÁLISE1[[#This Row],[Verificação 1.2]]=\"OK\",IF(OR(ANÁLISE2[[#This Row],[TIPO DE FONTE]]=LISTAS!$A$1,ANÁLISE2[[#This Row],[TIPO DE FONTE]]=LISTAS!$A$2,ANÁLISE2[[#This Row],[TIPO DE FONTE]]=LISTAS!$A$3),1,2),\"\")","v":""},{"$f":"_xlfn.IFS(AND(ANÁLISE2[[#This Row],[AVALIAÇÃO 2]]=\"INEXEQUÍVEL\",ANÁLISE2[[#This Row],[AVALIAÇÃO 3 - Parte 1 ]]=1),\"VÁLIDO - PREÇO PÚBLICO\",AND(ANÁLISE2[[#This Row],[AVALIAÇÃO 2]]=\"INEXEQUÍVEL\",ANÁLISE2[[#This Row],[PREÇOS PÚBLICOS REPETIDOS?]]=\"SIM\"),\"VÁLIDO - IGUAL A PREÇO PÚBLICO\",ANÁLISE2[[#This Row],[AVALIAÇÃO 2]]<>\"\",ANÁLISE2[[#This Row],[AVALIAÇÃO 2]],ANÁLISE2[[#This Row],[AVALIAÇÃO 2]]=\"\",\"\")","v":""},{"$f":"_xlfn.IFS(ANÁLISE2[[#This Row],[AVALIAÇÃO 3 - Parte 2]]=\"VÁLIDO - PREÇO PÚBLICO\",ANÁLISE2[[#This Row],[AVALIAÇÃO 3 - Parte 2]],ANÁLISE2[[#This Row],[MENOR PREÇO PÚBLICO VÁLIDO2]]<>\"\",ANÁLISE2[[#This Row],[MENOR PREÇO PÚBLICO VÁLIDO2]],ANÁLISE2[[#This Row],[MENOR PREÇO PÚBLICO VÁLIDO2]]=\"\",ANÁLISE2[[#This Row],[AVALIAÇÃO 3 - Parte 2]])","v":""},{"$f":"IF(OR(ANÁLISE2[[#This Row],[AVALIAÇÃO 3 - Parte 2]]=\"EXCESSIVAMENTE ELEVADO\",ANÁLISE2[[#This Row],[AVALIAÇÃO 3 - Parte 2]]=\"INEXEQUÍVEL\"),\"\",ANÁLISE1[[#This Row],[PREÇO]])","v":""},{"$f":"IF(OR(ANÁLISE2[[#This Row],[AVALIAÇÃO 3 - Parte 3]]=\"EXCESSIVAMENTE ELEVADO\",ANÁLISE2[[#This Row],[AVALIAÇÃO 3 - Parte 3]]=\"INEXEQUÍVEL\"),\"\",ANÁLISE1[[#This Row],[PREÇO]])","v":""},{"$f":"_xlfn.IFS(\nAND(ANÁLISE2[[#This Row],[AVALIAÇÃO 3 - Parte 3]]=\"INEXEQUÍVEL\",ANÁLISE2[[#This Row],[Há EXC. ELEVADO?]]>0),\"Retirando preço(s) excessivamente elevado(s), o valor é \"&TEXT(ANÁLISE2[[#This Row],[% EM RELAÇÃO AOS DEMAIS]],\"#.###.###,##%\")&\" da média dos demais preços.\",\n\nAND(ANÁLISE2[[#This Row],[AVALIAÇÃO 3 - Parte 3]]=\"INEXEQUÍVEL\",ANÁLISE2[[#This Row],[Há EXC. ELEVADO?]]=0,ANÁLISE2[[#This Row],[% EM RELAÇÃO AOS DEMAIS]]=\"\"),\"O valor é \"&TEXT(ANÁLISE1[[#This Row],[% EM RELAÇÃO AOS DEMAIS]],\"#.###.###,##%\")&\"  da média dos demais preços.\",\n\nAND(ANÁLISE2[[#This Row],[AVALIAÇÃO 3 - Parte 3]]=\"INEXEQUÍVEL\",ANÁLISE2[[#This Row],[Há EXC. ELEVADO?]]=0),\"O valor é \"&TEXT(ANÁLISE2[[#This Row],[% EM RELAÇÃO AOS DEMAIS]],\"#.###.###,##%\")&\" da média dos demais preços.\",\n\nANÁLISE2[[#This Row],[AVALIAÇÃO 3 - Parte 3]]=\"EXCESSIVAMENTE ELEVADO\",\"O valor é \"&TEXT(ANÁLISE1[[#This Row],[% EM RELAÇÃO AOS DEMAIS]]-1,\"#.###.###,##%\")&\" superior à média dos demais preços.\",\n\nAND(ANÁLISE2[[#This Row],[Há EXC. ELEVADO?]]>0,ANÁLISE2[[#This Row],[AVALIAÇÃO 3 - Parte 3]]=\"VÁLIDO - PREÇO PÚBLICO\"),\"Retirando preço(s) excessivamente elevado(s), o valor é inexequível (\"&TEXT(ANÁLISE2[[#This Row],[% EM RELAÇÃO AOS DEMAIS]],\"#.###.###,##%\")&\" da média dos demais preços). Todavia é considerado válido por ser um preço praticado pela Administração Pública.\",\nAND(ANÁLISE2[[#This Row],[Há EXC. ELEVADO?]]=0,ANÁLISE2[[#This Row],[AVALIAÇÃO 3 - Parte 3]]=\"VÁLIDO - PREÇO PÚBLICO\",ANÁLISE2[[#This Row],[% EM RELAÇÃO AOS DEMAIS]]=\"\"),\"O valor é inexequível (\"&TEXT(ANÁLISE1[[#This Row],[% EM RELAÇÃO AOS DEMAIS]],\"#.###.###,##%\")&\" da média dos demais preços). Todavia é considerado válido por ser um preço praticado pela Administração Pública.\",\nAND(ANÁLISE2[[#This Row],[Há EXC. ELEVADO?]]=0,ANÁLISE2[[#This Row],[AVALIAÇÃO 3 - Parte 3]]=\"VÁLIDO - PREÇO PÚBLICO\",ANÁLISE2[[#This Row],[% EM RELAÇÃO AOS DEMAIS]]<>\"\"),\"O valor é inexequível (\"&TEXT(ANÁLISE2[[#This Row],[% EM RELAÇÃO AOS DEMAIS]],\"#.###.###,##%\")&\" da média dos demais preços). Todavia é considerado válido por ser um preço praticado pela Administração Pública.\",\n\nAND(ANÁLISE2[[#This Row],[Há EXC. ELEVADO?]]>0,ANÁLISE2[[#This Row],[AVALIAÇÃO 3 - Parte 3]]=\"VÁLIDO - IGUAL A PREÇO PÚBLICO\"),\"Retirando preço(s) excessivamente elevado(s), o valor é inexequível (\"&TEXT(ANÁLISE2[[#This Row],[% EM RELAÇÃO AOS DEMAIS]],\"#.###.###,##%\")&\" da média dos demais preços). Porém, é considerado válido por ser igual a um preço praticado pela Administração Pública.\",\nAND(ANÁLISE2[[#This Row],[Há EXC. ELEVADO?]]=0,ANÁLISE2[[#This Row],[AVALIAÇÃO 3 - Parte 3]]=\"VÁLIDO - IGUAL A PREÇO PÚBLICO\",ANÁLISE2[[#This Row],[% EM RELAÇÃO AOS DEMAIS]]<>\"\"),\"O valor é inexequível (\"&TEXT(ANÁLISE2[[#This Row],[% EM RELAÇÃO AOS DEMAIS]],\"#.###.###,##%\")&\" da média dos demais preços). No entanto, é considerado válido por ser igual a um preço praticado pela Administração Pública.\",\n\n\nAND(ANÁLISE2[[#This Row],[Há EXC. ELEVADO?]]=0,ANÁLISE2[[#This Row],[AVALIAÇÃO 3 - Parte 3]]=\"VÁLIDO - MAIOR QUE PREÇO PÚBLICO\",ANÁLISE2[[#This Row],[% EM RELAÇÃO AOS DEMAIS]]<>\"\"),\"O valor é inexequível (\"&TEXT(ANÁLISE2[[#This Row],[% EM RELAÇÃO AOS DEMAIS]],\"#.###.###,##%\")&\" da média dos demais preços). No entanto, é considerado válido por ser maior do um preço praticado pela Administração Pública.\",\nAND(ANÁLISE2[[#This Row],[Há EXC. ELEVADO?]]>0,ANÁLISE2[[#This Row],[AVALIAÇÃO 3 - Parte 3]]=\"VÁLIDO - MAIOR QUE PREÇO PÚBLICO\"),\"Retirando preço(s) excessivamente elevado(s), o valor é inexequível (\"&TEXT(ANÁLISE2[[#This Row],[% EM RELAÇÃO AOS DEMAIS]],\"#.###.###,##%\")&\" da média dos demais preços). Porém, é considerado válido por ser maior do que um preço praticado pela Administração Pública.\",\n\nOR(ANÁLISE2[[#This Row],[AVALIAÇÃO 3 - Parte 3]]=\"VÁLIDO\",ANÁLISE2[[#This Row],[AVALIAÇÃO 3 - Parte 3]]=\"\"),\"\")","v":""},{"$f":"COUNTIF(ANÁLISE2[AVALIAÇÃO 2],\"EXCESSIVAMENTE ELEVADO\")","v":0},{"$f":"IF(ANÁLISE2[[#This Row],[AVALIAÇÃO 3 - Parte 1 ]]=1,ANÁLISE1[[#This Row],[PREÇO]],\"\")","v":""},"SIM",{"$f":"IF(OR(ANÁLISE1[[#This Row],[PREÇO]]=\"\",EXORB.!B11=LISTAS!$A$1,EXORB.!B11=LISTAS!$A$2,EXORB.!B11=LISTAS!$A$3),\"\",IFERROR(VLOOKUP(ANÁLISE1[[#This Row],[PREÇO]],ANÁLISE2[[PREÇOS PÚBLICOS]:[RESP. VERIFICAÇÃO]],2,FALSE),\"\"))","v":""},{"$f":"IF(MIN(ANÁLISE2[PREÇOS PÚBLICOS])=0,\"\",MIN(ANÁLISE2[PREÇOS PÚBLICOS]))","v":""},{"$f":"IF(AND(ANÁLISE2[[#This Row],[AVALIAÇÃO 2]]=\"INEXEQUÍVEL\",ANÁLISE2[[#This Row],[PREÇOS PÚBLICOS REPETIDOS?]]<>\"SIM\",ANÁLISE1[[#This Row],[PREÇO]]>ANÁLISE2[[#This Row],[MENOR PREÇO PÚBLICO VÁLIDO]]),\"VÁLIDO - MAIOR QUE PREÇO PÚBLICO\",\"\")","v":""}]
[{"$f":"IF(RELATÓRIO!B42=\"\",\"\",RELATÓRIO!B42)","v":""},{"$f":"IF(RELATÓRIO!C42=\"\",\"\",RELATÓRIO!C42)","v":""},{"$f":"ANÁLISE1[[#This Row],[PREÇOS VÁLIDOS APÓS AV. 1]]","v":""},{"$f":"IFERROR((SUM(ANÁLISE2[PREÇO])-ANÁLISE2[[#This Row],[PREÇO]])/(COUNT(ANÁLISE2[PREÇO])-1),\"\")","v":""},{"$f":"IFERROR(ANÁLISE2[[#This Row],[PREÇO]]/ANÁLISE2[[#This Row],[MÉDIA DOS DEMAIS PREÇOS]],\"\")","v":""},{"$f":"IF(ANÁLISE2[[#This Row],[% EM RELAÇÃO AOS DEMAIS]]<RELATÓRIO!$E$20,\"INEXEQUÍVEL\",ANÁLISE1[[#This Row],[AVALIAÇÃO 1]])","v":""},{"$f":"IF(ANÁLISE2[[#This Row],[AVALIAÇÃO 2]]=\"VÁLIDO\",ANÁLISE1[[#This Row],[PREÇO]],\"\")","v":""},{"$f":"IF(ANÁLISE1[[#This Row],[Verificação 1.2]]=\"OK\",IF(OR(ANÁLISE2[[#This Row],[TIPO DE FONTE]]=LISTAS!$A$1,ANÁLISE2[[#This Row],[TIPO DE FONTE]]=LISTAS!$A$2,ANÁLISE2[[#This Row],[TIPO DE FONTE]]=LISTAS!$A$3),1,2),\"\")","v":""},{"$f":"_xlfn.IFS(AND(ANÁLISE2[[#This Row],[AVALIAÇÃO 2]]=\"INEXEQUÍVEL\",ANÁLISE2[[#This Row],[AVALIAÇÃO 3 - Parte 1 ]]=1),\"VÁLIDO - PREÇO PÚBLICO\",AND(ANÁLISE2[[#This Row],[AVALIAÇÃO 2]]=\"INEXEQUÍVEL\",ANÁLISE2[[#This Row],[PREÇOS PÚBLICOS REPETIDOS?]]=\"SIM\"),\"VÁLIDO - IGUAL A PREÇO PÚBLICO\",ANÁLISE2[[#This Row],[AVALIAÇÃO 2]]<>\"\",ANÁLISE2[[#This Row],[AVALIAÇÃO 2]],ANÁLISE2[[#This Row],[AVALIAÇÃO 2]]=\"\",\"\")","v":""},{"$f":"_xlfn.IFS(ANÁLISE2[[#This Row],[AVALIAÇÃO 3 - Parte 2]]=\"VÁLIDO - PREÇO PÚBLICO\",ANÁLISE2[[#This Row],[AVALIAÇÃO 3 - Parte 2]],ANÁLISE2[[#This Row],[MENOR PREÇO PÚBLICO VÁLIDO2]]<>\"\",ANÁLISE2[[#This Row],[MENOR PREÇO PÚBLICO VÁLIDO2]],ANÁLISE2[[#This Row],[MENOR PREÇO PÚBLICO VÁLIDO2]]=\"\",ANÁLISE2[[#This Row],[AVALIAÇÃO 3 - Parte 2]])","v":""},{"$f":"IF(OR(ANÁLISE2[[#This Row],[AVALIAÇÃO 3 - Parte 2]]=\"EXCESSIVAMENTE ELEVADO\",ANÁLISE2[[#This Row],[AVALIAÇÃO 3 - Parte 2]]=\"INEXEQUÍVEL\"),\"\",ANÁLISE1[[#This Row],[PREÇO]])","v":""},{"$f":"IF(OR(ANÁLISE2[[#This Row],[AVALIAÇÃO 3 - Parte 3]]=\"EXCESSIVAMENTE ELEVADO\",ANÁLISE2[[#This Row],[AVALIAÇÃO 3 - Parte 3]]=\"INEXEQUÍVEL\"),\"\",ANÁLISE1[[#This Row],[PREÇO]])","v":""},{"$f":"_xlfn.IFS(\nAND(ANÁLISE2[[#This Row],[AVALIAÇÃO 3 - Parte 3]]=\"INEXEQUÍVEL\",ANÁLISE2[[#This Row],[Há EXC. ELEVADO?]]>0),\"Retirando preço(s) excessivamente elevado(s), o valor é \"&TEXT(ANÁLISE2[[#This Row],[% EM RELAÇÃO AOS DEMAIS]],\"#.###.###,##%\")&\" da média dos demais preços.\",\n\nAND(ANÁLISE2[[#This Row],[AVALIAÇÃO 3 - Parte 3]]=\"INEXEQUÍVEL\",ANÁLISE2[[#This Row],[Há EXC. ELEVADO?]]=0,ANÁLISE2[[#This Row],[% EM RELAÇÃO AOS DEMAIS]]=\"\"),\"O valor é \"&TEXT(ANÁLISE1[[#This Row],[% EM RELAÇÃO AOS DEMAIS]],\"#.###.###,##%\")&\"  da média dos demais preços.\",\n\nAND(ANÁLISE2[[#This Row],[AVALIAÇÃO 3 - Parte 3]]=\"INEXEQUÍVEL\",ANÁLISE2[[#This Row],[Há EXC. ELEVADO?]]=0),\"O valor é \"&TEXT(ANÁLISE2[[#This Row],[% EM RELAÇÃO AOS DEMAIS]],\"#.###.###,##%\")&\" da média dos demais preços.\",\n\nANÁLISE2[[#This Row],[AVALIAÇÃO 3 - Parte 3]]=\"EXCESSIVAMENTE ELEVADO\",\"O valor é \"&TEXT(ANÁLISE1[[#This Row],[% EM RELAÇÃO AOS DEMAIS]]-1,\"#.###.###,##%\")&\" superior à média dos demais preços.\",\n\nAND(ANÁLISE2[[#This Row],[Há EXC. ELEVADO?]]>0,ANÁLISE2[[#This Row],[AVALIAÇÃO 3 - Parte 3]]=\"VÁLIDO - PREÇO PÚBLICO\"),\"Retirando preço(s) excessivamente elevado(s), o valor é inexequível (\"&TEXT(ANÁLISE2[[#This Row],[% EM RELAÇÃO AOS DEMAIS]],\"#.###.###,##%\")&\" da média dos demais preços). Todavia é considerado válido por ser um preço praticado pela Administração Pública.\",\nAND(ANÁLISE2[[#This Row],[Há EXC. ELEVADO?]]=0,ANÁLISE2[[#This Row],[AVALIAÇÃO 3 - Parte 3]]=\"VÁLIDO - PREÇO PÚBLICO\",ANÁLISE2[[#This Row],[% EM RELAÇÃO AOS DEMAIS]]=\"\"),\"O valor é inexequível (\"&TEXT(ANÁLISE1[[#This Row],[% EM RELAÇÃO AOS DEMAIS]],\"#.###.###,##%\")&\" da média dos demais preços). Todavia é considerado válido por ser um preço praticado pela Administração Pública.\",\nAND(ANÁLISE2[[#This Row],[Há EXC. ELEVADO?]]=0,ANÁLISE2[[#This Row],[AVALIAÇÃO 3 - Parte 3]]=\"VÁLIDO - PREÇO PÚBLICO\",ANÁLISE2[[#This Row],[% EM RELAÇÃO AOS DEMAIS]]<>\"\"),\"O valor é inexequível (\"&TEXT(ANÁLISE2[[#This Row],[% EM RELAÇÃO AOS DEMAIS]],\"#.###.###,##%\")&\" da média dos demais preços). Todavia é considerado válido por ser um preço praticado pela Administração Pública.\",\n\nAND(ANÁLISE2[[#This Row],[Há EXC. ELEVADO?]]>0,ANÁLISE2[[#This Row],[AVALIAÇÃO 3 - Parte 3]]=\"VÁLIDO - IGUAL A PREÇO PÚBLICO\"),\"Retirando preço(s) excessivamente elevado(s), o valor é inexequível (\"&TEXT(ANÁLISE2[[#This Row],[% EM RELAÇÃO AOS DEMAIS]],\"#.###.###,##%\")&\" da média dos demais preços). Porém, é considerado válido por ser igual a um preço praticado pela Administração Pública.\",\nAND(ANÁLISE2[[#This Row],[Há EXC. ELEVADO?]]=0,ANÁLISE2[[#This Row],[AVALIAÇÃO 3 - Parte 3]]=\"VÁLIDO - IGUAL A PREÇO PÚBLICO\",ANÁLISE2[[#This Row],[% EM RELAÇÃO AOS DEMAIS]]<>\"\"),\"O valor é inexequível (\"&TEXT(ANÁLISE2[[#This Row],[% EM RELAÇÃO AOS DEMAIS]],\"#.###.###,##%\")&\" da média dos demais preços). No entanto, é considerado válido por ser igual a um preço praticado pela Administração Pública.\",\n\n\nAND(ANÁLISE2[[#This Row],[Há EXC. ELEVADO?]]=0,ANÁLISE2[[#This Row],[AVALIAÇÃO 3 - Parte 3]]=\"VÁLIDO - MAIOR QUE PREÇO PÚBLICO\",ANÁLISE2[[#This Row],[% EM RELAÇÃO AOS DEMAIS]]<>\"\"),\"O valor é inexequível (\"&TEXT(ANÁLISE2[[#This Row],[% EM RELAÇÃO AOS DEMAIS]],\"#.###.###,##%\")&\" da média dos demais preços). No entanto, é considerado válido por ser maior do um preço praticado pela Administração Pública.\",\nAND(ANÁLISE2[[#This Row],[Há EXC. ELEVADO?]]>0,ANÁLISE2[[#This Row],[AVALIAÇÃO 3 - Parte 3]]=\"VÁLIDO - MAIOR QUE PREÇO PÚBLICO\"),\"Retirando preço(s) excessivamente elevado(s), o valor é inexequível (\"&TEXT(ANÁLISE2[[#This Row],[% EM RELAÇÃO AOS DEMAIS]],\"#.###.###,##%\")&\" da média dos demais preços). Porém, é considerado válido por ser maior do que um preço praticado pela Administração Pública.\",\n\nOR(ANÁLISE2[[#This Row],[AVALIAÇÃO 3 - Parte 3]]=\"VÁLIDO\",ANÁLISE2[[#This Row],[AVALIAÇÃO 3 - Parte 3]]=\"\"),\"\")","v":""},{"$f":"COUNTIF(ANÁLISE2[AVALIAÇÃO 2],\"EXCESSIVAMENTE ELEVADO\")","v":0},{"$f":"IF(ANÁLISE2[[#This Row],[AVALIAÇÃO 3 - Parte 1 ]]=1,ANÁLISE1[[#This Row],[PREÇO]],\"\")","v":""},"SIM",{"$f":"IF(OR(ANÁLISE1[[#This Row],[PREÇO]]=\"\",EXORB.!B12=LISTAS!$A$1,EXORB.!B12=LISTAS!$A$2,EXORB.!B12=LISTAS!$A$3),\"\",IFERROR(VLOOKUP(ANÁLISE1[[#This Row],[PREÇO]],ANÁLISE2[[PREÇOS PÚBLICOS]:[RESP. VERIFICAÇÃO]],2,FALSE),\"\"))","v":""},{"$f":"IF(MIN(ANÁLISE2[PREÇOS PÚBLICOS])=0,\"\",MIN(ANÁLISE2[PREÇOS PÚBLICOS]))","v":""},{"$f":"IF(AND(ANÁLISE2[[#This Row],[AVALIAÇÃO 2]]=\"INEXEQUÍVEL\",ANÁLISE2[[#This Row],[PREÇOS PÚBLICOS REPETIDOS?]]<>\"SIM\",ANÁLISE1[[#This Row],[PREÇO]]>ANÁLISE2[[#This Row],[MENOR PREÇO PÚBLICO VÁLIDO]]),\"VÁLIDO - MAIOR QUE PREÇO PÚBLICO\",\"\")","v":""}]
[{"$f":"IF(RELATÓRIO!B43=\"\",\"\",RELATÓRIO!B43)","v":""},{"$f":"IF(RELATÓRIO!C43=\"\",\"\",RELATÓRIO!C43)","v":""},{"$f":"ANÁLISE1[[#This Row],[PREÇOS VÁLIDOS APÓS AV. 1]]","v":""},{"$f":"IFERROR((SUM(ANÁLISE2[PREÇO])-ANÁLISE2[[#This Row],[PREÇO]])/(COUNT(ANÁLISE2[PREÇO])-1),\"\")","v":""},{"$f":"IFERROR(ANÁLISE2[[#This Row],[PREÇO]]/ANÁLISE2[[#This Row],[MÉDIA DOS DEMAIS PREÇOS]],\"\")","v":""},{"$f":"IF(ANÁLISE2[[#This Row],[% EM RELAÇÃO AOS DEMAIS]]<RELATÓRIO!$E$20,\"INEXEQUÍVEL\",ANÁLISE1[[#This Row],[AVALIAÇÃO 1]])","v":""},{"$f":"IF(ANÁLISE2[[#This Row],[AVALIAÇÃO 2]]=\"VÁLIDO\",ANÁLISE1[[#This Row],[PREÇO]],\"\")","v":""},{"$f":"IF(ANÁLISE1[[#This Row],[Verificação 1.2]]=\"OK\",IF(OR(ANÁLISE2[[#This Row],[TIPO DE FONTE]]=LISTAS!$A$1,ANÁLISE2[[#This Row],[TIPO DE FONTE]]=LISTAS!$A$2,ANÁLISE2[[#This Row],[TIPO DE FONTE]]=LISTAS!$A$3),1,2),\"\")","v":""},{"$f":"_xlfn.IFS(AND(ANÁLISE2[[#This Row],[AVALIAÇÃO 2]]=\"INEXEQUÍVEL\",ANÁLISE2[[#This Row],[AVALIAÇÃO 3 - Parte 1 ]]=1),\"VÁLIDO - PREÇO PÚBLICO\",AND(ANÁLISE2[[#This Row],[AVALIAÇÃO 2]]=\"INEXEQUÍVEL\",ANÁLISE2[[#This Row],[PREÇOS PÚBLICOS REPETIDOS?]]=\"SIM\"),\"VÁLIDO - IGUAL A PREÇO PÚBLICO\",ANÁLISE2[[#This Row],[AVALIAÇÃO 2]]<>\"\",ANÁLISE2[[#This Row],[AVALIAÇÃO 2]],ANÁLISE2[[#This Row],[AVALIAÇÃO 2]]=\"\",\"\")","v":""},{"$f":"_xlfn.IFS(ANÁLISE2[[#This Row],[AVALIAÇÃO 3 - Parte 2]]=\"VÁLIDO - PREÇO PÚBLICO\",ANÁLISE2[[#This Row],[AVALIAÇÃO 3 - Parte 2]],ANÁLISE2[[#This Row],[MENOR PREÇO PÚBLICO VÁLIDO2]]<>\"\",ANÁLISE2[[#This Row],[MENOR PREÇO PÚBLICO VÁLIDO2]],ANÁLISE2[[#This Row],[MENOR PREÇO PÚBLICO VÁLIDO2]]=\"\",ANÁLISE2[[#This Row],[AVALIAÇÃO 3 - Parte 2]])","v":""},{"$f":"IF(OR(ANÁLISE2[[#This Row],[AVALIAÇÃO 3 - Parte 2]]=\"EXCESSIVAMENTE ELEVADO\",ANÁLISE2[[#This Row],[AVALIAÇÃO 3 - Parte 2]]=\"INEXEQUÍVEL\"),\"\",ANÁLISE1[[#This Row],[PREÇO]])","v":""},{"$f":"IF(OR(ANÁLISE2[[#This Row],[AVALIAÇÃO 3 - Parte 3]]=\"EXCESSIVAMENTE ELEVADO\",ANÁLISE2[[#This Row],[AVALIAÇÃO 3 - Parte 3]]=\"INEXEQUÍVEL\"),\"\",ANÁLISE1[[#This Row],[PREÇO]])","v":""},{"$f":"_xlfn.IFS(\nAND(ANÁLISE2[[#This Row],[AVALIAÇÃO 3 - Parte 3]]=\"INEXEQUÍVEL\",ANÁLISE2[[#This Row],[Há EXC. ELEVADO?]]>0),\"Retirando preço(s) excessivamente elevado(s), o valor é \"&TEXT(ANÁLISE2[[#This Row],[% EM RELAÇÃO AOS DEMAIS]],\"#.###.###,##%\")&\" da média dos demais preços.\",\n\nAND(ANÁLISE2[[#This Row],[AVALIAÇÃO 3 - Parte 3]]=\"INEXEQUÍVEL\",ANÁLISE2[[#This Row],[Há EXC. ELEVADO?]]=0,ANÁLISE2[[#This Row],[% EM RELAÇÃO AOS DEMAIS]]=\"\"),\"O valor é \"&TEXT(ANÁLISE1[[#This Row],[% EM RELAÇÃO AOS DEMAIS]],\"#.###.###,##%\")&\"  da média dos demais preços.\",\n\nAND(ANÁLISE2[[#This Row],[AVALIAÇÃO 3 - Parte 3]]=\"INEXEQUÍVEL\",ANÁLISE2[[#This Row],[Há EXC. ELEVADO?]]=0),\"O valor é \"&TEXT(ANÁLISE2[[#This Row],[% EM RELAÇÃO AOS DEMAIS]],\"#.###.###,##%\")&\" da média dos demais preços.\",\n\nANÁLISE2[[#This Row],[AVALIAÇÃO 3 - Parte 3]]=\"EXCESSIVAMENTE ELEVADO\",\"O valor é \"&TEXT(ANÁLISE1[[#This Row],[% EM RELAÇÃO AOS DEMAIS]]-1,\"#.###.###,##%\")&\" superior à média dos demais preços.\",\n\nAND(ANÁLISE2[[#This Row],[Há EXC. ELEVADO?]]>0,ANÁLISE2[[#This Row],[AVALIAÇÃO 3 - Parte 3]]=\"VÁLIDO - PREÇO PÚBLICO\"),\"Retirando preço(s) excessivamente elevado(s), o valor é inexequível (\"&TEXT(ANÁLISE2[[#This Row],[% EM RELAÇÃO AOS DEMAIS]],\"#.###.###,##%\")&\" da média dos demais preços). Todavia é considerado válido por ser um preço praticado pela Administração Pública.\",\nAND(ANÁLISE2[[#This Row],[Há EXC. ELEVADO?]]=0,ANÁLISE2[[#This Row],[AVALIAÇÃO 3 - Parte 3]]=\"VÁLIDO - PREÇO PÚBLICO\",ANÁLISE2[[#This Row],[% EM RELAÇÃO AOS DEMAIS]]=\"\"),\"O valor é inexequível (\"&TEXT(ANÁLISE1[[#This Row],[% EM RELAÇÃO AOS DEMAIS]],\"#.###.###,##%\")&\" da média dos demais preços). Todavia é considerado válido por ser um preço praticado pela Administração Pública.\",\nAND(ANÁLISE2[[#This Row],[Há EXC. ELEVADO?]]=0,ANÁLISE2[[#This Row],[AVALIAÇÃO 3 - Parte 3]]=\"VÁLIDO - PREÇO PÚBLICO\",ANÁLISE2[[#This Row],[% EM RELAÇÃO AOS DEMAIS]]<>\"\"),\"O valor é inexequível (\"&TEXT(ANÁLISE2[[#This Row],[% EM RELAÇÃO AOS DEMAIS]],\"#.###.###,##%\")&\" da média dos demais preços). Todavia é considerado válido por ser um preço praticado pela Administração Pública.\",\n\nAND(ANÁLISE2[[#This Row],[Há EXC. ELEVADO?]]>0,ANÁLISE2[[#This Row],[AVALIAÇÃO 3 - Parte 3]]=\"VÁLIDO - IGUAL A PREÇO PÚBLICO\"),\"Retirando preço(s) excessivamente elevado(s), o valor é inexequível (\"&TEXT(ANÁLISE2[[#This Row],[% EM RELAÇÃO AOS DEMAIS]],\"#.###.###,##%\")&\" da média dos demais preços). Porém, é considerado válido por ser igual a um preço praticado pela Administração Pública.\",\nAND(ANÁLISE2[[#This Row],[Há EXC. ELEVADO?]]=0,ANÁLISE2[[#This Row],[AVALIAÇÃO 3 - Parte 3]]=\"VÁLIDO - IGUAL A PREÇO PÚBLICO\",ANÁLISE2[[#This Row],[% EM RELAÇÃO AOS DEMAIS]]<>\"\"),\"O valor é inexequível (\"&TEXT(ANÁLISE2[[#This Row],[% EM RELAÇÃO AOS DEMAIS]],\"#.###.###,##%\")&\" da média dos demais preços). No entanto, é considerado válido por ser igual a um preço praticado pela Administração Pública.\",\n\n\nAND(ANÁLISE2[[#This Row],[Há EXC. ELEVADO?]]=0,ANÁLISE2[[#This Row],[AVALIAÇÃO 3 - Parte 3]]=\"VÁLIDO - MAIOR QUE PREÇO PÚBLICO\",ANÁLISE2[[#This Row],[% EM RELAÇÃO AOS DEMAIS]]<>\"\"),\"O valor é inexequível (\"&TEXT(ANÁLISE2[[#This Row],[% EM RELAÇÃO AOS DEMAIS]],\"#.###.###,##%\")&\" da média dos demais preços). No entanto, é considerado válido por ser maior do um preço praticado pela Administração Pública.\",\nAND(ANÁLISE2[[#This Row],[Há EXC. ELEVADO?]]>0,ANÁLISE2[[#This Row],[AVALIAÇÃO 3 - Parte 3]]=\"VÁLIDO - MAIOR QUE PREÇO PÚBLICO\"),\"Retirando preço(s) excessivamente elevado(s), o valor é inexequível (\"&TEXT(ANÁLISE2[[#This Row],[% EM RELAÇÃO AOS DEMAIS]],\"#.###.###,##%\")&\" da média dos demais preços). Porém, é considerado válido por ser maior do que um preço praticado pela Administração Pública.\",\n\nOR(ANÁLISE2[[#This Row],[AVALIAÇÃO 3 - Parte 3]]=\"VÁLIDO\",ANÁLISE2[[#This Row],[AVALIAÇÃO 3 - Parte 3]]=\"\"),\"\")","v":""},{"$f":"COUNTIF(ANÁLISE2[AVALIAÇÃO 2],\"EXCESSIVAMENTE ELEVADO\")","v":0},{"$f":"IF(ANÁLISE2[[#This Row],[AVALIAÇÃO 3 - Parte 1 ]]=1,ANÁLISE1[[#This Row],[PREÇO]],\"\")","v":""},"SIM",{"$f":"IF(OR(ANÁLISE1[[#This Row],[PREÇO]]=\"\",EXORB.!B13=LISTAS!$A$1,EXORB.!B13=LISTAS!$A$2,EXORB.!B13=LISTAS!$A$3),\"\",IFERROR(VLOOKUP(ANÁLISE1[[#This Row],[PREÇO]],ANÁLISE2[[PREÇOS PÚBLICOS]:[RESP. VERIFICAÇÃO]],2,FALSE),\"\"))","v":""},{"$f":"IF(MIN(ANÁLISE2[PREÇOS PÚBLICOS])=0,\"\",MIN(ANÁLISE2[PREÇOS PÚBLICOS]))","v":""},{"$f":"IF(AND(ANÁLISE2[[#This Row],[AVALIAÇÃO 2]]=\"INEXEQUÍVEL\",ANÁLISE2[[#This Row],[PREÇOS PÚBLICOS REPETIDOS?]]<>\"SIM\",ANÁLISE1[[#This Row],[PREÇO]]>ANÁLISE2[[#This Row],[MENOR PREÇO PÚBLICO VÁLIDO]]),\"VÁLIDO - MAIOR QUE PREÇO PÚBLICO\",\"\")","v":""}]
[{"$f":"IF(RELATÓRIO!B44=\"\",\"\",RELATÓRIO!B44)","v":""},{"$f":"IF(RELATÓRIO!C44=\"\",\"\",RELATÓRIO!C44)","v":""},{"$f":"ANÁLISE1[[#This Row],[PREÇOS VÁLIDOS APÓS AV. 1]]","v":""},{"$f":"IFERROR((SUM(ANÁLISE2[PREÇO])-ANÁLISE2[[#This Row],[PREÇO]])/(COUNT(ANÁLISE2[PREÇO])-1),\"\")","v":""},{"$f":"IFERROR(ANÁLISE2[[#This Row],[PREÇO]]/ANÁLISE2[[#This Row],[MÉDIA DOS DEMAIS PREÇOS]],\"\")","v":""},{"$f":"IF(ANÁLISE2[[#This Row],[% EM RELAÇÃO AOS DEMAIS]]<RELATÓRIO!$E$20,\"INEXEQUÍVEL\",ANÁLISE1[[#This Row],[AVALIAÇÃO 1]])","v":""},{"$f":"IF(ANÁLISE2[[#This Row],[AVALIAÇÃO 2]]=\"VÁLIDO\",ANÁLISE1[[#This Row],[PREÇO]],\"\")","v":""},{"$f":"IF(ANÁLISE1[[#This Row],[Verificação 1.2]]=\"OK\",IF(OR(ANÁLISE2[[#This Row],[TIPO DE FONTE]]=LISTAS!$A$1,ANÁLISE2[[#This Row],[TIPO DE FONTE]]=LISTAS!$A$2,ANÁLISE2[[#This Row],[TIPO DE FONTE]]=LISTAS!$A$3),1,2),\"\")","v":""},{"$f":"_xlfn.IFS(AND(ANÁLISE2[[#This Row],[AVALIAÇÃO 2]]=\"INEXEQUÍVEL\",ANÁLISE2[[#This Row],[AVALIAÇÃO 3 - Parte 1 ]]=1),\"VÁLIDO - PREÇO PÚBLICO\",AND(ANÁLISE2[[#This Row],[AVALIAÇÃO 2]]=\"INEXEQUÍVEL\",ANÁLISE2[[#This Row],[PREÇOS PÚBLICOS REPETIDOS?]]=\"SIM\"),\"VÁLIDO - IGUAL A PREÇO PÚBLICO\",ANÁLISE2[[#This Row],[AVALIAÇÃO 2]]<>\"\",ANÁLISE2[[#This Row],[AVALIAÇÃO 2]],ANÁLISE2[[#This Row],[AVALIAÇÃO 2]]=\"\",\"\")","v":""},{"$f":"_xlfn.IFS(ANÁLISE2[[#This Row],[AVALIAÇÃO 3 - Parte 2]]=\"VÁLIDO - PREÇO PÚBLICO\",ANÁLISE2[[#This Row],[AVALIAÇÃO 3 - Parte 2]],ANÁLISE2[[#This Row],[MENOR PREÇO PÚBLICO VÁLIDO2]]<>\"\",ANÁLISE2[[#This Row],[MENOR PREÇO PÚBLICO VÁLIDO2]],ANÁLISE2[[#This Row],[MENOR PREÇO PÚBLICO VÁLIDO2]]=\"\",ANÁLISE2[[#This Row],[AVALIAÇÃO 3 - Parte 2]])","v":""},{"$f":"IF(OR(ANÁLISE2[[#This Row],[AVALIAÇÃO 3 - Parte 2]]=\"EXCESSIVAMENTE ELEVADO\",ANÁLISE2[[#This Row],[AVALIAÇÃO 3 - Parte 2]]=\"INEXEQUÍVEL\"),\"\",ANÁLISE1[[#This Row],[PREÇO]])","v":""},{"$f":"IF(OR(ANÁLISE2[[#This Row],[AVALIAÇÃO 3 - Parte 3]]=\"EXCESSIVAMENTE ELEVADO\",ANÁLISE2[[#This Row],[AVALIAÇÃO 3 - Parte 3]]=\"INEXEQUÍVEL\"),\"\",ANÁLISE1[[#This Row],[PREÇO]])","v":""},{"$f":"_xlfn.IFS(\nAND(ANÁLISE2[[#This Row],[AVALIAÇÃO 3 - Parte 3]]=\"INEXEQUÍVEL\",ANÁLISE2[[#This Row],[Há EXC. ELEVADO?]]>0),\"Retirando preço(s) excessivamente elevado(s), o valor é \"&TEXT(ANÁLISE2[[#This Row],[% EM RELAÇÃO AOS DEMAIS]],\"#.###.###,##%\")&\" da média dos demais preços.\",\n\nAND(ANÁLISE2[[#This Row],[AVALIAÇÃO 3 - Parte 3]]=\"INEXEQUÍVEL\",ANÁLISE2[[#This Row],[Há EXC. ELEVADO?]]=0,ANÁLISE2[[#This Row],[% EM RELAÇÃO AOS DEMAIS]]=\"\"),\"O valor é \"&TEXT(ANÁLISE1[[#This Row],[% EM RELAÇÃO AOS DEMAIS]],\"#.###.###,##%\")&\"  da média dos demais preços.\",\n\nAND(ANÁLISE2[[#This Row],[AVALIAÇÃO 3 - Parte 3]]=\"INEXEQUÍVEL\",ANÁLISE2[[#This Row],[Há EXC. ELEVADO?]]=0),\"O valor é \"&TEXT(ANÁLISE2[[#This Row],[% EM RELAÇÃO AOS DEMAIS]],\"#.###.###,##%\")&\" da média dos demais preços.\",\n\nANÁLISE2[[#This Row],[AVALIAÇÃO 3 - Parte 3]]=\"EXCESSIVAMENTE ELEVADO\",\"O valor é \"&TEXT(ANÁLISE1[[#This Row],[% EM RELAÇÃO AOS DEMAIS]]-1,\"#.###.###,##%\")&\" superior à média dos demais preços.\",\n\nAND(ANÁLISE2[[#This Row],[Há EXC. ELEVADO?]]>0,ANÁLISE2[[#This Row],[AVALIAÇÃO 3 - Parte 3]]=\"VÁLIDO - PREÇO PÚBLICO\"),\"Retirando preço(s) excessivamente elevado(s), o valor é inexequível (\"&TEXT(ANÁLISE2[[#This Row],[% EM RELAÇÃO AOS DEMAIS]],\"#.###.###,##%\")&\" da média dos demais preços). Todavia é considerado válido por ser um preço praticado pela Administração Pública.\",\nAND(ANÁLISE2[[#This Row],[Há EXC. ELEVADO?]]=0,ANÁLISE2[[#This Row],[AVALIAÇÃO 3 - Parte 3]]=\"VÁLIDO - PREÇO PÚBLICO\",ANÁLISE2[[#This Row],[% EM RELAÇÃO AOS DEMAIS]]=\"\"),\"O valor é inexequível (\"&TEXT(ANÁLISE1[[#This Row],[% EM RELAÇÃO AOS DEMAIS]],\"#.###.###,##%\")&\" da média dos demais preços). Todavia é considerado válido por ser um preço praticado pela Administração Pública.\",\nAND(ANÁLISE2[[#This Row],[Há EXC. ELEVADO?]]=0,ANÁLISE2[[#This Row],[AVALIAÇÃO 3 - Parte 3]]=\"VÁLIDO - PREÇO PÚBLICO\",ANÁLISE2[[#This Row],[% EM RELAÇÃO AOS DEMAIS]]<>\"\"),\"O valor é inexequível (\"&TEXT(ANÁLISE2[[#This Row],[% EM RELAÇÃO AOS DEMAIS]],\"#.###.###,##%\")&\" da média dos demais preços). Todavia é considerado válido por ser um preço praticado pela Administração Pública.\",\n\nAND(ANÁLISE2[[#This Row],[Há EXC. ELEVADO?]]>0,ANÁLISE2[[#This Row],[AVALIAÇÃO 3 - Parte 3]]=\"VÁLIDO - IGUAL A PREÇO PÚBLICO\"),\"Retirando preço(s) excessivamente elevado(s), o valor é inexequível (\"&TEXT(ANÁLISE2[[#This Row],[% EM RELAÇÃO AOS DEMAIS]],\"#.###.###,##%\")&\" da média dos demais preços). Porém, é considerado válido por ser igual a um preço praticado pela Administração Pública.\",\nAND(ANÁLISE2[[#This Row],[Há EXC. ELEVADO?]]=0,ANÁLISE2[[#This Row],[AVALIAÇÃO 3 - Parte 3]]=\"VÁLIDO - IGUAL A PREÇO PÚBLICO\",ANÁLISE2[[#This Row],[% EM RELAÇÃO AOS DEMAIS]]<>\"\"),\"O valor é inexequível (\"&TEXT(ANÁLISE2[[#This Row],[% EM RELAÇÃO AOS DEMAIS]],\"#.###.###,##%\")&\" da média dos demais preços). No entanto, é considerado válido por ser igual a um preço praticado pela Administração Pública.\",\n\n\nAND(ANÁLISE2[[#This Row],[Há EXC. ELEVADO?]]=0,ANÁLISE2[[#This Row],[AVALIAÇÃO 3 - Parte 3]]=\"VÁLIDO - MAIOR QUE PREÇO PÚBLICO\",ANÁLISE2[[#This Row],[% EM RELAÇÃO AOS DEMAIS]]<>\"\"),\"O valor é inexequível (\"&TEXT(ANÁLISE2[[#This Row],[% EM RELAÇÃO AOS DEMAIS]],\"#.###.###,##%\")&\" da média dos demais preços). No entanto, é considerado válido por ser maior do um preço praticado pela Administração Pública.\",\nAND(ANÁLISE2[[#This Row],[Há EXC. ELEVADO?]]>0,ANÁLISE2[[#This Row],[AVALIAÇÃO 3 - Parte 3]]=\"VÁLIDO - MAIOR QUE PREÇO PÚBLICO\"),\"Retirando preço(s) excessivamente elevado(s), o valor é inexequível (\"&TEXT(ANÁLISE2[[#This Row],[% EM RELAÇÃO AOS DEMAIS]],\"#.###.###,##%\")&\" da média dos demais preços). Porém, é considerado válido por ser maior do que um preço praticado pela Administração Pública.\",\n\nOR(ANÁLISE2[[#This Row],[AVALIAÇÃO 3 - Parte 3]]=\"VÁLIDO\",ANÁLISE2[[#This Row],[AVALIAÇÃO 3 - Parte 3]]=\"\"),\"\")","v":""},{"$f":"COUNTIF(ANÁLISE2[AVALIAÇÃO 2],\"EXCESSIVAMENTE ELEVADO\")","v":0},{"$f":"IF(ANÁLISE2[[#This Row],[AVALIAÇÃO 3 - Parte 1 ]]=1,ANÁLISE1[[#This Row],[PREÇO]],\"\")","v":""},"SIM",{"$f":"IF(OR(ANÁLISE1[[#This Row],[PREÇO]]=\"\",EXORB.!B14=LISTAS!$A$1,EXORB.!B14=LISTAS!$A$2,EXORB.!B14=LISTAS!$A$3),\"\",IFERROR(VLOOKUP(ANÁLISE1[[#This Row],[PREÇO]],ANÁLISE2[[PREÇOS PÚBLICOS]:[RESP. VERIFICAÇÃO]],2,FALSE),\"\"))","v":""},{"$f":"IF(MIN(ANÁLISE2[PREÇOS PÚBLICOS])=0,\"\",MIN(ANÁLISE2[PREÇOS PÚBLICOS]))","v":""},{"$f":"IF(AND(ANÁLISE2[[#This Row],[AVALIAÇÃO 2]]=\"INEXEQUÍVEL\",ANÁLISE2[[#This Row],[PREÇOS PÚBLICOS REPETIDOS?]]<>\"SIM\",ANÁLISE1[[#This Row],[PREÇO]]>ANÁLISE2[[#This Row],[MENOR PREÇO PÚBLICO VÁLIDO]]),\"VÁLIDO - MAIOR QUE PREÇO PÚBLICO\",\"\")","v":""}]
[{"$f":"IF(RELATÓRIO!B45=\"\",\"\",RELATÓRIO!B45)","v":""},{"$f":"IF(RELATÓRIO!C45=\"\",\"\",RELATÓRIO!C45)","v":""},{"$f":"ANÁLISE1[[#This Row],[PREÇOS VÁLIDOS APÓS AV. 1]]","v":""},{"$f":"IFERROR((SUM(ANÁLISE2[PREÇO])-ANÁLISE2[[#This Row],[PREÇO]])/(COUNT(ANÁLISE2[PREÇO])-1),\"\")","v":""},{"$f":"IFERROR(ANÁLISE2[[#This Row],[PREÇO]]/ANÁLISE2[[#This Row],[MÉDIA DOS DEMAIS PREÇOS]],\"\")","v":""},{"$f":"IF(ANÁLISE2[[#This Row],[% EM RELAÇÃO AOS DEMAIS]]<RELATÓRIO!$E$20,\"INEXEQUÍVEL\",ANÁLISE1[[#This Row],[AVALIAÇÃO 1]])","v":""},{"$f":"IF(ANÁLISE2[[#This Row],[AVALIAÇÃO 2]]=\"VÁLIDO\",ANÁLISE1[[#This Row],[PREÇO]],\"\")","v":""},{"$f":"IF(ANÁLISE1[[#This Row],[Verificação 1.2]]=\"OK\",IF(OR(ANÁLISE2[[#This Row],[TIPO DE FONTE]]=LISTAS!$A$1,ANÁLISE2[[#This Row],[TIPO DE FONTE]]=LISTAS!$A$2,ANÁLISE2[[#This Row],[TIPO DE FONTE]]=LISTAS!$A$3),1,2),\"\")","v":""},{"$f":"_xlfn.IFS(AND(ANÁLISE2[[#This Row],[AVALIAÇÃO 2]]=\"INEXEQUÍVEL\",ANÁLISE2[[#This Row],[AVALIAÇÃO 3 - Parte 1 ]]=1),\"VÁLIDO - PREÇO PÚBLICO\",AND(ANÁLISE2[[#This Row],[AVALIAÇÃO 2]]=\"INEXEQUÍVEL\",ANÁLISE2[[#This Row],[PREÇOS PÚBLICOS REPETIDOS?]]=\"SIM\"),\"VÁLIDO - IGUAL A PREÇO PÚBLICO\",ANÁLISE2[[#This Row],[AVALIAÇÃO 2]]<>\"\",ANÁLISE2[[#This Row],[AVALIAÇÃO 2]],ANÁLISE2[[#This Row],[AVALIAÇÃO 2]]=\"\",\"\")","v":""},{"$f":"_xlfn.IFS(ANÁLISE2[[#This Row],[AVALIAÇÃO 3 - Parte 2]]=\"VÁLIDO - PREÇO PÚBLICO\",ANÁLISE2[[#This Row],[AVALIAÇÃO 3 - Parte 2]],ANÁLISE2[[#This Row],[MENOR PREÇO PÚBLICO VÁLIDO2]]<>\"\",ANÁLISE2[[#This Row],[MENOR PREÇO PÚBLICO VÁLIDO2]],ANÁLISE2[[#This Row],[MENOR PREÇO PÚBLICO VÁLIDO2]]=\"\",ANÁLISE2[[#This Row],[AVALIAÇÃO 3 - Parte 2]])","v":""},{"$f":"IF(OR(ANÁLISE2[[#This Row],[AVALIAÇÃO 3 - Parte 2]]=\"EXCESSIVAMENTE ELEVADO\",ANÁLISE2[[#This Row],[AVALIAÇÃO 3 - Parte 2]]=\"INEXEQUÍVEL\"),\"\",ANÁLISE1[[#This Row],[PREÇO]])","v":""},{"$f":"IF(OR(ANÁLISE2[[#This Row],[AVALIAÇÃO 3 - Parte 3]]=\"EXCESSIVAMENTE ELEVADO\",ANÁLISE2[[#This Row],[AVALIAÇÃO 3 - Parte 3]]=\"INEXEQUÍVEL\"),\"\",ANÁLISE1[[#This Row],[PREÇO]])","v":""},{"$f":"_xlfn.IFS(\nAND(ANÁLISE2[[#This Row],[AVALIAÇÃO 3 - Parte 3]]=\"INEXEQUÍVEL\",ANÁLISE2[[#This Row],[Há EXC. ELEVADO?]]>0),\"Retirando preço(s) excessivamente elevado(s), o valor é \"&TEXT(ANÁLISE2[[#This Row],[% EM RELAÇÃO AOS DEMAIS]],\"#.###.###,##%\")&\" da média dos demais preços.\",\n\nAND(ANÁLISE2[[#This Row],[AVALIAÇÃO 3 - Parte 3]]=\"INEXEQUÍVEL\",ANÁLISE2[[#This Row],[Há EXC. ELEVADO?]]=0,ANÁLISE2[[#This Row],[% EM RELAÇÃO AOS DEMAIS]]=\"\"),\"O valor é \"&TEXT(ANÁLISE1[[#This Row],[% EM RELAÇÃO AOS DEMAIS]],\"#.###.###,##%\")&\"  da média dos demais preços.\",\n\nAND(ANÁLISE2[[#This Row],[AVALIAÇÃO 3 - Parte 3]]=\"INEXEQUÍVEL\",ANÁLISE2[[#This Row],[Há EXC. ELEVADO?]]=0),\"O valor é \"&TEXT(ANÁLISE2[[#This Row],[% EM RELAÇÃO AOS DEMAIS]],\"#.###.###,##%\")&\" da média dos demais preços.\",\n\nANÁLISE2[[#This Row],[AVALIAÇÃO 3 - Parte 3]]=\"EXCESSIVAMENTE ELEVADO\",\"O valor é \"&TEXT(ANÁLISE1[[#This Row],[% EM RELAÇÃO AOS DEMAIS]]-1,\"#.###.###,##%\")&\" superior à média dos demais preços.\",\n\nAND(ANÁLISE2[[#This Row],[Há EXC. ELEVADO?]]>0,ANÁLISE2[[#This Row],[AVALIAÇÃO 3 - Parte 3]]=\"VÁLIDO - PREÇO PÚBLICO\"),\"Retirando preço(s) excessivamente elevado(s), o valor é inexequível (\"&TEXT(ANÁLISE2[[#This Row],[% EM RELAÇÃO AOS DEMAIS]],\"#.###.###,##%\")&\" da média dos demais preços). Todavia é considerado válido por ser um preço praticado pela Administração Pública.\",\nAND(ANÁLISE2[[#This Row],[Há EXC. ELEVADO?]]=0,ANÁLISE2[[#This Row],[AVALIAÇÃO 3 - Parte 3]]=\"VÁLIDO - PREÇO PÚBLICO\",ANÁLISE2[[#This Row],[% EM RELAÇÃO AOS DEMAIS]]=\"\"),\"O valor é inexequível (\"&TEXT(ANÁLISE1[[#This Row],[% EM RELAÇÃO AOS DEMAIS]],\"#.###.###,##%\")&\" da média dos demais preços). Todavia é considerado válido por ser um preço praticado pela Administração Pública.\",\nAND(ANÁLISE2[[#This Row],[Há EXC. ELEVADO?]]=0,ANÁLISE2[[#This Row],[AVALIAÇÃO 3 - Parte 3]]=\"VÁLIDO - PREÇO PÚBLICO\",ANÁLISE2[[#This Row],[% EM RELAÇÃO AOS DEMAIS]]<>\"\"),\"O valor é inexequível (\"&TEXT(ANÁLISE2[[#This Row],[% EM RELAÇÃO AOS DEMAIS]],\"#.###.###,##%\")&\" da média dos demais preços). Todavia é considerado válido por ser um preço praticado pela Administração Pública.\",\n\nAND(ANÁLISE2[[#This Row],[Há EXC. ELEVADO?]]>0,ANÁLISE2[[#This Row],[AVALIAÇÃO 3 - Parte 3]]=\"VÁLIDO - IGUAL A PREÇO PÚBLICO\"),\"Retirando preço(s) excessivamente elevado(s), o valor é inexequível (\"&TEXT(ANÁLISE2[[#This Row],[% EM RELAÇÃO AOS DEMAIS]],\"#.###.###,##%\")&\" da média dos demais preços). Porém, é considerado válido por ser igual a um preço praticado pela Administração Pública.\",\nAND(ANÁLISE2[[#This Row],[Há EXC. ELEVADO?]]=0,ANÁLISE2[[#This Row],[AVALIAÇÃO 3 - Parte 3]]=\"VÁLIDO - IGUAL A PREÇO PÚBLICO\",ANÁLISE2[[#This Row],[% EM RELAÇÃO AOS DEMAIS]]<>\"\"),\"O valor é inexequível (\"&TEXT(ANÁLISE2[[#This Row],[% EM RELAÇÃO AOS DEMAIS]],\"#.###.###,##%\")&\" da média dos demais preços). No entanto, é considerado válido por ser igual a um preço praticado pela Administração Pública.\",\n\n\nAND(ANÁLISE2[[#This Row],[Há EXC. ELEVADO?]]=0,ANÁLISE2[[#This Row],[AVALIAÇÃO 3 - Parte 3]]=\"VÁLIDO - MAIOR QUE PREÇO PÚBLICO\",ANÁLISE2[[#This Row],[% EM RELAÇÃO AOS DEMAIS]]<>\"\"),\"O valor é inexequível (\"&TEXT(ANÁLISE2[[#This Row],[% EM RELAÇÃO AOS DEMAIS]],\"#.###.###,##%\")&\" da média dos demais preços). No entanto, é considerado válido por ser maior do um preço praticado pela Administração Pública.\",\nAND(ANÁLISE2[[#This Row],[Há EXC. ELEVADO?]]>0,ANÁLISE2[[#This Row],[AVALIAÇÃO 3 - Parte 3]]=\"VÁLIDO - MAIOR QUE PREÇO PÚBLICO\"),\"Retirando preço(s) excessivamente elevado(s), o valor é inexequível (\"&TEXT(ANÁLISE2[[#This Row],[% EM RELAÇÃO AOS DEMAIS]],\"#.###.###,##%\")&\" da média dos demais preços). Porém, é considerado válido por ser maior do que um preço praticado pela Administração Pública.\",\n\nOR(ANÁLISE2[[#This Row],[AVALIAÇÃO 3 - Parte 3]]=\"VÁLIDO\",ANÁLISE2[[#This Row],[AVALIAÇÃO 3 - Parte 3]]=\"\"),\"\")","v":""},{"$f":"COUNTIF(ANÁLISE2[AVALIAÇÃO 2],\"EXCESSIVAMENTE ELEVADO\")","v":0},{"$f":"IF(ANÁLISE2[[#This Row],[AVALIAÇÃO 3 - Parte 1 ]]=1,ANÁLISE1[[#This Row],[PREÇO]],\"\")","v":""},"SIM",{"$f":"IF(OR(ANÁLISE1[[#This Row],[PREÇO]]=\"\",EXORB.!B15=LISTAS!$A$1,EXORB.!B15=LISTAS!$A$2,EXORB.!B15=LISTAS!$A$3),\"\",IFERROR(VLOOKUP(ANÁLISE1[[#This Row],[PREÇO]],ANÁLISE2[[PREÇOS PÚBLICOS]:[RESP. VERIFICAÇÃO]],2,FALSE),\"\"))","v":""},{"$f":"IF(MIN(ANÁLISE2[PREÇOS PÚBLICOS])=0,\"\",MIN(ANÁLISE2[PREÇOS PÚBLICOS]))","v":""},{"$f":"IF(AND(ANÁLISE2[[#This Row],[AVALIAÇÃO 2]]=\"INEXEQUÍVEL\",ANÁLISE2[[#This Row],[PREÇOS PÚBLICOS REPETIDOS?]]<>\"SIM\",ANÁLISE1[[#This Row],[PREÇO]]>ANÁLISE2[[#This Row],[MENOR PREÇO PÚBLICO VÁLIDO]]),\"VÁLIDO - MAIOR QUE PREÇO PÚBLICO\",\"\")","v":""}]
[{"$f":"IF(RELATÓRIO!B46=\"\",\"\",RELATÓRIO!B46)","v":""},{"$f":"IF(RELATÓRIO!C46=\"\",\"\",RELATÓRIO!C46)","v":""},{"$f":"ANÁLISE1[[#This Row],[PREÇOS VÁLIDOS APÓS AV. 1]]","v":""},{"$f":"IFERROR((SUM(ANÁLISE2[PREÇO])-ANÁLISE2[[#This Row],[PREÇO]])/(COUNT(ANÁLISE2[PREÇO])-1),\"\")","v":""},{"$f":"IFERROR(ANÁLISE2[[#This Row],[PREÇO]]/ANÁLISE2[[#This Row],[MÉDIA DOS DEMAIS PREÇOS]],\"\")","v":""},{"$f":"IF(ANÁLISE2[[#This Row],[% EM RELAÇÃO AOS DEMAIS]]<RELATÓRIO!$E$20,\"INEXEQUÍVEL\",ANÁLISE1[[#This Row],[AVALIAÇÃO 1]])","v":""},{"$f":"IF(ANÁLISE2[[#This Row],[AVALIAÇÃO 2]]=\"VÁLIDO\",ANÁLISE1[[#This Row],[PREÇO]],\"\")","v":""},{"$f":"IF(ANÁLISE1[[#This Row],[Verificação 1.2]]=\"OK\",IF(OR(ANÁLISE2[[#This Row],[TIPO DE FONTE]]=LISTAS!$A$1,ANÁLISE2[[#This Row],[TIPO DE FONTE]]=LISTAS!$A$2,ANÁLISE2[[#This Row],[TIPO DE FONTE]]=LISTAS!$A$3),1,2),\"\")","v":""},{"$f":"_xlfn.IFS(AND(ANÁLISE2[[#This Row],[AVALIAÇÃO 2]]=\"INEXEQUÍVEL\",ANÁLISE2[[#This Row],[AVALIAÇÃO 3 - Parte 1 ]]=1),\"VÁLIDO - PREÇO PÚBLICO\",AND(ANÁLISE2[[#This Row],[AVALIAÇÃO 2]]=\"INEXEQUÍVEL\",ANÁLISE2[[#This Row],[PREÇOS PÚBLICOS REPETIDOS?]]=\"SIM\"),\"VÁLIDO - IGUAL A PREÇO PÚBLICO\",ANÁLISE2[[#This Row],[AVALIAÇÃO 2]]<>\"\",ANÁLISE2[[#This Row],[AVALIAÇÃO 2]],ANÁLISE2[[#This Row],[AVALIAÇÃO 2]]=\"\",\"\")","v":""},{"$f":"_xlfn.IFS(ANÁLISE2[[#This Row],[AVALIAÇÃO 3 - Parte 2]]=\"VÁLIDO - PREÇO PÚBLICO\",ANÁLISE2[[#This Row],[AVALIAÇÃO 3 - Parte 2]],ANÁLISE2[[#This Row],[MENOR PREÇO PÚBLICO VÁLIDO2]]<>\"\",ANÁLISE2[[#This Row],[MENOR PREÇO PÚBLICO VÁLIDO2]],ANÁLISE2[[#This Row],[MENOR PREÇO PÚBLICO VÁLIDO2]]=\"\",ANÁLISE2[[#This Row],[AVALIAÇÃO 3 - Parte 2]])","v":""},{"$f":"IF(OR(ANÁLISE2[[#This Row],[AVALIAÇÃO 3 - Parte 2]]=\"EXCESSIVAMENTE ELEVADO\",ANÁLISE2[[#This Row],[AVALIAÇÃO 3 - Parte 2]]=\"INEXEQUÍVEL\"),\"\",ANÁLISE1[[#This Row],[PREÇO]])","v":""},{"$f":"IF(OR(ANÁLISE2[[#This Row],[AVALIAÇÃO 3 - Parte 3]]=\"EXCESSIVAMENTE ELEVADO\",ANÁLISE2[[#This Row],[AVALIAÇÃO 3 - Parte 3]]=\"INEXEQUÍVEL\"),\"\",ANÁLISE1[[#This Row],[PREÇO]])","v":""},{"$f":"_xlfn.IFS(\nAND(ANÁLISE2[[#This Row],[AVALIAÇÃO 3 - Parte 3]]=\"INEXEQUÍVEL\",ANÁLISE2[[#This Row],[Há EXC. ELEVADO?]]>0),\"Retirando preço(s) excessivamente elevado(s), o valor é \"&TEXT(ANÁLISE2[[#This Row],[% EM RELAÇÃO AOS DEMAIS]],\"#.###.###,##%\")&\" da média dos demais preços.\",\n\nAND(ANÁLISE2[[#This Row],[AVALIAÇÃO 3 - Parte 3]]=\"INEXEQUÍVEL\",ANÁLISE2[[#This Row],[Há EXC. ELEVADO?]]=0,ANÁLISE2[[#This Row],[% EM RELAÇÃO AOS DEMAIS]]=\"\"),\"O valor é \"&TEXT(ANÁLISE1[[#This Row],[% EM RELAÇÃO AOS DEMAIS]],\"#.###.###,##%\")&\"  da média dos demais preços.\",\n\nAND(ANÁLISE2[[#This Row],[AVALIAÇÃO 3 - Parte 3]]=\"INEXEQUÍVEL\",ANÁLISE2[[#This Row],[Há EXC. ELEVADO?]]=0),\"O valor é \"&TEXT(ANÁLISE2[[#This Row],[% EM RELAÇÃO AOS DEMAIS]],\"#.###.###,##%\")&\" da média dos demais preços.\",\n\nANÁLISE2[[#This Row],[AVALIAÇÃO 3 - Parte 3]]=\"EXCESSIVAMENTE ELEVADO\",\"O valor é \"&TEXT(ANÁLISE1[[#This Row],[% EM RELAÇÃO AOS DEMAIS]]-1,\"#.###.###,##%\")&\" superior à média dos demais preços.\",\n\nAND(ANÁLISE2[[#This Row],[Há EXC. ELEVADO?]]>0,ANÁLISE2[[#This Row],[AVALIAÇÃO 3 - Parte 3]]=\"VÁLIDO - PREÇO PÚBLICO\"),\"Retirando preço(s) excessivamente elevado(s), o valor é inexequível (\"&TEXT(ANÁLISE2[[#This Row],[% EM RELAÇÃO AOS DEMAIS]],\"#.###.###,##%\")&\" da média dos demais preços). Todavia é considerado válido por ser um preço praticado pela Administração Pública.\",\nAND(ANÁLISE2[[#This Row],[Há EXC. ELEVADO?]]=0,ANÁLISE2[[#This Row],[AVALIAÇÃO 3 - Parte 3]]=\"VÁLIDO - PREÇO PÚBLICO\",ANÁLISE2[[#This Row],[% EM RELAÇÃO AOS DEMAIS]]=\"\"),\"O valor é inexequível (\"&TEXT(ANÁLISE1[[#This Row],[% EM RELAÇÃO AOS DEMAIS]],\"#.###.###,##%\")&\" da média dos demais preços). Todavia é considerado válido por ser um preço praticado pela Administração Pública.\",\nAND(ANÁLISE2[[#This Row],[Há EXC. ELEVADO?]]=0,ANÁLISE2[[#This Row],[AVALIAÇÃO 3 - Parte 3]]=\"VÁLIDO - PREÇO PÚBLICO\",ANÁLISE2[[#This Row],[% EM RELAÇÃO AOS DEMAIS]]<>\"\"),\"O valor é inexequível (\"&TEXT(ANÁLISE2[[#This Row],[% EM RELAÇÃO AOS DEMAIS]],\"#.###.###,##%\")&\" da média dos demais preços). Todavia é considerado válido por ser um preço praticado pela Administração Pública.\",\n\nAND(ANÁLISE2[[#This Row],[Há EXC. ELEVADO?]]>0,ANÁLISE2[[#This Row],[AVALIAÇÃO 3 - Parte 3]]=\"VÁLIDO - IGUAL A PREÇO PÚBLICO\"),\"Retirando preço(s) excessivamente elevado(s), o valor é inexequível (\"&TEXT(ANÁLISE2[[#This Row],[% EM RELAÇÃO AOS DEMAIS]],\"#.###.###,##%\")&\" da média dos demais preços). Porém, é considerado válido por ser igual a um preço praticado pela Administração Pública.\",\nAND(ANÁLISE2[[#This Row],[Há EXC. ELEVADO?]]=0,ANÁLISE2[[#This Row],[AVALIAÇÃO 3 - Parte 3]]=\"VÁLIDO - IGUAL A PREÇO PÚBLICO\",ANÁLISE2[[#This Row],[% EM RELAÇÃO AOS DEMAIS]]<>\"\"),\"O valor é inexequível (\"&TEXT(ANÁLISE2[[#This Row],[% EM RELAÇÃO AOS DEMAIS]],\"#.###.###,##%\")&\" da média dos demais preços). No entanto, é considerado válido por ser igual a um preço praticado pela Administração Pública.\",\n\n\nAND(ANÁLISE2[[#This Row],[Há EXC. ELEVADO?]]=0,ANÁLISE2[[#This Row],[AVALIAÇÃO 3 - Parte 3]]=\"VÁLIDO - MAIOR QUE PREÇO PÚBLICO\",ANÁLISE2[[#This Row],[% EM RELAÇÃO AOS DEMAIS]]<>\"\"),\"O valor é inexequível (\"&TEXT(ANÁLISE2[[#This Row],[% EM RELAÇÃO AOS DEMAIS]],\"#.###.###,##%\")&\" da média dos demais preços). No entanto, é considerado válido por ser maior do um preço praticado pela Administração Pública.\",\nAND(ANÁLISE2[[#This Row],[Há EXC. ELEVADO?]]>0,ANÁLISE2[[#This Row],[AVALIAÇÃO 3 - Parte 3]]=\"VÁLIDO - MAIOR QUE PREÇO PÚBLICO\"),\"Retirando preço(s) excessivamente elevado(s), o valor é inexequível (\"&TEXT(ANÁLISE2[[#This Row],[% EM RELAÇÃO AOS DEMAIS]],\"#.###.###,##%\")&\" da média dos demais preços). Porém, é considerado válido por ser maior do que um preço praticado pela Administração Pública.\",\n\nOR(ANÁLISE2[[#This Row],[AVALIAÇÃO 3 - Parte 3]]=\"VÁLIDO\",ANÁLISE2[[#This Row],[AVALIAÇÃO 3 - Parte 3]]=\"\"),\"\")","v":""},{"$f":"COUNTIF(ANÁLISE2[AVALIAÇÃO 2],\"EXCESSIVAMENTE ELEVADO\")","v":0},{"$f":"IF(ANÁLISE2[[#This Row],[AVALIAÇÃO 3 - Parte 1 ]]=1,ANÁLISE1[[#This Row],[PREÇO]],\"\")","v":""},"SIM",{"$f":"IF(OR(ANÁLISE1[[#This Row],[PREÇO]]=\"\",EXORB.!B16=LISTAS!$A$1,EXORB.!B16=LISTAS!$A$2,EXORB.!B16=LISTAS!$A$3),\"\",IFERROR(VLOOKUP(ANÁLISE1[[#This Row],[PREÇO]],ANÁLISE2[[PREÇOS PÚBLICOS]:[RESP. VERIFICAÇÃO]],2,FALSE),\"\"))","v":""},{"$f":"IF(MIN(ANÁLISE2[PREÇOS PÚBLICOS])=0,\"\",MIN(ANÁLISE2[PREÇOS PÚBLICOS]))","v":""},{"$f":"IF(AND(ANÁLISE2[[#This Row],[AVALIAÇÃO 2]]=\"INEXEQUÍVEL\",ANÁLISE2[[#This Row],[PREÇOS PÚBLICOS REPETIDOS?]]<>\"SIM\",ANÁLISE1[[#This Row],[PREÇO]]>ANÁLISE2[[#This Row],[MENOR PREÇO PÚBLICO VÁLIDO]]),\"VÁLIDO - MAIOR QUE PREÇO PÚBLICO\",\"\")","v":""}]
[{"$f":"IF(RELATÓRIO!B47=\"\",\"\",RELATÓRIO!B47)","v":""},{"$f":"IF(RELATÓRIO!C47=\"\",\"\",RELATÓRIO!C47)","v":""},{"$f":"ANÁLISE1[[#This Row],[PREÇOS VÁLIDOS APÓS AV. 1]]","v":""},{"$f":"IFERROR((SUM(ANÁLISE2[PREÇO])-ANÁLISE2[[#This Row],[PREÇO]])/(COUNT(ANÁLISE2[PREÇO])-1),\"\")","v":""},{"$f":"IFERROR(ANÁLISE2[[#This Row],[PREÇO]]/ANÁLISE2[[#This Row],[MÉDIA DOS DEMAIS PREÇOS]],\"\")","v":""},{"$f":"IF(ANÁLISE2[[#This Row],[% EM RELAÇÃO AOS DEMAIS]]<RELATÓRIO!$E$20,\"INEXEQUÍVEL\",ANÁLISE1[[#This Row],[AVALIAÇÃO 1]])","v":""},{"$f":"IF(ANÁLISE2[[#This Row],[AVALIAÇÃO 2]]=\"VÁLIDO\",ANÁLISE1[[#This Row],[PREÇO]],\"\")","v":""},{"$f":"IF(ANÁLISE1[[#This Row],[Verificação 1.2]]=\"OK\",IF(OR(ANÁLISE2[[#This Row],[TIPO DE FONTE]]=LISTAS!$A$1,ANÁLISE2[[#This Row],[TIPO DE FONTE]]=LISTAS!$A$2,ANÁLISE2[[#This Row],[TIPO DE FONTE]]=LISTAS!$A$3),1,2),\"\")","v":""},{"$f":"_xlfn.IFS(AND(ANÁLISE2[[#This Row],[AVALIAÇÃO 2]]=\"INEXEQUÍVEL\",ANÁLISE2[[#This Row],[AVALIAÇÃO 3 - Parte 1 ]]=1),\"VÁLIDO - PREÇO PÚBLICO\",AND(ANÁLISE2[[#This Row],[AVALIAÇÃO 2]]=\"INEXEQUÍVEL\",ANÁLISE2[[#This Row],[PREÇOS PÚBLICOS REPETIDOS?]]=\"SIM\"),\"VÁLIDO - IGUAL A PREÇO PÚBLICO\",ANÁLISE2[[#This Row],[AVALIAÇÃO 2]]<>\"\",ANÁLISE2[[#This Row],[AVALIAÇÃO 2]],ANÁLISE2[[#This Row],[AVALIAÇÃO 2]]=\"\",\"\")","v":""},{"$f":"_xlfn.IFS(ANÁLISE2[[#This Row],[AVALIAÇÃO 3 - Parte 2]]=\"VÁLIDO - PREÇO PÚBLICO\",ANÁLISE2[[#This Row],[AVALIAÇÃO 3 - Parte 2]],ANÁLISE2[[#This Row],[MENOR PREÇO PÚBLICO VÁLIDO2]]<>\"\",ANÁLISE2[[#This Row],[MENOR PREÇO PÚBLICO VÁLIDO2]],ANÁLISE2[[#This Row],[MENOR PREÇO PÚBLICO VÁLIDO2]]=\"\",ANÁLISE2[[#This Row],[AVALIAÇÃO 3 - Parte 2]])","v":""},{"$f":"IF(OR(ANÁLISE2[[#This Row],[AVALIAÇÃO 3 - Parte 2]]=\"EXCESSIVAMENTE ELEVADO\",ANÁLISE2[[#This Row],[AVALIAÇÃO 3 - Parte 2]]=\"INEXEQUÍVEL\"),\"\",ANÁLISE1[[#This Row],[PREÇO]])","v":""},{"$f":"IF(OR(ANÁLISE2[[#This Row],[AVALIAÇÃO 3 - Parte 3]]=\"EXCESSIVAMENTE ELEVADO\",ANÁLISE2[[#This Row],[AVALIAÇÃO 3 - Parte 3]]=\"INEXEQUÍVEL\"),\"\",ANÁLISE1[[#This Row],[PREÇO]])","v":""},{"$f":"_xlfn.IFS(\nAND(ANÁLISE2[[#This Row],[AVALIAÇÃO 3 - Parte 3]]=\"INEXEQUÍVEL\",ANÁLISE2[[#This Row],[Há EXC. ELEVADO?]]>0),\"Retirando preço(s) excessivamente elevado(s), o valor é \"&TEXT(ANÁLISE2[[#This Row],[% EM RELAÇÃO AOS DEMAIS]],\"#.###.###,##%\")&\" da média dos demais preços.\",\n\nAND(ANÁLISE2[[#This Row],[AVALIAÇÃO 3 - Parte 3]]=\"INEXEQUÍVEL\",ANÁLISE2[[#This Row],[Há EXC. ELEVADO?]]=0,ANÁLISE2[[#This Row],[% EM RELAÇÃO AOS DEMAIS]]=\"\"),\"O valor é \"&TEXT(ANÁLISE1[[#This Row],[% EM RELAÇÃO AOS DEMAIS]],\"#.###.###,##%\")&\"  da média dos demais preços.\",\n\nAND(ANÁLISE2[[#This Row],[AVALIAÇÃO 3 - Parte 3]]=\"INEXEQUÍVEL\",ANÁLISE2[[#This Row],[Há EXC. ELEVADO?]]=0),\"O valor é \"&TEXT(ANÁLISE2[[#This Row],[% EM RELAÇÃO AOS DEMAIS]],\"#.###.###,##%\")&\" da média dos demais preços.\",\n\nANÁLISE2[[#This Row],[AVALIAÇÃO 3 - Parte 3]]=\"EXCESSIVAMENTE ELEVADO\",\"O valor é \"&TEXT(ANÁLISE1[[#This Row],[% EM RELAÇÃO AOS DEMAIS]]-1,\"#.###.###,##%\")&\" superior à média dos demais preços.\",\n\nAND(ANÁLISE2[[#This Row],[Há EXC. ELEVADO?]]>0,ANÁLISE2[[#This Row],[AVALIAÇÃO 3 - Parte 3]]=\"VÁLIDO - PREÇO PÚBLICO\"),\"Retirando preço(s) excessivamente elevado(s), o valor é inexequível (\"&TEXT(ANÁLISE2[[#This Row],[% EM RELAÇÃO AOS DEMAIS]],\"#.###.###,##%\")&\" da média dos demais preços). Todavia é considerado válido por ser um preço praticado pela Administração Pública.\",\nAND(ANÁLISE2[[#This Row],[Há EXC. ELEVADO?]]=0,ANÁLISE2[[#This Row],[AVALIAÇÃO 3 - Parte 3]]=\"VÁLIDO - PREÇO PÚBLICO\",ANÁLISE2[[#This Row],[% EM RELAÇÃO AOS DEMAIS]]=\"\"),\"O valor é inexequível (\"&TEXT(ANÁLISE1[[#This Row],[% EM RELAÇÃO AOS DEMAIS]],\"#.###.###,##%\")&\" da média dos demais preços). Todavia é considerado válido por ser um preço praticado pela Administração Pública.\",\nAND(ANÁLISE2[[#This Row],[Há EXC. ELEVADO?]]=0,ANÁLISE2[[#This Row],[AVALIAÇÃO 3 - Parte 3]]=\"VÁLIDO - PREÇO PÚBLICO\",ANÁLISE2[[#This Row],[% EM RELAÇÃO AOS DEMAIS]]<>\"\"),\"O valor é inexequível (\"&TEXT(ANÁLISE2[[#This Row],[% EM RELAÇÃO AOS DEMAIS]],\"#.###.###,##%\")&\" da média dos demais preços). Todavia é considerado válido por ser um preço praticado pela Administração Pública.\",\n\nAND(ANÁLISE2[[#This Row],[Há EXC. ELEVADO?]]>0,ANÁLISE2[[#This Row],[AVALIAÇÃO 3 - Parte 3]]=\"VÁLIDO - IGUAL A PREÇO PÚBLICO\"),\"Retirando preço(s) excessivamente elevado(s), o valor é inexequível (\"&TEXT(ANÁLISE2[[#This Row],[% EM RELAÇÃO AOS DEMAIS]],\"#.###.###,##%\")&\" da média dos demais preços). Porém, é considerado válido por ser igual a um preço praticado pela Administração Pública.\",\nAND(ANÁLISE2[[#This Row],[Há EXC. ELEVADO?]]=0,ANÁLISE2[[#This Row],[AVALIAÇÃO 3 - Parte 3]]=\"VÁLIDO - IGUAL A PREÇO PÚBLICO\",ANÁLISE2[[#This Row],[% EM RELAÇÃO AOS DEMAIS]]<>\"\"),\"O valor é inexequível (\"&TEXT(ANÁLISE2[[#This Row],[% EM RELAÇÃO AOS DEMAIS]],\"#.###.###,##%\")&\" da média dos demais preços). No entanto, é considerado válido por ser igual a um preço praticado pela Administração Pública.\",\n\n\nAND(ANÁLISE2[[#This Row],[Há EXC. ELEVADO?]]=0,ANÁLISE2[[#This Row],[AVALIAÇÃO 3 - Parte 3]]=\"VÁLIDO - MAIOR QUE PREÇO PÚBLICO\",ANÁLISE2[[#This Row],[% EM RELAÇÃO AOS DEMAIS]]<>\"\"),\"O valor é inexequível (\"&TEXT(ANÁLISE2[[#This Row],[% EM RELAÇÃO AOS DEMAIS]],\"#.###.###,##%\")&\" da média dos demais preços). No entanto, é considerado válido por ser maior do um preço praticado pela Administração Pública.\",\nAND(ANÁLISE2[[#This Row],[Há EXC. ELEVADO?]]>0,ANÁLISE2[[#This Row],[AVALIAÇÃO 3 - Parte 3]]=\"VÁLIDO - MAIOR QUE PREÇO PÚBLICO\"),\"Retirando preço(s) excessivamente elevado(s), o valor é inexequível (\"&TEXT(ANÁLISE2[[#This Row],[% EM RELAÇÃO AOS DEMAIS]],\"#.###.###,##%\")&\" da média dos demais preços). Porém, é considerado válido por ser maior do que um preço praticado pela Administração Pública.\",\n\nOR(ANÁLISE2[[#This Row],[AVALIAÇÃO 3 - Parte 3]]=\"VÁLIDO\",ANÁLISE2[[#This Row],[AVALIAÇÃO 3 - Parte 3]]=\"\"),\"\")","v":""},{"$f":"COUNTIF(ANÁLISE2[AVALIAÇÃO 2],\"EXCESSIVAMENTE ELEVADO\")","v":0},{"$f":"IF(ANÁLISE2[[#This Row],[AVALIAÇÃO 3 - Parte 1 ]]=1,ANÁLISE1[[#This Row],[PREÇO]],\"\")","v":""},"SIM",{"$f":"IF(OR(ANÁLISE1[[#This Row],[PREÇO]]=\"\",EXORB.!B17=LISTAS!$A$1,EXORB.!B17=LISTAS!$A$2,EXORB.!B17=LISTAS!$A$3),\"\",IFERROR(VLOOKUP(ANÁLISE1[[#This Row],[PREÇO]],ANÁLISE2[[PREÇOS PÚBLICOS]:[RESP. VERIFICAÇÃO]],2,FALSE),\"\"))","v":""},{"$f":"IF(MIN(ANÁLISE2[PREÇOS PÚBLICOS])=0,\"\",MIN(ANÁLISE2[PREÇOS PÚBLICOS]))","v":""},{"$f":"IF(AND(ANÁLISE2[[#This Row],[AVALIAÇÃO 2]]=\"INEXEQUÍVEL\",ANÁLISE2[[#This Row],[PREÇOS PÚBLICOS REPETIDOS?]]<>\"SIM\",ANÁLISE1[[#This Row],[PREÇO]]>ANÁLISE2[[#This Row],[MENOR PREÇO PÚBLICO VÁLIDO]]),\"VÁLIDO - MAIOR QUE PREÇO PÚBLICO\",\"\")","v":""}]
[{"$f":"IF(RELATÓRIO!B48=\"\",\"\",RELATÓRIO!B48)","v":""},{"$f":"IF(RELATÓRIO!C48=\"\",\"\",RELATÓRIO!C48)","v":""},{"$f":"ANÁLISE1[[#This Row],[PREÇOS VÁLIDOS APÓS AV. 1]]","v":""},{"$f":"IFERROR((SUM(ANÁLISE2[PREÇO])-ANÁLISE2[[#This Row],[PREÇO]])/(COUNT(ANÁLISE2[PREÇO])-1),\"\")","v":""},{"$f":"IFERROR(ANÁLISE2[[#This Row],[PREÇO]]/ANÁLISE2[[#This Row],[MÉDIA DOS DEMAIS PREÇOS]],\"\")","v":""},{"$f":"IF(ANÁLISE2[[#This Row],[% EM RELAÇÃO AOS DEMAIS]]<RELATÓRIO!$E$20,\"INEXEQUÍVEL\",ANÁLISE1[[#This Row],[AVALIAÇÃO 1]])","v":""},{"$f":"IF(ANÁLISE2[[#This Row],[AVALIAÇÃO 2]]=\"VÁLIDO\",ANÁLISE1[[#This Row],[PREÇO]],\"\")","v":""},{"$f":"IF(ANÁLISE1[[#This Row],[Verificação 1.2]]=\"OK\",IF(OR(ANÁLISE2[[#This Row],[TIPO DE FONTE]]=LISTAS!$A$1,ANÁLISE2[[#This Row],[TIPO DE FONTE]]=LISTAS!$A$2,ANÁLISE2[[#This Row],[TIPO DE FONTE]]=LISTAS!$A$3),1,2),\"\")","v":""},{"$f":"_xlfn.IFS(AND(ANÁLISE2[[#This Row],[AVALIAÇÃO 2]]=\"INEXEQUÍVEL\",ANÁLISE2[[#This Row],[AVALIAÇÃO 3 - Parte 1 ]]=1),\"VÁLIDO - PREÇO PÚBLICO\",AND(ANÁLISE2[[#This Row],[AVALIAÇÃO 2]]=\"INEXEQUÍVEL\",ANÁLISE2[[#This Row],[PREÇOS PÚBLICOS REPETIDOS?]]=\"SIM\"),\"VÁLIDO - IGUAL A PREÇO PÚBLICO\",ANÁLISE2[[#This Row],[AVALIAÇÃO 2]]<>\"\",ANÁLISE2[[#This Row],[AVALIAÇÃO 2]],ANÁLISE2[[#This Row],[AVALIAÇÃO 2]]=\"\",\"\")","v":""},{"$f":"_xlfn.IFS(ANÁLISE2[[#This Row],[AVALIAÇÃO 3 - Parte 2]]=\"VÁLIDO - PREÇO PÚBLICO\",ANÁLISE2[[#This Row],[AVALIAÇÃO 3 - Parte 2]],ANÁLISE2[[#This Row],[MENOR PREÇO PÚBLICO VÁLIDO2]]<>\"\",ANÁLISE2[[#This Row],[MENOR PREÇO PÚBLICO VÁLIDO2]],ANÁLISE2[[#This Row],[MENOR PREÇO PÚBLICO VÁLIDO2]]=\"\",ANÁLISE2[[#This Row],[AVALIAÇÃO 3 - Parte 2]])","v":""},{"$f":"IF(OR(ANÁLISE2[[#This Row],[AVALIAÇÃO 3 - Parte 2]]=\"EXCESSIVAMENTE ELEVADO\",ANÁLISE2[[#This Row],[AVALIAÇÃO 3 - Parte 2]]=\"INEXEQUÍVEL\"),\"\",ANÁLISE1[[#This Row],[PREÇO]])","v":""},{"$f":"IF(OR(ANÁLISE2[[#This Row],[AVALIAÇÃO 3 - Parte 3]]=\"EXCESSIVAMENTE ELEVADO\",ANÁLISE2[[#This Row],[AVALIAÇÃO 3 - Parte 3]]=\"INEXEQUÍVEL\"),\"\",ANÁLISE1[[#This Row],[PREÇO]])","v":""},{"$f":"_xlfn.IFS(\nAND(ANÁLISE2[[#This Row],[AVALIAÇÃO 3 - Parte 3]]=\"INEXEQUÍVEL\",ANÁLISE2[[#This Row],[Há EXC. ELEVADO?]]>0),\"Retirando preço(s) excessivamente elevado(s), o valor é \"&TEXT(ANÁLISE2[[#This Row],[% EM RELAÇÃO AOS DEMAIS]],\"#.###.###,##%\")&\" da média dos demais preços.\",\n\nAND(ANÁLISE2[[#This Row],[AVALIAÇÃO 3 - Parte 3]]=\"INEXEQUÍVEL\",ANÁLISE2[[#This Row],[Há EXC. ELEVADO?]]=0,ANÁLISE2[[#This Row],[% EM RELAÇÃO AOS DEMAIS]]=\"\"),\"O valor é \"&TEXT(ANÁLISE1[[#This Row],[% EM RELAÇÃO AOS DEMAIS]],\"#.###.###,##%\")&\"  da média dos demais preços.\",\n\nAND(ANÁLISE2[[#This Row],[AVALIAÇÃO 3 - Parte 3]]=\"INEXEQUÍVEL\",ANÁLISE2[[#This Row],[Há EXC. ELEVADO?]]=0),\"O valor é \"&TEXT(ANÁLISE2[[#This Row],[% EM RELAÇÃO AOS DEMAIS]],\"#.###.###,##%\")&\" da média dos demais preços.\",\n\nANÁLISE2[[#This Row],[AVALIAÇÃO 3 - Parte 3]]=\"EXCESSIVAMENTE ELEVADO\",\"O valor é \"&TEXT(ANÁLISE1[[#This Row],[% EM RELAÇÃO AOS DEMAIS]]-1,\"#.###.###,##%\")&\" superior à média dos demais preços.\",\n\nAND(ANÁLISE2[[#This Row],[Há EXC. ELEVADO?]]>0,ANÁLISE2[[#This Row],[AVALIAÇÃO 3 - Parte 3]]=\"VÁLIDO - PREÇO PÚBLICO\"),\"Retirando preço(s) excessivamente elevado(s), o valor é inexequível (\"&TEXT(ANÁLISE2[[#This Row],[% EM RELAÇÃO AOS DEMAIS]],\"#.###.###,##%\")&\" da média dos demais preços). Todavia é considerado válido por ser um preço praticado pela Administração Pública.\",\nAND(ANÁLISE2[[#This Row],[Há EXC. ELEVADO?]]=0,ANÁLISE2[[#This Row],[AVALIAÇÃO 3 - Parte 3]]=\"VÁLIDO - PREÇO PÚBLICO\",ANÁLISE2[[#This Row],[% EM RELAÇÃO AOS DEMAIS]]=\"\"),\"O valor é inexequível (\"&TEXT(ANÁLISE1[[#This Row],[% EM RELAÇÃO AOS DEMAIS]],\"#.###.###,##%\")&\" da média dos demais preços). Todavia é considerado válido por ser um preço praticado pela Administração Pública.\",\nAND(ANÁLISE2[[#This Row],[Há EXC. ELEVADO?]]=0,ANÁLISE2[[#This Row],[AVALIAÇÃO 3 - Parte 3]]=\"VÁLIDO - PREÇO PÚBLICO\",ANÁLISE2[[#This Row],[% EM RELAÇÃO AOS DEMAIS]]<>\"\"),\"O valor é inexequível (\"&TEXT(ANÁLISE2[[#This Row],[% EM RELAÇÃO AOS DEMAIS]],\"#.###.###,##%\")&\" da média dos demais preços). Todavia é considerado válido por ser um preço praticado pela Administração Pública.\",\n\nAND(ANÁLISE2[[#This Row],[Há EXC. ELEVADO?]]>0,ANÁLISE2[[#This Row],[AVALIAÇÃO 3 - Parte 3]]=\"VÁLIDO - IGUAL A PREÇO PÚBLICO\"),\"Retirando preço(s) excessivamente elevado(s), o valor é inexequível (\"&TEXT(ANÁLISE2[[#This Row],[% EM RELAÇÃO AOS DEMAIS]],\"#.###.###,##%\")&\" da média dos demais preços). Porém, é considerado válido por ser igual a um preço praticado pela Administração Pública.\",\nAND(ANÁLISE2[[#This Row],[Há EXC. ELEVADO?]]=0,ANÁLISE2[[#This Row],[AVALIAÇÃO 3 - Parte 3]]=\"VÁLIDO - IGUAL A PREÇO PÚBLICO\",ANÁLISE2[[#This Row],[% EM RELAÇÃO AOS DEMAIS]]<>\"\"),\"O valor é inexequível (\"&TEXT(ANÁLISE2[[#This Row],[% EM RELAÇÃO AOS DEMAIS]],\"#.###.###,##%\")&\" da média dos demais preços). No entanto, é considerado válido por ser igual a um preço praticado pela Administração Pública.\",\n\n\nAND(ANÁLISE2[[#This Row],[Há EXC. ELEVADO?]]=0,ANÁLISE2[[#This Row],[AVALIAÇÃO 3 - Parte 3]]=\"VÁLIDO - MAIOR QUE PREÇO PÚBLICO\",ANÁLISE2[[#This Row],[% EM RELAÇÃO AOS DEMAIS]]<>\"\"),\"O valor é inexequível (\"&TEXT(ANÁLISE2[[#This Row],[% EM RELAÇÃO AOS DEMAIS]],\"#.###.###,##%\")&\" da média dos demais preços). No entanto, é considerado válido por ser maior do um preço praticado pela Administração Pública.\",\nAND(ANÁLISE2[[#This Row],[Há EXC. ELEVADO?]]>0,ANÁLISE2[[#This Row],[AVALIAÇÃO 3 - Parte 3]]=\"VÁLIDO - MAIOR QUE PREÇO PÚBLICO\"),\"Retirando preço(s) excessivamente elevado(s), o valor é inexequível (\"&TEXT(ANÁLISE2[[#This Row],[% EM RELAÇÃO AOS DEMAIS]],\"#.###.###,##%\")&\" da média dos demais preços). Porém, é considerado válido por ser maior do que um preço praticado pela Administração Pública.\",\n\nOR(ANÁLISE2[[#This Row],[AVALIAÇÃO 3 - Parte 3]]=\"VÁLIDO\",ANÁLISE2[[#This Row],[AVALIAÇÃO 3 - Parte 3]]=\"\"),\"\")","v":""},{"$f":"COUNTIF(ANÁLISE2[AVALIAÇÃO 2],\"EXCESSIVAMENTE ELEVADO\")","v":0},{"$f":"IF(ANÁLISE2[[#This Row],[AVALIAÇÃO 3 - Parte 1 ]]=1,ANÁLISE1[[#This Row],[PREÇO]],\"\")","v":""},"SIM",{"$f":"IF(OR(ANÁLISE1[[#This Row],[PREÇO]]=\"\",EXORB.!B18=LISTAS!$A$1,EXORB.!B18=LISTAS!$A$2,EXORB.!B18=LISTAS!$A$3),\"\",IFERROR(VLOOKUP(ANÁLISE1[[#This Row],[PREÇO]],ANÁLISE2[[PREÇOS PÚBLICOS]:[RESP. VERIFICAÇÃO]],2,FALSE),\"\"))","v":""},{"$f":"IF(MIN(ANÁLISE2[PREÇOS PÚBLICOS])=0,\"\",MIN(ANÁLISE2[PREÇOS PÚBLICOS]))","v":""},{"$f":"IF(AND(ANÁLISE2[[#This Row],[AVALIAÇÃO 2]]=\"INEXEQUÍVEL\",ANÁLISE2[[#This Row],[PREÇOS PÚBLICOS REPETIDOS?]]<>\"SIM\",ANÁLISE1[[#This Row],[PREÇO]]>ANÁLISE2[[#This Row],[MENOR PREÇO PÚBLICO VÁLIDO]]),\"VÁLIDO - MAIOR QUE PREÇO PÚBLICO\",\"\")","v":""}]
[{"$f":"IF(RELATÓRIO!B49=\"\",\"\",RELATÓRIO!B49)","v":""},{"$f":"IF(RELATÓRIO!C49=\"\",\"\",RELATÓRIO!C49)","v":""},{"$f":"ANÁLISE1[[#This Row],[PREÇOS VÁLIDOS APÓS AV. 1]]","v":""},{"$f":"IFERROR((SUM(ANÁLISE2[PREÇO])-ANÁLISE2[[#This Row],[PREÇO]])/(COUNT(ANÁLISE2[PREÇO])-1),\"\")","v":""},{"$f":"IFERROR(ANÁLISE2[[#This Row],[PREÇO]]/ANÁLISE2[[#This Row],[MÉDIA DOS DEMAIS PREÇOS]],\"\")","v":""},{"$f":"IF(ANÁLISE2[[#This Row],[% EM RELAÇÃO AOS DEMAIS]]<RELATÓRIO!$E$20,\"INEXEQUÍVEL\",ANÁLISE1[[#This Row],[AVALIAÇÃO 1]])","v":""},{"$f":"IF(ANÁLISE2[[#This Row],[AVALIAÇÃO 2]]=\"VÁLIDO\",ANÁLISE1[[#This Row],[PREÇO]],\"\")","v":""},{"$f":"IF(ANÁLISE1[[#This Row],[Verificação 1.2]]=\"OK\",IF(OR(ANÁLISE2[[#This Row],[TIPO DE FONTE]]=LISTAS!$A$1,ANÁLISE2[[#This Row],[TIPO DE FONTE]]=LISTAS!$A$2,ANÁLISE2[[#This Row],[TIPO DE FONTE]]=LISTAS!$A$3),1,2),\"\")","v":""},{"$f":"_xlfn.IFS(AND(ANÁLISE2[[#This Row],[AVALIAÇÃO 2]]=\"INEXEQUÍVEL\",ANÁLISE2[[#This Row],[AVALIAÇÃO 3 - Parte 1 ]]=1),\"VÁLIDO - PREÇO PÚBLICO\",AND(ANÁLISE2[[#This Row],[AVALIAÇÃO 2]]=\"INEXEQUÍVEL\",ANÁLISE2[[#This Row],[PREÇOS PÚBLICOS REPETIDOS?]]=\"SIM\"),\"VÁLIDO - IGUAL A PREÇO PÚBLICO\",ANÁLISE2[[#This Row],[AVALIAÇÃO 2]]<>\"\",ANÁLISE2[[#This Row],[AVALIAÇÃO 2]],ANÁLISE2[[#This Row],[AVALIAÇÃO 2]]=\"\",\"\")","v":""},{"$f":"_xlfn.IFS(ANÁLISE2[[#This Row],[AVALIAÇÃO 3 - Parte 2]]=\"VÁLIDO - PREÇO PÚBLICO\",ANÁLISE2[[#This Row],[AVALIAÇÃO 3 - Parte 2]],ANÁLISE2[[#This Row],[MENOR PREÇO PÚBLICO VÁLIDO2]]<>\"\",ANÁLISE2[[#This Row],[MENOR PREÇO PÚBLICO VÁLIDO2]],ANÁLISE2[[#This Row],[MENOR PREÇO PÚBLICO VÁLIDO2]]=\"\",ANÁLISE2[[#This Row],[AVALIAÇÃO 3 - Parte 2]])","v":""},{"$f":"IF(OR(ANÁLISE2[[#This Row],[AVALIAÇÃO 3 - Parte 2]]=\"EXCESSIVAMENTE ELEVADO\",ANÁLISE2[[#This Row],[AVALIAÇÃO 3 - Parte 2]]=\"INEXEQUÍVEL\"),\"\",ANÁLISE1[[#This Row],[PREÇO]])","v":""},{"$f":"IF(OR(ANÁLISE2[[#This Row],[AVALIAÇÃO 3 - Parte 3]]=\"EXCESSIVAMENTE ELEVADO\",ANÁLISE2[[#This Row],[AVALIAÇÃO 3 - Parte 3]]=\"INEXEQUÍVEL\"),\"\",ANÁLISE1[[#This Row],[PREÇO]])","v":""},{"$f":"_xlfn.IFS(\nAND(ANÁLISE2[[#This Row],[AVALIAÇÃO 3 - Parte 3]]=\"INEXEQUÍVEL\",ANÁLISE2[[#This Row],[Há EXC. ELEVADO?]]>0),\"Retirando preço(s) excessivamente elevado(s), o valor é \"&TEXT(ANÁLISE2[[#This Row],[% EM RELAÇÃO AOS DEMAIS]],\"#.###.###,##%\")&\" da média dos demais preços.\",\n\nAND(ANÁLISE2[[#This Row],[AVALIAÇÃO 3 - Parte 3]]=\"INEXEQUÍVEL\",ANÁLISE2[[#This Row],[Há EXC. ELEVADO?]]=0,ANÁLISE2[[#This Row],[% EM RELAÇÃO AOS DEMAIS]]=\"\"),\"O valor é \"&TEXT(ANÁLISE1[[#This Row],[% EM RELAÇÃO AOS DEMAIS]],\"#.###.###,##%\")&\"  da média dos demais preços.\",\n\nAND(ANÁLISE2[[#This Row],[AVALIAÇÃO 3 - Parte 3]]=\"INEXEQUÍVEL\",ANÁLISE2[[#This Row],[Há EXC. ELEVADO?]]=0),\"O valor é \"&TEXT(ANÁLISE2[[#This Row],[% EM RELAÇÃO AOS DEMAIS]],\"#.###.###,##%\")&\" da média dos demais preços.\",\n\nANÁLISE2[[#This Row],[AVALIAÇÃO 3 - Parte 3]]=\"EXCESSIVAMENTE ELEVADO\",\"O valor é \"&TEXT(ANÁLISE1[[#This Row],[% EM RELAÇÃO AOS DEMAIS]]-1,\"#.###.###,##%\")&\" superior à média dos demais preços.\",\n\nAND(ANÁLISE2[[#This Row],[Há EXC. ELEVADO?]]>0,ANÁLISE2[[#This Row],[AVALIAÇÃO 3 - Parte 3]]=\"VÁLIDO - PREÇO PÚBLICO\"),\"Retirando preço(s) excessivamente elevado(s), o valor é inexequível (\"&TEXT(ANÁLISE2[[#This Row],[% EM RELAÇÃO AOS DEMAIS]],\"#.###.###,##%\")&\" da média dos demais preços). Todavia é considerado válido por ser um preço praticado pela Administração Pública.\",\nAND(ANÁLISE2[[#This Row],[Há EXC. ELEVADO?]]=0,ANÁLISE2[[#This Row],[AVALIAÇÃO 3 - Parte 3]]=\"VÁLIDO - PREÇO PÚBLICO\",ANÁLISE2[[#This Row],[% EM RELAÇÃO AOS DEMAIS]]=\"\"),\"O valor é inexequível (\"&TEXT(ANÁLISE1[[#This Row],[% EM RELAÇÃO AOS DEMAIS]],\"#.###.###,##%\")&\" da média dos demais preços). Todavia é considerado válido por ser um preço praticado pela Administração Pública.\",\nAND(ANÁLISE2[[#This Row],[Há EXC. ELEVADO?]]=0,ANÁLISE2[[#This Row],[AVALIAÇÃO 3 - Parte 3]]=\"VÁLIDO - PREÇO PÚBLICO\",ANÁLISE2[[#This Row],[% EM RELAÇÃO AOS DEMAIS]]<>\"\"),\"O valor é inexequível (\"&TEXT(ANÁLISE2[[#This Row],[% EM RELAÇÃO AOS DEMAIS]],\"#.###.###,##%\")&\" da média dos demais preços). Todavia é considerado válido por ser um preço praticado pela Administração Pública.\",\n\nAND(ANÁLISE2[[#This Row],[Há EXC. ELEVADO?]]>0,ANÁLISE2[[#This Row],[AVALIAÇÃO 3 - Parte 3]]=\"VÁLIDO - IGUAL A PREÇO PÚBLICO\"),\"Retirando preço(s) excessivamente elevado(s), o valor é inexequível (\"&TEXT(ANÁLISE2[[#This Row],[% EM RELAÇÃO AOS DEMAIS]],\"#.###.###,##%\")&\" da média dos demais preços). Porém, é considerado válido por ser igual a um preço praticado pela Administração Pública.\",\nAND(ANÁLISE2[[#This Row],[Há EXC. ELEVADO?]]=0,ANÁLISE2[[#This Row],[AVALIAÇÃO 3 - Parte 3]]=\"VÁLIDO - IGUAL A PREÇO PÚBLICO\",ANÁLISE2[[#This Row],[% EM RELAÇÃO AOS DEMAIS]]<>\"\"),\"O valor é inexequível (\"&TEXT(ANÁLISE2[[#This Row],[% EM RELAÇÃO AOS DEMAIS]],\"#.###.###,##%\")&\" da média dos demais preços). No entanto, é considerado válido por ser igual a um preço praticado pela Administração Pública.\",\n\n\nAND(ANÁLISE2[[#This Row],[Há EXC. ELEVADO?]]=0,ANÁLISE2[[#This Row],[AVALIAÇÃO 3 - Parte 3]]=\"VÁLIDO - MAIOR QUE PREÇO PÚBLICO\",ANÁLISE2[[#This Row],[% EM RELAÇÃO AOS DEMAIS]]<>\"\"),\"O valor é inexequível (\"&TEXT(ANÁLISE2[[#This Row],[% EM RELAÇÃO AOS DEMAIS]],\"#.###.###,##%\")&\" da média dos demais preços). No entanto, é considerado válido por ser maior do um preço praticado pela Administração Pública.\",\nAND(ANÁLISE2[[#This Row],[Há EXC. ELEVADO?]]>0,ANÁLISE2[[#This Row],[AVALIAÇÃO 3 - Parte 3]]=\"VÁLIDO - MAIOR QUE PREÇO PÚBLICO\"),\"Retirando preço(s) excessivamente elevado(s), o valor é inexequível (\"&TEXT(ANÁLISE2[[#This Row],[% EM RELAÇÃO AOS DEMAIS]],\"#.###.###,##%\")&\" da média dos demais preços). Porém, é considerado válido por ser maior do que um preço praticado pela Administração Pública.\",\n\nOR(ANÁLISE2[[#This Row],[AVALIAÇÃO 3 - Parte 3]]=\"VÁLIDO\",ANÁLISE2[[#This Row],[AVALIAÇÃO 3 - Parte 3]]=\"\"),\"\")","v":""},{"$f":"COUNTIF(ANÁLISE2[AVALIAÇÃO 2],\"EXCESSIVAMENTE ELEVADO\")","v":0},{"$f":"IF(ANÁLISE2[[#This Row],[AVALIAÇÃO 3 - Parte 1 ]]=1,ANÁLISE1[[#This Row],[PREÇO]],\"\")","v":""},"SIM",{"$f":"IF(OR(ANÁLISE1[[#This Row],[PREÇO]]=\"\",EXORB.!B19=LISTAS!$A$1,EXORB.!B19=LISTAS!$A$2,EXORB.!B19=LISTAS!$A$3),\"\",IFERROR(VLOOKUP(ANÁLISE1[[#This Row],[PREÇO]],ANÁLISE2[[PREÇOS PÚBLICOS]:[RESP. VERIFICAÇÃO]],2,FALSE),\"\"))","v":""},{"$f":"IF(MIN(ANÁLISE2[PREÇOS PÚBLICOS])=0,\"\",MIN(ANÁLISE2[PREÇOS PÚBLICOS]))","v":""},{"$f":"IF(AND(ANÁLISE2[[#This Row],[AVALIAÇÃO 2]]=\"INEXEQUÍVEL\",ANÁLISE2[[#This Row],[PREÇOS PÚBLICOS REPETIDOS?]]<>\"SIM\",ANÁLISE1[[#This Row],[PREÇO]]>ANÁLISE2[[#This Row],[MENOR PREÇO PÚBLICO VÁLIDO]]),\"VÁLIDO - MAIOR QUE PREÇO PÚBLICO\",\"\")","v":""}]
[{"$f":"IF(RELATÓRIO!B50=\"\",\"\",RELATÓRIO!B50)","v":""},{"$f":"IF(RELATÓRIO!C50=\"\",\"\",RELATÓRIO!C50)","v":""},{"$f":"ANÁLISE1[[#This Row],[PREÇOS VÁLIDOS APÓS AV. 1]]","v":""},{"$f":"IFERROR((SUM(ANÁLISE2[PREÇO])-ANÁLISE2[[#This Row],[PREÇO]])/(COUNT(ANÁLISE2[PREÇO])-1),\"\")","v":""},{"$f":"IFERROR(ANÁLISE2[[#This Row],[PREÇO]]/ANÁLISE2[[#This Row],[MÉDIA DOS DEMAIS PREÇOS]],\"\")","v":""},{"$f":"IF(ANÁLISE2[[#This Row],[% EM RELAÇÃO AOS DEMAIS]]<RELATÓRIO!$E$20,\"INEXEQUÍVEL\",ANÁLISE1[[#This Row],[AVALIAÇÃO 1]])","v":""},{"$f":"IF(ANÁLISE2[[#This Row],[AVALIAÇÃO 2]]=\"VÁLIDO\",ANÁLISE1[[#This Row],[PREÇO]],\"\")","v":""},{"$f":"IF(ANÁLISE1[[#This Row],[Verificação 1.2]]=\"OK\",IF(OR(ANÁLISE2[[#This Row],[TIPO DE FONTE]]=LISTAS!$A$1,ANÁLISE2[[#This Row],[TIPO DE FONTE]]=LISTAS!$A$2,ANÁLISE2[[#This Row],[TIPO DE FONTE]]=LISTAS!$A$3),1,2),\"\")","v":""},{"$f":"_xlfn.IFS(AND(ANÁLISE2[[#This Row],[AVALIAÇÃO 2]]=\"INEXEQUÍVEL\",ANÁLISE2[[#This Row],[AVALIAÇÃO 3 - Parte 1 ]]=1),\"VÁLIDO - PREÇO PÚBLICO\",AND(ANÁLISE2[[#This Row],[AVALIAÇÃO 2]]=\"INEXEQUÍVEL\",ANÁLISE2[[#This Row],[PREÇOS PÚBLICOS REPETIDOS?]]=\"SIM\"),\"VÁLIDO - IGUAL A PREÇO PÚBLICO\",ANÁLISE2[[#This Row],[AVALIAÇÃO 2]]<>\"\",ANÁLISE2[[#This Row],[AVALIAÇÃO 2]],ANÁLISE2[[#This Row],[AVALIAÇÃO 2]]=\"\",\"\")","v":""},{"$f":"_xlfn.IFS(ANÁLISE2[[#This Row],[AVALIAÇÃO 3 - Parte 2]]=\"VÁLIDO - PREÇO PÚBLICO\",ANÁLISE2[[#This Row],[AVALIAÇÃO 3 - Parte 2]],ANÁLISE2[[#This Row],[MENOR PREÇO PÚBLICO VÁLIDO2]]<>\"\",ANÁLISE2[[#This Row],[MENOR PREÇO PÚBLICO VÁLIDO2]],ANÁLISE2[[#This Row],[MENOR PREÇO PÚBLICO VÁLIDO2]]=\"\",ANÁLISE2[[#This Row],[AVALIAÇÃO 3 - Parte 2]])","v":""},{"$f":"IF(OR(ANÁLISE2[[#This Row],[AVALIAÇÃO 3 - Parte 2]]=\"EXCESSIVAMENTE ELEVADO\",ANÁLISE2[[#This Row],[AVALIAÇÃO 3 - Parte 2]]=\"INEXEQUÍVEL\"),\"\",ANÁLISE1[[#This Row],[PREÇO]])","v":""},{"$f":"IF(OR(ANÁLISE2[[#This Row],[AVALIAÇÃO 3 - Parte 3]]=\"EXCESSIVAMENTE ELEVADO\",ANÁLISE2[[#This Row],[AVALIAÇÃO 3 - Parte 3]]=\"INEXEQUÍVEL\"),\"\",ANÁLISE1[[#This Row],[PREÇO]])","v":""},{"$f":"_xlfn.IFS(\nAND(ANÁLISE2[[#This Row],[AVALIAÇÃO 3 - Parte 3]]=\"INEXEQUÍVEL\",ANÁLISE2[[#This Row],[Há EXC. ELEVADO?]]>0),\"Retirando preço(s) excessivamente elevado(s), o valor é \"&TEXT(ANÁLISE2[[#This Row],[% EM RELAÇÃO AOS DEMAIS]],\"#.###.###,##%\")&\" da média dos demais preços.\",\n\nAND(ANÁLISE2[[#This Row],[AVALIAÇÃO 3 - Parte 3]]=\"INEXEQUÍVEL\",ANÁLISE2[[#This Row],[Há EXC. ELEVADO?]]=0,ANÁLISE2[[#This Row],[% EM RELAÇÃO AOS DEMAIS]]=\"\"),\"O valor é \"&TEXT(ANÁLISE1[[#This Row],[% EM RELAÇÃO AOS DEMAIS]],\"#.###.###,##%\")&\"  da média dos demais preços.\",\n\nAND(ANÁLISE2[[#This Row],[AVALIAÇÃO 3 - Parte 3]]=\"INEXEQUÍVEL\",ANÁLISE2[[#This Row],[Há EXC. ELEVADO?]]=0),\"O valor é \"&TEXT(ANÁLISE2[[#This Row],[% EM RELAÇÃO AOS DEMAIS]],\"#.###.###,##%\")&\" da média dos demais preços.\",\n\nANÁLISE2[[#This Row],[AVALIAÇÃO 3 - Parte 3]]=\"EXCESSIVAMENTE ELEVADO\",\"O valor é \"&TEXT(ANÁLISE1[[#This Row],[% EM RELAÇÃO AOS DEMAIS]]-1,\"#.###.###,##%\")&\" superior à média dos demais preços.\",\n\nAND(ANÁLISE2[[#This Row],[Há EXC. ELEVADO?]]>0,ANÁLISE2[[#This Row],[AVALIAÇÃO 3 - Parte 3]]=\"VÁLIDO - PREÇO PÚBLICO\"),\"Retirando preço(s) excessivamente elevado(s), o valor é inexequível (\"&TEXT(ANÁLISE2[[#This Row],[% EM RELAÇÃO AOS DEMAIS]],\"#.###.###,##%\")&\" da média dos demais preços). Todavia é considerado válido por ser um preço praticado pela Administração Pública.\",\nAND(ANÁLISE2[[#This Row],[Há EXC. ELEVADO?]]=0,ANÁLISE2[[#This Row],[AVALIAÇÃO 3 - Parte 3]]=\"VÁLIDO - PREÇO PÚBLICO\",ANÁLISE2[[#This Row],[% EM RELAÇÃO AOS DEMAIS]]=\"\"),\"O valor é inexequível (\"&TEXT(ANÁLISE1[[#This Row],[% EM RELAÇÃO AOS DEMAIS]],\"#.###.###,##%\")&\" da média dos demais preços). Todavia é considerado válido por ser um preço praticado pela Administração Pública.\",\nAND(ANÁLISE2[[#This Row],[Há EXC. ELEVADO?]]=0,ANÁLISE2[[#This Row],[AVALIAÇÃO 3 - Parte 3]]=\"VÁLIDO - PREÇO PÚBLICO\",ANÁLISE2[[#This Row],[% EM RELAÇÃO AOS DEMAIS]]<>\"\"),\"O valor é inexequível (\"&TEXT(ANÁLISE2[[#This Row],[% EM RELAÇÃO AOS DEMAIS]],\"#.###.###,##%\")&\" da média dos demais preços). Todavia é considerado válido por ser um preço praticado pela Administração Pública.\",\n\nAND(ANÁLISE2[[#This Row],[Há EXC. ELEVADO?]]>0,ANÁLISE2[[#This Row],[AVALIAÇÃO 3 - Parte 3]]=\"VÁLIDO - IGUAL A PREÇO PÚBLICO\"),\"Retirando preço(s) excessivamente elevado(s), o valor é inexequível (\"&TEXT(ANÁLISE2[[#This Row],[% EM RELAÇÃO AOS DEMAIS]],\"#.###.###,##%\")&\" da média dos demais preços). Porém, é considerado válido por ser igual a um preço praticado pela Administração Pública.\",\nAND(ANÁLISE2[[#This Row],[Há EXC. ELEVADO?]]=0,ANÁLISE2[[#This Row],[AVALIAÇÃO 3 - Parte 3]]=\"VÁLIDO - IGUAL A PREÇO PÚBLICO\",ANÁLISE2[[#This Row],[% EM RELAÇÃO AOS DEMAIS]]<>\"\"),\"O valor é inexequível (\"&TEXT(ANÁLISE2[[#This Row],[% EM RELAÇÃO AOS DEMAIS]],\"#.###.###,##%\")&\" da média dos demais preços). No entanto, é considerado válido por ser igual a um preço praticado pela Administração Pública.\",\n\n\nAND(ANÁLISE2[[#This Row],[Há EXC. ELEVADO?]]=0,ANÁLISE2[[#This Row],[AVALIAÇÃO 3 - Parte 3]]=\"VÁLIDO - MAIOR QUE PREÇO PÚBLICO\",ANÁLISE2[[#This Row],[% EM RELAÇÃO AOS DEMAIS]]<>\"\"),\"O valor é inexequível (\"&TEXT(ANÁLISE2[[#This Row],[% EM RELAÇÃO AOS DEMAIS]],\"#.###.###,##%\")&\" da média dos demais preços). No entanto, é considerado válido por ser maior do um preço praticado pela Administração Pública.\",\nAND(ANÁLISE2[[#This Row],[Há EXC. ELEVADO?]]>0,ANÁLISE2[[#This Row],[AVALIAÇÃO 3 - Parte 3]]=\"VÁLIDO - MAIOR QUE PREÇO PÚBLICO\"),\"Retirando preço(s) excessivamente elevado(s), o valor é inexequível (\"&TEXT(ANÁLISE2[[#This Row],[% EM RELAÇÃO AOS DEMAIS]],\"#.###.###,##%\")&\" da média dos demais preços). Porém, é considerado válido por ser maior do que um preço praticado pela Administração Pública.\",\n\nOR(ANÁLISE2[[#This Row],[AVALIAÇÃO 3 - Parte 3]]=\"VÁLIDO\",ANÁLISE2[[#This Row],[AVALIAÇÃO 3 - Parte 3]]=\"\"),\"\")","v":""},{"$f":"COUNTIF(ANÁLISE2[AVALIAÇÃO 2],\"EXCESSIVAMENTE ELEVADO\")","v":0},{"$f":"IF(ANÁLISE2[[#This Row],[AVALIAÇÃO 3 - Parte 1 ]]=1,ANÁLISE1[[#This Row],[PREÇO]],\"\")","v":""},"SIM",{"$f":"IF(OR(ANÁLISE1[[#This Row],[PREÇO]]=\"\",EXORB.!B20=LISTAS!$A$1,EXORB.!B20=LISTAS!$A$2,EXORB.!B20=LISTAS!$A$3),\"\",IFERROR(VLOOKUP(ANÁLISE1[[#This Row],[PREÇO]],ANÁLISE2[[PREÇOS PÚBLICOS]:[RESP. VERIFICAÇÃO]],2,FALSE),\"\"))","v":""},{"$f":"IF(MIN(ANÁLISE2[PREÇOS PÚBLICOS])=0,\"\",MIN(ANÁLISE2[PREÇOS PÚBLICOS]))","v":""},{"$f":"IF(AND(ANÁLISE2[[#This Row],[AVALIAÇÃO 2]]=\"INEXEQUÍVEL\",ANÁLISE2[[#This Row],[PREÇOS PÚBLICOS REPETIDOS?]]<>\"SIM\",ANÁLISE1[[#This Row],[PREÇO]]>ANÁLISE2[[#This Row],[MENOR PREÇO PÚBLICO VÁLIDO]]),\"VÁLIDO - MAIOR QUE PREÇO PÚBLICO\",\"\")","v":""}]
[{"$f":"IF(RELATÓRIO!B51=\"\",\"\",RELATÓRIO!B51)","v":""},{"$f":"IF(RELATÓRIO!C51=\"\",\"\",RELATÓRIO!C51)","v":""},{"$f":"ANÁLISE1[[#This Row],[PREÇOS VÁLIDOS APÓS AV. 1]]","v":""},{"$f":"IFERROR((SUM(ANÁLISE2[PREÇO])-ANÁLISE2[[#This Row],[PREÇO]])/(COUNT(ANÁLISE2[PREÇO])-1),\"\")","v":""},{"$f":"IFERROR(ANÁLISE2[[#This Row],[PREÇO]]/ANÁLISE2[[#This Row],[MÉDIA DOS DEMAIS PREÇOS]],\"\")","v":""},{"$f":"IF(ANÁLISE2[[#This Row],[% EM RELAÇÃO AOS DEMAIS]]<RELATÓRIO!$E$20,\"INEXEQUÍVEL\",ANÁLISE1[[#This Row],[AVALIAÇÃO 1]])","v":""},{"$f":"IF(ANÁLISE2[[#This Row],[AVALIAÇÃO 2]]=\"VÁLIDO\",ANÁLISE1[[#This Row],[PREÇO]],\"\")","v":""},{"$f":"IF(ANÁLISE1[[#This Row],[Verificação 1.2]]=\"OK\",IF(OR(ANÁLISE2[[#This Row],[TIPO DE FONTE]]=LISTAS!$A$1,ANÁLISE2[[#This Row],[TIPO DE FONTE]]=LISTAS!$A$2,ANÁLISE2[[#This Row],[TIPO DE FONTE]]=LISTAS!$A$3),1,2),\"\")","v":""},{"$f":"_xlfn.IFS(AND(ANÁLISE2[[#This Row],[AVALIAÇÃO 2]]=\"INEXEQUÍVEL\",ANÁLISE2[[#This Row],[AVALIAÇÃO 3 - Parte 1 ]]=1),\"VÁLIDO - PREÇO PÚBLICO\",AND(ANÁLISE2[[#This Row],[AVALIAÇÃO 2]]=\"INEXEQUÍVEL\",ANÁLISE2[[#This Row],[PREÇOS PÚBLICOS REPETIDOS?]]=\"SIM\"),\"VÁLIDO - IGUAL A PREÇO PÚBLICO\",ANÁLISE2[[#This Row],[AVALIAÇÃO 2]]<>\"\",ANÁLISE2[[#This Row],[AVALIAÇÃO 2]],ANÁLISE2[[#This Row],[AVALIAÇÃO 2]]=\"\",\"\")","v":""},{"$f":"_xlfn.IFS(ANÁLISE2[[#This Row],[AVALIAÇÃO 3 - Parte 2]]=\"VÁLIDO - PREÇO PÚBLICO\",ANÁLISE2[[#This Row],[AVALIAÇÃO 3 - Parte 2]],ANÁLISE2[[#This Row],[MENOR PREÇO PÚBLICO VÁLIDO2]]<>\"\",ANÁLISE2[[#This Row],[MENOR PREÇO PÚBLICO VÁLIDO2]],ANÁLISE2[[#This Row],[MENOR PREÇO PÚBLICO VÁLIDO2]]=\"\",ANÁLISE2[[#This Row],[AVALIAÇÃO 3 - Parte 2]])","v":""},{"$f":"IF(OR(ANÁLISE2[[#This Row],[AVALIAÇÃO 3 - Parte 2]]=\"EXCESSIVAMENTE ELEVADO\",ANÁLISE2[[#This Row],[AVALIAÇÃO 3 - Parte 2]]=\"INEXEQUÍVEL\"),\"\",ANÁLISE1[[#This Row],[PREÇO]])","v":""},{"$f":"IF(OR(ANÁLISE2[[#This Row],[AVALIAÇÃO 3 - Parte 3]]=\"EXCESSIVAMENTE ELEVADO\",ANÁLISE2[[#This Row],[AVALIAÇÃO 3 - Parte 3]]=\"INEXEQUÍVEL\"),\"\",ANÁLISE1[[#This Row],[PREÇO]])","v":""},{"$f":"_xlfn.IFS(\nAND(ANÁLISE2[[#This Row],[AVALIAÇÃO 3 - Parte 3]]=\"INEXEQUÍVEL\",ANÁLISE2[[#This Row],[Há EXC. ELEVADO?]]>0),\"Retirando preço(s) excessivamente elevado(s), o valor é \"&TEXT(ANÁLISE2[[#This Row],[% EM RELAÇÃO AOS DEMAIS]],\"#.###.###,##%\")&\" da média dos demais preços.\",\n\nAND(ANÁLISE2[[#This Row],[AVALIAÇÃO 3 - Parte 3]]=\"INEXEQUÍVEL\",ANÁLISE2[[#This Row],[Há EXC. ELEVADO?]]=0,ANÁLISE2[[#This Row],[% EM RELAÇÃO AOS DEMAIS]]=\"\"),\"O valor é \"&TEXT(ANÁLISE1[[#This Row],[% EM RELAÇÃO AOS DEMAIS]],\"#.###.###,##%\")&\"  da média dos demais preços.\",\n\nAND(ANÁLISE2[[#This Row],[AVALIAÇÃO 3 - Parte 3]]=\"INEXEQUÍVEL\",ANÁLISE2[[#This Row],[Há EXC. ELEVADO?]]=0),\"O valor é \"&TEXT(ANÁLISE2[[#This Row],[% EM RELAÇÃO AOS DEMAIS]],\"#.###.###,##%\")&\" da média dos demais preços.\",\n\nANÁLISE2[[#This Row],[AVALIAÇÃO 3 - Parte 3]]=\"EXCESSIVAMENTE ELEVADO\",\"O valor é \"&TEXT(ANÁLISE1[[#This Row],[% EM RELAÇÃO AOS DEMAIS]]-1,\"#.###.###,##%\")&\" superior à média dos demais preços.\",\n\nAND(ANÁLISE2[[#This Row],[Há EXC. ELEVADO?]]>0,ANÁLISE2[[#This Row],[AVALIAÇÃO 3 - Parte 3]]=\"VÁLIDO - PREÇO PÚBLICO\"),\"Retirando preço(s) excessivamente elevado(s), o valor é inexequível (\"&TEXT(ANÁLISE2[[#This Row],[% EM RELAÇÃO AOS DEMAIS]],\"#.###.###,##%\")&\" da média dos demais preços). Todavia é considerado válido por ser um preço praticado pela Administração Pública.\",\nAND(ANÁLISE2[[#This Row],[Há EXC. ELEVADO?]]=0,ANÁLISE2[[#This Row],[AVALIAÇÃO 3 - Parte 3]]=\"VÁLIDO - PREÇO PÚBLICO\",ANÁLISE2[[#This Row],[% EM RELAÇÃO AOS DEMAIS]]=\"\"),\"O valor é inexequível (\"&TEXT(ANÁLISE1[[#This Row],[% EM RELAÇÃO AOS DEMAIS]],\"#.###.###,##%\")&\" da média dos demais preços). Todavia é considerado válido por ser um preço praticado pela Administração Pública.\",\nAND(ANÁLISE2[[#This Row],[Há EXC. ELEVADO?]]=0,ANÁLISE2[[#This Row],[AVALIAÇÃO 3 - Parte 3]]=\"VÁLIDO - PREÇO PÚBLICO\",ANÁLISE2[[#This Row],[% EM RELAÇÃO AOS DEMAIS]]<>\"\"),\"O valor é inexequível (\"&TEXT(ANÁLISE2[[#This Row],[% EM RELAÇÃO AOS DEMAIS]],\"#.###.###,##%\")&\" da média dos demais preços). Todavia é considerado válido por ser um preço praticado pela Administração Pública.\",\n\nAND(ANÁLISE2[[#This Row],[Há EXC. ELEVADO?]]>0,ANÁLISE2[[#This Row],[AVALIAÇÃO 3 - Parte 3]]=\"VÁLIDO - IGUAL A PREÇO PÚBLICO\"),\"Retirando preço(s) excessivamente elevado(s), o valor é inexequível (\"&TEXT(ANÁLISE2[[#This Row],[% EM RELAÇÃO AOS DEMAIS]],\"#.###.###,##%\")&\" da média dos demais preços). Porém, é considerado válido por ser igual a um preço praticado pela Administração Pública.\",\nAND(ANÁLISE2[[#This Row],[Há EXC. ELEVADO?]]=0,ANÁLISE2[[#This Row],[AVALIAÇÃO 3 - Parte 3]]=\"VÁLIDO - IGUAL A PREÇO PÚBLICO\",ANÁLISE2[[#This Row],[% EM RELAÇÃO AOS DEMAIS]]<>\"\"),\"O valor é inexequível (\"&TEXT(ANÁLISE2[[#This Row],[% EM RELAÇÃO AOS DEMAIS]],\"#.###.###,##%\")&\" da média dos demais preços). No entanto, é considerado válido por ser igual a um preço praticado pela Administração Pública.\",\n\n\nAND(ANÁLISE2[[#This Row],[Há EXC. ELEVADO?]]=0,ANÁLISE2[[#This Row],[AVALIAÇÃO 3 - Parte 3]]=\"VÁLIDO - MAIOR QUE PREÇO PÚBLICO\",ANÁLISE2[[#This Row],[% EM RELAÇÃO AOS DEMAIS]]<>\"\"),\"O valor é inexequível (\"&TEXT(ANÁLISE2[[#This Row],[% EM RELAÇÃO AOS DEMAIS]],\"#.###.###,##%\")&\" da média dos demais preços). No entanto, é considerado válido por ser maior do um preço praticado pela Administração Pública.\",\nAND(ANÁLISE2[[#This Row],[Há EXC. ELEVADO?]]>0,ANÁLISE2[[#This Row],[AVALIAÇÃO 3 - Parte 3]]=\"VÁLIDO - MAIOR QUE PREÇO PÚBLICO\"),\"Retirando preço(s) excessivamente elevado(s), o valor é inexequível (\"&TEXT(ANÁLISE2[[#This Row],[% EM RELAÇÃO AOS DEMAIS]],\"#.###.###,##%\")&\" da média dos demais preços). Porém, é considerado válido por ser maior do que um preço praticado pela Administração Pública.\",\n\nOR(ANÁLISE2[[#This Row],[AVALIAÇÃO 3 - Parte 3]]=\"VÁLIDO\",ANÁLISE2[[#This Row],[AVALIAÇÃO 3 - Parte 3]]=\"\"),\"\")","v":""},{"$f":"COUNTIF(ANÁLISE2[AVALIAÇÃO 2],\"EXCESSIVAMENTE ELEVADO\")","v":0},{"$f":"IF(ANÁLISE2[[#This Row],[AVALIAÇÃO 3 - Parte 1 ]]=1,ANÁLISE1[[#This Row],[PREÇO]],\"\")","v":""},"SIM",{"$f":"IF(OR(ANÁLISE1[[#This Row],[PREÇO]]=\"\",EXORB.!B21=LISTAS!$A$1,EXORB.!B21=LISTAS!$A$2,EXORB.!B21=LISTAS!$A$3),\"\",IFERROR(VLOOKUP(ANÁLISE1[[#This Row],[PREÇO]],ANÁLISE2[[PREÇOS PÚBLICOS]:[RESP. VERIFICAÇÃO]],2,FALSE),\"\"))","v":""},{"$f":"IF(MIN(ANÁLISE2[PREÇOS PÚBLICOS])=0,\"\",MIN(ANÁLISE2[PREÇOS PÚBLICOS]))","v":""},{"$f":"IF(AND(ANÁLISE2[[#This Row],[AVALIAÇÃO 2]]=\"INEXEQUÍVEL\",ANÁLISE2[[#This Row],[PREÇOS PÚBLICOS REPETIDOS?]]<>\"SIM\",ANÁLISE1[[#This Row],[PREÇO]]>ANÁLISE2[[#This Row],[MENOR PREÇO PÚBLICO VÁLIDO]]),\"VÁLIDO - MAIOR QUE PREÇO PÚBLICO\",\"\")","v":""}]
[{"$f":"IF(RELATÓRIO!B52=\"\",\"\",RELATÓRIO!B52)","v":""},{"$f":"IF(RELATÓRIO!C52=\"\",\"\",RELATÓRIO!C52)","v":""},{"$f":"ANÁLISE1[[#This Row],[PREÇOS VÁLIDOS APÓS AV. 1]]","v":""},{"$f":"IFERROR((SUM(ANÁLISE2[PREÇO])-ANÁLISE2[[#This Row],[PREÇO]])/(COUNT(ANÁLISE2[PREÇO])-1),\"\")","v":""},{"$f":"IFERROR(ANÁLISE2[[#This Row],[PREÇO]]/ANÁLISE2[[#This Row],[MÉDIA DOS DEMAIS PREÇOS]],\"\")","v":""},{"$f":"IF(ANÁLISE2[[#This Row],[% EM RELAÇÃO AOS DEMAIS]]<RELATÓRIO!$E$20,\"INEXEQUÍVEL\",ANÁLISE1[[#This Row],[AVALIAÇÃO 1]])","v":""},{"$f":"IF(ANÁLISE2[[#This Row],[AVALIAÇÃO 2]]=\"VÁLIDO\",ANÁLISE1[[#This Row],[PREÇO]],\"\")","v":""},{"$f":"IF(ANÁLISE1[[#This Row],[Verificação 1.2]]=\"OK\",IF(OR(ANÁLISE2[[#This Row],[TIPO DE FONTE]]=LISTAS!$A$1,ANÁLISE2[[#This Row],[TIPO DE FONTE]]=LISTAS!$A$2,ANÁLISE2[[#This Row],[TIPO DE FONTE]]=LISTAS!$A$3),1,2),\"\")","v":""},{"$f":"_xlfn.IFS(AND(ANÁLISE2[[#This Row],[AVALIAÇÃO 2]]=\"INEXEQUÍVEL\",ANÁLISE2[[#This Row],[AVALIAÇÃO 3 - Parte 1 ]]=1),\"VÁLIDO - PREÇO PÚBLICO\",AND(ANÁLISE2[[#This Row],[AVALIAÇÃO 2]]=\"INEXEQUÍVEL\",ANÁLISE2[[#This Row],[PREÇOS PÚBLICOS REPETIDOS?]]=\"SIM\"),\"VÁLIDO - IGUAL A PREÇO PÚBLICO\",ANÁLISE2[[#This Row],[AVALIAÇÃO 2]]<>\"\",ANÁLISE2[[#This Row],[AVALIAÇÃO 2]],ANÁLISE2[[#This Row],[AVALIAÇÃO 2]]=\"\",\"\")","v":""},{"$f":"_xlfn.IFS(ANÁLISE2[[#This Row],[AVALIAÇÃO 3 - Parte 2]]=\"VÁLIDO - PREÇO PÚBLICO\",ANÁLISE2[[#This Row],[AVALIAÇÃO 3 - Parte 2]],ANÁLISE2[[#This Row],[MENOR PREÇO PÚBLICO VÁLIDO2]]<>\"\",ANÁLISE2[[#This Row],[MENOR PREÇO PÚBLICO VÁLIDO2]],ANÁLISE2[[#This Row],[MENOR PREÇO PÚBLICO VÁLIDO2]]=\"\",ANÁLISE2[[#This Row],[AVALIAÇÃO 3 - Parte 2]])","v":""},{"$f":"IF(OR(ANÁLISE2[[#This Row],[AVALIAÇÃO 3 - Parte 2]]=\"EXCESSIVAMENTE ELEVADO\",ANÁLISE2[[#This Row],[AVALIAÇÃO 3 - Parte 2]]=\"INEXEQUÍVEL\"),\"\",ANÁLISE1[[#This Row],[PREÇO]])","v":""},{"$f":"IF(OR(ANÁLISE2[[#This Row],[AVALIAÇÃO 3 - Parte 3]]=\"EXCESSIVAMENTE ELEVADO\",ANÁLISE2[[#This Row],[AVALIAÇÃO 3 - Parte 3]]=\"INEXEQUÍVEL\"),\"\",ANÁLISE1[[#This Row],[PREÇO]])","v":""},{"$f":"_xlfn.IFS(\nAND(ANÁLISE2[[#This Row],[AVALIAÇÃO 3 - Parte 3]]=\"INEXEQUÍVEL\",ANÁLISE2[[#This Row],[Há EXC. ELEVADO?]]>0),\"Retirando preço(s) excessivamente elevado(s), o valor é \"&TEXT(ANÁLISE2[[#This Row],[% EM RELAÇÃO AOS DEMAIS]],\"#.###.###,##%\")&\" da média dos demais preços.\",\n\nAND(ANÁLISE2[[#This Row],[AVALIAÇÃO 3 - Parte 3]]=\"INEXEQUÍVEL\",ANÁLISE2[[#This Row],[Há EXC. ELEVADO?]]=0,ANÁLISE2[[#This Row],[% EM RELAÇÃO AOS DEMAIS]]=\"\"),\"O valor é \"&TEXT(ANÁLISE1[[#This Row],[% EM RELAÇÃO AOS DEMAIS]],\"#.###.###,##%\")&\"  da média dos demais preços.\",\n\nAND(ANÁLISE2[[#This Row],[AVALIAÇÃO 3 - Parte 3]]=\"INEXEQUÍVEL\",ANÁLISE2[[#This Row],[Há EXC. ELEVADO?]]=0),\"O valor é \"&TEXT(ANÁLISE2[[#This Row],[% EM RELAÇÃO AOS DEMAIS]],\"#.###.###,##%\")&\" da média dos demais preços.\",\n\nANÁLISE2[[#This Row],[AVALIAÇÃO 3 - Parte 3]]=\"EXCESSIVAMENTE ELEVADO\",\"O valor é \"&TEXT(ANÁLISE1[[#This Row],[% EM RELAÇÃO AOS DEMAIS]]-1,\"#.###.###,##%\")&\" superior à média dos demais preços.\",\n\nAND(ANÁLISE2[[#This Row],[Há EXC. ELEVADO?]]>0,ANÁLISE2[[#This Row],[AVALIAÇÃO 3 - Parte 3]]=\"VÁLIDO - PREÇO PÚBLICO\"),\"Retirando preço(s) excessivamente elevado(s), o valor é inexequível (\"&TEXT(ANÁLISE2[[#This Row],[% EM RELAÇÃO AOS DEMAIS]],\"#.###.###,##%\")&\" da média dos demais preços). Todavia é considerado válido por ser um preço praticado pela Administração Pública.\",\nAND(ANÁLISE2[[#This Row],[Há EXC. ELEVADO?]]=0,ANÁLISE2[[#This Row],[AVALIAÇÃO 3 - Parte 3]]=\"VÁLIDO - PREÇO PÚBLICO\",ANÁLISE2[[#This Row],[% EM RELAÇÃO AOS DEMAIS]]=\"\"),\"O valor é inexequível (\"&TEXT(ANÁLISE1[[#This Row],[% EM RELAÇÃO AOS DEMAIS]],\"#.###.###,##%\")&\" da média dos demais preços). Todavia é considerado válido por ser um preço praticado pela Administração Pública.\",\nAND(ANÁLISE2[[#This Row],[Há EXC. ELEVADO?]]=0,ANÁLISE2[[#This Row],[AVALIAÇÃO 3 - Parte 3]]=\"VÁLIDO - PREÇO PÚBLICO\",ANÁLISE2[[#This Row],[% EM RELAÇÃO AOS DEMAIS]]<>\"\"),\"O valor é inexequível (\"&TEXT(ANÁLISE2[[#This Row],[% EM RELAÇÃO AOS DEMAIS]],\"#.###.###,##%\")&\" da média dos demais preços). Todavia é considerado válido por ser um preço praticado pela Administração Pública.\",\n\nAND(ANÁLISE2[[#This Row],[Há EXC. ELEVADO?]]>0,ANÁLISE2[[#This Row],[AVALIAÇÃO 3 - Parte 3]]=\"VÁLIDO - IGUAL A PREÇO PÚBLICO\"),\"Retirando preço(s) excessivamente elevado(s), o valor é inexequível (\"&TEXT(ANÁLISE2[[#This Row],[% EM RELAÇÃO AOS DEMAIS]],\"#.###.###,##%\")&\" da média dos demais preços). Porém, é considerado válido por ser igual a um preço praticado pela Administração Pública.\",\nAND(ANÁLISE2[[#This Row],[Há EXC. ELEVADO?]]=0,ANÁLISE2[[#This Row],[AVALIAÇÃO 3 - Parte 3]]=\"VÁLIDO - IGUAL A PREÇO PÚBLICO\",ANÁLISE2[[#This Row],[% EM RELAÇÃO AOS DEMAIS]]<>\"\"),\"O valor é inexequível (\"&TEXT(ANÁLISE2[[#This Row],[% EM RELAÇÃO AOS DEMAIS]],\"#.###.###,##%\")&\" da média dos demais preços). No entanto, é considerado válido por ser igual a um preço praticado pela Administração Pública.\",\n\n\nAND(ANÁLISE2[[#This Row],[Há EXC. ELEVADO?]]=0,ANÁLISE2[[#This Row],[AVALIAÇÃO 3 - Parte 3]]=\"VÁLIDO - MAIOR QUE PREÇO PÚBLICO\",ANÁLISE2[[#This Row],[% EM RELAÇÃO AOS DEMAIS]]<>\"\"),\"O valor é inexequível (\"&TEXT(ANÁLISE2[[#This Row],[% EM RELAÇÃO AOS DEMAIS]],\"#.###.###,##%\")&\" da média dos demais preços). No entanto, é considerado válido por ser maior do um preço praticado pela Administração Pública.\",\nAND(ANÁLISE2[[#This Row],[Há EXC. ELEVADO?]]>0,ANÁLISE2[[#This Row],[AVALIAÇÃO 3 - Parte 3]]=\"VÁLIDO - MAIOR QUE PREÇO PÚBLICO\"),\"Retirando preço(s) excessivamente elevado(s), o valor é inexequível (\"&TEXT(ANÁLISE2[[#This Row],[% EM RELAÇÃO AOS DEMAIS]],\"#.###.###,##%\")&\" da média dos demais preços). Porém, é considerado válido por ser maior do que um preço praticado pela Administração Pública.\",\n\nOR(ANÁLISE2[[#This Row],[AVALIAÇÃO 3 - Parte 3]]=\"VÁLIDO\",ANÁLISE2[[#This Row],[AVALIAÇÃO 3 - Parte 3]]=\"\"),\"\")","v":""},{"$f":"COUNTIF(ANÁLISE2[AVALIAÇÃO 2],\"EXCESSIVAMENTE ELEVADO\")","v":0},{"$f":"IF(ANÁLISE2[[#This Row],[AVALIAÇÃO 3 - Parte 1 ]]=1,ANÁLISE1[[#This Row],[PREÇO]],\"\")","v":""},"SIM",{"$f":"IF(OR(ANÁLISE1[[#This Row],[PREÇO]]=\"\",EXORB.!B22=LISTAS!$A$1,EXORB.!B22=LISTAS!$A$2,EXORB.!B22=LISTAS!$A$3),\"\",IFERROR(VLOOKUP(ANÁLISE1[[#This Row],[PREÇO]],ANÁLISE2[[PREÇOS PÚBLICOS]:[RESP. VERIFICAÇÃO]],2,FALSE),\"\"))","v":""},{"$f":"IF(MIN(ANÁLISE2[PREÇOS PÚBLICOS])=0,\"\",MIN(ANÁLISE2[PREÇOS PÚBLICOS]))","v":""},{"$f":"IF(AND(ANÁLISE2[[#This Row],[AVALIAÇÃO 2]]=\"INEXEQUÍVEL\",ANÁLISE2[[#This Row],[PREÇOS PÚBLICOS REPETIDOS?]]<>\"SIM\",ANÁLISE1[[#This Row],[PREÇO]]>ANÁLISE2[[#This Row],[MENOR PREÇO PÚBLICO VÁLIDO]]),\"VÁLIDO - MAIOR QUE PREÇO PÚBLICO\",\"\")","v":""}]
[{"$f":"IF(RELATÓRIO!B53=\"\",\"\",RELATÓRIO!B53)","v":""},{"$f":"IF(RELATÓRIO!C53=\"\",\"\",RELATÓRIO!C53)","v":""},{"$f":"ANÁLISE1[[#This Row],[PREÇOS VÁLIDOS APÓS AV. 1]]","v":""},{"$f":"IFERROR((SUM(ANÁLISE2[PREÇO])-ANÁLISE2[[#This Row],[PREÇO]])/(COUNT(ANÁLISE2[PREÇO])-1),\"\")","v":""},{"$f":"IFERROR(ANÁLISE2[[#This Row],[PREÇO]]/ANÁLISE2[[#This Row],[MÉDIA DOS DEMAIS PREÇOS]],\"\")","v":""},{"$f":"IF(ANÁLISE2[[#This Row],[% EM RELAÇÃO AOS DEMAIS]]<RELATÓRIO!$E$20,\"INEXEQUÍVEL\",ANÁLISE1[[#This Row],[AVALIAÇÃO 1]])","v":""},{"$f":"IF(ANÁLISE2[[#This Row],[AVALIAÇÃO 2]]=\"VÁLIDO\",ANÁLISE1[[#This Row],[PREÇO]],\"\")","v":""},{"$f":"IF(ANÁLISE1[[#This Row],[Verificação 1.2]]=\"OK\",IF(OR(ANÁLISE2[[#This Row],[TIPO DE FONTE]]=LISTAS!$A$1,ANÁLISE2[[#This Row],[TIPO DE FONTE]]=LISTAS!$A$2,ANÁLISE2[[#This Row],[TIPO DE FONTE]]=LISTAS!$A$3),1,2),\"\")","v":""},{"$f":"_xlfn.IFS(AND(ANÁLISE2[[#This Row],[AVALIAÇÃO 2]]=\"INEXEQUÍVEL\",ANÁLISE2[[#This Row],[AVALIAÇÃO 3 - Parte 1 ]]=1),\"VÁLIDO - PREÇO PÚBLICO\",AND(ANÁLISE2[[#This Row],[AVALIAÇÃO 2]]=\"INEXEQUÍVEL\",ANÁLISE2[[#This Row],[PREÇOS PÚBLICOS REPETIDOS?]]=\"SIM\"),\"VÁLIDO - IGUAL A PREÇO PÚBLICO\",ANÁLISE2[[#This Row],[AVALIAÇÃO 2]]<>\"\",ANÁLISE2[[#This Row],[AVALIAÇÃO 2]],ANÁLISE2[[#This Row],[AVALIAÇÃO 2]]=\"\",\"\")","v":""},{"$f":"_xlfn.IFS(ANÁLISE2[[#This Row],[AVALIAÇÃO 3 - Parte 2]]=\"VÁLIDO - PREÇO PÚBLICO\",ANÁLISE2[[#This Row],[AVALIAÇÃO 3 - Parte 2]],ANÁLISE2[[#This Row],[MENOR PREÇO PÚBLICO VÁLIDO2]]<>\"\",ANÁLISE2[[#This Row],[MENOR PREÇO PÚBLICO VÁLIDO2]],ANÁLISE2[[#This Row],[MENOR PREÇO PÚBLICO VÁLIDO2]]=\"\",ANÁLISE2[[#This Row],[AVALIAÇÃO 3 - Parte 2]])","v":""},{"$f":"IF(OR(ANÁLISE2[[#This Row],[AVALIAÇÃO 3 - Parte 2]]=\"EXCESSIVAMENTE ELEVADO\",ANÁLISE2[[#This Row],[AVALIAÇÃO 3 - Parte 2]]=\"INEXEQUÍVEL\"),\"\",ANÁLISE1[[#This Row],[PREÇO]])","v":""},{"$f":"IF(OR(ANÁLISE2[[#This Row],[AVALIAÇÃO 3 - Parte 3]]=\"EXCESSIVAMENTE ELEVADO\",ANÁLISE2[[#This Row],[AVALIAÇÃO 3 - Parte 3]]=\"INEXEQUÍVEL\"),\"\",ANÁLISE1[[#This Row],[PREÇO]])","v":""},{"$f":"_xlfn.IFS(\nAND(ANÁLISE2[[#This Row],[AVALIAÇÃO 3 - Parte 3]]=\"INEXEQUÍVEL\",ANÁLISE2[[#This Row],[Há EXC. ELEVADO?]]>0),\"Retirando preço(s) excessivamente elevado(s), o valor é \"&TEXT(ANÁLISE2[[#This Row],[% EM RELAÇÃO AOS DEMAIS]],\"#.###.###,##%\")&\" da média dos demais preços.\",\n\nAND(ANÁLISE2[[#This Row],[AVALIAÇÃO 3 - Parte 3]]=\"INEXEQUÍVEL\",ANÁLISE2[[#This Row],[Há EXC. ELEVADO?]]=0,ANÁLISE2[[#This Row],[% EM RELAÇÃO AOS DEMAIS]]=\"\"),\"O valor é \"&TEXT(ANÁLISE1[[#This Row],[% EM RELAÇÃO AOS DEMAIS]],\"#.###.###,##%\")&\"  da média dos demais preços.\",\n\nAND(ANÁLISE2[[#This Row],[AVALIAÇÃO 3 - Parte 3]]=\"INEXEQUÍVEL\",ANÁLISE2[[#This Row],[Há EXC. ELEVADO?]]=0),\"O valor é \"&TEXT(ANÁLISE2[[#This Row],[% EM RELAÇÃO AOS DEMAIS]],\"#.###.###,##%\")&\" da média dos demais preços.\",\n\nANÁLISE2[[#This Row],[AVALIAÇÃO 3 - Parte 3]]=\"EXCESSIVAMENTE ELEVADO\",\"O valor é \"&TEXT(ANÁLISE1[[#This Row],[% EM RELAÇÃO AOS DEMAIS]]-1,\"#.###.###,##%\")&\" superior à média dos demais preços.\",\n\nAND(ANÁLISE2[[#This Row],[Há EXC. ELEVADO?]]>0,ANÁLISE2[[#This Row],[AVALIAÇÃO 3 - Parte 3]]=\"VÁLIDO - PREÇO PÚBLICO\"),\"Retirando preço(s) excessivamente elevado(s), o valor é inexequível (\"&TEXT(ANÁLISE2[[#This Row],[% EM RELAÇÃO AOS DEMAIS]],\"#.###.###,##%\")&\" da média dos demais preços). Todavia é considerado válido por ser um preço praticado pela Administração Pública.\",\nAND(ANÁLISE2[[#This Row],[Há EXC. ELEVADO?]]=0,ANÁLISE2[[#This Row],[AVALIAÇÃO 3 - Parte 3]]=\"VÁLIDO - PREÇO PÚBLICO\",ANÁLISE2[[#This Row],[% EM RELAÇÃO AOS DEMAIS]]=\"\"),\"O valor é inexequível (\"&TEXT(ANÁLISE1[[#This Row],[% EM RELAÇÃO AOS DEMAIS]],\"#.###.###,##%\")&\" da média dos demais preços). Todavia é considerado válido por ser um preço praticado pela Administração Pública.\",\nAND(ANÁLISE2[[#This Row],[Há EXC. ELEVADO?]]=0,ANÁLISE2[[#This Row],[AVALIAÇÃO 3 - Parte 3]]=\"VÁLIDO - PREÇO PÚBLICO\",ANÁLISE2[[#This Row],[% EM RELAÇÃO AOS DEMAIS]]<>\"\"),\"O valor é inexequível (\"&TEXT(ANÁLISE2[[#This Row],[% EM RELAÇÃO AOS DEMAIS]],\"#.###.###,##%\")&\" da média dos demais preços). Todavia é considerado válido por ser um preço praticado pela Administração Pública.\",\n\nAND(ANÁLISE2[[#This Row],[Há EXC. ELEVADO?]]>0,ANÁLISE2[[#This Row],[AVALIAÇÃO 3 - Parte 3]]=\"VÁLIDO - IGUAL A PREÇO PÚBLICO\"),\"Retirando preço(s) excessivamente elevado(s), o valor é inexequível (\"&TEXT(ANÁLISE2[[#This Row],[% EM RELAÇÃO AOS DEMAIS]],\"#.###.###,##%\")&\" da média dos demais preços). Porém, é considerado válido por ser igual a um preço praticado pela Administração Pública.\",\nAND(ANÁLISE2[[#This Row],[Há EXC. ELEVADO?]]=0,ANÁLISE2[[#This Row],[AVALIAÇÃO 3 - Parte 3]]=\"VÁLIDO - IGUAL A PREÇO PÚBLICO\",ANÁLISE2[[#This Row],[% EM RELAÇÃO AOS DEMAIS]]<>\"\"),\"O valor é inexequível (\"&TEXT(ANÁLISE2[[#This Row],[% EM RELAÇÃO AOS DEMAIS]],\"#.###.###,##%\")&\" da média dos demais preços). No entanto, é considerado válido por ser igual a um preço praticado pela Administração Pública.\",\n\n\nAND(ANÁLISE2[[#This Row],[Há EXC. ELEVADO?]]=0,ANÁLISE2[[#This Row],[AVALIAÇÃO 3 - Parte 3]]=\"VÁLIDO - MAIOR QUE PREÇO PÚBLICO\",ANÁLISE2[[#This Row],[% EM RELAÇÃO AOS DEMAIS]]<>\"\"),\"O valor é inexequível (\"&TEXT(ANÁLISE2[[#This Row],[% EM RELAÇÃO AOS DEMAIS]],\"#.###.###,##%\")&\" da média dos demais preços). No entanto, é considerado válido por ser maior do um preço praticado pela Administração Pública.\",\nAND(ANÁLISE2[[#This Row],[Há EXC. ELEVADO?]]>0,ANÁLISE2[[#This Row],[AVALIAÇÃO 3 - Parte 3]]=\"VÁLIDO - MAIOR QUE PREÇO PÚBLICO\"),\"Retirando preço(s) excessivamente elevado(s), o valor é inexequível (\"&TEXT(ANÁLISE2[[#This Row],[% EM RELAÇÃO AOS DEMAIS]],\"#.###.###,##%\")&\" da média dos demais preços). Porém, é considerado válido por ser maior do que um preço praticado pela Administração Pública.\",\n\nOR(ANÁLISE2[[#This Row],[AVALIAÇÃO 3 - Parte 3]]=\"VÁLIDO\",ANÁLISE2[[#This Row],[AVALIAÇÃO 3 - Parte 3]]=\"\"),\"\")","v":""},{"$f":"COUNTIF(ANÁLISE2[AVALIAÇÃO 2],\"EXCESSIVAMENTE ELEVADO\")","v":0},{"$f":"IF(ANÁLISE2[[#This Row],[AVALIAÇÃO 3 - Parte 1 ]]=1,ANÁLISE1[[#This Row],[PREÇO]],\"\")","v":""},"SIM",{"$f":"IF(OR(ANÁLISE1[[#This Row],[PREÇO]]=\"\",EXORB.!B23=LISTAS!$A$1,EXORB.!B23=LISTAS!$A$2,EXORB.!B23=LISTAS!$A$3),\"\",IFERROR(VLOOKUP(ANÁLISE1[[#This Row],[PREÇO]],ANÁLISE2[[PREÇOS PÚBLICOS]:[RESP. VERIFICAÇÃO]],2,FALSE),\"\"))","v":""},{"$f":"IF(MIN(ANÁLISE2[PREÇOS PÚBLICOS])=0,\"\",MIN(ANÁLISE2[PREÇOS PÚBLICOS]))","v":""},{"$f":"IF(AND(ANÁLISE2[[#This Row],[AVALIAÇÃO 2]]=\"INEXEQUÍVEL\",ANÁLISE2[[#This Row],[PREÇOS PÚBLICOS REPETIDOS?]]<>\"SIM\",ANÁLISE1[[#This Row],[PREÇO]]>ANÁLISE2[[#This Row],[MENOR PREÇO PÚBLICO VÁLIDO]]),\"VÁLIDO - MAIOR QUE PREÇO PÚBLICO\",\"\")","v":""}]
[{"$f":"IF(RELATÓRIO!B54=\"\",\"\",RELATÓRIO!B54)","v":""},{"$f":"IF(RELATÓRIO!C54=\"\",\"\",RELATÓRIO!C54)","v":""},{"$f":"ANÁLISE1[[#This Row],[PREÇOS VÁLIDOS APÓS AV. 1]]","v":""},{"$f":"IFERROR((SUM(ANÁLISE2[PREÇO])-ANÁLISE2[[#This Row],[PREÇO]])/(COUNT(ANÁLISE2[PREÇO])-1),\"\")","v":""},{"$f":"IFERROR(ANÁLISE2[[#This Row],[PREÇO]]/ANÁLISE2[[#This Row],[MÉDIA DOS DEMAIS PREÇOS]],\"\")","v":""},{"$f":"IF(ANÁLISE2[[#This Row],[% EM RELAÇÃO AOS DEMAIS]]<RELATÓRIO!$E$20,\"INEXEQUÍVEL\",ANÁLISE1[[#This Row],[AVALIAÇÃO 1]])","v":""},{"$f":"IF(ANÁLISE2[[#This Row],[AVALIAÇÃO 2]]=\"VÁLIDO\",ANÁLISE1[[#This Row],[PREÇO]],\"\")","v":""},{"$f":"IF(ANÁLISE1[[#This Row],[Verificação 1.2]]=\"OK\",IF(OR(ANÁLISE2[[#This Row],[TIPO DE FONTE]]=LISTAS!$A$1,ANÁLISE2[[#This Row],[TIPO DE FONTE]]=LISTAS!$A$2,ANÁLISE2[[#This Row],[TIPO DE FONTE]]=LISTAS!$A$3),1,2),\"\")","v":""},{"$f":"_xlfn.IFS(AND(ANÁLISE2[[#This Row],[AVALIAÇÃO 2]]=\"INEXEQUÍVEL\",ANÁLISE2[[#This Row],[AVALIAÇÃO 3 - Parte 1 ]]=1),\"VÁLIDO - PREÇO PÚBLICO\",AND(ANÁLISE2[[#This Row],[AVALIAÇÃO 2]]=\"INEXEQUÍVEL\",ANÁLISE2[[#This Row],[PREÇOS PÚBLICOS REPETIDOS?]]=\"SIM\"),\"VÁLIDO - IGUAL A PREÇO PÚBLICO\",ANÁLISE2[[#This Row],[AVALIAÇÃO 2]]<>\"\",ANÁLISE2[[#This Row],[AVALIAÇÃO 2]],ANÁLISE2[[#This Row],[AVALIAÇÃO 2]]=\"\",\"\")","v":""},{"$f":"_xlfn.IFS(ANÁLISE2[[#This Row],[AVALIAÇÃO 3 - Parte 2]]=\"VÁLIDO - PREÇO PÚBLICO\",ANÁLISE2[[#This Row],[AVALIAÇÃO 3 - Parte 2]],ANÁLISE2[[#This Row],[MENOR PREÇO PÚBLICO VÁLIDO2]]<>\"\",ANÁLISE2[[#This Row],[MENOR PREÇO PÚBLICO VÁLIDO2]],ANÁLISE2[[#This Row],[MENOR PREÇO PÚBLICO VÁLIDO2]]=\"\",ANÁLISE2[[#This Row],[AVALIAÇÃO 3 - Parte 2]])","v":""},{"$f":"IF(OR(ANÁLISE2[[#This Row],[AVALIAÇÃO 3 - Parte 2]]=\"EXCESSIVAMENTE ELEVADO\",ANÁLISE2[[#This Row],[AVALIAÇÃO 3 - Parte 2]]=\"INEXEQUÍVEL\"),\"\",ANÁLISE1[[#This Row],[PREÇO]])","v":""},{"$f":"IF(OR(ANÁLISE2[[#This Row],[AVALIAÇÃO 3 - Parte 3]]=\"EXCESSIVAMENTE ELEVADO\",ANÁLISE2[[#This Row],[AVALIAÇÃO 3 - Parte 3]]=\"INEXEQUÍVEL\"),\"\",ANÁLISE1[[#This Row],[PREÇO]])","v":""},{"$f":"_xlfn.IFS(\nAND(ANÁLISE2[[#This Row],[AVALIAÇÃO 3 - Parte 3]]=\"INEXEQUÍVEL\",ANÁLISE2[[#This Row],[Há EXC. ELEVADO?]]>0),\"Retirando preço(s) excessivamente elevado(s), o valor é \"&TEXT(ANÁLISE2[[#This Row],[% EM RELAÇÃO AOS DEMAIS]],\"#.###.###,##%\")&\" da média dos demais preços.\",\n\nAND(ANÁLISE2[[#This Row],[AVALIAÇÃO 3 - Parte 3]]=\"INEXEQUÍVEL\",ANÁLISE2[[#This Row],[Há EXC. ELEVADO?]]=0,ANÁLISE2[[#This Row],[% EM RELAÇÃO AOS DEMAIS]]=\"\"),\"O valor é \"&TEXT(ANÁLISE1[[#This Row],[% EM RELAÇÃO AOS DEMAIS]],\"#.###.###,##%\")&\"  da média dos demais preços.\",\n\nAND(ANÁLISE2[[#This Row],[AVALIAÇÃO 3 - Parte 3]]=\"INEXEQUÍVEL\",ANÁLISE2[[#This Row],[Há EXC. ELEVADO?]]=0),\"O valor é \"&TEXT(ANÁLISE2[[#This Row],[% EM RELAÇÃO AOS DEMAIS]],\"#.###.###,##%\")&\" da média dos demais preços.\",\n\nANÁLISE2[[#This Row],[AVALIAÇÃO 3 - Parte 3]]=\"EXCESSIVAMENTE ELEVADO\",\"O valor é \"&TEXT(ANÁLISE1[[#This Row],[% EM RELAÇÃO AOS DEMAIS]]-1,\"#.###.###,##%\")&\" superior à média dos demais preços.\",\n\nAND(ANÁLISE2[[#This Row],[Há EXC. ELEVADO?]]>0,ANÁLISE2[[#This Row],[AVALIAÇÃO 3 - Parte 3]]=\"VÁLIDO - PREÇO PÚBLICO\"),\"Retirando preço(s) excessivamente elevado(s), o valor é inexequível (\"&TEXT(ANÁLISE2[[#This Row],[% EM RELAÇÃO AOS DEMAIS]],\"#.###.###,##%\")&\" da média dos demais preços). Todavia é considerado válido por ser um preço praticado pela Administração Pública.\",\nAND(ANÁLISE2[[#This Row],[Há EXC. ELEVADO?]]=0,ANÁLISE2[[#This Row],[AVALIAÇÃO 3 - Parte 3]]=\"VÁLIDO - PREÇO PÚBLICO\",ANÁLISE2[[#This Row],[% EM RELAÇÃO AOS DEMAIS]]=\"\"),\"O valor é inexequível (\"&TEXT(ANÁLISE1[[#This Row],[% EM RELAÇÃO AOS DEMAIS]],\"#.###.###,##%\")&\" da média dos demais preços). Todavia é considerado válido por ser um preço praticado pela Administração Pública.\",\nAND(ANÁLISE2[[#This Row],[Há EXC. ELEVADO?]]=0,ANÁLISE2[[#This Row],[AVALIAÇÃO 3 - Parte 3]]=\"VÁLIDO - PREÇO PÚBLICO\",ANÁLISE2[[#This Row],[% EM RELAÇÃO AOS DEMAIS]]<>\"\"),\"O valor é inexequível (\"&TEXT(ANÁLISE2[[#This Row],[% EM RELAÇÃO AOS DEMAIS]],\"#.###.###,##%\")&\" da média dos demais preços). Todavia é considerado válido por ser um preço praticado pela Administração Pública.\",\n\nAND(ANÁLISE2[[#This Row],[Há EXC. ELEVADO?]]>0,ANÁLISE2[[#This Row],[AVALIAÇÃO 3 - Parte 3]]=\"VÁLIDO - IGUAL A PREÇO PÚBLICO\"),\"Retirando preço(s) excessivamente elevado(s), o valor é inexequível (\"&TEXT(ANÁLISE2[[#This Row],[% EM RELAÇÃO AOS DEMAIS]],\"#.###.###,##%\")&\" da média dos demais preços). Porém, é considerado válido por ser igual a um preço praticado pela Administração Pública.\",\nAND(ANÁLISE2[[#This Row],[Há EXC. ELEVADO?]]=0,ANÁLISE2[[#This Row],[AVALIAÇÃO 3 - Parte 3]]=\"VÁLIDO - IGUAL A PREÇO PÚBLICO\",ANÁLISE2[[#This Row],[% EM RELAÇÃO AOS DEMAIS]]<>\"\"),\"O valor é inexequível (\"&TEXT(ANÁLISE2[[#This Row],[% EM RELAÇÃO AOS DEMAIS]],\"#.###.###,##%\")&\" da média dos demais preços). No entanto, é considerado válido por ser igual a um preço praticado pela Administração Pública.\",\n\n\nAND(ANÁLISE2[[#This Row],[Há EXC. ELEVADO?]]=0,ANÁLISE2[[#This Row],[AVALIAÇÃO 3 - Parte 3]]=\"VÁLIDO - MAIOR QUE PREÇO PÚBLICO\",ANÁLISE2[[#This Row],[% EM RELAÇÃO AOS DEMAIS]]<>\"\"),\"O valor é inexequível (\"&TEXT(ANÁLISE2[[#This Row],[% EM RELAÇÃO AOS DEMAIS]],\"#.###.###,##%\")&\" da média dos demais preços). No entanto, é considerado válido por ser maior do um preço praticado pela Administração Pública.\",\nAND(ANÁLISE2[[#This Row],[Há EXC. ELEVADO?]]>0,ANÁLISE2[[#This Row],[AVALIAÇÃO 3 - Parte 3]]=\"VÁLIDO - MAIOR QUE PREÇO PÚBLICO\"),\"Retirando preço(s) excessivamente elevado(s), o valor é inexequível (\"&TEXT(ANÁLISE2[[#This Row],[% EM RELAÇÃO AOS DEMAIS]],\"#.###.###,##%\")&\" da média dos demais preços). Porém, é considerado válido por ser maior do que um preço praticado pela Administração Pública.\",\n\nOR(ANÁLISE2[[#This Row],[AVALIAÇÃO 3 - Parte 3]]=\"VÁLIDO\",ANÁLISE2[[#This Row],[AVALIAÇÃO 3 - Parte 3]]=\"\"),\"\")","v":""},{"$f":"COUNTIF(ANÁLISE2[AVALIAÇÃO 2],\"EXCESSIVAMENTE ELEVADO\")","v":0},{"$f":"IF(ANÁLISE2[[#This Row],[AVALIAÇÃO 3 - Parte 1 ]]=1,ANÁLISE1[[#This Row],[PREÇO]],\"\")","v":""},"SIM",{"$f":"IF(OR(ANÁLISE1[[#This Row],[PREÇO]]=\"\",EXORB.!B24=LISTAS!$A$1,EXORB.!B24=LISTAS!$A$2,EXORB.!B24=LISTAS!$A$3),\"\",IFERROR(VLOOKUP(ANÁLISE1[[#This Row],[PREÇO]],ANÁLISE2[[PREÇOS PÚBLICOS]:[RESP. VERIFICAÇÃO]],2,FALSE),\"\"))","v":""},{"$f":"IF(MIN(ANÁLISE2[PREÇOS PÚBLICOS])=0,\"\",MIN(ANÁLISE2[PREÇOS PÚBLICOS]))","v":""},{"$f":"IF(AND(ANÁLISE2[[#This Row],[AVALIAÇÃO 2]]=\"INEXEQUÍVEL\",ANÁLISE2[[#This Row],[PREÇOS PÚBLICOS REPETIDOS?]]<>\"SIM\",ANÁLISE1[[#This Row],[PREÇO]]>ANÁLISE2[[#This Row],[MENOR PREÇO PÚBLICO VÁLIDO]]),\"VÁLIDO - MAIOR QUE PREÇO PÚBLICO\",\"\")","v":""}]
[{"$f":"IF(RELATÓRIO!B55=\"\",\"\",RELATÓRIO!B55)","v":""},{"$f":"IF(RELATÓRIO!C55=\"\",\"\",RELATÓRIO!C55)","v":""},{"$f":"ANÁLISE1[[#This Row],[PREÇOS VÁLIDOS APÓS AV. 1]]","v":""},{"$f":"IFERROR((SUM(ANÁLISE2[PREÇO])-ANÁLISE2[[#This Row],[PREÇO]])/(COUNT(ANÁLISE2[PREÇO])-1),\"\")","v":""},{"$f":"IFERROR(ANÁLISE2[[#This Row],[PREÇO]]/ANÁLISE2[[#This Row],[MÉDIA DOS DEMAIS PREÇOS]],\"\")","v":""},{"$f":"IF(ANÁLISE2[[#This Row],[% EM RELAÇÃO AOS DEMAIS]]<RELATÓRIO!$E$20,\"INEXEQUÍVEL\",ANÁLISE1[[#This Row],[AVALIAÇÃO 1]])","v":""},{"$f":"IF(ANÁLISE2[[#This Row],[AVALIAÇÃO 2]]=\"VÁLIDO\",ANÁLISE1[[#This Row],[PREÇO]],\"\")","v":""},{"$f":"IF(ANÁLISE1[[#This Row],[Verificação 1.2]]=\"OK\",IF(OR(ANÁLISE2[[#This Row],[TIPO DE FONTE]]=LISTAS!$A$1,ANÁLISE2[[#This Row],[TIPO DE FONTE]]=LISTAS!$A$2,ANÁLISE2[[#This Row],[TIPO DE FONTE]]=LISTAS!$A$3),1,2),\"\")","v":""},{"$f":"_xlfn.IFS(AND(ANÁLISE2[[#This Row],[AVALIAÇÃO 2]]=\"INEXEQUÍVEL\",ANÁLISE2[[#This Row],[AVALIAÇÃO 3 - Parte 1 ]]=1),\"VÁLIDO - PREÇO PÚBLICO\",AND(ANÁLISE2[[#This Row],[AVALIAÇÃO 2]]=\"INEXEQUÍVEL\",ANÁLISE2[[#This Row],[PREÇOS PÚBLICOS REPETIDOS?]]=\"SIM\"),\"VÁLIDO - IGUAL A PREÇO PÚBLICO\",ANÁLISE2[[#This Row],[AVALIAÇÃO 2]]<>\"\",ANÁLISE2[[#This Row],[AVALIAÇÃO 2]],ANÁLISE2[[#This Row],[AVALIAÇÃO 2]]=\"\",\"\")","v":""},{"$f":"_xlfn.IFS(ANÁLISE2[[#This Row],[AVALIAÇÃO 3 - Parte 2]]=\"VÁLIDO - PREÇO PÚBLICO\",ANÁLISE2[[#This Row],[AVALIAÇÃO 3 - Parte 2]],ANÁLISE2[[#This Row],[MENOR PREÇO PÚBLICO VÁLIDO2]]<>\"\",ANÁLISE2[[#This Row],[MENOR PREÇO PÚBLICO VÁLIDO2]],ANÁLISE2[[#This Row],[MENOR PREÇO PÚBLICO VÁLIDO2]]=\"\",ANÁLISE2[[#This Row],[AVALIAÇÃO 3 - Parte 2]])","v":""},{"$f":"IF(OR(ANÁLISE2[[#This Row],[AVALIAÇÃO 3 - Parte 2]]=\"EXCESSIVAMENTE ELEVADO\",ANÁLISE2[[#This Row],[AVALIAÇÃO 3 - Parte 2]]=\"INEXEQUÍVEL\"),\"\",ANÁLISE1[[#This Row],[PREÇO]])","v":""},{"$f":"IF(OR(ANÁLISE2[[#This Row],[AVALIAÇÃO 3 - Parte 3]]=\"EXCESSIVAMENTE ELEVADO\",ANÁLISE2[[#This Row],[AVALIAÇÃO 3 - Parte 3]]=\"INEXEQUÍVEL\"),\"\",ANÁLISE1[[#This Row],[PREÇO]])","v":""},{"$f":"_xlfn.IFS(\nAND(ANÁLISE2[[#This Row],[AVALIAÇÃO 3 - Parte 3]]=\"INEXEQUÍVEL\",ANÁLISE2[[#This Row],[Há EXC. ELEVADO?]]>0),\"Retirando preço(s) excessivamente elevado(s), o valor é \"&TEXT(ANÁLISE2[[#This Row],[% EM RELAÇÃO AOS DEMAIS]],\"#.###.###,##%\")&\" da média dos demais preços.\",\n\nAND(ANÁLISE2[[#This Row],[AVALIAÇÃO 3 - Parte 3]]=\"INEXEQUÍVEL\",ANÁLISE2[[#This Row],[Há EXC. ELEVADO?]]=0,ANÁLISE2[[#This Row],[% EM RELAÇÃO AOS DEMAIS]]=\"\"),\"O valor é \"&TEXT(ANÁLISE1[[#This Row],[% EM RELAÇÃO AOS DEMAIS]],\"#.###.###,##%\")&\"  da média dos demais preços.\",\n\nAND(ANÁLISE2[[#This Row],[AVALIAÇÃO 3 - Parte 3]]=\"INEXEQUÍVEL\",ANÁLISE2[[#This Row],[Há EXC. ELEVADO?]]=0),\"O valor é \"&TEXT(ANÁLISE2[[#This Row],[% EM RELAÇÃO AOS DEMAIS]],\"#.###.###,##%\")&\" da média dos demais preços.\",\n\nANÁLISE2[[#This Row],[AVALIAÇÃO 3 - Parte 3]]=\"EXCESSIVAMENTE ELEVADO\",\"O valor é \"&TEXT(ANÁLISE1[[#This Row],[% EM RELAÇÃO AOS DEMAIS]]-1,\"#.###.###,##%\")&\" superior à média dos demais preços.\",\n\nAND(ANÁLISE2[[#This Row],[Há EXC. ELEVADO?]]>0,ANÁLISE2[[#This Row],[AVALIAÇÃO 3 - Parte 3]]=\"VÁLIDO - PREÇO PÚBLICO\"),\"Retirando preço(s) excessivamente elevado(s), o valor é inexequível (\"&TEXT(ANÁLISE2[[#This Row],[% EM RELAÇÃO AOS DEMAIS]],\"#.###.###,##%\")&\" da média dos demais preços). Todavia é considerado válido por ser um preço praticado pela Administração Pública.\",\nAND(ANÁLISE2[[#This Row],[Há EXC. ELEVADO?]]=0,ANÁLISE2[[#This Row],[AVALIAÇÃO 3 - Parte 3]]=\"VÁLIDO - PREÇO PÚBLICO\",ANÁLISE2[[#This Row],[% EM RELAÇÃO AOS DEMAIS]]=\"\"),\"O valor é inexequível (\"&TEXT(ANÁLISE1[[#This Row],[% EM RELAÇÃO AOS DEMAIS]],\"#.###.###,##%\")&\" da média dos demais preços). Todavia é considerado válido por ser um preço praticado pela Administração Pública.\",\nAND(ANÁLISE2[[#This Row],[Há EXC. ELEVADO?]]=0,ANÁLISE2[[#This Row],[AVALIAÇÃO 3 - Parte 3]]=\"VÁLIDO - PREÇO PÚBLICO\",ANÁLISE2[[#This Row],[% EM RELAÇÃO AOS DEMAIS]]<>\"\"),\"O valor é inexequível (\"&TEXT(ANÁLISE2[[#This Row],[% EM RELAÇÃO AOS DEMAIS]],\"#.###.###,##%\")&\" da média dos demais preços). Todavia é considerado válido por ser um preço praticado pela Administração Pública.\",\n\nAND(ANÁLISE2[[#This Row],[Há EXC. ELEVADO?]]>0,ANÁLISE2[[#This Row],[AVALIAÇÃO 3 - Parte 3]]=\"VÁLIDO - IGUAL A PREÇO PÚBLICO\"),\"Retirando preço(s) excessivamente elevado(s), o valor é inexequível (\"&TEXT(ANÁLISE2[[#This Row],[% EM RELAÇÃO AOS DEMAIS]],\"#.###.###,##%\")&\" da média dos demais preços). Porém, é considerado válido por ser igual a um preço praticado pela Administração Pública.\",\nAND(ANÁLISE2[[#This Row],[Há EXC. ELEVADO?]]=0,ANÁLISE2[[#This Row],[AVALIAÇÃO 3 - Parte 3]]=\"VÁLIDO - IGUAL A PREÇO PÚBLICO\",ANÁLISE2[[#This Row],[% EM RELAÇÃO AOS DEMAIS]]<>\"\"),\"O valor é inexequível (\"&TEXT(ANÁLISE2[[#This Row],[% EM RELAÇÃO AOS DEMAIS]],\"#.###.###,##%\")&\" da média dos demais preços). No entanto, é considerado válido por ser igual a um preço praticado pela Administração Pública.\",\n\n\nAND(ANÁLISE2[[#This Row],[Há EXC. ELEVADO?]]=0,ANÁLISE2[[#This Row],[AVALIAÇÃO 3 - Parte 3]]=\"VÁLIDO - MAIOR QUE PREÇO PÚBLICO\",ANÁLISE2[[#This Row],[% EM RELAÇÃO AOS DEMAIS]]<>\"\"),\"O valor é inexequível (\"&TEXT(ANÁLISE2[[#This Row],[% EM RELAÇÃO AOS DEMAIS]],\"#.###.###,##%\")&\" da média dos demais preços). No entanto, é considerado válido por ser maior do um preço praticado pela Administração Pública.\",\nAND(ANÁLISE2[[#This Row],[Há EXC. ELEVADO?]]>0,ANÁLISE2[[#This Row],[AVALIAÇÃO 3 - Parte 3]]=\"VÁLIDO - MAIOR QUE PREÇO PÚBLICO\"),\"Retirando preço(s) excessivamente elevado(s), o valor é inexequível (\"&TEXT(ANÁLISE2[[#This Row],[% EM RELAÇÃO AOS DEMAIS]],\"#.###.###,##%\")&\" da média dos demais preços). Porém, é considerado válido por ser maior do que um preço praticado pela Administração Pública.\",\n\nOR(ANÁLISE2[[#This Row],[AVALIAÇÃO 3 - Parte 3]]=\"VÁLIDO\",ANÁLISE2[[#This Row],[AVALIAÇÃO 3 - Parte 3]]=\"\"),\"\")","v":""},{"$f":"COUNTIF(ANÁLISE2[AVALIAÇÃO 2],\"EXCESSIVAMENTE ELEVADO\")","v":0},{"$f":"IF(ANÁLISE2[[#This Row],[AVALIAÇÃO 3 - Parte 1 ]]=1,ANÁLISE1[[#This Row],[PREÇO]],\"\")","v":""},"SIM",{"$f":"IF(OR(ANÁLISE1[[#This Row],[PREÇO]]=\"\",EXORB.!B25=LISTAS!$A$1,EXORB.!B25=LISTAS!$A$2,EXORB.!B25=LISTAS!$A$3),\"\",IFERROR(VLOOKUP(ANÁLISE1[[#This Row],[PREÇO]],ANÁLISE2[[PREÇOS PÚBLICOS]:[RESP. VERIFICAÇÃO]],2,FALSE),\"\"))","v":""},{"$f":"IF(MIN(ANÁLISE2[PREÇOS PÚBLICOS])=0,\"\",MIN(ANÁLISE2[PREÇOS PÚBLICOS]))","v":""},{"$f":"IF(AND(ANÁLISE2[[#This Row],[AVALIAÇÃO 2]]=\"INEXEQUÍVEL\",ANÁLISE2[[#This Row],[PREÇOS PÚBLICOS REPETIDOS?]]<>\"SIM\",ANÁLISE1[[#This Row],[PREÇO]]>ANÁLISE2[[#This Row],[MENOR PREÇO PÚBLICO VÁLIDO]]),\"VÁLIDO - MAIOR QUE PREÇO PÚBLICO\",\"\")","v":""}]

{"sheet":"MET. ESTATÍSTICO","index":4,"n_rows":25,"n_cols":7,"rows_kept":25,"cut":false,"hidden":true,"merged":[[0,5,0,6]]}
["FONTE ","TIPO DE FONTE","AVALIAÇÃO 3 - Parte 2","PREÇOS VÁLIDOS APÓS AV. 3",null,"METODO ESTATÍTICO DE ANÁLISE DO PREÇO DE MERCADO"]
[{"$f":"IF(RELATÓRIO!B32=\"\",\"\",RELATÓRIO!B32)","v":""},{"$f":"IF(RELATÓRIO!C32=\"\",\"\",RELATÓRIO!C32)","v":""},{"$f":"ANÁLISE2[[#This Row],[AVALIAÇÃO 3 - Parte 2]]","v":""},{"$f":"ANÁLISE2[[#This Row],[PREÇOS VÁLIDOS APÓS AV. 3 - Parte 2]]","v":""},null,"Desvio-Padrão",{"$f":"IFERROR(_xlfn.STDEV.S(ANÁLISE24[PREÇOS VÁLIDOS APÓS AV. 3]),\"Não foi possível calcular\")","v":"Não foi possível calcular"}]
[{"$f":"IF(RELATÓRIO!B33=\"\",\"\",RELATÓRIO!B33)","v":""},{"$f":"IF(RELATÓRIO!C33=\"\",\"\",RELATÓRIO!C33)","v":""},{"$f":"ANÁLISE2[[#This Row],[AVALIAÇÃO 3 - Parte 2]]","v":""},{"$f":"ANÁLISE2[[#This Row],[PREÇOS VÁLIDOS APÓS AV. 3 - Parte 2]]","v":""},null,"Média",{"$f":"AVERAGE(ANÁLISE24[PREÇOS VÁLIDOS APÓS AV. 3])","v":{"$error":"#DIV/0!"}}]
[{"$f":"IF(RELATÓRIO!B34=\"\",\"\",RELATÓRIO!B34)","v":""},{"$f":"IF(RELATÓRIO!C34=\"\",\"\",RELATÓRIO!C34)","v":""},{"$f":"ANÁLISE2[[#This Row],[AVALIAÇÃO 3 - Parte 2]]","v":""},{"$f":"ANÁLISE2[[#This Row],[PREÇOS VÁLIDOS APÓS AV. 3 - Parte 2]]","v":""},null,"Coeficiente de Variação",{"$f":"IFERROR(G2/G3,\"Não foi possível calcular\")","v":"Não foi possível calcular"}]
[{"$f":"IF(RELATÓRIO!B35=\"\",\"\",RELATÓRIO!B35)","v":""},{"$f":"IF(RELATÓRIO!C35=\"\",\"\",RELATÓRIO!C35)","v":""},{"$f":"ANÁLISE2[[#This Row],[AVALIAÇÃO 3 - Parte 2]]","v":""},{"$f":"ANÁLISE2[[#This Row],[PREÇOS VÁLIDOS APÓS AV. 3 - Parte 2]]","v":""},null,"Método Estatítico APLICÁVEL",{"$f":"_xlfn.IFS(G4=\"Não foi possível calcular\",\"PREÇO ÚNICO\",RELATÓRIO!E22=\"Sim\",\"PREÇO MÍNIMO\",G4<=0.25,\"MÉDIA\",G4>0.25,\"MEDIANA\")","v":"PREÇO ÚNICO"}]
[{"$f":"IF(RELATÓRIO!B36=\"\",\"\",RELATÓRIO!B36)","v":""},{"$f":"IF(RELATÓRIO!C36=\"\",\"\",RELATÓRIO!C36)","v":""},{"$f":"ANÁLISE2[[#This Row],[AVALIAÇÃO 3 - Parte 2]]","v":""},{"$f":"ANÁLISE2[[#This Row],[PREÇOS VÁLIDOS APÓS AV. 3 - Parte 2]]","v":""}]
[{"$f":"IF(RELATÓRIO!B37=\"\",\"\",RELATÓRIO!B37)","v":""},{"$f":"IF(RELATÓRIO!C37=\"\",\"\",RELATÓRIO!C37)","v":""},{"$f":"ANÁLISE2[[#This Row],[AVALIAÇÃO 3 - Parte 2]]","v":""},{"$f":"ANÁLISE2[[#This Row],[PREÇOS VÁLIDOS APÓS AV. 3 - Parte 2]]","v":""},null,"MÉDIA",{"$f":"AVERAGE(ANÁLISE24[PREÇOS VÁLIDOS APÓS AV. 3])","v":{"$error":"#DIV/0!"}}]
[{"$f":"IF(RELATÓRIO!B38=\"\",\"\",RELATÓRIO!B38)","v":""},{"$f":"IF(RELATÓRIO!C38=\"\",\"\",RELATÓRIO!C38)","v":""},{"$f":"ANÁLISE2[[#This Row],[AVALIAÇÃO 3 - Parte 2]]","v":""},{"$f":"ANÁLISE2[[#This Row],[PREÇOS VÁLIDOS APÓS AV. 3 - Parte 2]]","v":""},null,"MEDIANA",{"$f":"MEDIAN(ANÁLISE24[PREÇOS VÁLIDOS APÓS AV. 3])","v":{"$error":"#NUM!"}}]
[{"$f":"IF(RELATÓRIO!B39=\"\",\"\",RELATÓRIO!B39)","v":""},{"$f":"IF(RELATÓRIO!C39=\"\",\"\",RELATÓRIO!C39)","v":""},{"$f":"ANÁLISE2[[#This Row],[AVALIAÇÃO 3 - Parte 2]]","v":""},{"$f":"ANÁLISE2[[#This Row],[PREÇOS VÁLIDOS APÓS AV. 3 - Parte 2]]","v":""}]
[{"$f":"IF(RELATÓRIO!B40=\"\",\"\",RELATÓRIO!B40)","v":""},{"$f":"IF(RELATÓRIO!C40=\"\",\"\",RELATÓRIO!C40)","v":""},{"$f":"ANÁLISE2[[#This Row],[AVALIAÇÃO 3 - Parte 2]]","v":""},{"$f":"ANÁLISE2[[#This Row],[PREÇOS VÁLIDOS APÓS AV. 3 - Parte 2]]","v":""},null,{"$f":"_xlfn.IFS(G5=\"Média\",\"PREÇO MÉDIO VÁLIDO\",G5=\"Mediana\",\"PREÇO MEDIANO VÁLIDO\",G5=\"PREÇO ÚNICO\",\"PREÇO VÁLIDO\")","v":"PREÇO VÁLIDO"},{"$f":"IF(G5=\"Média\",G7,G8)","v":{"$error":"#NUM!"}}]
[{"$f":"IF(RELATÓRIO!B41=\"\",\"\",RELATÓRIO!B41)","v":""},{"$f":"IF(RELATÓRIO!C41=\"\",\"\",RELATÓRIO!C41)","v":""},{"$f":"ANÁLISE2[[#This Row],[AVALIAÇÃO 3 - Parte 2]]","v":""},{"$f":"ANÁLISE2[[#This Row],[PREÇOS VÁLIDOS APÓS AV. 3 - Parte 2]]","v":""},null,"PREÇO MÍNIMO VÁLIDO",{"$f":"MIN(ANÁLISE24[PREÇOS VÁLIDOS APÓS AV. 3])","v":0}]
[{"$f":"IF(RELATÓRIO!B42=\"\",\"\",RELATÓRIO!B42)","v":""},{"$f":"IF(RELATÓRIO!C42=\"\",\"\",RELATÓRIO!C42)","v":""},{"$f":"ANÁLISE2[[#This Row],[AVALIAÇÃO 3 - Parte 2]]","v":""},{"$f":"ANÁLISE2[[#This Row],[PREÇOS VÁLIDOS APÓS AV. 3 - Parte 2]]","v":""}]
[{"$f":"IF(RELATÓRIO!B43=\"\",\"\",RELATÓRIO!B43)","v":""},{"$f":"IF(RELATÓRIO!C43=\"\",\"\",RELATÓRIO!C43)","v":""},{"$f":"ANÁLISE2[[#This Row],[AVALIAÇÃO 3 - Parte 2]]","v":""},{"$f":"ANÁLISE2[[#This Row],[PREÇOS VÁLIDOS APÓS AV. 3 - Parte 2]]","v":""}]
[{"$f":"IF(RELATÓRIO!B44=\"\",\"\",RELATÓRIO!B44)","v":""},{"$f":"IF(RELATÓRIO!C44=\"\",\"\",RELATÓRIO!C44)","v":""},{"$f":"ANÁLISE2[[#This Row],[AVALIAÇÃO 3 - Parte 2]]","v":""},{"$f":"ANÁLISE2[[#This Row],[PREÇOS VÁLIDOS APÓS AV. 3 - Parte 2]]","v":""}]
[{"$f":"IF(RELATÓRIO!B45=\"\",\"\",RELATÓRIO!B45)","v":""},{"$f":"IF(RELATÓRIO!C45=\"\",\"\",RELATÓRIO!C45)","v":""},{"$f":"ANÁLISE2[[#This Row],[AVALIAÇÃO 3 - Parte 2]]","v":""},{"$f":"ANÁLISE2[[#This Row],[PREÇOS VÁLIDOS APÓS AV. 3 - Parte 2]]","v":""}]
[{"$f":"IF(RELATÓRIO!B46=\"\",\"\",RELATÓRIO!B46)","v":""},{"$f":"IF(RELATÓRIO!C46=\"\",\"\",RELATÓRIO!C46)","v":""},{"$f":"ANÁLISE2[[#This Row],[AVALIAÇÃO 3 - Parte 2]]","v":""},{"$f":"ANÁLISE2[[#This Row],[PREÇOS VÁLIDOS APÓS AV. 3 - Parte 2]]","v":""}]
[{"$f":"IF(RELATÓRIO!B47=\"\",\"\",RELATÓRIO!B47)","v":""},{"$f":"IF(RELATÓRIO!C47=\"\",\"\",RELATÓRIO!C47)","v":""},{"$f":"ANÁLISE2[[#This Row],[AVALIAÇÃO 3 - Parte 2]]","v":""},{"$f":"ANÁLISE2[[#This Row],[PREÇOS VÁLIDOS APÓS AV. 3 - Parte 2]]","v":""}]
[{"$f":"IF(RELATÓRIO!B48=\"\",\"\",RELATÓRIO!B48)","v":""},{"$f":"IF(RELATÓRIO!C48=\"\",\"\",RELATÓRIO!C48)","v":""},{"$f":"ANÁLISE2[[#This Row],[AVALIAÇÃO 3 - Parte 2]]","v":""},{"$f":"ANÁLISE2[[#This Row],[PREÇOS VÁLIDOS APÓS AV. 3 - Parte 2]]","v":""}]
[{"$f":"IF(RELATÓRIO!B49=\"\",\"\",RELATÓRIO!B49)","v":""},{"$f":"IF(RELATÓRIO!C49=\"\",\"\",RELATÓRIO!C49)","v":""},{"$f":"ANÁLISE2[[#This Row],[AVALIAÇÃO 3 - Parte 2]]","v":""},{"$f":"ANÁLISE2[[#This Row],[PREÇOS VÁLIDOS APÓS AV. 3 - Parte 2]]","v":""}]
[{"$f":"IF(RELATÓRIO!B50=\"\",\"\",RELATÓRIO!B50)","v":""},{"$f":"IF(RELATÓRIO!C50=\"\",\"\",RELATÓRIO!C50)","v":""},{"$f":"ANÁLISE2[[#This Row],[AVALIAÇÃO 3 - Parte 2]]","v":""},{"$f":"ANÁLISE2[[#This Row],[PREÇOS VÁLIDOS APÓS AV. 3 - Parte 2]]","v":""}]
[{"$f":"IF(RELATÓRIO!B51=\"\",\"\",RELATÓRIO!B51)","v":""},{"$f":"IF(RELATÓRIO!C51=\"\",\"\",RELATÓRIO!C51)","v":""},{"$f":"ANÁLISE2[[#This Row],[AVALIAÇÃO 3 - Parte 2]]","v":""},{"$f":"ANÁLISE2[[#This Row],[PREÇOS VÁLIDOS APÓS AV. 3 - Parte 2]]","v":""}]
[{"$f":"IF(RELATÓRIO!B52=\"\",\"\",RELATÓRIO!B52)","v":""},{"$f":"IF(RELATÓRIO!C52=\"\",\"\",RELATÓRIO!C52)","v":""},{"$f":"ANÁLISE2[[#This Row],[AVALIAÇÃO 3 - Parte 2]]","v":""},{"$f":"ANÁLISE2[[#This Row],[PREÇOS VÁLIDOS APÓS AV. 3 - Parte 2]]","v":""}]
[{"$f":"IF(RELATÓRIO!B53=\"\",\"\",RELATÓRIO!B53)","v":""},{"$f":"IF(RELATÓRIO!C53=\"\",\"\",RELATÓRIO!C53)","v":""},{"$f":"ANÁLISE2[[#This Row],[AVALIAÇÃO 3 - Parte 2]]","v":""},{"$f":"ANÁLISE2[[#This Row],[PREÇOS VÁLIDOS APÓS AV. 3 - Parte 2]]","v":""}]
[{"$f":"IF(RELATÓRIO!B54=\"\",\"\",RELATÓRIO!B54)","v":""},{"$f":"IF(RELATÓRIO!C54=\"\",\"\",RELATÓRIO!C54)","v":""},{"$f":"ANÁLISE2[[#This Row],[AVALIAÇÃO 3 - Parte 2]]","v":""},{"$f":"ANÁLISE2[[#This Row],[PREÇOS VÁLIDOS APÓS AV. 3 - Parte 2]]","v":""}]
[{"$f":"IF(RELATÓRIO!B55=\"\",\"\",RELATÓRIO!B55)","v":""},{"$f":"IF(RELATÓRIO!C55=\"\",\"\",RELATÓRIO!C55)","v":""},{"$f":"ANÁLISE2[[#This Row],[AVALIAÇÃO 3 - Parte 2]]","v":""},{"$f":"ANÁLISE2[[#This Row],[PREÇOS VÁLIDOS APÓS AV. 3 - Parte 2]]","v":""}]

{"sheet":"R0","index":5,"n_rows":410,"n_cols":10,"rows_kept":410,"cut":false,"hidden":true,"merged":[]}
[{"$f":"IF(D1=\"\",\"\",1)","v":1},{"$f":"IF(J2=0,5,7)","v":5},null,1,null,null,null,null,null,"nº Celulas com valores de contrato"]
[1,null,null,1,null,null,null,null,null,{"$f":"COUNT(H7:H410)","v":0}]
[1,null,null,1]
[1,null,null,1]
[{"$f":"IF(C5=\"\",\"\",1)","v":1},null,"CONSOLIDAÇÃO DOS VALORES DA PESQUISA DE MERCADO"]
[1,null,"ITEM","Nº DO PROCESSO","DESCRIÇÃO","MÉTODO ESTATÍSTICO","VALOR DE MERCADO","VALOR CONTRATADO","AVALIAÇÃO DO PREÇO CONTRATADO"]
["","R1",{"$f":"IF(A7=\"\",\"\",MID(B7,2,15))","v":""},{"$f":"IFERROR(INDIRECT(\"'\"&B7&\"'!C8\"),\"\")","v":""},{"$f":"IFERROR(INDIRECT(\"'\"&B7&\"'!f8\"),\"\")","v":""},{"$f":"_xlfn.SINGLE(IFERROR(INDIRECT(\"'\"&B7&\"'!c21\"),\"\"))","v":""},{"$f":"IFERROR(IF(F7=\"Preço Único\",INDIRECT(\"'\"&B7&\"'!c15\"),INDIRECT(\"'\"&B7&\"'!g21\")),\"\")","v":""},{"$f":"IFERROR(IF(INDIRECT(\"'\"&B7&\"'!C10\")=\"NÃO\",\"\",INDIRECT(\"'\"&B7&\"'!f10\")),\"\")","v":""},{"$f":"_xlfn.IFS(AND(G7=\"\",H7=\"\"),\"\",\n$B$1=5,\"\",\nOR(G7=\"\",G7=\"INFORME OS DADOS DA PESQUISA DE PREÇOS\"),\"Falta valor de mercado\",\nH7=\"\",\"Preço contratado não informado\",\nG7=\"Não foi possível calcular.\",\"Não foi possível avaliar.\",\nAND(INDIRECT(\"'\"&B7&\"'!K27\")=\"OK\",G7>=H7),\"Ok\",\nAND(INDIRECT(\"'\"&B7&\"'!K27\")<>\"OK\",G7>=H7),\"Ok, desde que justificado os problemas da pesquisa\",\nAND(INDIRECT(\"'\"&B7&\"'!K27\")=\"OK\",G7<H7),\"Negociar preço contratado\",\nAND(INDIRECT(\"'\"&B7&\"'!K27\")<>\"OK\",G7<H7),\"Negociar preço contratado e justificar problemas da pesquisa\")","v":""}]
["","R2",{"$f":"IF(A8=\"\",\"\",MID(B8,2,15))","v":""},{"$f":"IFERROR(INDIRECT(\"'\"&B8&\"'!C8\"),\"\")","v":""},{"$f":"IFERROR(INDIRECT(\"'\"&B8&\"'!f8\"),\"\")","v":""},{"$f":"_xlfn.SINGLE(IFERROR(INDIRECT(\"'\"&B8&\"'!c21\"),\"\"))","v":""},{"$f":"IFERROR(IF(F8=\"Preço Único\",INDIRECT(\"'\"&B8&\"'!c15\"),INDIRECT(\"'\"&B8&\"'!g21\")),\"\")","v":""},{"$f":"IFERROR(IF(INDIRECT(\"'\"&B8&\"'!C10\")=\"NÃO\",\"\",INDIRECT(\"'\"&B8&\"'!f10\")),\"\")","v":""},{"$f":"_xlfn.IFS(AND(G8=\"\",H8=\"\"),\"\",\n$B$1=5,\"\",\nOR(G8=\"\",G8=\"INFORME OS DADOS DA PESQUISA DE PREÇOS\"),\"Falta valor de mercado\",\nH8=\"\",\"Preço contratado não informado\",\nG8=\"Não foi possível calcular.\",\"Não foi possível avaliar.\",\nAND(INDIRECT(\"'\"&B8&\"'!K27\")=\"OK\",G8>=H8),\"Ok\",\nAND(INDIRECT(\"'\"&B8&\"'!K27\")<>\"OK\",G8>=H8),\"Ok, desde que justificado os problemas da pesquisa\",\nAND(INDIRECT(\"'\"&B8&\"'!K27\")=\"OK\",G8<H8),\"Negociar preço contratado\",\nAND(INDIRECT(\"'\"&B8&\"'!K27\")<>\"OK\",G8<H8),\"Negociar preço contratado e justificar problemas da pesquisa\")","v":""}]
["","R3","",{"$f":"IFERROR(INDIRECT(\"'\"&B9&\"'!C8\"),\"\")","v":""},{"$f":"IFERROR(INDIRECT(\"'\"&B9&\"'!f8\"),\"\")","v":""},{"$f":"_xlfn.SINGLE(IFERROR(INDIRECT(\"'\"&B9&\"'!c21\"),\"\"))","v":""},"",{"$f":"IFERROR(IF(INDIRECT(\"'\"&B9&\"'!C10\")=\"NÃO\",\"\",INDIRECT(\"'\"&B9&\"'!f10\")),\"\")","v":""},""]
["","R4","",{"$f":"IFERROR(INDIRECT(\"'\"&B10&\"'!C8\"),\"\")","v":""},{"$f":"IFERROR(INDIRECT(\"'\"&B10&\"'!f8\"),\"\")","v":""},{"$f":"_xlfn.SINGLE(IFERROR(INDIRECT(\"'\"&B10&\"'!c21\"),\"\"))","v":""},"",{"$f":"IFERROR(IF(INDIRECT(\"'\"&B10&\"'!C10\")=\"NÃO\",\"\",INDIRECT(\"'\"&B10&\"'!f10\")),\"\")","v":""},""]
["","R5","",{"$f":"IFERROR(INDIRECT(\"'\"&B11&\"'!C8\"),\"\")","v":""},{"$f":"IFERROR(INDIRECT(\"'\"&B11&\"'!f8\"),\"\")","v":""},{"$f":"_xlfn.SINGLE(IFERROR(INDIRECT(\"'\"&B11&\"'!c21\"),\"\"))","v":""},"",{"$f":"IFERROR(IF(INDIRECT(\"'\"&B11&\"'!C10\")=\"NÃO\",\"\",INDIRECT(\"'\"&B11&\"'!f10\")),\"\")","v":""},""]
["","R6","",{"$f":"IFERROR(INDIRECT(\"'\"&B12&\"'!C8\"),\"\")","v":""},{"$f":"IFERROR(INDIRECT(\"'\"&B12&\"'!f8\"),\"\")","v":""},{"$f":"_xlfn.SINGLE(IFERROR(INDIRECT(\"'\"&B12&\"'!c21\"),\"\"))","v":""},"",{"$f":"IFERROR(IF(INDIRECT(\"'\"&B12&\"'!C10\")=\"NÃO\",\"\",INDIRECT(\"'\"&B12&\"'!f10\")),\"\")","v":""},""]
["","R7","",{"$f":"IFERROR(INDIRECT(\"'\"&B13&\"'!C8\"),\"\")","v":""},{"$f":"IFERROR(INDIRECT(\"'\"&B13&\"'!f8\"),\"\")","v":""},{"$f":"_xlfn.SINGLE(IFERROR(INDIRECT(\"'\"&B13&\"'!c21\"),\"\"))","v":""},"",{"$f":"IFERROR(IF(INDIRECT(\"'\"&B13&\"'!C10\")=\"NÃO\",\"\",INDIRECT(\"'\"&B13&\"'!f10\")),\"\")","v":""},""]
["","R8","",{"$f":"IFERROR(INDIRECT(\"'\"&B14&\"'!C8\"),\"\")","v":""},{"$f":"IFERROR(INDIRECT(\"'\"&B14&\"'!f8\"),\"\")","v":""},{"$f":"_xlfn.SINGLE(IFERROR(INDIRECT(\"'\"&B14&\"'!c21\"),\"\"))","v":""},"",{"$f":"IFERROR(IF(INDIRECT(\"'\"&B14&\"'!C10\")=\"NÃO\",\"\",INDIRECT(\"'\"&B14&\"'!f10\")),\"\")","v":""},""]
["","R9","",{"$f":"IFERROR(INDIRECT(\"'\"&B15&\"'!C8\"),\"\")","v":""},{"$f":"IFERROR(INDIRECT(\"'\"&B15&\"'!f8\"),\"\")","v":""},{"$f":"_xlfn.SINGLE(IFERROR(INDIRECT(\"'\"&B15&\"'!c21\"),\"\"))","v":""},"",{"$f":"IFERROR(IF(INDIRECT(\"'\"&B15&\"'!C10\")=\"NÃO\",\"\",INDIRECT(\"'\"&B15&\"'!f10\")),\"\")","v":""},""]
["","R10","",{"$f":"IFERROR(INDIRECT(\"'\"&B16&\"'!C8\"),\"\")","v":""},{"$f":"IFERROR(INDIRECT(\"'\"&B16&\"'!f8\"),\"\")","v":""},{"$f":"_xlfn.SINGLE(IFERROR(INDIRECT(\"'\"&B16&\"'!c21\"),\"\"))","v":""},"",{"$f":"IFERROR(IF(INDIRECT(\"'\"&B16&\"'!C10\")=\"NÃO\",\"\",INDIRECT(\"'\"&B16&\"'!f10\")),\"\")","v":""},""]
["","R11","",{"$f":"IFERROR(INDIRECT(\"'\"&B17&\"'!C8\"),\"\")","v":""},{"$f":"IFERROR(INDIRECT(\"'\"&B17&\"'!f8\"),\"\")","v":""},{"$f":"_xlfn.SINGLE(IFERROR(INDIRECT(\"'\"&B17&\"'!c21\"),\"\"))","v":""},"",{"$f":"IFERROR(IF(INDIRECT(\"'\"&B17&\"'!C10\")=\"NÃO\",\"\",INDIRECT(\"'\"&B17&\"'!f10\")),\"\")","v":""},""]
["","R12","",{"$f":"IFERROR(INDIRECT(\"'\"&B18&\"'!C8\"),\"\")","v":""},{"$f":"IFERROR(INDIRECT(\"'\"&B18&\"'!f8\"),\"\")","v":""},{"$f":"_xlfn.SINGLE(IFERROR(INDIRECT(\"'\"&B18&\"'!c21\"),\"\"))","v":""},"",{"$f":"IFERROR(IF(INDIRECT(\"'\"&B18&\"'!C10\")=\"NÃO\",\"\",INDIRECT(\"'\"&B18&\"'!f10\")),\"\")","v":""},""]
["","R13","",{"$f":"IFERROR(INDIRECT(\"'\"&B19&\"'!C8\"),\"\")","v":""},{"$f":"IFERROR(INDIRECT(\"'\"&B19&\"'!f8\"),\"\")","v":""},{"$f":"_xlfn.SINGLE(IFERROR(INDIRECT(\"'\"&B19&\"'!c21\"),\"\"))","v":""},"",{"$f":"IFERROR(IF(INDIRECT(\"'\"&B19&\"'!C10\")=\"NÃO\",\"\",INDIRECT(\"'\"&B19&\"'!f10\")),\"\")","v":""},""]
["","R14","",{"$f":"IFERROR(INDIRECT(\"'\"&B20&\"'!C8\"),\"\")","v":""},{"$f":"IFERROR(INDIRECT(\"'\"&B20&\"'!f8\"),\"\")","v":""},{"$f":"_xlfn.SINGLE(IFERROR(INDIRECT(\"'\"&B20&\"'!c21\"),\"\"))","v":""},"",{"$f":"IFERROR(IF(INDIRECT(\"'\"&B20&\"'!C10\")=\"NÃO\",\"\",INDIRECT(\"'\"&B20&\"'!f10\")),\"\")","v":""},""]
["","R15","",{"$f":"IFERROR(INDIRECT(\"'\"&B21&\"'!C8\"),\"\")","v":""},{"$f":"IFERROR(INDIRECT(\"'\"&B21&\"'!f8\"),\"\")","v":""},{"$f":"_xlfn.SINGLE(IFERROR(INDIRECT(\"'\"&B21&\"'!c21\"),\"\"))","v":""},"",{"$f":"IFERROR(IF(INDIRECT(\"'\"&B21&\"'!C10\")=\"NÃO\",\"\",INDIRECT(\"'\"&B21&\"'!f10\")),\"\")","v":""},""]
["","R16","",{"$f":"IFERROR(INDIRECT(\"'\"&B22&\"'!C8\"),\"\")","v":""},{"$f":"IFERROR(INDIRECT(\"'\"&B22&\"'!f8\"),\"\")","v":""},{"$f":"_xlfn.SINGLE(IFERROR(INDIRECT(\"'\"&B22&\"'!c21\"),\"\"))","v":""},"",{"$f":"IFERROR(IF(INDIRECT(\"'\"&B22&\"'!C10\")=\"NÃO\",\"\",INDIRECT(\"'\"&B22&\"'!f10\")),\"\")","v":""},""]
["","R17","",{"$f":"IFERROR(INDIRECT(\"'\"&B23&\"'!C8\"),\"\")","v":""},{"$f":"IFERROR(INDIRECT(\"'\"&B23&\"'!f8\"),\"\")","v":""},{"$f":"_xlfn.SINGLE(IFERROR(INDIRECT(\"'\"&B23&\"'!c21\"),\"\"))","v":""},"",{"$f":"IFERROR(IF(INDIRECT(\"'\"&B23&\"'!C10\")=\"NÃO\",\"\",INDIRECT(\"'\"&B23&\"'!f10\")),\"\")","v":""},""]
["","R18","",{"$f":"IFERROR(INDIRECT(\"'\"&B24&\"'!C8\"),\"\")","v":""},{"$f":"IFERROR(INDIRECT(\"'\"&B24&\"'!f8\"),\"\")","v":""},{"$f":"_xlfn.SINGLE(IFERROR(INDIRECT(\"'\"&B24&\"'!c21\"),\"\"))","v":""},"",{"$f":"IFERROR(IF(INDIRECT(\"'\"&B24&\"'!C10\")=\"NÃO\",\"\",INDIRECT(\"'\"&B24&\"'!f10\")),\"\")","v":""},""]
["","R19","",{"$f":"IFERROR(INDIRECT(\"'\"&B25&\"'!C8\"),\"\")","v":""},{"$f":"IFERROR(INDIRECT(\"'\"&B25&\"'!f8\"),\"\")","v":""},{"$f":"_xlfn.SINGLE(IFERROR(INDIRECT(\"'\"&B25&\"'!c21\"),\"\"))","v":""},"",{"$f":"IFERROR(IF(INDIRECT(\"'\"&B25&\"'!C10\")=\"NÃO\",\"\",INDIRECT(\"'\"&B25&\"'!f10\")),\"\")","v":""},""]
["","R20","",{"$f":"IFERROR(INDIRECT(\"'\"&B26&\"'!C8\"),\"\")","v":""},{"$f":"IFERROR(INDIRECT(\"'\"&B26&\"'!f8\"),\"\")","v":""},{"$f":"_xlfn.SINGLE(IFERROR(INDIRECT(\"'\"&B26&\"'!c21\"),\"\"))","v":""},"",{"$f":"IFERROR(IF(INDIRECT(\"'\"&B26&\"'!C10\")=\"NÃO\",\"\",INDIRECT(\"'\"&B26&\"'!f10\")),\"\")","v":""},""]
["","R21","",{"$f":"IFERROR(INDIRECT(\"'\"&B27&\"'!C8\"),\"\")","v":""},{"$f":"IFERROR(INDIRECT(\"'\"&B27&\"'!f8\"),\"\")","v":""},{"$f":"_xlfn.SINGLE(IFERROR(INDIRECT(\"'\"&B27&\"'!c21\"),\"\"))","v":""},"",{"$f":"IFERROR(IF(INDIRECT(\"'\"&B27&\"'!C10\")=\"NÃO\",\"\",INDIRECT(\"'\"&B27&\"'!f10\")),\"\")","v":""},""]
["","R22","",{"$f":"IFERROR(INDIRECT(\"'\"&B28&\"'!C8\"),\"\")","v":""},{"$f":"IFERROR(INDIRECT(\"'\"&B28&\"'!f8\"),\"\")","v":""},{"$f":"_xlfn.SINGLE(IFERROR(INDIRECT(\"'\"&B28&\"'!c21\"),\"\"))","v":""},"",{"$f":"IFERROR(IF(INDIRECT(\"'\"&B28&\"'!C10\")=\"NÃO\",\"\",INDIRECT(\"'\"&B28&\"'!f10\")),\"\")","v":""},""]
["","R23","",{"$f":"IFERROR(INDIRECT(\"'\"&B29&\"'!C8\"),\"\")","v":""},{"$f":"IFERROR(INDIRECT(\"'\"&B29&\"'!f8\"),\"\")","v":""},{"$f":"_xlfn.SINGLE(IFERROR(INDIRECT(\"'\"&B29&\"'!c21\"),\"\"))","v":""},"",{"$f":"IFERROR(IF(INDIRECT(\"'\"&B29&\"'!C10\")=\"NÃO\",\"\",INDIRECT(\"'\"&B29&\"'!f10\")),\"\")","v":""},""]
["","R24","",{"$f":"IFERROR(INDIRECT(\"'\"&B30&\"'!C8\"),\"\")","v":""},{"$f":"IFERROR(INDIRECT(\"'\"&B30&\"'!f8\"),\"\")","v":""},{"$f":"_xlfn.SINGLE(IFERROR(INDIRECT(\"'\"&B30&\"'!c21\"),\"\"))","v":""},"",{"$f":"IFERROR(IF(INDIRECT(\"'\"&B30&\"'!C10\")=\"NÃO\",\"\",INDIRECT(\"'\"&B30&\"'!f10\")),\"\")","v":""},""]
["","R25","",{"$f":"IFERROR(INDIRECT(\"'\"&B31&\"'!C8\"),\"\")","v":""},{"$f":"IFERROR(INDIRECT(\"'\"&B31&\"'!f8\"),\"\")","v":""},{"$f":"_xlfn.SINGLE(IFERROR(INDIRECT(\"'\"&B31&\"'!c21\"),\"\"))","v":""},"",{"$f":"IFERROR(IF(INDIRECT(\"'\"&B31&\"'!C10\")=\"NÃO\",\"\",INDIRECT(\"'\"&B31&\"'!f10\")),\"\")","v":""},""]
["","R26","",{"$f":"IFERROR(INDIRECT(\"'\"&B32&\"'!C8\"),\"\")","v":""},{"$f":"IFERROR(INDIRECT(\"'\"&B32&\"'!f8\"),\"\")","v":""},{"$f":"_xlfn.SINGLE(IFERROR(INDIRECT(\"'\"&B32&\"'!c21\"),\"\"))","v":""},"",{"$f":"IFERROR(IF(INDIRECT(\"'\"&B32&\"'!C10\")=\"NÃO\",\"\",INDIRECT(\"'\"&B32&\"'!f10\")),\"\")","v":""},""]
[{"$f":"IF(D33=\"\",\"\",1)","v":""},"R27","",{"$f":"IFERROR(INDIRECT(\"'\"&B33&\"'!C8\"),\"\")","v":""},{"$f":"IFERROR(INDIRECT(\"'\"&B33&\"'!f8\"),\"\")","v":""},{"$f":"_xlfn.SINGLE(IFERROR(INDIRECT(\"'\"&B33&\"'!c21\"),\"\"))","v":""},"",{"$f":"IFERROR(IF(INDIRECT(\"'\"&B33&\"'!C10\")=\"NÃO\",\"\",INDIRECT(\"'\"&B33&\"'!f10\")),\"\")","v":""},""]
["","R28","",{"$f":"IFERROR(INDIRECT(\"'\"&B34&\"'!C8\"),\"\")","v":""},{"$f":"IFERROR(INDIRECT(\"'\"&B34&\"'!f8\"),\"\")","v":""},{"$f":"_xlfn.SINGLE(IFERROR(INDIRECT(\"'\"&B34&\"'!c21\"),\"\"))","v":""},"",{"$f":"IFERROR(IF(INDIRECT(\"'\"&B34&\"'!C10\")=\"NÃO\",\"\",INDIRECT(\"'\"&B34&\"'!f10\")),\"\")","v":""},""]
["","R29","",{"$f":"IFERROR(INDIRECT(\"'\"&B35&\"'!C8\"),\"\")","v":""},{"$f":"IFERROR(INDIRECT(\"'\"&B35&\"'!f8\"),\"\")","v":""},{"$f":"_xlfn.SINGLE(IFERROR(INDIRECT(\"'\"&B35&\"'!c21\"),\"\"))","v":""},"",{"$f":"IFERROR(IF(INDIRECT(\"'\"&B35&\"'!C10\")=\"NÃO\",\"\",INDIRECT(\"'\"&B35&\"'!f10\")),\"\")","v":""},""]
["","R30","",{"$f":"IFERROR(INDIRECT(\"'\"&B36&\"'!C8\"),\"\")","v":""},{"$f":"IFERROR(INDIRECT(\"'\"&B36&\"'!f8\"),\"\")","v":""},{"$f":"_xlfn.SINGLE(IFERROR(INDIRECT(\"'\"&B36&\"'!c21\"),\"\"))","v":""},"",{"$f":"IFERROR(IF(INDIRECT(\"'\"&B36&\"'!C10\")=\"NÃO\",\"\",INDIRECT(\"'\"&B36&\"'!f10\")),\"\")","v":""},""]
["","R31","",{"$f":"IFERROR(INDIRECT(\"'\"&B37&\"'!C8\"),\"\")","v":""},{"$f":"IFERROR(INDIRECT(\"'\"&B37&\"'!f8\"),\"\")","v":""},{"$f":"_xlfn.SINGLE(IFERROR(INDIRECT(\"'\"&B37&\"'!c21\"),\"\"))","v":""},"",{"$f":"IFERROR(IF(INDIRECT(\"'\"&B37&\"'!C10\")=\"NÃO\",\"\",INDIRECT(\"'\"&B37&\"'!f10\")),\"\")","v":""},""]
["","R32","",{"$f":"IFERROR(INDIRECT(\"'\"&B38&\"'!C8\"),\"\")","v":""},{"$f":"IFERROR(INDIRECT(\"'\"&B38&\"'!f8\"),\"\")","v":""},{"$f":"_xlfn.SINGLE(IFERROR(INDIRECT(\"'\"&B38&\"'!c21\"),\"\"))","v":""},"",{"$f":"IFERROR(IF(INDIRECT(\"'\"&B38&\"'!C10\")=\"NÃO\",\"\",INDIRECT(\"'\"&B38&\"'!f10\")),\"\")","v":""},""]
["","R33","",{"$f":"IFERROR(INDIRECT(\"'\"&B39&\"'!C8\"),\"\")","v":""},{"$f":"IFERROR(INDIRECT(\"'\"&B39&\"'!f8\"),\"\")","v":""},{"$f":"_xlfn.SINGLE(IFERROR(INDIRECT(\"'\"&B39&\"'!c21\"),\"\"))","v":""},"",{"$f":"IFERROR(IF(INDIRECT(\"'\"&B39&\"'!C10\")=\"NÃO\",\"\",INDIRECT(\"'\"&B39&\"'!f10\")),\"\")","v":""},""]
["","R34","",{"$f":"IFERROR(INDIRECT(\"'\"&B40&\"'!C8\"),\"\")","v":""},{"$f":"IFERROR(INDIRECT(\"'\"&B40&\"'!f8\"),\"\")","v":""},{"$f":"_xlfn.SINGLE(IFERROR(INDIRECT(\"'\"&B40&\"'!c21\"),\"\"))","v":""},"",{"$f":"IFERROR(IF(INDIRECT(\"'\"&B40&\"'!C10\")=\"NÃO\",\"\",INDIRECT(\"'\"&B40&\"'!f10\")),\"\")","v":""},""]
["","R35","",{"$f":"IFERROR(INDIRECT(\"'\"&B41&\"'!C8\"),\"\")","v":""},{"$f":"IFERROR(INDIRECT(\"'\"&B41&\"'!f8\"),\"\")","v":""},{"$f":"_xlfn.SINGLE(IFERROR(INDIRECT(\"'\"&B41&\"'!c21\"),\"\"))","v":""},"",{"$f":"IFERROR(IF(INDIRECT(\"'\"&B41&\"'!C10\")=\"NÃO\",\"\",INDIRECT(\"'\"&B41&\"'!f10\")),\"\")","v":""},""]
["","R36","",{"$f":"IFERROR(INDIRECT(\"'\"&B42&\"'!C8\"),\"\")","v":""},{"$f":"IFERROR(INDIRECT(\"'\"&B42&\"'!f8\"),\"\")","v":""},{"$f":"_xlfn.SINGLE(IFERROR(INDIRECT(\"'\"&B42&\"'!c21\"),\"\"))","v":""},"",{"$f":"IFERROR(IF(INDIRECT(\"'\"&B42&\"'!C10\")=\"NÃO\",\"\",INDIRECT(\"'\"&B42&\"'!f10\")),\"\")","v":""},""]
["","R37","",{"$f":"IFERROR(INDIRECT(\"'\"&B43&\"'!C8\"),\"\")","v":""},{"$f":"IFERROR(INDIRECT(\"'\"&B43&\"'!f8\"),\"\")","v":""},{"$f":"_xlfn.SINGLE(IFERROR(INDIRECT(\"'\"&B43&\"'!c21\"),\"\"))","v":""},"",{"$f":"IFERROR(IF(INDIRECT(\"'\"&B43&\"'!C10\")=\"NÃO\",\"\",INDIRECT(\"'\"&B43&\"'!f10\")),\"\")","v":""},""]
["","R38","",{"$f":"IFERROR(INDIRECT(\"'\"&B44&\"'!C8\"),\"\")","v":""},{"$f":"IFERROR(INDIRECT(\"'\"&B44&\"'!f8\"),\"\")","v":""},{"$f":"_xlfn.SINGLE(IFERROR(INDIRECT(\"'\"&B44&\"'!c21\"),\"\"))","v":""},"",{"$f":"IFERROR(IF(INDIRECT(\"'\"&B44&\"'!C10\")=\"NÃO\",\"\",INDIRECT(\"'\"&B44&\"'!f10\")),\"\")","v":""},""]
["","R39","",{"$f":"IFERROR(INDIRECT(\"'\"&B45&\"'!C8\"),\"\")","v":""},{"$f":"IFERROR(INDIRECT(\"'\"&B45&\"'!f8\"),\"\")","v":""},{"$f":"_xlfn.SINGLE(IFERROR(INDIRECT(\"'\"&B45&\"'!c21\"),\"\"))","v":""},"",{"$f":"IFERROR(IF(INDIRECT(\"'\"&B45&\"'!C10\")=\"NÃO\",\"\",INDIRECT(\"'\"&B45&\"'!f10\")),\"\")","v":""},""]
["","R40","",{"$f":"IFERROR(INDIRECT(\"'\"&B46&\"'!C8\"),\"\")","v":""},{"$f":"IFERROR(INDIRECT(\"'\"&B46&\"'!f8\"),\"\")","v":""},{"$f":"_xlfn.SINGLE(IFERROR(INDIRECT(\"'\"&B46&\"'!c21\"),\"\"))","v":""},"",{"$f":"IFERROR(IF(INDIRECT(\"'\"&B46&\"'!C10\")=\"NÃO\",\"\",INDIRECT(\"'\"&B46&\"'!f10\")),\"\")","v":""},""]
["","R41","",{"$f":"IFERROR(INDIRECT(\"'\"&B47&\"'!C8\"),\"\")","v":""},{"$f":"IFERROR(INDIRECT(\"'\"&B47&\"'!f8\"),\"\")","v":""},{"$f":"_xlfn.SINGLE(IFERROR(INDIRECT(\"'\"&B47&\"'!c21\"),\"\"))","v":""},"",{"$f":"IFERROR(IF(INDIRECT(\"'\"&B47&\"'!C10\")=\"NÃO\",\"\",INDIRECT(\"'\"&B47&\"'!f10\")),\"\")","v":""},""]
["","R42","",{"$f":"IFERROR(INDIRECT(\"'\"&B48&\"'!C8\"),\"\")","v":""},{"$f":"IFERROR(INDIRECT(\"'\"&B48&\"'!f8\"),\"\")","v":""},{"$f":"_xlfn.SINGLE(IFERROR(INDIRECT(\"'\"&B48&\"'!c21\"),\"\"))","v":""},"",{"$f":"IFERROR(IF(INDIRECT(\"'\"&B48&\"'!C10\")=\"NÃO\",\"\",INDIRECT(\"'\"&B48&\"'!f10\")),\"\")","v":""},""]
["","R43","",{"$f":"IFERROR(INDIRECT(\"'\"&B49&\"'!C8\"),\"\")","v":""},{"$f":"IFERROR(INDIRECT(\"'\"&B49&\"'!f8\"),\"\")","v":""},{"$f":"_xlfn.SINGLE(IFERROR(INDIRECT(\"'\"&B49&\"'!c21\"),\"\"))","v":""},"",{"$f":"IFERROR(IF(INDIRECT(\"'\"&B49&\"'!C10\")=\"NÃO\",\"\",INDIRECT(\"'\"&B49&\"'!f10\")),\"\")","v":""},""]
["","R44","",{"$f":"IFERROR(INDIRECT(\"'\"&B50&\"'!C8\"),\"\")","v":""},{"$f":"IFERROR(INDIRECT(\"'\"&B50&\"'!f8\"),\"\")","v":""},{"$f":"_xlfn.SINGLE(IFERROR(INDIRECT(\"'\"&B50&\"'!c21\"),\"\"))","v":""},"",{"$f":"IFERROR(IF(INDIRECT(\"'\"&B50&\"'!C10\")=\"NÃO\",\"\",INDIRECT(\"'\"&B50&\"'!f10\")),\"\")","v":""},""]
["","R45","",{"$f":"IFERROR(INDIRECT(\"'\"&B51&\"'!C8\"),\"\")","v":""},{"$f":"IFERROR(INDIRECT(\"'\"&B51&\"'!f8\"),\"\")","v":""},{"$f":"_xlfn.SINGLE(IFERROR(INDIRECT(\"'\"&B51&\"'!c21\"),\"\"))","v":""},"",{"$f":"IFERROR(IF(INDIRECT(\"'\"&B51&\"'!C10\")=\"NÃO\",\"\",INDIRECT(\"'\"&B51&\"'!f10\")),\"\")","v":""},""]
["","R46","",{"$f":"IFERROR(INDIRECT(\"'\"&B52&\"'!C8\"),\"\")","v":""},{"$f":"IFERROR(INDIRECT(\"'\"&B52&\"'!f8\"),\"\")","v":""},{"$f":"_xlfn.SINGLE(IFERROR(INDIRECT(\"'\"&B52&\"'!c21\"),\"\"))","v":""},"",{"$f":"IFERROR(IF(INDIRECT(\"'\"&B52&\"'!C10\")=\"NÃO\",\"\",INDIRECT(\"'\"&B52&\"'!f10\")),\"\")","v":""},""]
["","R47","",{"$f":"IFERROR(INDIRECT(\"'\"&B53&\"'!C8\"),\"\")","v":""},{"$f":"IFERROR(INDIRECT(\"'\"&B53&\"'!f8\"),\"\")","v":""},{"$f":"_xlfn.SINGLE(IFERROR(INDIRECT(\"'\"&B53&\"'!c21\"),\"\"))","v":""},"",{"$f":"IFERROR(IF(INDIRECT(\"'\"&B53&\"'!C10\")=\"NÃO\",\"\",INDIRECT(\"'\"&B53&\"'!f10\")),\"\")","v":""},""]
["","R48","",{"$f":"IFERROR(INDIRECT(\"'\"&B54&\"'!C8\"),\"\")","v":""},{"$f":"IFERROR(INDIRECT(\"'\"&B54&\"'!f8\"),\"\")","v":""},{"$f":"_xlfn.SINGLE(IFERROR(INDIRECT(\"'\"&B54&\"'!c21\"),\"\"))","v":""},"",{"$f":"IFERROR(IF(INDIRECT(\"'\"&B54&\"'!C10\")=\"NÃO\",\"\",INDIRECT(\"'\"&B54&\"'!f10\")),\"\")","v":""},""]
["","R49","",{"$f":"IFERROR(INDIRECT(\"'\"&B55&\"'!C8\"),\"\")","v":""},{"$f":"IFERROR(INDIRECT(\"'\"&B55&\"'!f8\"),\"\")","v":""},{"$f":"_xlfn.SINGLE(IFERROR(INDIRECT(\"'\"&B55&\"'!c21\"),\"\"))","v":""},"",{"$f":"IFERROR(IF(INDIRECT(\"'\"&B55&\"'!C10\")=\"NÃO\",\"\",INDIRECT(\"'\"&B55&\"'!f10\")),\"\")","v":""},""]
["","R50","",{"$f":"IFERROR(INDIRECT(\"'\"&B56&\"'!C8\"),\"\")","v":""},{"$f":"IFERROR(INDIRECT(\"'\"&B56&\"'!f8\"),\"\")","v":""},{"$f":"_xlfn.SINGLE(IFERROR(INDIRECT(\"'\"&B56&\"'!c21\"),\"\"))","v":""},"",{"$f":"IFERROR(IF(INDIRECT(\"'\"&B56&\"'!C10\")=\"NÃO\",\"\",INDIRECT(\"'\"&B56&\"'!f10\")),\"\")","v":""},""]
["","R51","",{"$f":"IFERROR(INDIRECT(\"'\"&B57&\"'!C8\"),\"\")","v":""},{"$f":"IFERROR(INDIRECT(\"'\"&B57&\"'!f8\"),\"\")","v":""},{"$f":"_xlfn.SINGLE(IFERROR(INDIRECT(\"'\"&B57&\"'!c21\"),\"\"))","v":""},"",{"$f":"IFERROR(IF(INDIRECT(\"'\"&B57&\"'!C10\")=\"NÃO\",\"\",INDIRECT(\"'\"&B57&\"'!f10\")),\"\")","v":""},""]
["","R52","",{"$f":"IFERROR(INDIRECT(\"'\"&B58&\"'!C8\"),\"\")","v":""},{"$f":"IFERROR(INDIRECT(\"'\"&B58&\"'!f8\"),\"\")","v":""},{"$f":"_xlfn.SINGLE(IFERROR(INDIRECT(\"'\"&B58&\"'!c21\"),\"\"))","v":""},"",{"$f":"IFERROR(IF(INDIRECT(\"'\"&B58&\"'!C10\")=\"NÃO\",\"\",INDIRECT(\"'\"&B58&\"'!f10\")),\"\")","v":""},""]
["","R53","",{"$f":"IFERROR(INDIRECT(\"'\"&B59&\"'!C8\"),\"\")","v":""},{"$f":"IFERROR(INDIRECT(\"'\"&B59&\"'!f8\"),\"\")","v":""},{"$f":"_xlfn.SINGLE(IFERROR(INDIRECT(\"'\"&B59&\"'!c21\"),\"\"))","v":""},"",{"$f":"IFERROR(IF(INDIRECT(\"'\"&B59&\"'!C10\")=\"NÃO\",\"\",INDIRECT(\"'\"&B59&\"'!f10\")),\"\")","v":""},""]
["","R54","",{"$f":"IFERROR(INDIRECT(\"'\"&B60&\"'!C8\"),\"\")","v":""},{"$f":"IFERROR(INDIRECT(\"'\"&B60&\"'!f8\"),\"\")","v":""},{"$f":"_xlfn.SINGLE(IFERROR(INDIRECT(\"'\"&B60&\"'!c21\"),\"\"))","v":""},"",{"$f":"IFERROR(IF(INDIRECT(\"'\"&B60&\"'!C10\")=\"NÃO\",\"\",INDIRECT(\"'\"&B60&\"'!f10\")),\"\")","v":""},""]
["","R55","",{"$f":"IFERROR(INDIRECT(\"'\"&B61&\"'!C8\"),\"\")","v":""},{"$f":"IFERROR(INDIRECT(\"'\"&B61&\"'!f8\"),\"\")","v":""},{"$f":"_xlfn.SINGLE(IFERROR(INDIRECT(\"'\"&B61&\"'!c21\"),\"\"))","v":""},"",{"$f":"IFERROR(IF(INDIRECT(\"'\"&B61&\"'!C10\")=\"NÃO\",\"\",INDIRECT(\"'\"&B61&\"'!f10\")),\"\")","v":""},""]
["","R56","",{"$f":"IFERROR(INDIRECT(\"'\"&B62&\"'!C8\"),\"\")","v":""},{"$f":"IFERROR(INDIRECT(\"'\"&B62&\"'!f8\"),\"\")","v":""},{"$f":"_xlfn.SINGLE(IFERROR(INDIRECT(\"'\"&B62&\"'!c21\"),\"\"))","v":""},"",{"$f":"IFERROR(IF(INDIRECT(\"'\"&B62&\"'!C10\")=\"NÃO\",\"\",INDIRECT(\"'\"&B62&\"'!f10\")),\"\")","v":""},""]
["","R57","",{"$f":"IFERROR(INDIRECT(\"'\"&B63&\"'!C8\"),\"\")","v":""},{"$f":"IFERROR(INDIRECT(\"'\"&B63&\"'!f8\"),\"\")","v":""},{"$f":"_xlfn.SINGLE(IFERROR(INDIRECT(\"'\"&B63&\"'!c21\"),\"\"))","v":""},"",{"$f":"IFERROR(IF(INDIRECT(\"'\"&B63&\"'!C10\")=\"NÃO\",\"\",INDIRECT(\"'\"&B63&\"'!f10\")),\"\")","v":""},""]
["","R58","",{"$f":"IFERROR(INDIRECT(\"'\"&B64&\"'!C8\"),\"\")","v":""},{"$f":"IFERROR(INDIRECT(\"'\"&B64&\"'!f8\"),\"\")","v":""},{"$f":"_xlfn.SINGLE(IFERROR(INDIRECT(\"'\"&B64&\"'!c21\"),\"\"))","v":""},"",{"$f":"IFERROR(IF(INDIRECT(\"'\"&B64&\"'!C10\")=\"NÃO\",\"\",INDIRECT(\"'\"&B64&\"'!f10\")),\"\")","v":""},""]
[{"$f":"IF(D65=\"\",\"\",1)","v":""},"R59","",{"$f":"IFERROR(INDIRECT(\"'\"&B65&\"'!C8\"),\"\")","v":""},{"$f":"IFERROR(INDIRECT(\"'\"&B65&\"'!f8\"),\"\")","v":""},{"$f":"_xlfn.SINGLE(IFERROR(INDIRECT(\"'\"&B65&\"'!c21\"),\"\"))","v":""},"",{"$f":"IFERROR(IF(INDIRECT(\"'\"&B65&\"'!C10\")=\"NÃO\",\"\",INDIRECT(\"'\"&B65&\"'!f10\")),\"\")","v":""},""]
["","R60","",{"$f":"IFERROR(INDIRECT(\"'\"&B66&\"'!C8\"),\"\")","v":""},{"$f":"IFERROR(INDIRECT(\"'\"&B66&\"'!f8\"),\"\")","v":""},{"$f":"_xlfn.SINGLE(IFERROR(INDIRECT(\"'\"&B66&\"'!c21\"),\"\"))","v":""},"",{"$f":"IFERROR(IF(INDIRECT(\"'\"&B66&\"'!C10\")=\"NÃO\",\"\",INDIRECT(\"'\"&B66&\"'!f10\")),\"\")","v":""},""]
["","R61","",{"$f":"IFERROR(INDIRECT(\"'\"&B67&\"'!C8\"),\"\")","v":""},{"$f":"IFERROR(INDIRECT(\"'\"&B67&\"'!f8\"),\"\")","v":""},{"$f":"_xlfn.SINGLE(IFERROR(INDIRECT(\"'\"&B67&\"'!c21\"),\"\"))","v":""},"",{"$f":"IFERROR(IF(INDIRECT(\"'\"&B67&\"'!C10\")=\"NÃO\",\"\",INDIRECT(\"'\"&B67&\"'!f10\")),\"\")","v":""},""]
["","R62","",{"$f":"IFERROR(INDIRECT(\"'\"&B68&\"'!C8\"),\"\")","v":""},{"$f":"IFERROR(INDIRECT(\"'\"&B68&\"'!f8\"),\"\")","v":""},{"$f":"_xlfn.SINGLE(IFERROR(INDIRECT(\"'\"&B68&\"'!c21\"),\"\"))","v":""},"",{"$f":"IFERROR(IF(INDIRECT(\"'\"&B68&\"'!C10\")=\"NÃO\",\"\",INDIRECT(\"'\"&B68&\"'!f10\")),\"\")","v":""},""]
["","R63","",{"$f":"IFERROR(INDIRECT(\"'\"&B69&\"'!C8\"),\"\")","v":""},{"$f":"IFERROR(INDIRECT(\"'\"&B69&\"'!f8\"),\"\")","v":""},{"$f":"_xlfn.SINGLE(IFERROR(INDIRECT(\"'\"&B69&\"'!c21\"),\"\"))","v":""},"",{"$f":"IFERROR(IF(INDIRECT(\"'\"&B69&\"'!C10\")=\"NÃO\",\"\",INDIRECT(\"'\"&B69&\"'!f10\")),\"\")","v":""},""]
["","R64","",{"$f":"IFERROR(INDIRECT(\"'\"&B70&\"'!C8\"),\"\")","v":""},{"$f":"IFERROR(INDIRECT(\"'\"&B70&\"'!f8\"),\"\")","v":""},{"$f":"_xlfn.SINGLE(IFERROR(INDIRECT(\"'\"&B70&\"'!c21\"),\"\"))","v":""},"",{"$f":"IFERROR(IF(INDIRECT(\"'\"&B70&\"'!C10\")=\"NÃO\",\"\",INDIRECT(\"'\"&B70&\"'!f10\")),\"\")","v":""},""]
["","R65","",{"$f":"IFERROR(INDIRECT(\"'\"&B71&\"'!C8\"),\"\")","v":""},{"$f":"IFERROR(INDIRECT(\"'\"&B71&\"'!f8\"),\"\")","v":""},{"$f":"_xlfn.SINGLE(IFERROR(INDIRECT(\"'\"&B71&\"'!c21\"),\"\"))","v":""},"",{"$f":"IFERROR(IF(INDIRECT(\"'\"&B71&\"'!C10\")=\"NÃO\",\"\",INDIRECT(\"'\"&B71&\"'!f10\")),\"\")","v":""},""]
["","R66",{"$f":"IF(A72=\"\",\"\",MID(B72,2,15))","v":""},{"$f":"IFERROR(INDIRECT(\"'\"&B72&\"'!C8\"),\"\")","v":""},{"$f":"IFERROR(INDIRECT(\"'\"&B72&\"'!f8\"),\"\")","v":""},{"$f":"_xlfn.SINGLE(IFERROR(INDIRECT(\"'\"&B72&\"'!c21\"),\"\"))","v":""},{"$f":"IFERROR(IF(F72=\"Preço Único\",INDIRECT(\"'\"&B72&\"'!c15\"),INDIRECT(\"'\"&B72&\"'!g21\")),\"\")","v":""},{"$f":"IFERROR(IF(INDIRECT(\"'\"&B72&\"'!C10\")=\"NÃO\",\"\",INDIRECT(\"'\"&B72&\"'!f10\")),\"\")","v":""},{"$f":"_xlfn.IFS(AND(G72=\"\",H72=\"\"),\"\",\n$B$1=5,\"\",\nOR(G72=\"\",G72=\"INFORME OS DADOS DA PESQUISA DE PREÇOS\"),\"Falta valor de mercado\",\nH72=\"\",\"Preço contratado não informado\",\nG72=\"Não foi possível calcular.\",\"Não foi possível avaliar.\",\nAND(INDIRECT(\"'\"&B72&\"'!K27\")=\"OK\",G72>=H72),\"Ok\",\nAND(INDIRECT(\"'\"&B72&\"'!K27\")<>\"OK\",G72>=H72),\"Ok, desde que justificado os problemas da pesquisa\",\nAND(INDIRECT(\"'\"&B72&\"'!K27\")=\"OK\",G72<H72),\"Negociar preço contratado\",\nAND(INDIRECT(\"'\"&B72&\"'!K27\")<>\"OK\",G72<H72),\"Negociar preço contratado e justificar problemas da pesquisa\")","v":""}]
["","R67","",{"$f":"IFERROR(INDIRECT(\"'\"&B73&\"'!C8\"),\"\")","v":""},{"$f":"IFERROR(INDIRECT(\"'\"&B73&\"'!f8\"),\"\")","v":""},{"$f":"_xlfn.SINGLE(IFERROR(INDIRECT(\"'\"&B73&\"'!c21\"),\"\"))","v":""},"",{"$f":"IFERROR(IF(INDIRECT(\"'\"&B73&\"'!C10\")=\"NÃO\",\"\",INDIRECT(\"'\"&B73&\"'!f10\")),\"\")","v":""},""]
["","R68","",{"$f":"IFERROR(INDIRECT(\"'\"&B74&\"'!C8\"),\"\")","v":""},{"$f":"IFERROR(INDIRECT(\"'\"&B74&\"'!f8\"),\"\")","v":""},{"$f":"_xlfn.SINGLE(IFERROR(INDIRECT(\"'\"&B74&\"'!c21\"),\"\"))","v":""},"",{"$f":"IFERROR(IF(INDIRECT(\"'\"&B74&\"'!C10\")=\"NÃO\",\"\",INDIRECT(\"'\"&B74&\"'!f10\")),\"\")","v":""},""]
["","R69","",{"$f":"IFERROR(INDIRECT(\"'\"&B75&\"'!C8\"),\"\")","v":""},{"$f":"IFERROR(INDIRECT(\"'\"&B75&\"'!f8\"),\"\")","v":""},{"$f":"_xlfn.SINGLE(IFERROR(INDIRECT(\"'\"&B75&\"'!c21\"),\"\"))","v":""},"",{"$f":"IFERROR(IF(INDIRECT(\"'\"&B75&\"'!C10\")=\"NÃO\",\"\",INDIRECT(\"'\"&B75&\"'!f10\")),\"\")","v":""},""]
["","R70","",{"$f":"IFERROR(INDIRECT(\"'\"&B76&\"'!C8\"),\"\")","v":""},{"$f":"IFERROR(INDIRECT(\"'\"&B76&\"'!f8\"),\"\")","v":""},{"$f":"_xlfn.SINGLE(IFERROR(INDIRECT(\"'\"&B76&\"'!c21\"),\"\"))","v":""},"",{"$f":"IFERROR(IF(INDIRECT(\"'\"&B76&\"'!C10\")=\"NÃO\",\"\",INDIRECT(\"'\"&B76&\"'!f10\")),\"\")","v":""},""]
["","R71","",{"$f":"IFERROR(INDIRECT(\"'\"&B77&\"'!C8\"),\"\")","v":""},{"$f":"IFERROR(INDIRECT(\"'\"&B77&\"'!f8\"),\"\")","v":""},{"$f":"_xlfn.SINGLE(IFERROR(INDIRECT(\"'\"&B77&\"'!c21\"),\"\"))","v":""},"",{"$f":"IFERROR(IF(INDIRECT(\"'\"&B77&\"'!C10\")=\"NÃO\",\"\",INDIRECT(\"'\"&B77&\"'!f10\")),\"\")","v":""},""]
["","R72","",{"$f":"IFERROR(INDIRECT(\"'\"&B78&\"'!C8\"),\"\")","v":""},{"$f":"IFERROR(INDIRECT(\"'\"&B78&\"'!f8\"),\"\")","v":""},{"$f":"_xlfn.SINGLE(IFERROR(INDIRECT(\"'\"&B78&\"'!c21\"),\"\"))","v":""},"",{"$f":"IFERROR(IF(INDIRECT(\"'\"&B78&\"'!C10\")=\"NÃO\",\"\",INDIRECT(\"'\"&B78&\"'!f10\")),\"\")","v":""},""]
["","R73","",{"$f":"IFERROR(INDIRECT(\"'\"&B79&\"'!C8\"),\"\")","v":""},{"$f":"IFERROR(INDIRECT(\"'\"&B79&\"'!f8\"),\"\")","v":""},{"$f":"_xlfn.SINGLE(IFERROR(INDIRECT(\"'\"&B79&\"'!c21\"),\"\"))","v":""},"",{"$f":"IFERROR(IF(INDIRECT(\"'\"&B79&\"'!C10\")=\"NÃO\",\"\",INDIRECT(\"'\"&B79&\"'!f10\")),\"\")","v":""},""]
["","R74","",{"$f":"IFERROR(INDIRECT(\"'\"&B80&\"'!C8\"),\"\")","v":""},{"$f":"IFERROR(INDIRECT(\"'\"&B80&\"'!f8\"),\"\")","v":""},{"$f":"_xlfn.SINGLE(IFERROR(INDIRECT(\"'\"&B80&\"'!c21\"),\"\"))","v":""},"",{"$f":"IFERROR(IF(INDIRECT(\"'\"&B80&\"'!C10\")=\"NÃO\",\"\",INDIRECT(\"'\"&B80&\"'!f10\")),\"\")","v":""},""]
["","R75","",{"$f":"IFERROR(INDIRECT(\"'\"&B81&\"'!C8\"),\"\")","v":""},{"$f":"IFERROR(INDIRECT(\"'\"&B81&\"'!f8\"),\"\")","v":""},{"$f":"_xlfn.SINGLE(IFERROR(INDIRECT(\"'\"&B81&\"'!c21\"),\"\"))","v":""},"",{"$f":"IFERROR(IF(INDIRECT(\"'\"&B81&\"'!C10\")=\"NÃO\",\"\",INDIRECT(\"'\"&B81&\"'!f10\")),\"\")","v":""},""]
["","R76","",{"$f":"IFERROR(INDIRECT(\"'\"&B82&\"'!C8\"),\"\")","v":""},{"$f":"IFERROR(INDIRECT(\"'\"&B82&\"'!f8\"),\"\")","v":""},{"$f":"_xlfn.SINGLE(IFERROR(INDIRECT(\"'\"&B82&\"'!c21\"),\"\"))","v":""},"",{"$f":"IFERROR(IF(INDIRECT(\"'\"&B82&\"'!C10\")=\"NÃO\",\"\",INDIRECT(\"'\"&B82&\"'!f10\")),\"\")","v":""},""]
["","R77","",{"$f":"IFERROR(INDIRECT(\"'\"&B83&\"'!C8\"),\"\")","v":""},{"$f":"IFERROR(INDIRECT(\"'\"&B83&\"'!f8\"),\"\")","v":""},{"$f":"_xlfn.SINGLE(IFERROR(INDIRECT(\"'\"&B83&\"'!c21\"),\"\"))","v":""},"",{"$f":"IFERROR(IF(INDIRECT(\"'\"&B83&\"'!C10\")=\"NÃO\",\"\",INDIRECT(\"'\"&B83&\"'!f10\")),\"\")","v":""},""]
["","R78","",{"$f":"IFERROR(INDIRECT(\"'\"&B84&\"'!C8\"),\"\")","v":""},{"$f":"IFERROR(INDIRECT(\"'\"&B84&\"'!f8\"),\"\")","v":""},{"$f":"_xlfn.SINGLE(IFERROR(INDIRECT(\"'\"&B84&\"'!c21\"),\"\"))","v":""},"",{"$f":"IFERROR(IF(INDIRECT(\"'\"&B84&\"'!C10\")=\"NÃO\",\"\",INDIRECT(\"'\"&B84&\"'!f10\")),\"\")","v":""},""]
["","R79","",{"$f":"IFERROR(INDIRECT(\"'\"&B85&\"'!C8\"),\"\")","v":""},{"$f":"IFERROR(INDIRECT(\"'\"&B85&\"'!f8\"),\"\")","v":""},{"$f":"_xlfn.SINGLE(IFERROR(INDIRECT(\"'\"&B85&\"'!c21\"),\"\"))","v":""},"",{"$f":"IFERROR(IF(INDIRECT(\"'\"&B85&\"'!C10\")=\"NÃO\",\"\",INDIRECT(\"'\"&B85&\"'!f10\")),\"\")","v":""},""]
["","R80","",{"$f":"IFERROR(INDIRECT(\"'\"&B86&\"'!C8\"),\"\")","v":""},{"$f":"IFERROR(INDIRECT(\"'\"&B86&\"'!f8\"),\"\")","v":""},{"$f":"_xlfn.SINGLE(IFERROR(INDIRECT(\"'\"&B86&\"'!c21\"),\"\"))","v":""},"",{"$f":"IFERROR(IF(INDIRECT(\"'\"&B86&\"'!C10\")=\"NÃO\",\"\",INDIRECT(\"'\"&B86&\"'!f10\")),\"\")","v":""},""]
["","R81","",{"$f":"IFERROR(INDIRECT(\"'\"&B87&\"'!C8\"),\"\")","v":""},{"$f":"IFERROR(INDIRECT(\"'\"&B87&\"'!f8\"),\"\")","v":""},{"$f":"_xlfn.SINGLE(IFERROR(INDIRECT(\"'\"&B87&\"'!c21\"),\"\"))","v":""},"",{"$f":"IFERROR(IF(INDIRECT(\"'\"&B87&\"'!C10\")=\"NÃO\",\"\",INDIRECT(\"'\"&B87&\"'!f10\")),\"\")","v":""},""]
["","R82","",{"$f":"IFERROR(INDIRECT(\"'\"&B88&\"'!C8\"),\"\")","v":""},{"$f":"IFERROR(INDIRECT(\"'\"&B88&\"'!f8\"),\"\")","v":""},{"$f":"_xlfn.SINGLE(IFERROR(INDIRECT(\"'\"&B88&\"'!c21\"),\"\"))","v":""},"",{"$f":"IFERROR(IF(INDIRECT(\"'\"&B88&\"'!C10\")=\"NÃO\",\"\",INDIRECT(\"'\"&B88&\"'!f10\")),\"\")","v":""},""]
["","R83","",{"$f":"IFERROR(INDIRECT(\"'\"&B89&\"'!C8\"),\"\")","v":""},{"$f":"IFERROR(INDIRECT(\"'\"&B89&\"'!f8\"),\"\")","v":""},{"$f":"_xlfn.SINGLE(IFERROR(INDIRECT(\"'\"&B89&\"'!c21\"),\"\"))","v":""},"",{"$f":"IFERROR(IF(INDIRECT(\"'\"&B89&\"'!C10\")=\"NÃO\",\"\",INDIRECT(\"'\"&B89&\"'!f10\")),\"\")","v":""},""]
["","R84","",{"$f":"IFERROR(INDIRECT(\"'\"&B90&\"'!C8\"),\"\")","v":""},{"$f":"IFERROR(INDIRECT(\"'\"&B90&\"'!f8\"),\"\")","v":""},{"$f":"_xlfn.SINGLE(IFERROR(INDIRECT(\"'\"&B90&\"'!c21\"),\"\"))","v":""},"",{"$f":"IFERROR(IF(INDIRECT(\"'\"&B90&\"'!C10\")=\"NÃO\",\"\",INDIRECT(\"'\"&B90&\"'!f10\")),\"\")","v":""},""]
["","R85","",{"$f":"IFERROR(INDIRECT(\"'\"&B91&\"'!C8\"),\"\")","v":""},{"$f":"IFERROR(INDIRECT(\"'\"&B91&\"'!f8\"),\"\")","v":""},{"$f":"_xlfn.SINGLE(IFERROR(INDIRECT(\"'\"&B91&\"'!c21\"),\"\"))","v":""},"",{"$f":"IFERROR(IF(INDIRECT(\"'\"&B91&\"'!C10\")=\"NÃO\",\"\",INDIRECT(\"'\"&B91&\"'!f10\")),\"\")","v":""},""]
["","R86","",{"$f":"IFERROR(INDIRECT(\"'\"&B92&\"'!C8\"),\"\")","v":""},{"$f":"IFERROR(INDIRECT(\"'\"&B92&\"'!f8\"),\"\")","v":""},{"$f":"_xlfn.SINGLE(IFERROR(INDIRECT(\"'\"&B92&\"'!c21\"),\"\"))","v":""},"",{"$f":"IFERROR(IF(INDIRECT(\"'\"&B92&\"'!C10\")=\"NÃO\",\"\",INDIRECT(\"'\"&B92&\"'!f10\")),\"\")","v":""},""]
["","R87","",{"$f":"IFERROR(INDIRECT(\"'\"&B93&\"'!C8\"),\"\")","v":""},{"$f":"IFERROR(INDIRECT(\"'\"&B93&\"'!f8\"),\"\")","v":""},{"$f":"_xlfn.SINGLE(IFERROR(INDIRECT(\"'\"&B93&\"'!c21\"),\"\"))","v":""},"",{"$f":"IFERROR(IF(INDIRECT(\"'\"&B93&\"'!C10\")=\"NÃO\",\"\",INDIRECT(\"'\"&B93&\"'!f10\")),\"\")","v":""},""]
["","R88","",{"$f":"IFERROR(INDIRECT(\"'\"&B94&\"'!C8\"),\"\")","v":""},{"$f":"IFERROR(INDIRECT(\"'\"&B94&\"'!f8\"),\"\")","v":""},{"$f":"_xlfn.SINGLE(IFERROR(INDIRECT(\"'\"&B94&\"'!c21\"),\"\"))","v":""},"",{"$f":"IFERROR(IF(INDIRECT(\"'\"&B94&\"'!C10\")=\"NÃO\",\"\",INDIRECT(\"'\"&B94&\"'!f10\")),\"\")","v":""},""]
["","R89","",{"$f":"IFERROR(INDIRECT(\"'\"&B95&\"'!C8\"),\"\")","v":""},{"$f":"IFERROR(INDIRECT(\"'\"&B95&\"'!f8\"),\"\")","v":""},{"$f":"_xlfn.SINGLE(IFERROR(INDIRECT(\"'\"&B95&\"'!c21\"),\"\"))","v":""},"",{"$f":"IFERROR(IF(INDIRECT(\"'\"&B95&\"'!C10\")=\"NÃO\",\"\",INDIRECT(\"'\"&B95&\"'!f10\")),\"\")","v":""},""]
["","R90","",{"$f":"IFERROR(INDIRECT(\"'\"&B96&\"'!C8\"),\"\")","v":""},{"$f":"IFERROR(INDIRECT(\"'\"&B96&\"'!f8\"),\"\")","v":""},{"$f":"_xlfn.SINGLE(IFERROR(INDIRECT(\"'\"&B96&\"'!c21\"),\"\"))","v":""},"",{"$f":"IFERROR(IF(INDIRECT(\"'\"&B96&\"'!C10\")=\"NÃO\",\"\",INDIRECT(\"'\"&B96&\"'!f10\")),\"\")","v":""},""]
[{"$f":"IF(D97=\"\",\"\",1)","v":""},"R91","",{"$f":"IFERROR(INDIRECT(\"'\"&B97&\"'!C8\"),\"\")","v":""},{"$f":"IFERROR(INDIRECT(\"'\"&B97&\"'!f8\"),\"\")","v":""},{"$f":"_xlfn.SINGLE(IFERROR(INDIRECT(\"'\"&B97&\"'!c21\"),\"\"))","v":""},"",{"$f":"IFERROR(IF(INDIRECT(\"'\"&B97&\"'!C10\")=\"NÃO\",\"\",INDIRECT(\"'\"&B97&\"'!f10\")),\"\")","v":""},""]
["","R92","",{"$f":"IFERROR(INDIRECT(\"'\"&B98&\"'!C8\"),\"\")","v":""},{"$f":"IFERROR(INDIRECT(\"'\"&B98&\"'!f8\"),\"\")","v":""},{"$f":"_xlfn.SINGLE(IFERROR(INDIRECT(\"'\"&B98&\"'!c21\"),\"\"))","v":""},"",{"$f":"IFERROR(IF(INDIRECT(\"'\"&B98&\"'!C10\")=\"NÃO\",\"\",INDIRECT(\"'\"&B98&\"'!f10\")),\"\")","v":""},""]
["","R93","",{"$f":"IFERROR(INDIRECT(\"'\"&B99&\"'!C8\"),\"\")","v":""},{"$f":"IFERROR(INDIRECT(\"'\"&B99&\"'!f8\"),\"\")","v":""},{"$f":"_xlfn.SINGLE(IFERROR(INDIRECT(\"'\"&B99&\"'!c21\"),\"\"))","v":""},"",{"$f":"IFERROR(IF(INDIRECT(\"'\"&B99&\"'!C10\")=\"NÃO\",\"\",INDIRECT(\"'\"&B99&\"'!f10\")),\"\")","v":""},""]
["","R94","",{"$f":"IFERROR(INDIRECT(\"'\"&B100&\"'!C8\"),\"\")","v":""},{"$f":"IFERROR(INDIRECT(\"'\"&B100&\"'!f8\"),\"\")","v":""},{"$f":"_xlfn.SINGLE(IFERROR(INDIRECT(\"'\"&B100&\"'!c21\"),\"\"))","v":""},"",{"$f":"IFERROR(IF(INDIRECT(\"'\"&B100&\"'!C10\")=\"NÃO\",\"\",INDIRECT(\"'\"&B100&\"'!f10\")),\"\")","v":""},""]
["","R95","",{"$f":"IFERROR(INDIRECT(\"'\"&B101&\"'!C8\"),\"\")","v":""},{"$f":"IFERROR(INDIRECT(\"'\"&B101&\"'!f8\"),\"\")","v":""},{"$f":"_xlfn.SINGLE(IFERROR(INDIRECT(\"'\"&B101&\"'!c21\"),\"\"))","v":""},"",{"$f":"IFERROR(IF(INDIRECT(\"'\"&B101&\"'!C10\")=\"NÃO\",\"\",INDIRECT(\"'\"&B101&\"'!f10\")),\"\")","v":""},""]
["","R96","",{"$f":"IFERROR(INDIRECT(\"'\"&B102&\"'!C8\"),\"\")","v":""},{"$f":"IFERROR(INDIRECT(\"'\"&B102&\"'!f8\"),\"\")","v":""},{"$f":"_xlfn.SINGLE(IFERROR(INDIRECT(\"'\"&B102&\"'!c21\"),\"\"))","v":""},"",{"$f":"IFERROR(IF(INDIRECT(\"'\"&B102&\"'!C10\")=\"NÃO\",\"\",INDIRECT(\"'\"&B102&\"'!f10\")),\"\")","v":""},""]
["","R97","",{"$f":"IFERROR(INDIRECT(\"'\"&B103&\"'!C8\"),\"\")","v":""},{"$f":"IFERROR(INDIRECT(\"'\"&B103&\"'!f8\"),\"\")","v":""},{"$f":"_xlfn.SINGLE(IFERROR(INDIRECT(\"'\"&B103&\"'!c21\"),\"\"))","v":""},"",{"$f":"IFERROR(IF(INDIRECT(\"'\"&B103&\"'!C10\")=\"NÃO\",\"\",INDIRECT(\"'\"&B103&\"'!f10\")),\"\")","v":""},""]
["","R98","",{"$f":"IFERROR(INDIRECT(\"'\"&B104&\"'!C8\"),\"\")","v":""},{"$f":"IFERROR(INDIRECT(\"'\"&B104&\"'!f8\"),\"\")","v":""},{"$f":"_xlfn.SINGLE(IFERROR(INDIRECT(\"'\"&B104&\"'!c21\"),\"\"))","v":""},"",{"$f":"IFERROR(IF(INDIRECT(\"'\"&B104&\"'!C10\")=\"NÃO\",\"\",INDIRECT(\"'\"&B104&\"'!f10\")),\"\")","v":""},""]
["","R99","",{"$f":"IFERROR(INDIRECT(\"'\"&B105&\"'!C8\"),\"\")","v":""},{"$f":"IFERROR(INDIRECT(\"'\"&B105&\"'!f8\"),\"\")","v":""},{"$f":"_xlfn.SINGLE(IFERROR(INDIRECT(\"'\"&B105&\"'!c21\"),\"\"))","v":""},"",{"$f":"IFERROR(IF(INDIRECT(\"'\"&B105&\"'!C10\")=\"NÃO\",\"\",INDIRECT(\"'\"&B105&\"'!f10\")),\"\")","v":""},""]
["","R100","",{"$f":"IFERROR(INDIRECT(\"'\"&B106&\"'!C8\"),\"\")","v":""},{"$f":"IFERROR(INDIRECT(\"'\"&B106&\"'!f8\"),\"\")","v":""},{"$f":"_xlfn.SINGLE(IFERROR(INDIRECT(\"'\"&B106&\"'!c21\"),\"\"))","v":""},"",{"$f":"IFERROR(IF(INDIRECT(\"'\"&B106&\"'!C10\")=\"NÃO\",\"\",INDIRECT(\"'\"&B106&\"'!f10\")),\"\")","v":""},""]
[null,"R101","",{"$f":"IFERROR(INDIRECT(\"'\"&B107&\"'!C8\"),\"\")","v":""},{"$f":"IFERROR(INDIRECT(\"'\"&B107&\"'!f8\"),\"\")","v":""},{"$f":"_xlfn.SINGLE(IFERROR(INDIRECT(\"'\"&B107&\"'!c21\"),\"\"))","v":""},"",{"$f":"IFERROR(IF(INDIRECT(\"'\"&B107&\"'!C10\")=\"NÃO\",\"\",INDIRECT(\"'\"&B107&\"'!f10\")),\"\")","v":""},""]
[null,"R102","",{"$f":"IFERROR(INDIRECT(\"'\"&B108&\"'!C8\"),\"\")","v":""},{"$f":"IFERROR(INDIRECT(\"'\"&B108&\"'!f8\"),\"\")","v":""},{"$f":"_xlfn.SINGLE(IFERROR(INDIRECT(\"'\"&B108&\"'!c21\"),\"\"))","v":""},"",{"$f":"IFERROR(IF(INDIRECT(\"'\"&B108&\"'!C10\")=\"NÃO\",\"\",INDIRECT(\"'\"&B108&\"'!f10\")),\"\")","v":""},""]
[null,"R103","",{"$f":"IFERROR(INDIRECT(\"'\"&B109&\"'!C8\"),\"\")","v":""},{"$f":"IFERROR(INDIRECT(\"'\"&B109&\"'!f8\"),\"\")","v":""},{"$f":"_xlfn.SINGLE(IFERROR(INDIRECT(\"'\"&B109&\"'!c21\"),\"\"))","v":""},"",{"$f":"IFERROR(IF(INDIRECT(\"'\"&B109&\"'!C10\")=\"NÃO\",\"\",INDIRECT(\"'\"&B109&\"'!f10\")),\"\")","v":""},""]
[null,"R104","",{"$f":"IFERROR(INDIRECT(\"'\"&B110&\"'!C8\"),\"\")","v":""},{"$f":"IFERROR(INDIRECT(\"'\"&B110&\"'!f8\"),\"\")","v":""},{"$f":"_xlfn.SINGLE(IFERROR(INDIRECT(\"'\"&B110&\"'!c21\"),\"\"))","v":""},"",{"$f":"IFERROR(IF(INDIRECT(\"'\"&B110&\"'!C10\")=\"NÃO\",\"\",INDIRECT(\"'\"&B110&\"'!f10\")),\"\")","v":""},""]
[null,"R105","",{"$f":"IFERROR(INDIRECT(\"'\"&B111&\"'!C8\"),\"\")","v":""},{"$f":"IFERROR(INDIRECT(\"'\"&B111&\"'!f8\"),\"\")","v":""},{"$f":"_xlfn.SINGLE(IFERROR(INDIRECT(\"'\"&B111&\"'!c21\"),\"\"))","v":""},"",{"$f":"IFERROR(IF(INDIRECT(\"'\"&B111&\"'!C10\")=\"NÃO\",\"\",INDIRECT(\"'\"&B111&\"'!f10\")),\"\")","v":""},""]
[null,"R106","",{"$f":"IFERROR(INDIRECT(\"'\"&B112&\"'!C8\"),\"\")","v":""},{"$f":"IFERROR(INDIRECT(\"'\"&B112&\"'!f8\"),\"\")","v":""},{"$f":"_xlfn.SINGLE(IFERROR(INDIRECT(\"'\"&B112&\"'!c21\"),\"\"))","v":""},"",{"$f":"IFERROR(IF(INDIRECT(\"'\"&B112&\"'!C10\")=\"NÃO\",\"\",INDIRECT(\"'\"&B112&\"'!f10\")),\"\")","v":""},""]
[null,"R107","",{"$f":"IFERROR(INDIRECT(\"'\"&B113&\"'!C8\"),\"\")","v":""},{"$f":"IFERROR(INDIRECT(\"'\"&B113&\"'!f8\"),\"\")","v":""},{"$f":"_xlfn.SINGLE(IFERROR(INDIRECT(\"'\"&B113&\"'!c21\"),\"\"))","v":""},"",{"$f":"IFERROR(IF(INDIRECT(\"'\"&B113&\"'!C10\")=\"NÃO\",\"\",INDIRECT(\"'\"&B113&\"'!f10\")),\"\")","v":""},""]
[null,"R108","",{"$f":"IFERROR(INDIRECT(\"'\"&B114&\"'!C8\"),\"\")","v":""},{"$f":"IFERROR(INDIRECT(\"'\"&B114&\"'!f8\"),\"\")","v":""},{"$f":"_xlfn.SINGLE(IFERROR(INDIRECT(\"'\"&B114&\"'!c21\"),\"\"))","v":""},"",{"$f":"IFERROR(IF(INDIRECT(\"'\"&B114&\"'!C10\")=\"NÃO\",\"\",INDIRECT(\"'\"&B114&\"'!f10\")),\"\")","v":""},""]
[null,"R109","",{"$f":"IFERROR(INDIRECT(\"'\"&B115&\"'!C8\"),\"\")","v":""},{"$f":"IFERROR(INDIRECT(\"'\"&B115&\"'!f8\"),\"\")","v":""},{"$f":"_xlfn.SINGLE(IFERROR(INDIRECT(\"'\"&B115&\"'!c21\"),\"\"))","v":""},"",{"$f":"IFERROR(IF(INDIRECT(\"'\"&B115&\"'!C10\")=\"NÃO\",\"\",INDIRECT(\"'\"&B115&\"'!f10\")),\"\")","v":""},""]
[null,"R110","",{"$f":"IFERROR(INDIRECT(\"'\"&B116&\"'!C8\"),\"\")","v":""},{"$f":"IFERROR(INDIRECT(\"'\"&B116&\"'!f8\"),\"\")","v":""},{"$f":"_xlfn.SINGLE(IFERROR(INDIRECT(\"'\"&B116&\"'!c21\"),\"\"))","v":""},"",{"$f":"IFERROR(IF(INDIRECT(\"'\"&B116&\"'!C10\")=\"NÃO\",\"\",INDIRECT(\"'\"&B116&\"'!f10\")),\"\")","v":""},""]
[null,"R111","",{"$f":"IFERROR(INDIRECT(\"'\"&B117&\"'!C8\"),\"\")","v":""},{"$f":"IFERROR(INDIRECT(\"'\"&B117&\"'!f8\"),\"\")","v":""},{"$f":"_xlfn.SINGLE(IFERROR(INDIRECT(\"'\"&B117&\"'!c21\"),\"\"))","v":""},"",{"$f":"IFERROR(IF(INDIRECT(\"'\"&B117&\"'!C10\")=\"NÃO\",\"\",INDIRECT(\"'\"&B117&\"'!f10\")),\"\")","v":""},""]
[null,"R112","",{"$f":"IFERROR(INDIRECT(\"'\"&B118&\"'!C8\"),\"\")","v":""},{"$f":"IFERROR(INDIRECT(\"'\"&B118&\"'!f8\"),\"\")","v":""},{"$f":"_xlfn.SINGLE(IFERROR(INDIRECT(\"'\"&B118&\"'!c21\"),\"\"))","v":""},"",{"$f":"IFERROR(IF(INDIRECT(\"'\"&B118&\"'!C10\")=\"NÃO\",\"\",INDIRECT(\"'\"&B118&\"'!f10\")),\"\")","v":""},""]
[null,"R113","",{"$f":"IFERROR(INDIRECT(\"'\"&B119&\"'!C8\"),\"\")","v":""},{"$f":"IFERROR(INDIRECT(\"'\"&B119&\"'!f8\"),\"\")","v":""},{"$f":"_xlfn.SINGLE(IFERROR(INDIRECT(\"'\"&B119&\"'!c21\"),\"\"))","v":""},"",{"$f":"IFERROR(IF(INDIRECT(\"'\"&B119&\"'!C10\")=\"NÃO\",\"\",INDIRECT(\"'\"&B119&\"'!f10\")),\"\")","v":""},""]
[null,"R114","",{"$f":"IFERROR(INDIRECT(\"'\"&B120&\"'!C8\"),\"\")","v":""},{"$f":"IFERROR(INDIRECT(\"'\"&B120&\"'!f8\"),\"\")","v":""},{"$f":"_xlfn.SINGLE(IFERROR(INDIRECT(\"'\"&B120&\"'!c21\"),\"\"))","v":""},"",{"$f":"IFERROR(IF(INDIRECT(\"'\"&B120&\"'!C10\")=\"NÃO\",\"\",INDIRECT(\"'\"&B120&\"'!f10\")),\"\")","v":""},""]
[null,"R115","",{"$f":"IFERROR(INDIRECT(\"'\"&B121&\"'!C8\"),\"\")","v":""},{"$f":"IFERROR(INDIRECT(\"'\"&B121&\"'!f8\"),\"\")","v":""},{"$f":"_xlfn.SINGLE(IFERROR(INDIRECT(\"'\"&B121&\"'!c21\"),\"\"))","v":""},"",{"$f":"IFERROR(IF(INDIRECT(\"'\"&B121&\"'!C10\")=\"NÃO\",\"\",INDIRECT(\"'\"&B121&\"'!f10\")),\"\")","v":""},""]
[null,"R116","",{"$f":"IFERROR(INDIRECT(\"'\"&B122&\"'!C8\"),\"\")","v":""},{"$f":"IFERROR(INDIRECT(\"'\"&B122&\"'!f8\"),\"\")","v":""},{"$f":"_xlfn.SINGLE(IFERROR(INDIRECT(\"'\"&B122&\"'!c21\"),\"\"))","v":""},"",{"$f":"IFERROR(IF(INDIRECT(\"'\"&B122&\"'!C10\")=\"NÃO\",\"\",INDIRECT(\"'\"&B122&\"'!f10\")),\"\")","v":""},""]
[null,"R117","",{"$f":"IFERROR(INDIRECT(\"'\"&B123&\"'!C8\"),\"\")","v":""},{"$f":"IFERROR(INDIRECT(\"'\"&B123&\"'!f8\"),\"\")","v":""},{"$f":"_xlfn.SINGLE(IFERROR(INDIRECT(\"'\"&B123&\"'!c21\"),\"\"))","v":""},"",{"$f":"IFERROR(IF(INDIRECT(\"'\"&B123&\"'!C10\")=\"NÃO\",\"\",INDIRECT(\"'\"&B123&\"'!f10\")),\"\")","v":""},""]
[null,"R118","",{"$f":"IFERROR(INDIRECT(\"'\"&B124&\"'!C8\"),\"\")","v":""},{"$f":"IFERROR(INDIRECT(\"'\"&B124&\"'!f8\"),\"\")","v":""},{"$f":"_xlfn.SINGLE(IFERROR(INDIRECT(\"'\"&B124&\"'!c21\"),\"\"))","v":""},"",{"$f":"IFERROR(IF(INDIRECT(\"'\"&B124&\"'!C10\")=\"NÃO\",\"\",INDIRECT(\"'\"&B124&\"'!f10\")),\"\")","v":""},""]
[null,"R119","",{"$f":"IFERROR(INDIRECT(\"'\"&B125&\"'!C8\"),\"\")","v":""},{"$f":"IFERROR(INDIRECT(\"'\"&B125&\"'!f8\"),\"\")","v":""},{"$f":"_xlfn.SINGLE(IFERROR(INDIRECT(\"'\"&B125&\"'!c21\"),\"\"))","v":""},"",{"$f":"IFERROR(IF(INDIRECT(\"'\"&B125&\"'!C10\")=\"NÃO\",\"\",INDIRECT(\"'\"&B125&\"'!f10\")),\"\")","v":""},""]
[null,"R120","",{"$f":"IFERROR(INDIRECT(\"'\"&B126&\"'!C8\"),\"\")","v":""},{"$f":"IFERROR(INDIRECT(\"'\"&B126&\"'!f8\"),\"\")","v":""},{"$f":"_xlfn.SINGLE(IFERROR(INDIRECT(\"'\"&B126&\"'!c21\"),\"\"))","v":""},"",{"$f":"IFERROR(IF(INDIRECT(\"'\"&B126&\"'!C10\")=\"NÃO\",\"\",INDIRECT(\"'\"&B126&\"'!f10\")),\"\")","v":""},""]
[null,"R121","",{"$f":"IFERROR(INDIRECT(\"'\"&B127&\"'!C8\"),\"\")","v":""},{"$f":"IFERROR(INDIRECT(\"'\"&B127&\"'!f8\"),\"\")","v":""},{"$f":"_xlfn.SINGLE(IFERROR(INDIRECT(\"'\"&B127&\"'!c21\"),\"\"))","v":""},"",{"$f":"IFERROR(IF(INDIRECT(\"'\"&B127&\"'!C10\")=\"NÃO\",\"\",INDIRECT(\"'\"&B127&\"'!f10\")),\"\")","v":""},""]
[null,"R122","",{"$f":"IFERROR(INDIRECT(\"'\"&B128&\"'!C8\"),\"\")","v":""},{"$f":"IFERROR(INDIRECT(\"'\"&B128&\"'!f8\"),\"\")","v":""},{"$f":"_xlfn.SINGLE(IFERROR(INDIRECT(\"'\"&B128&\"'!c21\"),\"\"))","v":""},"",{"$f":"IFERROR(IF(INDIRECT(\"'\"&B128&\"'!C10\")=\"NÃO\",\"\",INDIRECT(\"'\"&B128&\"'!f10\")),\"\")","v":""},""]
[null,"R123","",{"$f":"IFERROR(INDIRECT(\"'\"&B129&\"'!C8\"),\"\")","v":""},{"$f":"IFERROR(INDIRECT(\"'\"&B129&\"'!f8\"),\"\")","v":""},{"$f":"_xlfn.SINGLE(IFERROR(INDIRECT(\"'\"&B129&\"'!c21\"),\"\"))","v":""},"",{"$f":"IFERROR(IF(INDIRECT(\"'\"&B129&\"'!C10\")=\"NÃO\",\"\",INDIRECT(\"'\"&B129&\"'!f10\")),\"\")","v":""},""]
[null,"R124","",{"$f":"IFERROR(INDIRECT(\"'\"&B130&\"'!C8\"),\"\")","v":""},{"$f":"IFERROR(INDIRECT(\"'\"&B130&\"'!f8\"),\"\")","v":""},{"$f":"_xlfn.SINGLE(IFERROR(INDIRECT(\"'\"&B130&\"'!c21\"),\"\"))","v":""},"",{"$f":"IFERROR(IF(INDIRECT(\"'\"&B130&\"'!C10\")=\"NÃO\",\"\",INDIRECT(\"'\"&B130&\"'!f10\")),\"\")","v":""},""]
[null,"R125","",{"$f":"IFERROR(INDIRECT(\"'\"&B131&\"'!C8\"),\"\")","v":""},{"$f":"IFERROR(INDIRECT(\"'\"&B131&\"'!f8\"),\"\")","v":""},{"$f":"_xlfn.SINGLE(IFERROR(INDIRECT(\"'\"&B131&\"'!c21\"),\"\"))","v":""},"",{"$f":"IFERROR(IF(INDIRECT(\"'\"&B131&\"'!C10\")=\"NÃO\",\"\",INDIRECT(\"'\"&B131&\"'!f10\")),\"\")","v":""},""]
[null,"R126","",{"$f":"IFERROR(INDIRECT(\"'\"&B132&\"'!C8\"),\"\")","v":""},{"$f":"IFERROR(INDIRECT(\"'\"&B132&\"'!f8\"),\"\")","v":""},{"$f":"_xlfn.SINGLE(IFERROR(INDIRECT(\"'\"&B132&\"'!c21\"),\"\"))","v":""},"",{"$f":"IFERROR(IF(INDIRECT(\"'\"&B132&\"'!C10\")=\"NÃO\",\"\",INDIRECT(\"'\"&B132&\"'!f10\")),\"\")","v":""},""]
[null,"R127","",{"$f":"IFERROR(INDIRECT(\"'\"&B133&\"'!C8\"),\"\")","v":""},{"$f":"IFERROR(INDIRECT(\"'\"&B133&\"'!f8\"),\"\")","v":""},{"$f":"_xlfn.SINGLE(IFERROR(INDIRECT(\"'\"&B133&\"'!c21\"),\"\"))","v":""},"",{"$f":"IFERROR(IF(INDIRECT(\"'\"&B133&\"'!C10\")=\"NÃO\",\"\",INDIRECT(\"'\"&B133&\"'!f10\")),\"\")","v":""},""]
[null,"R128","",{"$f":"IFERROR(INDIRECT(\"'\"&B134&\"'!C8\"),\"\")","v":""},{"$f":"IFERROR(INDIRECT(\"'\"&B134&\"'!f8\"),\"\")","v":""},{"$f":"_xlfn.SINGLE(IFERROR(INDIRECT(\"'\"&B134&\"'!c21\"),\"\"))","v":""},"",{"$f":"IFERROR(IF(INDIRECT(\"'\"&B134&\"'!C10\")=\"NÃO\",\"\",INDIRECT(\"'\"&B134&\"'!f10\")),\"\")","v":""},""]
[null,"R129","",{"$f":"IFERROR(INDIRECT(\"'\"&B135&\"'!C8\"),\"\")","v":""},{"$f":"IFERROR(INDIRECT(\"'\"&B135&\"'!f8\"),\"\")","v":""},{"$f":"_xlfn.SINGLE(IFERROR(INDIRECT(\"'\"&B135&\"'!c21\"),\"\"))","v":""},"",{"$f":"IFERROR(IF(INDIRECT(\"'\"&B135&\"'!C10\")=\"NÃO\",\"\",INDIRECT(\"'\"&B135&\"'!f10\")),\"\")","v":""},""]
[null,"R130",{"$f":"IF(A136=\"\",\"\",MID(B136,2,15))","v":""},{"$f":"IFERROR(INDIRECT(\"'\"&B136&\"'!C8\"),\"\")","v":""},{"$f":"IFERROR(INDIRECT(\"'\"&B136&\"'!f8\"),\"\")","v":""},{"$f":"_xlfn.SINGLE(IFERROR(INDIRECT(\"'\"&B136&\"'!c21\"),\"\"))","v":""},{"$f":"IFERROR(IF(F136=\"Preço Único\",INDIRECT(\"'\"&B136&\"'!c15\"),INDIRECT(\"'\"&B136&\"'!g21\")),\"\")","v":""},{"$f":"IFERROR(IF(INDIRECT(\"'\"&B136&\"'!C10\")=\"NÃO\",\"\",INDIRECT(\"'\"&B136&\"'!f10\")),\"\")","v":""},{"$f":"_xlfn.IFS(AND(G136=\"\",H136=\"\"),\"\",\n$B$1=5,\"\",\nOR(G136=\"\",G136=\"INFORME OS DADOS DA PESQUISA DE PREÇOS\"),\"Falta valor de mercado\",\nH136=\"\",\"Preço contratado não informado\",\nG136=\"Não foi possível calcular.\",\"Não foi possível avaliar.\",\nAND(INDIRECT(\"'\"&B136&\"'!K27\")=\"OK\",G136>=H136),\"Ok\",\nAND(INDIRECT(\"'\"&B136&\"'!K27\")<>\"OK\",G136>=H136),\"Ok, desde que justificado os problemas da pesquisa\",\nAND(INDIRECT(\"'\"&B136&\"'!K27\")=\"OK\",G136<H136),\"Negociar preço contratado\",\nAND(INDIRECT(\"'\"&B136&\"'!K27\")<>\"OK\",G136<H136),\"Negociar preço contratado e justificar problemas da pesquisa\")","v":""}]
[null,"R131","",{"$f":"IFERROR(INDIRECT(\"'\"&B137&\"'!C8\"),\"\")","v":""},{"$f":"IFERROR(INDIRECT(\"'\"&B137&\"'!f8\"),\"\")","v":""},{"$f":"_xlfn.SINGLE(IFERROR(INDIRECT(\"'\"&B137&\"'!c21\"),\"\"))","v":""},"",{"$f":"IFERROR(IF(INDIRECT(\"'\"&B137&\"'!C10\")=\"NÃO\",\"\",INDIRECT(\"'\"&B137&\"'!f10\")),\"\")","v":""},""]
[null,"R132","",{"$f":"IFERROR(INDIRECT(\"'\"&B138&\"'!C8\"),\"\")","v":""},{"$f":"IFERROR(INDIRECT(\"'\"&B138&\"'!f8\"),\"\")","v":""},{"$f":"_xlfn.SINGLE(IFERROR(INDIRECT(\"'\"&B138&\"'!c21\"),\"\"))","v":""},"",{"$f":"IFERROR(IF(INDIRECT(\"'\"&B138&\"'!C10\")=\"NÃO\",\"\",INDIRECT(\"'\"&B138&\"'!f10\")),\"\")","v":""},""]
[null,"R133","",{"$f":"IFERROR(INDIRECT(\"'\"&B139&\"'!C8\"),\"\")","v":""},{"$f":"IFERROR(INDIRECT(\"'\"&B139&\"'!f8\"),\"\")","v":""},{"$f":"_xlfn.SINGLE(IFERROR(INDIRECT(\"'\"&B139&\"'!c21\"),\"\"))","v":""},"",{"$f":"IFERROR(IF(INDIRECT(\"'\"&B139&\"'!C10\")=\"NÃO\",\"\",INDIRECT(\"'\"&B139&\"'!f10\")),\"\")","v":""},""]
[null,"R134","",{"$f":"IFERROR(INDIRECT(\"'\"&B140&\"'!C8\"),\"\")","v":""},{"$f":"IFERROR(INDIRECT(\"'\"&B140&\"'!f8\"),\"\")","v":""},{"$f":"_xlfn.SINGLE(IFERROR(INDIRECT(\"'\"&B140&\"'!c21\"),\"\"))","v":""},"",{"$f":"IFERROR(IF(INDIRECT(\"'\"&B140&\"'!C10\")=\"NÃO\",\"\",INDIRECT(\"'\"&B140&\"'!f10\")),\"\")","v":""},""]
[null,"R135","",{"$f":"IFERROR(INDIRECT(\"'\"&B141&\"'!C8\"),\"\")","v":""},{"$f":"IFERROR(INDIRECT(\"'\"&B141&\"'!f8\"),\"\")","v":""},{"$f":"_xlfn.SINGLE(IFERROR(INDIRECT(\"'\"&B141&\"'!c21\"),\"\"))","v":""},"",{"$f":"IFERROR(IF(INDIRECT(\"'\"&B141&\"'!C10\")=\"NÃO\",\"\",INDIRECT(\"'\"&B141&\"'!f10\")),\"\")","v":""},""]
[null,"R136","",{"$f":"IFERROR(INDIRECT(\"'\"&B142&\"'!C8\"),\"\")","v":""},{"$f":"IFERROR(INDIRECT(\"'\"&B142&\"'!f8\"),\"\")","v":""},{"$f":"_xlfn.SINGLE(IFERROR(INDIRECT(\"'\"&B142&\"'!c21\"),\"\"))","v":""},"",{"$f":"IFERROR(IF(INDIRECT(\"'\"&B142&\"'!C10\")=\"NÃO\",\"\",INDIRECT(\"'\"&B142&\"'!f10\")),\"\")","v":""},""]
[null,"R137","",{"$f":"IFERROR(INDIRECT(\"'\"&B143&\"'!C8\"),\"\")","v":""},{"$f":"IFERROR(INDIRECT(\"'\"&B143&\"'!f8\"),\"\")","v":""},{"$f":"_xlfn.SINGLE(IFERROR(INDIRECT(\"'\"&B143&\"'!c21\"),\"\"))","v":""},"",{"$f":"IFERROR(IF(INDIRECT(\"'\"&B143&\"'!C10\")=\"NÃO\",\"\",INDIRECT(\"'\"&B143&\"'!f10\")),\"\")","v":""},""]
[null,"R138","",{"$f":"IFERROR(INDIRECT(\"'\"&B144&\"'!C8\"),\"\")","v":""},{"$f":"IFERROR(INDIRECT(\"'\"&B144&\"'!f8\"),\"\")","v":""},{"$f":"_xlfn.SINGLE(IFERROR(INDIRECT(\"'\"&B144&\"'!c21\"),\"\"))","v":""},"",{"$f":"IFERROR(IF(INDIRECT(\"'\"&B144&\"'!C10\")=\"NÃO\",\"\",INDIRECT(\"'\"&B144&\"'!f10\")),\"\")","v":""},""]
[null,"R139","",{"$f":"IFERROR(INDIRECT(\"'\"&B145&\"'!C8\"),\"\")","v":""},{"$f":"IFERROR(INDIRECT(\"'\"&B145&\"'!f8\"),\"\")","v":""},{"$f":"_xlfn.SINGLE(IFERROR(INDIRECT(\"'\"&B145&\"'!c21\"),\"\"))","v":""},"",{"$f":"IFERROR(IF(INDIRECT(\"'\"&B145&\"'!C10\")=\"NÃO\",\"\",INDIRECT(\"'\"&B145&\"'!f10\")),\"\")","v":""},""]
[null,"R140","",{"$f":"IFERROR(INDIRECT(\"'\"&B146&\"'!C8\"),\"\")","v":""},{"$f":"IFERROR(INDIRECT(\"'\"&B146&\"'!f8\"),\"\")","v":""},{"$f":"_xlfn.SINGLE(IFERROR(INDIRECT(\"'\"&B146&\"'!c21\"),\"\"))","v":""},"",{"$f":"IFERROR(IF(INDIRECT(\"'\"&B146&\"'!C10\")=\"NÃO\",\"\",INDIRECT(\"'\"&B146&\"'!f10\")),\"\")","v":""},""]
[null,"R141","",{"$f":"IFERROR(INDIRECT(\"'\"&B147&\"'!C8\"),\"\")","v":""},{"$f":"IFERROR(INDIRECT(\"'\"&B147&\"'!f8\"),\"\")","v":""},{"$f":"_xlfn.SINGLE(IFERROR(INDIRECT(\"'\"&B147&\"'!c21\"),\"\"))","v":""},"",{"$f":"IFERROR(IF(INDIRECT(\"'\"&B147&\"'!C10\")=\"NÃO\",\"\",INDIRECT(\"'\"&B147&\"'!f10\")),\"\")","v":""},""]
[null,"R142","",{"$f":"IFERROR(INDIRECT(\"'\"&B148&\"'!C8\"),\"\")","v":""},{"$f":"IFERROR(INDIRECT(\"'\"&B148&\"'!f8\"),\"\")","v":""},{"$f":"_xlfn.SINGLE(IFERROR(INDIRECT(\"'\"&B148&\"'!c21\"),\"\"))","v":""},"",{"$f":"IFERROR(IF(INDIRECT(\"'\"&B148&\"'!C10\")=\"NÃO\",\"\",INDIRECT(\"'\"&B148&\"'!f10\")),\"\")","v":""},""]
[null,"R143","",{"$f":"IFERROR(INDIRECT(\"'\"&B149&\"'!C8\"),\"\")","v":""},{"$f":"IFERROR(INDIRECT(\"'\"&B149&\"'!f8\"),\"\")","v":""},{"$f":"_xlfn.SINGLE(IFERROR(INDIRECT(\"'\"&B149&\"'!c21\"),\"\"))","v":""},"",{"$f":"IFERROR(IF(INDIRECT(\"'\"&B149&\"'!C10\")=\"NÃO\",\"\",INDIRECT(\"'\"&B149&\"'!f10\")),\"\")","v":""},""]
[null,"R144","",{"$f":"IFERROR(INDIRECT(\"'\"&B150&\"'!C8\"),\"\")","v":""},{"$f":"IFERROR(INDIRECT(\"'\"&B150&\"'!f8\"),\"\")","v":""},{"$f":"_xlfn.SINGLE(IFERROR(INDIRECT(\"'\"&B150&\"'!c21\"),\"\"))","v":""},"",{"$f":"IFERROR(IF(INDIRECT(\"'\"&B150&\"'!C10\")=\"NÃO\",\"\",INDIRECT(\"'\"&B150&\"'!f10\")),\"\")","v":""},""]
[null,"R145","",{"$f":"IFERROR(INDIRECT(\"'\"&B151&\"'!C8\"),\"\")","v":""},{"$f":"IFERROR(INDIRECT(\"'\"&B151&\"'!f8\"),\"\")","v":""},{"$f":"_xlfn.SINGLE(IFERROR(INDIRECT(\"'\"&B151&\"'!c21\"),\"\"))","v":""},"",{"$f":"IFERROR(IF(INDIRECT(\"'\"&B151&\"'!C10\")=\"NÃO\",\"\",INDIRECT(\"'\"&B151&\"'!f10\")),\"\")","v":""},""]
[null,"R146","",{"$f":"IFERROR(INDIRECT(\"'\"&B152&\"'!C8\"),\"\")","v":""},{"$f":"IFERROR(INDIRECT(\"'\"&B152&\"'!f8\"),\"\")","v":""},{"$f":"_xlfn.SINGLE(IFERROR(INDIRECT(\"'\"&B152&\"'!c21\"),\"\"))","v":""},"",{"$f":"IFERROR(IF(INDIRECT(\"'\"&B152&\"'!C10\")=\"NÃO\",\"\",INDIRECT(\"'\"&B152&\"'!f10\")),\"\")","v":""},""]
[null,"R147","",{"$f":"IFERROR(INDIRECT(\"'\"&B153&\"'!C8\"),\"\")","v":""},{"$f":"IFERROR(INDIRECT(\"'\"&B153&\"'!f8\"),\"\")","v":""},{"$f":"_xlfn.SINGLE(IFERROR(INDIRECT(\"'\"&B153&\"'!c21\"),\"\"))","v":""},"",{"$f":"IFERROR(IF(INDIRECT(\"'\"&B153&\"'!C10\")=\"NÃO\",\"\",INDIRECT(\"'\"&B153&\"'!f10\")),\"\")","v":""},""]
[null,"R148","",{"$f":"IFERROR(INDIRECT(\"'\"&B154&\"'!C8\"),\"\")","v":""},{"$f":"IFERROR(INDIRECT(\"'\"&B154&\"'!f8\"),\"\")","v":""},{"$f":"_xlfn.SINGLE(IFERROR(INDIRECT(\"'\"&B154&\"'!c21\"),\"\"))","v":""},"",{"$f":"IFERROR(IF(INDIRECT(\"'\"&B154&\"'!C10\")=\"NÃO\",\"\",INDIRECT(\"'\"&B154&\"'!f10\")),\"\")","v":""},""]
[null,"R149","",{"$f":"IFERROR(INDIRECT(\"'\"&B155&\"'!C8\"),\"\")","v":""},{"$f":"IFERROR(INDIRECT(\"'\"&B155&\"'!f8\"),\"\")","v":""},{"$f":"_xlfn.SINGLE(IFERROR(INDIRECT(\"'\"&B155&\"'!c21\"),\"\"))","v":""},"",{"$f":"IFERROR(IF(INDIRECT(\"'\"&B155&\"'!C10\")=\"NÃO\",\"\",INDIRECT(\"'\"&B155&\"'!f10\")),\"\")","v":""},""]
[null,"R150","",{"$f":"IFERROR(INDIRECT(\"'\"&B156&\"'!C8\"),\"\")","v":""},{"$f":"IFERROR(INDIRECT(\"'\"&B156&\"'!f8\"),\"\")","v":""},{"$f":"_xlfn.SINGLE(IFERROR(INDIRECT(\"'\"&B156&\"'!c21\"),\"\"))","v":""},"",{"$f":"IFERROR(IF(INDIRECT(\"'\"&B156&\"'!C10\")=\"NÃO\",\"\",INDIRECT(\"'\"&B156&\"'!f10\")),\"\")","v":""},""]
[null,"R151","",{"$f":"IFERROR(INDIRECT(\"'\"&B157&\"'!C8\"),\"\")","v":""},{"$f":"IFERROR(INDIRECT(\"'\"&B157&\"'!f8\"),\"\")","v":""},{"$f":"_xlfn.SINGLE(IFERROR(INDIRECT(\"'\"&B157&\"'!c21\"),\"\"))","v":""},"",{"$f":"IFERROR(IF(INDIRECT(\"'\"&B157&\"'!C10\")=\"NÃO\",\"\",INDIRECT(\"'\"&B157&\"'!f10\")),\"\")","v":""},""]
[null,"R152","",{"$f":"IFERROR(INDIRECT(\"'\"&B158&\"'!C8\"),\"\")","v":""},{"$f":"IFERROR(INDIRECT(\"'\"&B158&\"'!f8\"),\"\")","v":""},{"$f":"_xlfn.SINGLE(IFERROR(INDIRECT(\"'\"&B158&\"'!c21\"),\"\"))","v":""},"",{"$f":"IFERROR(IF(INDIRECT(\"'\"&B158&\"'!C10\")=\"NÃO\",\"\",INDIRECT(\"'\"&B158&\"'!f10\")),\"\")","v":""},""]
[null,"R153","",{"$f":"IFERROR(INDIRECT(\"'\"&B159&\"'!C8\"),\"\")","v":""},{"$f":"IFERROR(INDIRECT(\"'\"&B159&\"'!f8\"),\"\")","v":""},{"$f":"_xlfn.SINGLE(IFERROR(INDIRECT(\"'\"&B159&\"'!c21\"),\"\"))","v":""},"",{"$f":"IFERROR(IF(INDIRECT(\"'\"&B159&\"'!C10\")=\"NÃO\",\"\",INDIRECT(\"'\"&B159&\"'!f10\")),\"\")","v":""},""]
[null,"R154","",{"$f":"IFERROR(INDIRECT(\"'\"&B160&\"'!C8\"),\"\")","v":""},{"$f":"IFERROR(INDIRECT(\"'\"&B160&\"'!f8\"),\"\")","v":""},{"$f":"_xlfn.SINGLE(IFERROR(INDIRECT(\"'\"&B160&\"'!c21\"),\"\"))","v":""},"",{"$f":"IFERROR(IF(INDIRECT(\"'\"&B160&\"'!C10\")=\"NÃO\",\"\",INDIRECT(\"'\"&B160&\"'!f10\")),\"\")","v":""},""]
[null,"R155","",{"$f":"IFERROR(INDIRECT(\"'\"&B161&\"'!C8\"),\"\")","v":""},{"$f":"IFERROR(INDIRECT(\"'\"&B161&\"'!f8\"),\"\")","v":""},{"$f":"_xlfn.SINGLE(IFERROR(INDIRECT(\"'\"&B161&\"'!c21\"),\"\"))","v":""},"",{"$f":"IFERROR(IF(INDIRECT(\"'\"&B161&\"'!C10\")=\"NÃO\",\"\",INDIRECT(\"'\"&B161&\"'!f10\")),\"\")","v":""},""]
[null,"R156","",{"$f":"IFERROR(INDIRECT(\"'\"&B162&\"'!C8\"),\"\")","v":""},{"$f":"IFERROR(INDIRECT(\"'\"&B162&\"'!f8\"),\"\")","v":""},{"$f":"_xlfn.SINGLE(IFERROR(INDIRECT(\"'\"&B162&\"'!c21\"),\"\"))","v":""},"",{"$f":"IFERROR(IF(INDIRECT(\"'\"&B162&\"'!C10\")=\"NÃO\",\"\",INDIRECT(\"'\"&B162&\"'!f10\")),\"\")","v":""},""]
[null,"R157","",{"$f":"IFERROR(INDIRECT(\"'\"&B163&\"'!C8\"),\"\")","v":""},{"$f":"IFERROR(INDIRECT(\"'\"&B163&\"'!f8\"),\"\")","v":""},{"$f":"_xlfn.SINGLE(IFERROR(INDIRECT(\"'\"&B163&\"'!c21\"),\"\"))","v":""},"",{"$f":"IFERROR(IF(INDIRECT(\"'\"&B163&\"'!C10\")=\"NÃO\",\"\",INDIRECT(\"'\"&B163&\"'!f10\")),\"\")","v":""},""]
[null,"R158","",{"$f":"IFERROR(INDIRECT(\"'\"&B164&\"'!C8\"),\"\")","v":""},{"$f":"IFERROR(INDIRECT(\"'\"&B164&\"'!f8\"),\"\")","v":""},{"$f":"_xlfn.SINGLE(IFERROR(INDIRECT(\"'\"&B164&\"'!c21\"),\"\"))","v":""},"",{"$f":"IFERROR(IF(INDIRECT(\"'\"&B164&\"'!C10\")=\"NÃO\",\"\",INDIRECT(\"'\"&B164&\"'!f10\")),\"\")","v":""},""]
[null,"R159","",{"$f":"IFERROR(INDIRECT(\"'\"&B165&\"'!C8\"),\"\")","v":""},{"$f":"IFERROR(INDIRECT(\"'\"&B165&\"'!f8\"),\"\")","v":""},{"$f":"_xlfn.SINGLE(IFERROR(INDIRECT(\"'\"&B165&\"'!c21\"),\"\"))","v":""},"",{"$f":"IFERROR(IF(INDIRECT(\"'\"&B165&\"'!C10\")=\"NÃO\",\"\",INDIRECT(\"'\"&B165&\"'!f10\")),\"\")","v":""},""]
[null,"R160","",{"$f":"IFERROR(INDIRECT(\"'\"&B166&\"'!C8\"),\"\")","v":""},{"$f":"IFERROR(INDIRECT(\"'\"&B166&\"'!f8\"),\"\")","v":""},{"$f":"_xlfn.SINGLE(IFERROR(INDIRECT(\"'\"&B166&\"'!c21\"),\"\"))","v":""},"",{"$f":"IFERROR(IF(INDIRECT(\"'\"&B166&\"'!C10\")=\"NÃO\",\"\",INDIRECT(\"'\"&B166&\"'!f10\")),\"\")","v":""},""]
[null,"R161","",{"$f":"IFERROR(INDIRECT(\"'\"&B167&\"'!C8\"),\"\")","v":""},{"$f":"IFERROR(INDIRECT(\"'\"&B167&\"'!f8\"),\"\")","v":""},{"$f":"_xlfn.SINGLE(IFERROR(INDIRECT(\"'\"&B167&\"'!c21\"),\"\"))","v":""},"",{"$f":"IFERROR(IF(INDIRECT(\"'\"&B167&\"'!C10\")=\"NÃO\",\"\",INDIRECT(\"'\"&B167&\"'!f10\")),\"\")","v":""},""]
[null,"R162","",{"$f":"IFERROR(INDIRECT(\"'\"&B168&\"'!C8\"),\"\")","v":""},{"$f":"IFERROR(INDIRECT(\"'\"&B168&\"'!f8\"),\"\")","v":""},{"$f":"_xlfn.SINGLE(IFERROR(INDIRECT(\"'\"&B168&\"'!c21\"),\"\"))","v":""},"",{"$f":"IFERROR(IF(INDIRECT(\"'\"&B168&\"'!C10\")=\"NÃO\",\"\",INDIRECT(\"'\"&B168&\"'!f10\")),\"\")","v":""},""]
[null,"R163","",{"$f":"IFERROR(INDIRECT(\"'\"&B169&\"'!C8\"),\"\")","v":""},{"$f":"IFERROR(INDIRECT(\"'\"&B169&\"'!f8\"),\"\")","v":""},{"$f":"_xlfn.SINGLE(IFERROR(INDIRECT(\"'\"&B169&\"'!c21\"),\"\"))","v":""},"",{"$f":"IFERROR(IF(INDIRECT(\"'\"&B169&\"'!C10\")=\"NÃO\",\"\",INDIRECT(\"'\"&B169&\"'!f10\")),\"\")","v":""},""]
[null,"R164","",{"$f":"IFERROR(INDIRECT(\"'\"&B170&\"'!C8\"),\"\")","v":""},{"$f":"IFERROR(INDIRECT(\"'\"&B170&\"'!f8\"),\"\")","v":""},{"$f":"_xlfn.SINGLE(IFERROR(INDIRECT(\"'\"&B170&\"'!c21\"),\"\"))","v":""},"",{"$f":"IFERROR(IF(INDIRECT(\"'\"&B170&\"'!C10\")=\"NÃO\",\"\",INDIRECT(\"'\"&B170&\"'!f10\")),\"\")","v":""},""]
[null,"R165","",{"$f":"IFERROR(INDIRECT(\"'\"&B171&\"'!C8\"),\"\")","v":""},{"$f":"IFERROR(INDIRECT(\"'\"&B171&\"'!f8\"),\"\")","v":""},{"$f":"_xlfn.SINGLE(IFERROR(INDIRECT(\"'\"&B171&\"'!c21\"),\"\"))","v":""},"",{"$f":"IFERROR(IF(INDIRECT(\"'\"&B171&\"'!C10\")=\"NÃO\",\"\",INDIRECT(\"'\"&B171&\"'!f10\")),\"\")","v":""},""]
[null,"R166","",{"$f":"IFERROR(INDIRECT(\"'\"&B172&\"'!C8\"),\"\")","v":""},{"$f":"IFERROR(INDIRECT(\"'\"&B172&\"'!f8\"),\"\")","v":""},{"$f":"_xlfn.SINGLE(IFERROR(INDIRECT(\"'\"&B172&\"'!c21\"),\"\"))","v":""},"",{"$f":"IFERROR(IF(INDIRECT(\"'\"&B172&\"'!C10\")=\"NÃO\",\"\",INDIRECT(\"'\"&B172&\"'!f10\")),\"\")","v":""},""]
[null,"R167","",{"$f":"IFERROR(INDIRECT(\"'\"&B173&\"'!C8\"),\"\")","v":""},{"$f":"IFERROR(INDIRECT(\"'\"&B173&\"'!f8\"),\"\")","v":""},{"$f":"_xlfn.SINGLE(IFERROR(INDIRECT(\"'\"&B173&\"'!c21\"),\"\"))","v":""},"",{"$f":"IFERROR(IF(INDIRECT(\"'\"&B173&\"'!C10\")=\"NÃO\",\"\",INDIRECT(\"'\"&B173&\"'!f10\")),\"\")","v":""},""]
[null,"R168","",{"$f":"IFERROR(INDIRECT(\"'\"&B174&\"'!C8\"),\"\")","v":""},{"$f":"IFERROR(INDIRECT(\"'\"&B174&\"'!f8\"),\"\")","v":""},{"$f":"_xlfn.SINGLE(IFERROR(INDIRECT(\"'\"&B174&\"'!c21\"),\"\"))","v":""},"",{"$f":"IFERROR(IF(INDIRECT(\"'\"&B174&\"'!C10\")=\"NÃO\",\"\",INDIRECT(\"'\"&B174&\"'!f10\")),\"\")","v":""},""]
[null,"R169","",{"$f":"IFERROR(INDIRECT(\"'\"&B175&\"'!C8\"),\"\")","v":""},{"$f":"IFERROR(INDIRECT(\"'\"&B175&\"'!f8\"),\"\")","v":""},{"$f":"_xlfn.SINGLE(IFERROR(INDIRECT(\"'\"&B175&\"'!c21\"),\"\"))","v":""},"",{"$f":"IFERROR(IF(INDIRECT(\"'\"&B175&\"'!C10\")=\"NÃO\",\"\",INDIRECT(\"'\"&B175&\"'!f10\")),\"\")","v":""},""]
[null,"R170","",{"$f":"IFERROR(INDIRECT(\"'\"&B176&\"'!C8\"),\"\")","v":""},{"$f":"IFERROR(INDIRECT(\"'\"&B176&\"'!f8\"),\"\")","v":""},{"$f":"_xlfn.SINGLE(IFERROR(INDIRECT(\"'\"&B176&\"'!c21\"),\"\"))","v":""},"",{"$f":"IFERROR(IF(INDIRECT(\"'\"&B176&\"'!C10\")=\"NÃO\",\"\",INDIRECT(\"'\"&B176&\"'!f10\")),\"\")","v":""},""]
[null,"R171","",{"$f":"IFERROR(INDIRECT(\"'\"&B177&\"'!C8\"),\"\")","v":""},{"$f":"IFERROR(INDIRECT(\"'\"&B177&\"'!f8\"),\"\")","v":""},{"$f":"_xlfn.SINGLE(IFERROR(INDIRECT(\"'\"&B177&\"'!c21\"),\"\"))","v":""},"",{"$f":"IFERROR(IF(INDIRECT(\"'\"&B177&\"'!C10\")=\"NÃO\",\"\",INDIRECT(\"'\"&B177&\"'!f10\")),\"\")","v":""},""]
[null,"R172","",{"$f":"IFERROR(INDIRECT(\"'\"&B178&\"'!C8\"),\"\")","v":""},{"$f":"IFERROR(INDIRECT(\"'\"&B178&\"'!f8\"),\"\")","v":""},{"$f":"_xlfn.SINGLE(IFERROR(INDIRECT(\"'\"&B178&\"'!c21\"),\"\"))","v":""},"",{"$f":"IFERROR(IF(INDIRECT(\"'\"&B178&\"'!C10\")=\"NÃO\",\"\",INDIRECT(\"'\"&B178&\"'!f10\")),\"\")","v":""},""]
[null,"R173","",{"$f":"IFERROR(INDIRECT(\"'\"&B179&\"'!C8\"),\"\")","v":""},{"$f":"IFERROR(INDIRECT(\"'\"&B179&\"'!f8\"),\"\")","v":""},{"$f":"_xlfn.SINGLE(IFERROR(INDIRECT(\"'\"&B179&\"'!c21\"),\"\"))","v":""},"",{"$f":"IFERROR(IF(INDIRECT(\"'\"&B179&\"'!C10\")=\"NÃO\",\"\",INDIRECT(\"'\"&B179&\"'!f10\")),\"\")","v":""},""]
[null,"R174","",{"$f":"IFERROR(INDIRECT(\"'\"&B180&\"'!C8\"),\"\")","v":""},{"$f":"IFERROR(INDIRECT(\"'\"&B180&\"'!f8\"),\"\")","v":""},{"$f":"_xlfn.SINGLE(IFERROR(INDIRECT(\"'\"&B180&\"'!c21\"),\"\"))","v":""},"",{"$f":"IFERROR(IF(INDIRECT(\"'\"&B180&\"'!C10\")=\"NÃO\",\"\",INDIRECT(\"'\"&B180&\"'!f10\")),\"\")","v":""},""]
[null,"R175","",{"$f":"IFERROR(INDIRECT(\"'\"&B181&\"'!C8\"),\"\")","v":""},{"$f":"IFERROR(INDIRECT(\"'\"&B181&\"'!f8\"),\"\")","v":""},{"$f":"_xlfn.SINGLE(IFERROR(INDIRECT(\"'\"&B181&\"'!c21\"),\"\"))","v":""},"",{"$f":"IFERROR(IF(INDIRECT(\"'\"&B181&\"'!C10\")=\"NÃO\",\"\",INDIRECT(\"'\"&B181&\"'!f10\")),\"\")","v":""},""]
[null,"R176","",{"$f":"IFERROR(INDIRECT(\"'\"&B182&\"'!C8\"),\"\")","v":""},{"$f":"IFERROR(INDIRECT(\"'\"&B182&\"'!f8\"),\"\")","v":""},{"$f":"_xlfn.SINGLE(IFERROR(INDIRECT(\"'\"&B182&\"'!c21\"),\"\"))","v":""},"",{"$f":"IFERROR(IF(INDIRECT(\"'\"&B182&\"'!C10\")=\"NÃO\",\"\",INDIRECT(\"'\"&B182&\"'!f10\")),\"\")","v":""},""]
[null,"R177","",{"$f":"IFERROR(INDIRECT(\"'\"&B183&\"'!C8\"),\"\")","v":""},{"$f":"IFERROR(INDIRECT(\"'\"&B183&\"'!f8\"),\"\")","v":""},{"$f":"_xlfn.SINGLE(IFERROR(INDIRECT(\"'\"&B183&\"'!c21\"),\"\"))","v":""},"",{"$f":"IFERROR(IF(INDIRECT(\"'\"&B183&\"'!C10\")=\"NÃO\",\"\",INDIRECT(\"'\"&B183&\"'!f10\")),\"\")","v":""},""]
[null,"R178","",{"$f":"IFERROR(INDIRECT(\"'\"&B184&\"'!C8\"),\"\")","v":""},{"$f":"IFERROR(INDIRECT(\"'\"&B184&\"'!f8\"),\"\")","v":""},{"$f":"_xlfn.SINGLE(IFERROR(INDIRECT(\"'\"&B184&\"'!c21\"),\"\"))","v":""},"",{"$f":"IFERROR(IF(INDIRECT(\"'\"&B184&\"'!C10\")=\"NÃO\",\"\",INDIRECT(\"'\"&B184&\"'!f10\")),\"\")","v":""},""]
[null,"R179","",{"$f":"IFERROR(INDIRECT(\"'\"&B185&\"'!C8\"),\"\")","v":""},{"$f":"IFERROR(INDIRECT(\"'\"&B185&\"'!f8\"),\"\")","v":""},{"$f":"_xlfn.SINGLE(IFERROR(INDIRECT(\"'\"&B185&\"'!c21\"),\"\"))","v":""},"",{"$f":"IFERROR(IF(INDIRECT(\"'\"&B185&\"'!C10\")=\"NÃO\",\"\",INDIRECT(\"'\"&B185&\"'!f10\")),\"\")","v":""},""]
[null,"R180","",{"$f":"IFERROR(INDIRECT(\"'\"&B186&\"'!C8\"),\"\")","v":""},{"$f":"IFERROR(INDIRECT(\"'\"&B186&\"'!f8\"),\"\")","v":""},{"$f":"_xlfn.SINGLE(IFERROR(INDIRECT(\"'\"&B186&\"'!c21\"),\"\"))","v":""},"",{"$f":"IFERROR(IF(INDIRECT(\"'\"&B186&\"'!C10\")=\"NÃO\",\"\",INDIRECT(\"'\"&B186&\"'!f10\")),\"\")","v":""},""]
[null,"R181","",{"$f":"IFERROR(INDIRECT(\"'\"&B187&\"'!C8\"),\"\")","v":""},{"$f":"IFERROR(INDIRECT(\"'\"&B187&\"'!f8\"),\"\")","v":""},{"$f":"_xlfn.SINGLE(IFERROR(INDIRECT(\"'\"&B187&\"'!c21\"),\"\"))","v":""},"",{"$f":"IFERROR(IF(INDIRECT(\"'\"&B187&\"'!C10\")=\"NÃO\",\"\",INDIRECT(\"'\"&B187&\"'!f10\")),\"\")","v":""},""]
[null,"R182","",{"$f":"IFERROR(INDIRECT(\"'\"&B188&\"'!C8\"),\"\")","v":""},{"$f":"IFERROR(INDIRECT(\"'\"&B188&\"'!f8\"),\"\")","v":""},{"$f":"_xlfn.SINGLE(IFERROR(INDIRECT(\"'\"&B188&\"'!c21\"),\"\"))","v":""},"",{"$f":"IFERROR(IF(INDIRECT(\"'\"&B188&\"'!C10\")=\"NÃO\",\"\",INDIRECT(\"'\"&B188&\"'!f10\")),\"\")","v":""},""]
[null,"R183","",{"$f":"IFERROR(INDIRECT(\"'\"&B189&\"'!C8\"),\"\")","v":""},{"$f":"IFERROR(INDIRECT(\"'\"&B189&\"'!f8\"),\"\")","v":""},{"$f":"_xlfn.SINGLE(IFERROR(INDIRECT(\"'\"&B189&\"'!c21\"),\"\"))","v":""},"",{"$f":"IFERROR(IF(INDIRECT(\"'\"&B189&\"'!C10\")=\"NÃO\",\"\",INDIRECT(\"'\"&B189&\"'!f10\")),\"\")","v":""},""]
[null,"R184","",{"$f":"IFERROR(INDIRECT(\"'\"&B190&\"'!C8\"),\"\")","v":""},{"$f":"IFERROR(INDIRECT(\"'\"&B190&\"'!f8\"),\"\")","v":""},{"$f":"_xlfn.SINGLE(IFERROR(INDIRECT(\"'\"&B190&\"'!c21\"),\"\"))","v":""},"",{"$f":"IFERROR(IF(INDIRECT(\"'\"&B190&\"'!C10\")=\"NÃO\",\"\",INDIRECT(\"'\"&B190&\"'!f10\")),\"\")","v":""},""]
[null,"R185","",{"$f":"IFERROR(INDIRECT(\"'\"&B191&\"'!C8\"),\"\")","v":""},{"$f":"IFERROR(INDIRECT(\"'\"&B191&\"'!f8\"),\"\")","v":""},{"$f":"_xlfn.SINGLE(IFERROR(INDIRECT(\"'\"&B191&\"'!c21\"),\"\"))","v":""},"",{"$f":"IFERROR(IF(INDIRECT(\"'\"&B191&\"'!C10\")=\"NÃO\",\"\",INDIRECT(\"'\"&B191&\"'!f10\")),\"\")","v":""},""]
[null,"R186","",{"$f":"IFERROR(INDIRECT(\"'\"&B192&\"'!C8\"),\"\")","v":""},{"$f":"IFERROR(INDIRECT(\"'\"&B192&\"'!f8\"),\"\")","v":""},{"$f":"_xlfn.SINGLE(IFERROR(INDIRECT(\"'\"&B192&\"'!c21\"),\"\"))","v":""},"",{"$f":"IFERROR(IF(INDIRECT(\"'\"&B192&\"'!C10\")=\"NÃO\",\"\",INDIRECT(\"'\"&B192&\"'!f10\")),\"\")","v":""},""]
[null,"R187","",{"$f":"IFERROR(INDIRECT(\"'\"&B193&\"'!C8\"),\"\")","v":""},{"$f":"IFERROR(INDIRECT(\"'\"&B193&\"'!f8\"),\"\")","v":""},{"$f":"_xlfn.SINGLE(IFERROR(INDIRECT(\"'\"&B193&\"'!c21\"),\"\"))","v":""},"",{"$f":"IFERROR(IF(INDIRECT(\"'\"&B193&\"'!C10\")=\"NÃO\",\"\",INDIRECT(\"'\"&B193&\"'!f10\")),\"\")","v":""},""]
[null,"R188","",{"$f":"IFERROR(INDIRECT(\"'\"&B194&\"'!C8\"),\"\")","v":""},{"$f":"IFERROR(INDIRECT(\"'\"&B194&\"'!f8\"),\"\")","v":""},{"$f":"_xlfn.SINGLE(IFERROR(INDIRECT(\"'\"&B194&\"'!c21\"),\"\"))","v":""},"",{"$f":"IFERROR(IF(INDIRECT(\"'\"&B194&\"'!C10\")=\"NÃO\",\"\",INDIRECT(\"'\"&B194&\"'!f10\")),\"\")","v":""},""]
[null,"R189","",{"$f":"IFERROR(INDIRECT(\"'\"&B195&\"'!C8\"),\"\")","v":""},{"$f":"IFERROR(INDIRECT(\"'\"&B195&\"'!f8\"),\"\")","v":""},{"$f":"_xlfn.SINGLE(IFERROR(INDIRECT(\"'\"&B195&\"'!c21\"),\"\"))","v":""},"",{"$f":"IFERROR(IF(INDIRECT(\"'\"&B195&\"'!C10\")=\"NÃO\",\"\",INDIRECT(\"'\"&B195&\"'!f10\")),\"\")","v":""},""]
[null,"R190","",{"$f":"IFERROR(INDIRECT(\"'\"&B196&\"'!C8\"),\"\")","v":""},{"$f":"IFERROR(INDIRECT(\"'\"&B196&\"'!f8\"),\"\")","v":""},{"$f":"_xlfn.SINGLE(IFERROR(INDIRECT(\"'\"&B196&\"'!c21\"),\"\"))","v":""},"",{"$f":"IFERROR(IF(INDIRECT(\"'\"&B196&\"'!C10\")=\"NÃO\",\"\",INDIRECT(\"'\"&B196&\"'!f10\")),\"\")","v":""},""]
[null,"R191","",{"$f":"IFERROR(INDIRECT(\"'\"&B197&\"'!C8\"),\"\")","v":""},{"$f":"IFERROR(INDIRECT(\"'\"&B197&\"'!f8\"),\"\")","v":""},{"$f":"_xlfn.SINGLE(IFERROR(INDIRECT(\"'\"&B197&\"'!c21\"),\"\"))","v":""},"",{"$f":"IFERROR(IF(INDIRECT(\"'\"&B197&\"'!C10\")=\"NÃO\",\"\",INDIRECT(\"'\"&B197&\"'!f10\")),\"\")","v":""},""]
[null,"R192","",{"$f":"IFERROR(INDIRECT(\"'\"&B198&\"'!C8\"),\"\")","v":""},{"$f":"IFERROR(INDIRECT(\"'\"&B198&\"'!f8\"),\"\")","v":""},{"$f":"_xlfn.SINGLE(IFERROR(INDIRECT(\"'\"&B198&\"'!c21\"),\"\"))","v":""},"",{"$f":"IFERROR(IF(INDIRECT(\"'\"&B198&\"'!C10\")=\"NÃO\",\"\",INDIRECT(\"'\"&B198&\"'!f10\")),\"\")","v":""},""]
[null,"R193","",{"$f":"IFERROR(INDIRECT(\"'\"&B199&\"'!C8\"),\"\")","v":""},{"$f":"IFERROR(INDIRECT(\"'\"&B199&\"'!f8\"),\"\")","v":""},{"$f":"_xlfn.SINGLE(IFERROR(INDIRECT(\"'\"&B199&\"'!c21\"),\"\"))","v":""},"",{"$f":"IFERROR(IF(INDIRECT(\"'\"&B199&\"'!C10\")=\"NÃO\",\"\",INDIRECT(\"'\"&B199&\"'!f10\")),\"\")","v":""},""]
[null,"R194",{"$f":"IF(A200=\"\",\"\",MID(B200,2,15))","v":""},{"$f":"IFERROR(INDIRECT(\"'\"&B200&\"'!C8\"),\"\")","v":""},{"$f":"IFERROR(INDIRECT(\"'\"&B200&\"'!f8\"),\"\")","v":""},{"$f":"_xlfn.SINGLE(IFERROR(INDIRECT(\"'\"&B200&\"'!c21\"),\"\"))","v":""},{"$f":"IFERROR(IF(F200=\"Preço Único\",INDIRECT(\"'\"&B200&\"'!c15\"),INDIRECT(\"'\"&B200&\"'!g21\")),\"\")","v":""},{"$f":"IFERROR(IF(INDIRECT(\"'\"&B200&\"'!C10\")=\"NÃO\",\"\",INDIRECT(\"'\"&B200&\"'!f10\")),\"\")","v":""},{"$f":"_xlfn.IFS(AND(G200=\"\",H200=\"\"),\"\",\n$B$1=5,\"\",\nOR(G200=\"\",G200=\"INFORME OS DADOS DA PESQUISA DE PREÇOS\"),\"Falta valor de mercado\",\nH200=\"\",\"Preço contratado não informado\",\nG200=\"Não foi possível calcular.\",\"Não foi possível avaliar.\",\nAND(INDIRECT(\"'\"&B200&\"'!K27\")=\"OK\",G200>=H200),\"Ok\",\nAND(INDIRECT(\"'\"&B200&\"'!K27\")<>\"OK\",G200>=H200),\"Ok, desde que justificado os problemas da pesquisa\",\nAND(INDIRECT(\"'\"&B200&\"'!K27\")=\"OK\",G200<H200),\"Negociar preço contratado\",\nAND(INDIRECT(\"'\"&B200&\"'!K27\")<>\"OK\",G200<H200),\"Negociar preço contratado e justificar problemas da pesquisa\")","v":""}]
[null,"R195","",{"$f":"IFERROR(INDIRECT(\"'\"&B201&\"'!C8\"),\"\")","v":""},{"$f":"IFERROR(INDIRECT(\"'\"&B201&\"'!f8\"),\"\")","v":""},{"$f":"_xlfn.SINGLE(IFERROR(INDIRECT(\"'\"&B201&\"'!c21\"),\"\"))","v":""},"",{"$f":"IFERROR(IF(INDIRECT(\"'\"&B201&\"'!C10\")=\"NÃO\",\"\",INDIRECT(\"'\"&B201&\"'!f10\")),\"\")","v":""},""]
[null,"R196","",{"$f":"IFERROR(INDIRECT(\"'\"&B202&\"'!C8\"),\"\")","v":""},{"$f":"IFERROR(INDIRECT(\"'\"&B202&\"'!f8\"),\"\")","v":""},{"$f":"_xlfn.SINGLE(IFERROR(INDIRECT(\"'\"&B202&\"'!c21\"),\"\"))","v":""},"",{"$f":"IFERROR(IF(INDIRECT(\"'\"&B202&\"'!C10\")=\"NÃO\",\"\",INDIRECT(\"'\"&B202&\"'!f10\")),\"\")","v":""},""]
[null,"R197","",{"$f":"IFERROR(INDIRECT(\"'\"&B203&\"'!C8\"),\"\")","v":""},{"$f":"IFERROR(INDIRECT(\"'\"&B203&\"'!f8\"),\"\")","v":""},{"$f":"_xlfn.SINGLE(IFERROR(INDIRECT(\"'\"&B203&\"'!c21\"),\"\"))","v":""},"",{"$f":"IFERROR(IF(INDIRECT(\"'\"&B203&\"'!C10\")=\"NÃO\",\"\",INDIRECT(\"'\"&B203&\"'!f10\")),\"\")","v":""},""]
[null,"R198","",{"$f":"IFERROR(INDIRECT(\"'\"&B204&\"'!C8\"),\"\")","v":""},{"$f":"IFERROR(INDIRECT(\"'\"&B204&\"'!f8\"),\"\")","v":""},{"$f":"_xlfn.SINGLE(IFERROR(INDIRECT(\"'\"&B204&\"'!c21\"),\"\"))","v":""},"",{"$f":"IFERROR(IF(INDIRECT(\"'\"&B204&\"'!C10\")=\"NÃO\",\"\",INDIRECT(\"'\"&B204&\"'!f10\")),\"\")","v":""},""]
[null,"R199","",{"$f":"IFERROR(INDIRECT(\"'\"&B205&\"'!C8\"),\"\")","v":""},{"$f":"IFERROR(INDIRECT(\"'\"&B205&\"'!f8\"),\"\")","v":""},{"$f":"_xlfn.SINGLE(IFERROR(INDIRECT(\"'\"&B205&\"'!c21\"),\"\"))","v":""},"",{"$f":"IFERROR(IF(INDIRECT(\"'\"&B205&\"'!C10\")=\"NÃO\",\"\",INDIRECT(\"'\"&B205&\"'!f10\")),\"\")","v":""},""]
[null,"R200","",{"$f":"IFERROR(INDIRECT(\"'\"&B206&\"'!C8\"),\"\")","v":""},{"$f":"IFERROR(INDIRECT(\"'\"&B206&\"'!f8\"),\"\")","v":""},{"$f":"_xlfn.SINGLE(IFERROR(INDIRECT(\"'\"&B206&\"'!c21\"),\"\"))","v":""},"",{"$f":"IFERROR(IF(INDIRECT(\"'\"&B206&\"'!C10\")=\"NÃO\",\"\",INDIRECT(\"'\"&B206&\"'!f10\")),\"\")","v":""},""]
[null,"R201","",{"$f":"IFERROR(INDIRECT(\"'\"&B207&\"'!C8\"),\"\")","v":""},{"$f":"IFERROR(INDIRECT(\"'\"&B207&\"'!f8\"),\"\")","v":""},{"$f":"_xlfn.SINGLE(IFERROR(INDIRECT(\"'\"&B207&\"'!c21\"),\"\"))","v":""},"",{"$f":"IFERROR(IF(INDIRECT(\"'\"&B207&\"'!C10\")=\"NÃO\",\"\",INDIRECT(\"'\"&B207&\"'!f10\")),\"\")","v":""},""]
[null,"R202","",{"$f":"IFERROR(INDIRECT(\"'\"&B208&\"'!C8\"),\"\")","v":""},{"$f":"IFERROR(INDIRECT(\"'\"&B208&\"'!f8\"),\"\")","v":""},{"$f":"_xlfn.SINGLE(IFERROR(INDIRECT(\"'\"&B208&\"'!c21\"),\"\"))","v":""},"",{"$f":"IFERROR(IF(INDIRECT(\"'\"&B208&\"'!C10\")=\"NÃO\",\"\",INDIRECT(\"'\"&B208&\"'!f10\")),\"\")","v":""},""]
[null,"R203","",{"$f":"IFERROR(INDIRECT(\"'\"&B209&\"'!C8\"),\"\")","v":""},{"$f":"IFERROR(INDIRECT(\"'\"&B209&\"'!f8\"),\"\")","v":""},{"$f":"_xlfn.SINGLE(IFERROR(INDIRECT(\"'\"&B209&\"'!c21\"),\"\"))","v":""},"",{"$f":"IFERROR(IF(INDIRECT(\"'\"&B209&\"'!C10\")=\"NÃO\",\"\",INDIRECT(\"'\"&B209&\"'!f10\")),\"\")","v":""},""]
[null,"R204","",{"$f":"IFERROR(INDIRECT(\"'\"&B210&\"'!C8\"),\"\")","v":""},{"$f":"IFERROR(INDIRECT(\"'\"&B210&\"'!f8\"),\"\")","v":""},{"$f":"_xlfn.SINGLE(IFERROR(INDIRECT(\"'\"&B210&\"'!c21\"),\"\"))","v":""},"",{"$f":"IFERROR(IF(INDIRECT(\"'\"&B210&\"'!C10\")=\"NÃO\",\"\",INDIRECT(\"'\"&B210&\"'!f10\")),\"\")","v":""},""]
[null,"R205","",{"$f":"IFERROR(INDIRECT(\"'\"&B211&\"'!C8\"),\"\")","v":""},{"$f":"IFERROR(INDIRECT(\"'\"&B211&\"'!f8\"),\"\")","v":""},{"$f":"_xlfn.SINGLE(IFERROR(INDIRECT(\"'\"&B211&\"'!c21\"),\"\"))","v":""},"",{"$f":"IFERROR(IF(INDIRECT(\"'\"&B211&\"'!C10\")=\"NÃO\",\"\",INDIRECT(\"'\"&B211&\"'!f10\")),\"\")","v":""},""]
[null,"R206","",{"$f":"IFERROR(INDIRECT(\"'\"&B212&\"'!C8\"),\"\")","v":""},{"$f":"IFERROR(INDIRECT(\"'\"&B212&\"'!f8\"),\"\")","v":""},{"$f":"_xlfn.SINGLE(IFERROR(INDIRECT(\"'\"&B212&\"'!c21\"),\"\"))","v":""},"",{"$f":"IFERROR(IF(INDIRECT(\"'\"&B212&\"'!C10\")=\"NÃO\",\"\",INDIRECT(\"'\"&B212&\"'!f10\")),\"\")","v":""},""]
[null,"R207","",{"$f":"IFERROR(INDIRECT(\"'\"&B213&\"'!C8\"),\"\")","v":""},{"$f":"IFERROR(INDIRECT(\"'\"&B213&\"'!f8\"),\"\")","v":""},{"$f":"_xlfn.SINGLE(IFERROR(INDIRECT(\"'\"&B213&\"'!c21\"),\"\"))","v":""},"",{"$f":"IFERROR(IF(INDIRECT(\"'\"&B213&\"'!C10\")=\"NÃO\",\"\",INDIRECT(\"'\"&B213&\"'!f10\")),\"\")","v":""},""]
[null,"R208","",{"$f":"IFERROR(INDIRECT(\"'\"&B214&\"'!C8\"),\"\")","v":""},{"$f":"IFERROR(INDIRECT(\"'\"&B214&\"'!f8\"),\"\")","v":""},{"$f":"_xlfn.SINGLE(IFERROR(INDIRECT(\"'\"&B214&\"'!c21\"),\"\"))","v":""},"",{"$f":"IFERROR(IF(INDIRECT(\"'\"&B214&\"'!C10\")=\"NÃO\",\"\",INDIRECT(\"'\"&B214&\"'!f10\")),\"\")","v":""},""]
[null,"R209","",{"$f":"IFERROR(INDIRECT(\"'\"&B215&\"'!C8\"),\"\")","v":""},{"$f":"IFERROR(INDIRECT(\"'\"&B215&\"'!f8\"),\"\")","v":""},{"$f":"_xlfn.SINGLE(IFERROR(INDIRECT(\"'\"&B215&\"'!c21\"),\"\"))","v":""},"",{"$f":"IFERROR(IF(INDIRECT(\"'\"&B215&\"'!C10\")=\"NÃO\",\"\",INDIRECT(\"'\"&B215&\"'!f10\")),\"\")","v":""},""]
[null,"R210","",{"$f":"IFERROR(INDIRECT(\"'\"&B216&\"'!C8\"),\"\")","v":""},{"$f":"IFERROR(INDIRECT(\"'\"&B216&\"'!f8\"),\"\")","v":""},{"$f":"_xlfn.SINGLE(IFERROR(INDIRECT(\"'\"&B216&\"'!c21\"),\"\"))","v":""},"",{"$f":"IFERROR(IF(INDIRECT(\"'\"&B216&\"'!C10\")=\"NÃO\",\"\",INDIRECT(\"'\"&B216&\"'!f10\")),\"\")","v":""},""]
[null,"R211","",{"$f":"IFERROR(INDIRECT(\"'\"&B217&\"'!C8\"),\"\")","v":""},{"$f":"IFERROR(INDIRECT(\"'\"&B217&\"'!f8\"),\"\")","v":""},{"$f":"_xlfn.SINGLE(IFERROR(INDIRECT(\"'\"&B217&\"'!c21\"),\"\"))","v":""},"",{"$f":"IFERROR(IF(INDIRECT(\"'\"&B217&\"'!C10\")=\"NÃO\",\"\",INDIRECT(\"'\"&B217&\"'!f10\")),\"\")","v":""},""]
[null,"R212","",{"$f":"IFERROR(INDIRECT(\"'\"&B218&\"'!C8\"),\"\")","v":""},{"$f":"IFERROR(INDIRECT(\"'\"&B218&\"'!f8\"),\"\")","v":""},{"$f":"_xlfn.SINGLE(IFERROR(INDIRECT(\"'\"&B218&\"'!c21\"),\"\"))","v":""},"",{"$f":"IFERROR(IF(INDIRECT(\"'\"&B218&\"'!C10\")=\"NÃO\",\"\",INDIRECT(\"'\"&B218&\"'!f10\")),\"\")","v":""},""]
[null,"R213","",{"$f":"IFERROR(INDIRECT(\"'\"&B219&\"'!C8\"),\"\")","v":""},{"$f":"IFERROR(INDIRECT(\"'\"&B219&\"'!f8\"),\"\")","v":""},{"$f":"_xlfn.SINGLE(IFERROR(INDIRECT(\"'\"&B219&\"'!c21\"),\"\"))","v":""},"",{"$f":"IFERROR(IF(INDIRECT(\"'\"&B219&\"'!C10\")=\"NÃO\",\"\",INDIRECT(\"'\"&B219&\"'!f10\")),\"\")","v":""},""]
[null,"R214","",{"$f":"IFERROR(INDIRECT(\"'\"&B220&\"'!C8\"),\"\")","v":""},{"$f":"IFERROR(INDIRECT(\"'\"&B220&\"'!f8\"),\"\")","v":""},{"$f":"_xlfn.SINGLE(IFERROR(INDIRECT(\"'\"&B220&\"'!c21\"),\"\"))","v":""},"",{"$f":"IFERROR(IF(INDIRECT(\"'\"&B220&\"'!C10\")=\"NÃO\",\"\",INDIRECT(\"'\"&B220&\"'!f10\")),\"\")","v":""},""]
[null,"R215","",{"$f":"IFERROR(INDIRECT(\"'\"&B221&\"'!C8\"),\"\")","v":""},{"$f":"IFERROR(INDIRECT(\"'\"&B221&\"'!f8\"),\"\")","v":""},{"$f":"_xlfn.SINGLE(IFERROR(INDIRECT(\"'\"&B221&\"'!c21\"),\"\"))","v":""},"",{"$f":"IFERROR(IF(INDIRECT(\"'\"&B221&\"'!C10\")=\"NÃO\",\"\",INDIRECT(\"'\"&B221&\"'!f10\")),\"\")","v":""},""]
[null,"R216","",{"$f":"IFERROR(INDIRECT(\"'\"&B222&\"'!C8\"),\"\")","v":""},{"$f":"IFERROR(INDIRECT(\"'\"&B222&\"'!f8\"),\"\")","v":""},{"$f":"_xlfn.SINGLE(IFERROR(INDIRECT(\"'\"&B222&\"'!c21\"),\"\"))","v":""},"",{"$f":"IFERROR(IF(INDIRECT(\"'\"&B222&\"'!C10\")=\"NÃO\",\"\",INDIRECT(\"'\"&B222&\"'!f10\")),\"\")","v":""},""]
[null,"R217","",{"$f":"IFERROR(INDIRECT(\"'\"&B223&\"'!C8\"),\"\")","v":""},{"$f":"IFERROR(INDIRECT(\"'\"&B223&\"'!f8\"),\"\")","v":""},{"$f":"_xlfn.SINGLE(IFERROR(INDIRECT(\"'\"&B223&\"'!c21\"),\"\"))","v":""},"",{"$f":"IFERROR(IF(INDIRECT(\"'\"&B223&\"'!C10\")=\"NÃO\",\"\",INDIRECT(\"'\"&B223&\"'!f10\")),\"\")","v":""},""]
[null,"R218","",{"$f":"IFERROR(INDIRECT(\"'\"&B224&\"'!C8\"),\"\")","v":""},{"$f":"IFERROR(INDIRECT(\"'\"&B224&\"'!f8\"),\"\")","v":""},{"$f":"_xlfn.SINGLE(IFERROR(INDIRECT(\"'\"&B224&\"'!c21\"),\"\"))","v":""},"",{"$f":"IFERROR(IF(INDIRECT(\"'\"&B224&\"'!C10\")=\"NÃO\",\"\",INDIRECT(\"'\"&B224&\"'!f10\")),\"\")","v":""},""]
[null,"R219","",{"$f":"IFERROR(INDIRECT(\"'\"&B225&\"'!C8\"),\"\")","v":""},{"$f":"IFERROR(INDIRECT(\"'\"&B225&\"'!f8\"),\"\")","v":""},{"$f":"_xlfn.SINGLE(IFERROR(INDIRECT(\"'\"&B225&\"'!c21\"),\"\"))","v":""},"",{"$f":"IFERROR(IF(INDIRECT(\"'\"&B225&\"'!C10\")=\"NÃO\",\"\",INDIRECT(\"'\"&B225&\"'!f10\")),\"\")","v":""},""]
[null,"R220","",{"$f":"IFERROR(INDIRECT(\"'\"&B226&\"'!C8\"),\"\")","v":""},{"$f":"IFERROR(INDIRECT(\"'\"&B226&\"'!f8\"),\"\")","v":""},{"$f":"_xlfn.SINGLE(IFERROR(INDIRECT(\"'\"&B226&\"'!c21\"),\"\"))","v":""},"",{"$f":"IFERROR(IF(INDIRECT(\"'\"&B226&\"'!C10\")=\"NÃO\",\"\",INDIRECT(\"'\"&B226&\"'!f10\")),\"\")","v":""},""]
[null,"R221","",{"$f":"IFERROR(INDIRECT(\"'\"&B227&\"'!C8\"),\"\")","v":""},{"$f":"IFERROR(INDIRECT(\"'\"&B227&\"'!f8\"),\"\")","v":""},{"$f":"_xlfn.SINGLE(IFERROR(INDIRECT(\"'\"&B227&\"'!c21\"),\"\"))","v":""},"",{"$f":"IFERROR(IF(INDIRECT(\"'\"&B227&\"'!C10\")=\"NÃO\",\"\",INDIRECT(\"'\"&B227&\"'!f10\")),\"\")","v":""},""]
[null,"R222","",{"$f":"IFERROR(INDIRECT(\"'\"&B228&\"'!C8\"),\"\")","v":""},{"$f":"IFERROR(INDIRECT(\"'\"&B228&\"'!f8\"),\"\")","v":""},{"$f":"_xlfn.SINGLE(IFERROR(INDIRECT(\"'\"&B228&\"'!c21\"),\"\"))","v":""},"",{"$f":"IFERROR(IF(INDIRECT(\"'\"&B228&\"'!C10\")=\"NÃO\",\"\",INDIRECT(\"'\"&B228&\"'!f10\")),\"\")","v":""},""]
[null,"R223","",{"$f":"IFERROR(INDIRECT(\"'\"&B229&\"'!C8\"),\"\")","v":""},{"$f":"IFERROR(INDIRECT(\"'\"&B229&\"'!f8\"),\"\")","v":""},{"$f":"_xlfn.SINGLE(IFERROR(INDIRECT(\"'\"&B229&\"'!c21\"),\"\"))","v":""},"",{"$f":"IFERROR(IF(INDIRECT(\"'\"&B229&\"'!C10\")=\"NÃO\",\"\",INDIRECT(\"'\"&B229&\"'!f10\")),\"\")","v":""},""]
[null,"R224","",{"$f":"IFERROR(INDIRECT(\"'\"&B230&\"'!C8\"),\"\")","v":""},{"$f":"IFERROR(INDIRECT(\"'\"&B230&\"'!f8\"),\"\")","v":""},{"$f":"_xlfn.SINGLE(IFERROR(INDIRECT(\"'\"&B230&\"'!c21\"),\"\"))","v":""},"",{"$f":"IFERROR(IF(INDIRECT(\"'\"&B230&\"'!C10\")=\"NÃO\",\"\",INDIRECT(\"'\"&B230&\"'!f10\")),\"\")","v":""},""]
[null,"R225","",{"$f":"IFERROR(INDIRECT(\"'\"&B231&\"'!C8\"),\"\")","v":""},{"$f":"IFERROR(INDIRECT(\"'\"&B231&\"'!f8\"),\"\")","v":""},{"$f":"_xlfn.SINGLE(IFERROR(INDIRECT(\"'\"&B231&\"'!c21\"),\"\"))","v":""},"",{"$f":"IFERROR(IF(INDIRECT(\"'\"&B231&\"'!C10\")=\"NÃO\",\"\",INDIRECT(\"'\"&B231&\"'!f10\")),\"\")","v":""},""]
[null,"R226","",{"$f":"IFERROR(INDIRECT(\"'\"&B232&\"'!C8\"),\"\")","v":""},{"$f":"IFERROR(INDIRECT(\"'\"&B232&\"'!f8\"),\"\")","v":""},{"$f":"_xlfn.SINGLE(IFERROR(INDIRECT(\"'\"&B232&\"'!c21\"),\"\"))","v":""},"",{"$f":"IFERROR(IF(INDIRECT(\"'\"&B232&\"'!C10\")=\"NÃO\",\"\",INDIRECT(\"'\"&B232&\"'!f10\")),\"\")","v":""},""]
[null,"R227","",{"$f":"IFERROR(INDIRECT(\"'\"&B233&\"'!C8\"),\"\")","v":""},{"$f":"IFERROR(INDIRECT(\"'\"&B233&\"'!f8\"),\"\")","v":""},{"$f":"_xlfn.SINGLE(IFERROR(INDIRECT(\"'\"&B233&\"'!c21\"),\"\"))","v":""},"",{"$f":"IFERROR(IF(INDIRECT(\"'\"&B233&\"'!C10\")=\"NÃO\",\"\",INDIRECT(\"'\"&B233&\"'!f10\")),\"\")","v":""},""]
[null,"R228","",{"$f":"IFERROR(INDIRECT(\"'\"&B234&\"'!C8\"),\"\")","v":""},{"$f":"IFERROR(INDIRECT(\"'\"&B234&\"'!f8\"),\"\")","v":""},{"$f":"_xlfn.SINGLE(IFERROR(INDIRECT(\"'\"&B234&\"'!c21\"),\"\"))","v":""},"",{"$f":"IFERROR(IF(INDIRECT(\"'\"&B234&\"'!C10\")=\"NÃO\",\"\",INDIRECT(\"'\"&B234&\"'!f10\")),\"\")","v":""},""]
[null,"R229","",{"$f":"IFERROR(INDIRECT(\"'\"&B235&\"'!C8\"),\"\")","v":""},{"$f":"IFERROR(INDIRECT(\"'\"&B235&\"'!f8\"),\"\")","v":""},{"$f":"_xlfn.SINGLE(IFERROR(INDIRECT(\"'\"&B235&\"'!c21\"),\"\"))","v":""},"",{"$f":"IFERROR(IF(INDIRECT(\"'\"&B235&\"'!C10\")=\"NÃO\",\"\",INDIRECT(\"'\"&B235&\"'!f10\")),\"\")","v":""},""]
[null,"R230","",{"$f":"IFERROR(INDIRECT(\"'\"&B236&\"'!C8\"),\"\")","v":""},{"$f":"IFERROR(INDIRECT(\"'\"&B236&\"'!f8\"),\"\")","v":""},{"$f":"_xlfn.SINGLE(IFERROR(INDIRECT(\"'\"&B236&\"'!c21\"),\"\"))","v":""},"",{"$f":"IFERROR(IF(INDIRECT(\"'\"&B236&\"'!C10\")=\"NÃO\",\"\",INDIRECT(\"'\"&B236&\"'!f10\")),\"\")","v":""},""]
[null,"R231","",{"$f":"IFERROR(INDIRECT(\"'\"&B237&\"'!C8\"),\"\")","v":""},{"$f":"IFERROR(INDIRECT(\"'\"&B237&\"'!f8\"),\"\")","v":""},{"$f":"_xlfn.SINGLE(IFERROR(INDIRECT(\"'\"&B237&\"'!c21\"),\"\"))","v":""},"",{"$f":"IFERROR(IF(INDIRECT(\"'\"&B237&\"'!C10\")=\"NÃO\",\"\",INDIRECT(\"'\"&B237&\"'!f10\")),\"\")","v":""},""]
[null,"R232","",{"$f":"IFERROR(INDIRECT(\"'\"&B238&\"'!C8\"),\"\")","v":""},{"$f":"IFERROR(INDIRECT(\"'\"&B238&\"'!f8\"),\"\")","v":""},{"$f":"_xlfn.SINGLE(IFERROR(INDIRECT(\"'\"&B238&\"'!c21\"),\"\"))","v":""},"",{"$f":"IFERROR(IF(INDIRECT(\"'\"&B238&\"'!C10\")=\"NÃO\",\"\",INDIRECT(\"'\"&B238&\"'!f10\")),\"\")","v":""},""]
[null,"R233","",{"$f":"IFERROR(INDIRECT(\"'\"&B239&\"'!C8\"),\"\")","v":""},{"$f":"IFERROR(INDIRECT(\"'\"&B239&\"'!f8\"),\"\")","v":""},{"$f":"_xlfn.SINGLE(IFERROR(INDIRECT(\"'\"&B239&\"'!c21\"),\"\"))","v":""},"",{"$f":"IFERROR(IF(INDIRECT(\"'\"&B239&\"'!C10\")=\"NÃO\",\"\",INDIRECT(\"'\"&B239&\"'!f10\")),\"\")","v":""},""]
[null,"R234","",{"$f":"IFERROR(INDIRECT(\"'\"&B240&\"'!C8\"),\"\")","v":""},{"$f":"IFERROR(INDIRECT(\"'\"&B240&\"'!f8\"),\"\")","v":""},{"$f":"_xlfn.SINGLE(IFERROR(INDIRECT(\"'\"&B240&\"'!c21\"),\"\"))","v":""},"",{"$f":"IFERROR(IF(INDIRECT(\"'\"&B240&\"'!C10\")=\"NÃO\",\"\",INDIRECT(\"'\"&B240&\"'!f10\")),\"\")","v":""},""]
[null,"R235","",{"$f":"IFERROR(INDIRECT(\"'\"&B241&\"'!C8\"),\"\")","v":""},{"$f":"IFERROR(INDIRECT(\"'\"&B241&\"'!f8\"),\"\")","v":""},{"$f":"_xlfn.SINGLE(IFERROR(INDIRECT(\"'\"&B241&\"'!c21\"),\"\"))","v":""},"",{"$f":"IFERROR(IF(INDIRECT(\"'\"&B241&\"'!C10\")=\"NÃO\",\"\",INDIRECT(\"'\"&B241&\"'!f10\")),\"\")","v":""},""]
[null,"R236","",{"$f":"IFERROR(INDIRECT(\"'\"&B242&\"'!C8\"),\"\")","v":""},{"$f":"IFERROR(INDIRECT(\"'\"&B242&\"'!f8\"),\"\")","v":""},{"$f":"_xlfn.SINGLE(IFERROR(INDIRECT(\"'\"&B242&\"'!c21\"),\"\"))","v":""},"",{"$f":"IFERROR(IF(INDIRECT(\"'\"&B242&\"'!C10\")=\"NÃO\",\"\",INDIRECT(\"'\"&B242&\"'!f10\")),\"\")","v":""},""]
[null,"R237","",{"$f":"IFERROR(INDIRECT(\"'\"&B243&\"'!C8\"),\"\")","v":""},{"$f":"IFERROR(INDIRECT(\"'\"&B243&\"'!f8\"),\"\")","v":""},{"$f":"_xlfn.SINGLE(IFERROR(INDIRECT(\"'\"&B243&\"'!c21\"),\"\"))","v":""},"",{"$f":"IFERROR(IF(INDIRECT(\"'\"&B243&\"'!C10\")=\"NÃO\",\"\",INDIRECT(\"'\"&B243&\"'!f10\")),\"\")","v":""},""]
[null,"R238","",{"$f":"IFERROR(INDIRECT(\"'\"&B244&\"'!C8\"),\"\")","v":""},{"$f":"IFERROR(INDIRECT(\"'\"&B244&\"'!f8\"),\"\")","v":""},{"$f":"_xlfn.SINGLE(IFERROR(INDIRECT(\"'\"&B244&\"'!c21\"),\"\"))","v":""},"",{"$f":"IFERROR(IF(INDIRECT(\"'\"&B244&\"'!C10\")=\"NÃO\",\"\",INDIRECT(\"'\"&B244&\"'!f10\")),\"\")","v":""},""]
[null,"R239","",{"$f":"IFERROR(INDIRECT(\"'\"&B245&\"'!C8\"),\"\")","v":""},{"$f":"IFERROR(INDIRECT(\"'\"&B245&\"'!f8\"),\"\")","v":""},{"$f":"_xlfn.SINGLE(IFERROR(INDIRECT(\"'\"&B245&\"'!c21\"),\"\"))","v":""},"",{"$f":"IFERROR(IF(INDIRECT(\"'\"&B245&\"'!C10\")=\"NÃO\",\"\",INDIRECT(\"'\"&B245&\"'!f10\")),\"\")","v":""},""]
[null,"R240","",{"$f":"IFERROR(INDIRECT(\"'\"&B246&\"'!C8\"),\"\")","v":""},{"$f":"IFERROR(INDIRECT(\"'\"&B246&\"'!f8\"),\"\")","v":""},{"$f":"_xlfn.SINGLE(IFERROR(INDIRECT(\"'\"&B246&\"'!c21\"),\"\"))","v":""},"",{"$f":"IFERROR(IF(INDIRECT(\"'\"&B246&\"'!C10\")=\"NÃO\",\"\",INDIRECT(\"'\"&B246&\"'!f10\")),\"\")","v":""},""]
[null,"R241","",{"$f":"IFERROR(INDIRECT(\"'\"&B247&\"'!C8\"),\"\")","v":""},{"$f":"IFERROR(INDIRECT(\"'\"&B247&\"'!f8\"),\"\")","v":""},{"$f":"_xlfn.SINGLE(IFERROR(INDIRECT(\"'\"&B247&\"'!c21\"),\"\"))","v":""},"",{"$f":"IFERROR(IF(INDIRECT(\"'\"&B247&\"'!C10\")=\"NÃO\",\"\",INDIRECT(\"'\"&B247&\"'!f10\")),\"\")","v":""},""]
[null,"R242","",{"$f":"IFERROR(INDIRECT(\"'\"&B248&\"'!C8\"),\"\")","v":""},{"$f":"IFERROR(INDIRECT(\"'\"&B248&\"'!f8\"),\"\")","v":""},{"$f":"_xlfn.SINGLE(IFERROR(INDIRECT(\"'\"&B248&\"'!c21\"),\"\"))","v":""},"",{"$f":"IFERROR(IF(INDIRECT(\"'\"&B248&\"'!C10\")=\"NÃO\",\"\",INDIRECT(\"'\"&B248&\"'!f10\")),\"\")","v":""},""]
[null,"R243","",{"$f":"IFERROR(INDIRECT(\"'\"&B249&\"'!C8\"),\"\")","v":""},{"$f":"IFERROR(INDIRECT(\"'\"&B249&\"'!f8\"),\"\")","v":""},{"$f":"_xlfn.SINGLE(IFERROR(INDIRECT(\"'\"&B249&\"'!c21\"),\"\"))","v":""},"",{"$f":"IFERROR(IF(INDIRECT(\"'\"&B249&\"'!C10\")=\"NÃO\",\"\",INDIRECT(\"'\"&B249&\"'!f10\")),\"\")","v":""},""]
[null,"R244","",{"$f":"IFERROR(INDIRECT(\"'\"&B250&\"'!C8\"),\"\")","v":""},{"$f":"IFERROR(INDIRECT(\"'\"&B250&\"'!f8\"),\"\")","v":""},{"$f":"_xlfn.SINGLE(IFERROR(INDIRECT(\"'\"&B250&\"'!c21\"),\"\"))","v":""},"",{"$f":"IFERROR(IF(INDIRECT(\"'\"&B250&\"'!C10\")=\"NÃO\",\"\",INDIRECT(\"'\"&B250&\"'!f10\")),\"\")","v":""},""]
[null,"R245","",{"$f":"IFERROR(INDIRECT(\"'\"&B251&\"'!C8\"),\"\")","v":""},{"$f":"IFERROR(INDIRECT(\"'\"&B251&\"'!f8\"),\"\")","v":""},{"$f":"_xlfn.SINGLE(IFERROR(INDIRECT(\"'\"&B251&\"'!c21\"),\"\"))","v":""},"",{"$f":"IFERROR(IF(INDIRECT(\"'\"&B251&\"'!C10\")=\"NÃO\",\"\",INDIRECT(\"'\"&B251&\"'!f10\")),\"\")","v":""},""]
[null,"R246","",{"$f":"IFERROR(INDIRECT(\"'\"&B252&\"'!C8\"),\"\")","v":""},{"$f":"IFERROR(INDIRECT(\"'\"&B252&\"'!f8\"),\"\")","v":""},{"$f":"_xlfn.SINGLE(IFERROR(INDIRECT(\"'\"&B252&\"'!c21\"),\"\"))","v":""},"",{"$f":"IFERROR(IF(INDIRECT(\"'\"&B252&\"'!C10\")=\"NÃO\",\"\",INDIRECT(\"'\"&B252&\"'!f10\")),\"\")","v":""},""]
[null,"R247","",{"$f":"IFERROR(INDIRECT(\"'\"&B253&\"'!C8\"),\"\")","v":""},{"$f":"IFERROR(INDIRECT(\"'\"&B253&\"'!f8\"),\"\")","v":""},{"$f":"_xlfn.SINGLE(IFERROR(INDIRECT(\"'\"&B253&\"'!c21\"),\"\"))","v":""},"",{"$f":"IFERROR(IF(INDIRECT(\"'\"&B253&\"'!C10\")=\"NÃO\",\"\",INDIRECT(\"'\"&B253&\"'!f10\")),\"\")","v":""},""]
[null,"R248","",{"$f":"IFERROR(INDIRECT(\"'\"&B254&\"'!C8\"),\"\")","v":""},{"$f":"IFERROR(INDIRECT(\"'\"&B254&\"'!f8\"),\"\")","v":""},{"$f":"_xlfn.SINGLE(IFERROR(INDIRECT(\"'\"&B254&\"'!c21\"),\"\"))","v":""},"",{"$f":"IFERROR(IF(INDIRECT(\"'\"&B254&\"'!C10\")=\"NÃO\",\"\",INDIRECT(\"'\"&B254&\"'!f10\")),\"\")","v":""},""]
[null,"R249","",{"$f":"IFERROR(INDIRECT(\"'\"&B255&\"'!C8\"),\"\")","v":""},{"$f":"IFERROR(INDIRECT(\"'\"&B255&\"'!f8\"),\"\")","v":""},{"$f":"_xlfn.SINGLE(IFERROR(INDIRECT(\"'\"&B255&\"'!c21\"),\"\"))","v":""},"",{"$f":"IFERROR(IF(INDIRECT(\"'\"&B255&\"'!C10\")=\"NÃO\",\"\",INDIRECT(\"'\"&B255&\"'!f10\")),\"\")","v":""},""]
[null,"R250","",{"$f":"IFERROR(INDIRECT(\"'\"&B256&\"'!C8\"),\"\")","v":""},{"$f":"IFERROR(INDIRECT(\"'\"&B256&\"'!f8\"),\"\")","v":""},{"$f":"_xlfn.SINGLE(IFERROR(INDIRECT(\"'\"&B256&\"'!c21\"),\"\"))","v":""},"",{"$f":"IFERROR(IF(INDIRECT(\"'\"&B256&\"'!C10\")=\"NÃO\",\"\",INDIRECT(\"'\"&B256&\"'!f10\")),\"\")","v":""},""]
[null,"R251","",{"$f":"IFERROR(INDIRECT(\"'\"&B257&\"'!C8\"),\"\")","v":""},{"$f":"IFERROR(INDIRECT(\"'\"&B257&\"'!f8\"),\"\")","v":""},{"$f":"_xlfn.SINGLE(IFERROR(INDIRECT(\"'\"&B257&\"'!c21\"),\"\"))","v":""},"",{"$f":"IFERROR(IF(INDIRECT(\"'\"&B257&\"'!C10\")=\"NÃO\",\"\",INDIRECT(\"'\"&B257&\"'!f10\")),\"\")","v":""},""]
[null,"R252","",{"$f":"IFERROR(INDIRECT(\"'\"&B258&\"'!C8\"),\"\")","v":""},{"$f":"IFERROR(INDIRECT(\"'\"&B258&\"'!f8\"),\"\")","v":""},{"$f":"_xlfn.SINGLE(IFERROR(INDIRECT(\"'\"&B258&\"'!c21\"),\"\"))","v":""},"",{"$f":"IFERROR(IF(INDIRECT(\"'\"&B258&\"'!C10\")=\"NÃO\",\"\",INDIRECT(\"'\"&B258&\"'!f10\")),\"\")","v":""},""]
[null,"R253","",{"$f":"IFERROR(INDIRECT(\"'\"&B259&\"'!C8\"),\"\")","v":""},{"$f":"IFERROR(INDIRECT(\"'\"&B259&\"'!f8\"),\"\")","v":""},{"$f":"_xlfn.SINGLE(IFERROR(INDIRECT(\"'\"&B259&\"'!c21\"),\"\"))","v":""},"",{"$f":"IFERROR(IF(INDIRECT(\"'\"&B259&\"'!C10\")=\"NÃO\",\"\",INDIRECT(\"'\"&B259&\"'!f10\")),\"\")","v":""},""]
[null,"R254","",{"$f":"IFERROR(INDIRECT(\"'\"&B260&\"'!C8\"),\"\")","v":""},{"$f":"IFERROR(INDIRECT(\"'\"&B260&\"'!f8\"),\"\")","v":""},{"$f":"_xlfn.SINGLE(IFERROR(INDIRECT(\"'\"&B260&\"'!c21\"),\"\"))","v":""},"",{"$f":"IFERROR(IF(INDIRECT(\"'\"&B260&\"'!C10\")=\"NÃO\",\"\",INDIRECT(\"'\"&B260&\"'!f10\")),\"\")","v":""},""]
[null,"R255","",{"$f":"IFERROR(INDIRECT(\"'\"&B261&\"'!C8\"),\"\")","v":""},{"$f":"IFERROR(INDIRECT(\"'\"&B261&\"'!f8\"),\"\")","v":""},{"$f":"_xlfn.SINGLE(IFERROR(INDIRECT(\"'\"&B261&\"'!c21\"),\"\"))","v":""},"",{"$f":"IFERROR(IF(INDIRECT(\"'\"&B261&\"'!C10\")=\"NÃO\",\"\",INDIRECT(\"'\"&B261&\"'!f10\")),\"\")","v":""},""]
[null,"R256","",{"$f":"IFERROR(INDIRECT(\"'\"&B262&\"'!C8\"),\"\")","v":""},{"$f":"IFERROR(INDIRECT(\"'\"&B262&\"'!f8\"),\"\")","v":""},{"$f":"_xlfn.SINGLE(IFERROR(INDIRECT(\"'\"&B262&\"'!c21\"),\"\"))","v":""},"",{"$f":"IFERROR(IF(INDIRECT(\"'\"&B262&\"'!C10\")=\"NÃO\",\"\",INDIRECT(\"'\"&B262&\"'!f10\")),\"\")","v":""},""]
[null,"R257","",{"$f":"IFERROR(INDIRECT(\"'\"&B263&\"'!C8\"),\"\")","v":""},{"$f":"IFERROR(INDIRECT(\"'\"&B263&\"'!f8\"),\"\")","v":""},{"$f":"_xlfn.SINGLE(IFERROR(INDIRECT(\"'\"&B263&\"'!c21\"),\"\"))","v":""},"",{"$f":"IFERROR(IF(INDIRECT(\"'\"&B263&\"'!C10\")=\"NÃO\",\"\",INDIRECT(\"'\"&B263&\"'!f10\")),\"\")","v":""},""]
[null,"R258",{"$f":"IF(A264=\"\",\"\",MID(B264,2,15))","v":""},{"$f":"IFERROR(INDIRECT(\"'\"&B264&\"'!C8\"),\"\")","v":""},{"$f":"IFERROR(INDIRECT(\"'\"&B264&\"'!f8\"),\"\")","v":""},{"$f":"_xlfn.SINGLE(IFERROR(INDIRECT(\"'\"&B264&\"'!c21\"),\"\"))","v":""},{"$f":"IFERROR(IF(F264=\"Preço Único\",INDIRECT(\"'\"&B264&\"'!c15\"),INDIRECT(\"'\"&B264&\"'!g21\")),\"\")","v":""},{"$f":"IFERROR(IF(INDIRECT(\"'\"&B264&\"'!C10\")=\"NÃO\",\"\",INDIRECT(\"'\"&B264&\"'!f10\")),\"\")","v":""},{"$f":"_xlfn.IFS(AND(G264=\"\",H264=\"\"),\"\",\n$B$1=5,\"\",\nOR(G264=\"\",G264=\"INFORME OS DADOS DA PESQUISA DE PREÇOS\"),\"Falta valor de mercado\",\nH264=\"\",\"Preço contratado não informado\",\nG264=\"Não foi possível calcular.\",\"Não foi possível avaliar.\",\nAND(INDIRECT(\"'\"&B264&\"'!K27\")=\"OK\",G264>=H264),\"Ok\",\nAND(INDIRECT(\"'\"&B264&\"'!K27\")<>\"OK\",G264>=H264),\"Ok, desde que justificado os problemas da pesquisa\",\nAND(INDIRECT(\"'\"&B264&\"'!K27\")=\"OK\",G264<H264),\"Negociar preço contratado\",\nAND(INDIRECT(\"'\"&B264&\"'!K27\")<>\"OK\",G264<H264),\"Negociar preço contratado e justificar problemas da pesquisa\")","v":""}]
[null,"R259","",{"$f":"IFERROR(INDIRECT(\"'\"&B265&\"'!C8\"),\"\")","v":""},{"$f":"IFERROR(INDIRECT(\"'\"&B265&\"'!f8\"),\"\")","v":""},{"$f":"_xlfn.SINGLE(IFERROR(INDIRECT(\"'\"&B265&\"'!c21\"),\"\"))","v":""},"",{"$f":"IFERROR(IF(INDIRECT(\"'\"&B265&\"'!C10\")=\"NÃO\",\"\",INDIRECT(\"'\"&B265&\"'!f10\")),\"\")","v":""},""]
[null,"R260","",{"$f":"IFERROR(INDIRECT(\"'\"&B266&\"'!C8\"),\"\")","v":""},{"$f":"IFERROR(INDIRECT(\"'\"&B266&\"'!f8\"),\"\")","v":""},{"$f":"_xlfn.SINGLE(IFERROR(INDIRECT(\"'\"&B266&\"'!c21\"),\"\"))","v":""},"",{"$f":"IFERROR(IF(INDIRECT(\"'\"&B266&\"'!C10\")=\"NÃO\",\"\",INDIRECT(\"'\"&B266&\"'!f10\")),\"\")","v":""},""]
[null,"R261","",{"$f":"IFERROR(INDIRECT(\"'\"&B267&\"'!C8\"),\"\")","v":""},{"$f":"IFERROR(INDIRECT(\"'\"&B267&\"'!f8\"),\"\")","v":""},{"$f":"_xlfn.SINGLE(IFERROR(INDIRECT(\"'\"&B267&\"'!c21\"),\"\"))","v":""},"",{"$f":"IFERROR(IF(INDIRECT(\"'\"&B267&\"'!C10\")=\"NÃO\",\"\",INDIRECT(\"'\"&B267&\"'!f10\")),\"\")","v":""},""]
[null,"R262","",{"$f":"IFERROR(INDIRECT(\"'\"&B268&\"'!C8\"),\"\")","v":""},{"$f":"IFERROR(INDIRECT(\"'\"&B268&\"'!f8\"),\"\")","v":""},{"$f":"_xlfn.SINGLE(IFERROR(INDIRECT(\"'\"&B268&\"'!c21\"),\"\"))","v":""},"",{"$f":"IFERROR(IF(INDIRECT(\"'\"&B268&\"'!C10\")=\"NÃO\",\"\",INDIRECT(\"'\"&B268&\"'!f10\")),\"\")","v":""},""]
[null,"R263","",{"$f":"IFERROR(INDIRECT(\"'\"&B269&\"'!C8\"),\"\")","v":""},{"$f":"IFERROR(INDIRECT(\"'\"&B269&\"'!f8\"),\"\")","v":""},{"$f":"_xlfn.SINGLE(IFERROR(INDIRECT(\"'\"&B269&\"'!c21\"),\"\"))","v":""},"",{"$f":"IFERROR(IF(INDIRECT(\"'\"&B269&\"'!C10\")=\"NÃO\",\"\",INDIRECT(\"'\"&B269&\"'!f10\")),\"\")","v":""},""]
[null,"R264","",{"$f":"IFERROR(INDIRECT(\"'\"&B270&\"'!C8\"),\"\")","v":""},{"$f":"IFERROR(INDIRECT(\"'\"&B270&\"'!f8\"),\"\")","v":""},{"$f":"_xlfn.SINGLE(IFERROR(INDIRECT(\"'\"&B270&\"'!c21\"),\"\"))","v":""},"",{"$f":"IFERROR(IF(INDIRECT(\"'\"&B270&\"'!C10\")=\"NÃO\",\"\",INDIRECT(\"'\"&B270&\"'!f10\")),\"\")","v":""},""]
[null,"R265","",{"$f":"IFERROR(INDIRECT(\"'\"&B271&\"'!C8\"),\"\")","v":""},{"$f":"IFERROR(INDIRECT(\"'\"&B271&\"'!f8\"),\"\")","v":""},{"$f":"_xlfn.SINGLE(IFERROR(INDIRECT(\"'\"&B271&\"'!c21\"),\"\"))","v":""},"",{"$f":"IFERROR(IF(INDIRECT(\"'\"&B271&\"'!C10\")=\"NÃO\",\"\",INDIRECT(\"'\"&B271&\"'!f10\")),\"\")","v":""},""]
[null,"R266","",{"$f":"IFERROR(INDIRECT(\"'\"&B272&\"'!C8\"),\"\")","v":""},{"$f":"IFERROR(INDIRECT(\"'\"&B272&\"'!f8\"),\"\")","v":""},{"$f":"_xlfn.SINGLE(IFERROR(INDIRECT(\"'\"&B272&\"'!c21\"),\"\"))","v":""},"",{"$f":"IFERROR(IF(INDIRECT(\"'\"&B272&\"'!C10\")=\"NÃO\",\"\",INDIRECT(\"'\"&B272&\"'!f10\")),\"\")","v":""},""]
[null,"R267","",{"$f":"IFERROR(INDIRECT(\"'\"&B273&\"'!C8\"),\"\")","v":""},{"$f":"IFERROR(INDIRECT(\"'\"&B273&\"'!f8\"),\"\")","v":""},{"$f":"_xlfn.SINGLE(IFERROR(INDIRECT(\"'\"&B273&\"'!c21\"),\"\"))","v":""},"",{"$f":"IFERROR(IF(INDIRECT(\"'\"&B273&\"'!C10\")=\"NÃO\",\"\",INDIRECT(\"'\"&B273&\"'!f10\")),\"\")","v":""},""]
[null,"R268","",{"$f":"IFERROR(INDIRECT(\"'\"&B274&\"'!C8\"),\"\")","v":""},{"$f":"IFERROR(INDIRECT(\"'\"&B274&\"'!f8\"),\"\")","v":""},{"$f":"_xlfn.SINGLE(IFERROR(INDIRECT(\"'\"&B274&\"'!c21\"),\"\"))","v":""},"",{"$f":"IFERROR(IF(INDIRECT(\"'\"&B274&\"'!C10\")=\"NÃO\",\"\",INDIRECT(\"'\"&B274&\"'!f10\")),\"\")","v":""},""]
[null,"R269","",{"$f":"IFERROR(INDIRECT(\"'\"&B275&\"'!C8\"),\"\")","v":""},{"$f":"IFERROR(INDIRECT(\"'\"&B275&\"'!f8\"),\"\")","v":""},{"$f":"_xlfn.SINGLE(IFERROR(INDIRECT(\"'\"&B275&\"'!c21\"),\"\"))","v":""},"",{"$f":"IFERROR(IF(INDIRECT(\"'\"&B275&\"'!C10\")=\"NÃO\",\"\",INDIRECT(\"'\"&B275&\"'!f10\")),\"\")","v":""},""]
[null,"R270","",{"$f":"IFERROR(INDIRECT(\"'\"&B276&\"'!C8\"),\"\")","v":""},{"$f":"IFERROR(INDIRECT(\"'\"&B276&\"'!f8\"),\"\")","v":""},{"$f":"_xlfn.SINGLE(IFERROR(INDIRECT(\"'\"&B276&\"'!c21\"),\"\"))","v":""},"",{"$f":"IFERROR(IF(INDIRECT(\"'\"&B276&\"'!C10\")=\"NÃO\",\"\",INDIRECT(\"'\"&B276&\"'!f10\")),\"\")","v":""},""]
[null,"R271","",{"$f":"IFERROR(INDIRECT(\"'\"&B277&\"'!C8\"),\"\")","v":""},{"$f":"IFERROR(INDIRECT(\"'\"&B277&\"'!f8\"),\"\")","v":""},{"$f":"_xlfn.SINGLE(IFERROR(INDIRECT(\"'\"&B277&\"'!c21\"),\"\"))","v":""},"",{"$f":"IFERROR(IF(INDIRECT(\"'\"&B277&\"'!C10\")=\"NÃO\",\"\",INDIRECT(\"'\"&B277&\"'!f10\")),\"\")","v":""},""]
[null,"R272","",{"$f":"IFERROR(INDIRECT(\"'\"&B278&\"'!C8\"),\"\")","v":""},{"$f":"IFERROR(INDIRECT(\"'\"&B278&\"'!f8\"),\"\")","v":""},{"$f":"_xlfn.SINGLE(IFERROR(INDIRECT(\"'\"&B278&\"'!c21\"),\"\"))","v":""},"",{"$f":"IFERROR(IF(INDIRECT(\"'\"&B278&\"'!C10\")=\"NÃO\",\"\",INDIRECT(\"'\"&B278&\"'!f10\")),\"\")","v":""},""]
[null,"R273","",{"$f":"IFERROR(INDIRECT(\"'\"&B279&\"'!C8\"),\"\")","v":""},{"$f":"IFERROR(INDIRECT(\"'\"&B279&\"'!f8\"),\"\")","v":""},{"$f":"_xlfn.SINGLE(IFERROR(INDIRECT(\"'\"&B279&\"'!c21\"),\"\"))","v":""},"",{"$f":"IFERROR(IF(INDIRECT(\"'\"&B279&\"'!C10\")=\"NÃO\",\"\",INDIRECT(\"'\"&B279&\"'!f10\")),\"\")","v":""},""]
[null,"R274","",{"$f":"IFERROR(INDIRECT(\"'\"&B280&\"'!C8\"),\"\")","v":""},{"$f":"IFERROR(INDIRECT(\"'\"&B280&\"'!f8\"),\"\")","v":""},{"$f":"_xlfn.SINGLE(IFERROR(INDIRECT(\"'\"&B280&\"'!c21\"),\"\"))","v":""},"",{"$f":"IFERROR(IF(INDIRECT(\"'\"&B280&\"'!C10\")=\"NÃO\",\"\",INDIRECT(\"'\"&B280&\"'!f10\")),\"\")","v":""},""]
[null,"R275","",{"$f":"IFERROR(INDIRECT(\"'\"&B281&\"'!C8\"),\"\")","v":""},{"$f":"IFERROR(INDIRECT(\"'\"&B281&\"'!f8\"),\"\")","v":""},{"$f":"_xlfn.SINGLE(IFERROR(INDIRECT(\"'\"&B281&\"'!c21\"),\"\"))","v":""},"",{"$f":"IFERROR(IF(INDIRECT(\"'\"&B281&\"'!C10\")=\"NÃO\",\"\",INDIRECT(\"'\"&B281&\"'!f10\")),\"\")","v":""},""]
[null,"R276","",{"$f":"IFERROR(INDIRECT(\"'\"&B282&\"'!C8\"),\"\")","v":""},{"$f":"IFERROR(INDIRECT(\"'\"&B282&\"'!f8\"),\"\")","v":""},{"$f":"_xlfn.SINGLE(IFERROR(INDIRECT(\"'\"&B282&\"'!c21\"),\"\"))","v":""},"",{"$f":"IFERROR(IF(INDIRECT(\"'\"&B282&\"'!C10\")=\"NÃO\",\"\",INDIRECT(\"'\"&B282&\"'!f10\")),\"\")","v":""},""]
[null,"R277","",{"$f":"IFERROR(INDIRECT(\"'\"&B283&\"'!C8\"),\"\")","v":""},{"$f":"IFERROR(INDIRECT(\"'\"&B283&\"'!f8\"),\"\")","v":""},{"$f":"_xlfn.SINGLE(IFERROR(INDIRECT(\"'\"&B283&\"'!c21\"),\"\"))","v":""},"",{"$f":"IFERROR(IF(INDIRECT(\"'\"&B283&\"'!C10\")=\"NÃO\",\"\",INDIRECT(\"'\"&B283&\"'!f10\")),\"\")","v":""},""]
[null,"R278","",{"$f":"IFERROR(INDIRECT(\"'\"&B284&\"'!C8\"),\"\")","v":""},{"$f":"IFERROR(INDIRECT(\"'\"&B284&\"'!f8\"),\"\")","v":""},{"$f":"_xlfn.SINGLE(IFERROR(INDIRECT(\"'\"&B284&\"'!c21\"),\"\"))","v":""},"",{"$f":"IFERROR(IF(INDIRECT(\"'\"&B284&\"'!C10\")=\"NÃO\",\"\",INDIRECT(\"'\"&B284&\"'!f10\")),\"\")","v":""},""]
[null,"R279","",{"$f":"IFERROR(INDIRECT(\"'\"&B285&\"'!C8\"),\"\")","v":""},{"$f":"IFERROR(INDIRECT(\"'\"&B285&\"'!f8\"),\"\")","v":""},{"$f":"_xlfn.SINGLE(IFERROR(INDIRECT(\"'\"&B285&\"'!c21\"),\"\"))","v":""},"",{"$f":"IFERROR(IF(INDIRECT(\"'\"&B285&\"'!C10\")=\"NÃO\",\"\",INDIRECT(\"'\"&B285&\"'!f10\")),\"\")","v":""},""]
[null,"R280","",{"$f":"IFERROR(INDIRECT(\"'\"&B286&\"'!C8\"),\"\")","v":""},{"$f":"IFERROR(INDIRECT(\"'\"&B286&\"'!f8\"),\"\")","v":""},{"$f":"_xlfn.SINGLE(IFERROR(INDIRECT(\"'\"&B286&\"'!c21\"),\"\"))","v":""},"",{"$f":"IFERROR(IF(INDIRECT(\"'\"&B286&\"'!C10\")=\"NÃO\",\"\",INDIRECT(\"'\"&B286&\"'!f10\")),\"\")","v":""},""]
[null,"R281","",{"$f":"IFERROR(INDIRECT(\"'\"&B287&\"'!C8\"),\"\")","v":""},{"$f":"IFERROR(INDIRECT(\"'\"&B287&\"'!f8\"),\"\")","v":""},{"$f":"_xlfn.SINGLE(IFERROR(INDIRECT(\"'\"&B287&\"'!c21\"),\"\"))","v":""},"",{"$f":"IFERROR(IF(INDIRECT(\"'\"&B287&\"'!C10\")=\"NÃO\",\"\",INDIRECT(\"'\"&B287&\"'!f10\")),\"\")","v":""},""]
[null,"R282","",{"$f":"IFERROR(INDIRECT(\"'\"&B288&\"'!C8\"),\"\")","v":""},{"$f":"IFERROR(INDIRECT(\"'\"&B288&\"'!f8\"),\"\")","v":""},{"$f":"_xlfn.SINGLE(IFERROR(INDIRECT(\"'\"&B288&\"'!c21\"),\"\"))","v":""},"",{"$f":"IFERROR(IF(INDIRECT(\"'\"&B288&\"'!C10\")=\"NÃO\",\"\",INDIRECT(\"'\"&B288&\"'!f10\")),\"\")","v":""},""]
[null,"R283","",{"$f":"IFERROR(INDIRECT(\"'\"&B289&\"'!C8\"),\"\")","v":""},{"$f":"IFERROR(INDIRECT(\"'\"&B289&\"'!f8\"),\"\")","v":""},{"$f":"_xlfn.SINGLE(IFERROR(INDIRECT(\"'\"&B289&\"'!c21\"),\"\"))","v":""},"",{"$f":"IFERROR(IF(INDIRECT(\"'\"&B289&\"'!C10\")=\"NÃO\",\"\",INDIRECT(\"'\"&B289&\"'!f10\")),\"\")","v":""},""]
[null,"R284","",{"$f":"IFERROR(INDIRECT(\"'\"&B290&\"'!C8\"),\"\")","v":""},{"$f":"IFERROR(INDIRECT(\"'\"&B290&\"'!f8\"),\"\")","v":""},{"$f":"_xlfn.SINGLE(IFERROR(INDIRECT(\"'\"&B290&\"'!c21\"),\"\"))","v":""},"",{"$f":"IFERROR(IF(INDIRECT(\"'\"&B290&\"'!C10\")=\"NÃO\",\"\",INDIRECT(\"'\"&B290&\"'!f10\")),\"\")","v":""},""]
[null,"R285","",{"$f":"IFERROR(INDIRECT(\"'\"&B291&\"'!C8\"),\"\")","v":""},{"$f":"IFERROR(INDIRECT(\"'\"&B291&\"'!f8\"),\"\")","v":""},{"$f":"_xlfn.SINGLE(IFERROR(INDIRECT(\"'\"&B291&\"'!c21\"),\"\"))","v":""},"",{"$f":"IFERROR(IF(INDIRECT(\"'\"&B291&\"'!C10\")=\"NÃO\",\"\",INDIRECT(\"'\"&B291&\"'!f10\")),\"\")","v":""},""]
[null,"R286","",{"$f":"IFERROR(INDIRECT(\"'\"&B292&\"'!C8\"),\"\")","v":""},{"$f":"IFERROR(INDIRECT(\"'\"&B292&\"'!f8\"),\"\")","v":""},{"$f":"_xlfn.SINGLE(IFERROR(INDIRECT(\"'\"&B292&\"'!c21\"),\"\"))","v":""},"",{"$f":"IFERROR(IF(INDIRECT(\"'\"&B292&\"'!C10\")=\"NÃO\",\"\",INDIRECT(\"'\"&B292&\"'!f10\")),\"\")","v":""},""]
[null,"R287","",{"$f":"IFERROR(INDIRECT(\"'\"&B293&\"'!C8\"),\"\")","v":""},{"$f":"IFERROR(INDIRECT(\"'\"&B293&\"'!f8\"),\"\")","v":""},{"$f":"_xlfn.SINGLE(IFERROR(INDIRECT(\"'\"&B293&\"'!c21\"),\"\"))","v":""},"",{"$f":"IFERROR(IF(INDIRECT(\"'\"&B293&\"'!C10\")=\"NÃO\",\"\",INDIRECT(\"'\"&B293&\"'!f10\")),\"\")","v":""},""]
[null,"R288","",{"$f":"IFERROR(INDIRECT(\"'\"&B294&\"'!C8\"),\"\")","v":""},{"$f":"IFERROR(INDIRECT(\"'\"&B294&\"'!f8\"),\"\")","v":""},{"$f":"_xlfn.SINGLE(IFERROR(INDIRECT(\"'\"&B294&\"'!c21\"),\"\"))","v":""},"",{"$f":"IFERROR(IF(INDIRECT(\"'\"&B294&\"'!C10\")=\"NÃO\",\"\",INDIRECT(\"'\"&B294&\"'!f10\")),\"\")","v":""},""]
[null,"R289","",{"$f":"IFERROR(INDIRECT(\"'\"&B295&\"'!C8\"),\"\")","v":""},{"$f":"IFERROR(INDIRECT(\"'\"&B295&\"'!f8\"),\"\")","v":""},{"$f":"_xlfn.SINGLE(IFERROR(INDIRECT(\"'\"&B295&\"'!c21\"),\"\"))","v":""},"",{"$f":"IFERROR(IF(INDIRECT(\"'\"&B295&\"'!C10\")=\"NÃO\",\"\",INDIRECT(\"'\"&B295&\"'!f10\")),\"\")","v":""},""]
[null,"R290","",{"$f":"IFERROR(INDIRECT(\"'\"&B296&\"'!C8\"),\"\")","v":""},{"$f":"IFERROR(INDIRECT(\"'\"&B296&\"'!f8\"),\"\")","v":""},{"$f":"_xlfn.SINGLE(IFERROR(INDIRECT(\"'\"&B296&\"'!c21\"),\"\"))","v":""},"",{"$f":"IFERROR(IF(INDIRECT(\"'\"&B296&\"'!C10\")=\"NÃO\",\"\",INDIRECT(\"'\"&B296&\"'!f10\")),\"\")","v":""},""]
[null,"R291","",{"$f":"IFERROR(INDIRECT(\"'\"&B297&\"'!C8\"),\"\")","v":""},{"$f":"IFERROR(INDIRECT(\"'\"&B297&\"'!f8\"),\"\")","v":""},{"$f":"_xlfn.SINGLE(IFERROR(INDIRECT(\"'\"&B297&\"'!c21\"),\"\"))","v":""},"",{"$f":"IFERROR(IF(INDIRECT(\"'\"&B297&\"'!C10\")=\"NÃO\",\"\",INDIRECT(\"'\"&B297&\"'!f10\")),\"\")","v":""},""]
[null,"R292","",{"$f":"IFERROR(INDIRECT(\"'\"&B298&\"'!C8\"),\"\")","v":""},{"$f":"IFERROR(INDIRECT(\"'\"&B298&\"'!f8\"),\"\")","v":""},{"$f":"_xlfn.SINGLE(IFERROR(INDIRECT(\"'\"&B298&\"'!c21\"),\"\"))","v":""},"",{"$f":"IFERROR(IF(INDIRECT(\"'\"&B298&\"'!C10\")=\"NÃO\",\"\",INDIRECT(\"'\"&B298&\"'!f10\")),\"\")","v":""},""]
[null,"R293","",{"$f":"IFERROR(INDIRECT(\"'\"&B299&\"'!C8\"),\"\")","v":""},{"$f":"IFERROR(INDIRECT(\"'\"&B299&\"'!f8\"),\"\")","v":""},{"$f":"_xlfn.SINGLE(IFERROR(INDIRECT(\"'\"&B299&\"'!c21\"),\"\"))","v":""},"",{"$f":"IFERROR(IF(INDIRECT(\"'\"&B299&\"'!C10\")=\"NÃO\",\"\",INDIRECT(\"'\"&B299&\"'!f10\")),\"\")","v":""},""]
[null,"R294","",{"$f":"IFERROR(INDIRECT(\"'\"&B300&\"'!C8\"),\"\")","v":""},{"$f":"IFERROR(INDIRECT(\"'\"&B300&\"'!f8\"),\"\")","v":""},{"$f":"_xlfn.SINGLE(IFERROR(INDIRECT(\"'\"&B300&\"'!c21\"),\"\"))","v":""},"",{"$f":"IFERROR(IF(INDIRECT(\"'\"&B300&\"'!C10\")=\"NÃO\",\"\",INDIRECT(\"'\"&B300&\"'!f10\")),\"\")","v":""},""]
[null,"R295","",{"$f":"IFERROR(INDIRECT(\"'\"&B301&\"'!C8\"),\"\")","v":""},{"$f":"IFERROR(INDIRECT(\"'\"&B301&\"'!f8\"),\"\")","v":""},{"$f":"_xlfn.SINGLE(IFERROR(INDIRECT(\"'\"&B301&\"'!c21\"),\"\"))","v":""},"",{"$f":"IFERROR(IF(INDIRECT(\"'\"&B301&\"'!C10\")=\"NÃO\",\"\",INDIRECT(\"'\"&B301&\"'!f10\")),\"\")","v":""},""]
[null,"R296","",{"$f":"IFERROR(INDIRECT(\"'\"&B302&\"'!C8\"),\"\")","v":""},{"$f":"IFERROR(INDIRECT(\"'\"&B302&\"'!f8\"),\"\")","v":""},{"$f":"_xlfn.SINGLE(IFERROR(INDIRECT(\"'\"&B302&\"'!c21\"),\"\"))","v":""},"",{"$f":"IFERROR(IF(INDIRECT(\"'\"&B302&\"'!C10\")=\"NÃO\",\"\",INDIRECT(\"'\"&B302&\"'!f10\")),\"\")","v":""},""]
[null,"R297","",{"$f":"IFERROR(INDIRECT(\"'\"&B303&\"'!C8\"),\"\")","v":""},{"$f":"IFERROR(INDIRECT(\"'\"&B303&\"'!f8\"),\"\")","v":""},{"$f":"_xlfn.SINGLE(IFERROR(INDIRECT(\"'\"&B303&\"'!c21\"),\"\"))","v":""},"",{"$f":"IFERROR(IF(INDIRECT(\"'\"&B303&\"'!C10\")=\"NÃO\",\"\",INDIRECT(\"'\"&B303&\"'!f10\")),\"\")","v":""},""]
[null,"R298","",{"$f":"IFERROR(INDIRECT(\"'\"&B304&\"'!C8\"),\"\")","v":""},{"$f":"IFERROR(INDIRECT(\"'\"&B304&\"'!f8\"),\"\")","v":""},{"$f":"_xlfn.SINGLE(IFERROR(INDIRECT(\"'\"&B304&\"'!c21\"),\"\"))","v":""},"",{"$f":"IFERROR(IF(INDIRECT(\"'\"&B304&\"'!C10\")=\"NÃO\",\"\",INDIRECT(\"'\"&B304&\"'!f10\")),\"\")","v":""},""]
[null,"R299","",{"$f":"IFERROR(INDIRECT(\"'\"&B305&\"'!C8\"),\"\")","v":""},{"$f":"IFERROR(INDIRECT(\"'\"&B305&\"'!f8\"),\"\")","v":""},{"$f":"_xlfn.SINGLE(IFERROR(INDIRECT(\"'\"&B305&\"'!c21\"),\"\"))","v":""},"",{"$f":"IFERROR(IF(INDIRECT(\"'\"&B305&\"'!C10\")=\"NÃO\",\"\",INDIRECT(\"'\"&B305&\"'!f10\")),\"\")","v":""},""]
[null,"R300","",{"$f":"IFERROR(INDIRECT(\"'\"&B306&\"'!C8\"),\"\")","v":""},{"$f":"IFERROR(INDIRECT(\"'\"&B306&\"'!f8\"),\"\")","v":""},{"$f":"_xlfn.SINGLE(IFERROR(INDIRECT(\"'\"&B306&\"'!c21\"),\"\"))","v":""},"",{"$f":"IFERROR(IF(INDIRECT(\"'\"&B306&\"'!C10\")=\"NÃO\",\"\",INDIRECT(\"'\"&B306&\"'!f10\")),\"\")","v":""},""]
[null,"R301","",{"$f":"IFERROR(INDIRECT(\"'\"&B307&\"'!C8\"),\"\")","v":""},{"$f":"IFERROR(INDIRECT(\"'\"&B307&\"'!f8\"),\"\")","v":""},{"$f":"_xlfn.SINGLE(IFERROR(INDIRECT(\"'\"&B307&\"'!c21\"),\"\"))","v":""},"",{"$f":"IFERROR(IF(INDIRECT(\"'\"&B307&\"'!C10\")=\"NÃO\",\"\",INDIRECT(\"'\"&B307&\"'!f10\")),\"\")","v":""},""]
[null,"R302","",{"$f":"IFERROR(INDIRECT(\"'\"&B308&\"'!C8\"),\"\")","v":""},{"$f":"IFERROR(INDIRECT(\"'\"&B308&\"'!f8\"),\"\")","v":""},{"$f":"_xlfn.SINGLE(IFERROR(INDIRECT(\"'\"&B308&\"'!c21\"),\"\"))","v":""},"",{"$f":"IFERROR(IF(INDIRECT(\"'\"&B308&\"'!C10\")=\"NÃO\",\"\",INDIRECT(\"'\"&B308&\"'!f10\")),\"\")","v":""},""]
[null,"R303","",{"$f":"IFERROR(INDIRECT(\"'\"&B309&\"'!C8\"),\"\")","v":""},{"$f":"IFERROR(INDIRECT(\"'\"&B309&\"'!f8\"),\"\")","v":""},{"$f":"_xlfn.SINGLE(IFERROR(INDIRECT(\"'\"&B309&\"'!c21\"),\"\"))","v":""},"",{"$f":"IFERROR(IF(INDIRECT(\"'\"&B309&\"'!C10\")=\"NÃO\",\"\",INDIRECT(\"'\"&B309&\"'!f10\")),\"\")","v":""},""]
[null,"R304","",{"$f":"IFERROR(INDIRECT(\"'\"&B310&\"'!C8\"),\"\")","v":""},{"$f":"IFERROR(INDIRECT(\"'\"&B310&\"'!f8\"),\"\")","v":""},{"$f":"_xlfn.SINGLE(IFERROR(INDIRECT(\"'\"&B310&\"'!c21\"),\"\"))","v":""},"",{"$f":"IFERROR(IF(INDIRECT(\"'\"&B310&\"'!C10\")=\"NÃO\",\"\",INDIRECT(\"'\"&B310&\"'!f10\")),\"\")","v":""},""]
[null,"R305","",{"$f":"IFERROR(INDIRECT(\"'\"&B311&\"'!C8\"),\"\")","v":""},{"$f":"IFERROR(INDIRECT(\"'\"&B311&\"'!f8\"),\"\")","v":""},{"$f":"_xlfn.SINGLE(IFERROR(INDIRECT(\"'\"&B311&\"'!c21\"),\"\"))","v":""},"",{"$f":"IFERROR(IF(INDIRECT(\"'\"&B311&\"'!C10\")=\"NÃO\",\"\",INDIRECT(\"'\"&B311&\"'!f10\")),\"\")","v":""},""]
[null,"R306","",{"$f":"IFERROR(INDIRECT(\"'\"&B312&\"'!C8\"),\"\")","v":""},{"$f":"IFERROR(INDIRECT(\"'\"&B312&\"'!f8\"),\"\")","v":""},{"$f":"_xlfn.SINGLE(IFERROR(INDIRECT(\"'\"&B312&\"'!c21\"),\"\"))","v":""},"",{"$f":"IFERROR(IF(INDIRECT(\"'\"&B312&\"'!C10\")=\"NÃO\",\"\",INDIRECT(\"'\"&B312&\"'!f10\")),\"\")","v":""},""]
[null,"R307","",{"$f":"IFERROR(INDIRECT(\"'\"&B313&\"'!C8\"),\"\")","v":""},{"$f":"IFERROR(INDIRECT(\"'\"&B313&\"'!f8\"),\"\")","v":""},{"$f":"_xlfn.SINGLE(IFERROR(INDIRECT(\"'\"&B313&\"'!c21\"),\"\"))","v":""},"",{"$f":"IFERROR(IF(INDIRECT(\"'\"&B313&\"'!C10\")=\"NÃO\",\"\",INDIRECT(\"'\"&B313&\"'!f10\")),\"\")","v":""},""]
[null,"R308","",{"$f":"IFERROR(INDIRECT(\"'\"&B314&\"'!C8\"),\"\")","v":""},{"$f":"IFERROR(INDIRECT(\"'\"&B314&\"'!f8\"),\"\")","v":""},{"$f":"_xlfn.SINGLE(IFERROR(INDIRECT(\"'\"&B314&\"'!c21\"),\"\"))","v":""},"",{"$f":"IFERROR(IF(INDIRECT(\"'\"&B314&\"'!C10\")=\"NÃO\",\"\",INDIRECT(\"'\"&B314&\"'!f10\")),\"\")","v":""},""]
[null,"R309","",{"$f":"IFERROR(INDIRECT(\"'\"&B315&\"'!C8\"),\"\")","v":""},{"$f":"IFERROR(INDIRECT(\"'\"&B315&\"'!f8\"),\"\")","v":""},{"$f":"_xlfn.SINGLE(IFERROR(INDIRECT(\"'\"&B315&\"'!c21\"),\"\"))","v":""},"",{"$f":"IFERROR(IF(INDIRECT(\"'\"&B315&\"'!C10\")=\"NÃO\",\"\",INDIRECT(\"'\"&B315&\"'!f10\")),\"\")","v":""},""]
[null,"R310","",{"$f":"IFERROR(INDIRECT(\"'\"&B316&\"'!C8\"),\"\")","v":""},{"$f":"IFERROR(INDIRECT(\"'\"&B316&\"'!f8\"),\"\")","v":""},{"$f":"_xlfn.SINGLE(IFERROR(INDIRECT(\"'\"&B316&\"'!c21\"),\"\"))","v":""},"",{"$f":"IFERROR(IF(INDIRECT(\"'\"&B316&\"'!C10\")=\"NÃO\",\"\",INDIRECT(\"'\"&B316&\"'!f10\")),\"\")","v":""},""]
[null,"R311","",{"$f":"IFERROR(INDIRECT(\"'\"&B317&\"'!C8\"),\"\")","v":""},{"$f":"IFERROR(INDIRECT(\"'\"&B317&\"'!f8\"),\"\")","v":""},{"$f":"_xlfn.SINGLE(IFERROR(INDIRECT(\"'\"&B317&\"'!c21\"),\"\"))","v":""},"",{"$f":"IFERROR(IF(INDIRECT(\"'\"&B317&\"'!C10\")=\"NÃO\",\"\",INDIRECT(\"'\"&B317&\"'!f10\")),\"\")","v":""},""]
[null,"R312","",{"$f":"IFERROR(INDIRECT(\"'\"&B318&\"'!C8\"),\"\")","v":""},{"$f":"IFERROR(INDIRECT(\"'\"&B318&\"'!f8\"),\"\")","v":""},{"$f":"_xlfn.SINGLE(IFERROR(INDIRECT(\"'\"&B318&\"'!c21\"),\"\"))","v":""},"",{"$f":"IFERROR(IF(INDIRECT(\"'\"&B318&\"'!C10\")=\"NÃO\",\"\",INDIRECT(\"'\"&B318&\"'!f10\")),\"\")","v":""},""]
[null,"R313","",{"$f":"IFERROR(INDIRECT(\"'\"&B319&\"'!C8\"),\"\")","v":""},{"$f":"IFERROR(INDIRECT(\"'\"&B319&\"'!f8\"),\"\")","v":""},{"$f":"_xlfn.SINGLE(IFERROR(INDIRECT(\"'\"&B319&\"'!c21\"),\"\"))","v":""},"",{"$f":"IFERROR(IF(INDIRECT(\"'\"&B319&\"'!C10\")=\"NÃO\",\"\",INDIRECT(\"'\"&B319&\"'!f10\")),\"\")","v":""},""]
[null,"R314","",{"$f":"IFERROR(INDIRECT(\"'\"&B320&\"'!C8\"),\"\")","v":""},{"$f":"IFERROR(INDIRECT(\"'\"&B320&\"'!f8\"),\"\")","v":""},{"$f":"_xlfn.SINGLE(IFERROR(INDIRECT(\"'\"&B320&\"'!c21\"),\"\"))","v":""},"",{"$f":"IFERROR(IF(INDIRECT(\"'\"&B320&\"'!C10\")=\"NÃO\",\"\",INDIRECT(\"'\"&B320&\"'!f10\")),\"\")","v":""},""]
[null,"R315","",{"$f":"IFERROR(INDIRECT(\"'\"&B321&\"'!C8\"),\"\")","v":""},{"$f":"IFERROR(INDIRECT(\"'\"&B321&\"'!f8\"),\"\")","v":""},{"$f":"_xlfn.SINGLE(IFERROR(INDIRECT(\"'\"&B321&\"'!c21\"),\"\"))","v":""},"",{"$f":"IFERROR(IF(INDIRECT(\"'\"&B321&\"'!C10\")=\"NÃO\",\"\",INDIRECT(\"'\"&B321&\"'!f10\")),\"\")","v":""},""]
[null,"R316","",{"$f":"IFERROR(INDIRECT(\"'\"&B322&\"'!C8\"),\"\")","v":""},{"$f":"IFERROR(INDIRECT(\"'\"&B322&\"'!f8\"),\"\")","v":""},{"$f":"_xlfn.SINGLE(IFERROR(INDIRECT(\"'\"&B322&\"'!c21\"),\"\"))","v":""},"",{"$f":"IFERROR(IF(INDIRECT(\"'\"&B322&\"'!C10\")=\"NÃO\",\"\",INDIRECT(\"'\"&B322&\"'!f10\")),\"\")","v":""},""]
[null,"R317","",{"$f":"IFERROR(INDIRECT(\"'\"&B323&\"'!C8\"),\"\")","v":""},{"$f":"IFERROR(INDIRECT(\"'\"&B323&\"'!f8\"),\"\")","v":""},{"$f":"_xlfn.SINGLE(IFERROR(INDIRECT(\"'\"&B323&\"'!c21\"),\"\"))","v":""},"",{"$f":"IFERROR(IF(INDIRECT(\"'\"&B323&\"'!C10\")=\"NÃO\",\"\",INDIRECT(\"'\"&B323&\"'!f10\")),\"\")","v":""},""]
[null,"R318","",{"$f":"IFERROR(INDIRECT(\"'\"&B324&\"'!C8\"),\"\")","v":""},{"$f":"IFERROR(INDIRECT(\"'\"&B324&\"'!f8\"),\"\")","v":""},{"$f":"_xlfn.SINGLE(IFERROR(INDIRECT(\"'\"&B324&\"'!c21\"),\"\"))","v":""},"",{"$f":"IFERROR(IF(INDIRECT(\"'\"&B324&\"'!C10\")=\"NÃO\",\"\",INDIRECT(\"'\"&B324&\"'!f10\")),\"\")","v":""},""]
[null,"R319","",{"$f":"IFERROR(INDIRECT(\"'\"&B325&\"'!C8\"),\"\")","v":""},{"$f":"IFERROR(INDIRECT(\"'\"&B325&\"'!f8\"),\"\")","v":""},{"$f":"_xlfn.SINGLE(IFERROR(INDIRECT(\"'\"&B325&\"'!c21\"),\"\"))","v":""},"",{"$f":"IFERROR(IF(INDIRECT(\"'\"&B325&\"'!C10\")=\"NÃO\",\"\",INDIRECT(\"'\"&B325&\"'!f10\")),\"\")","v":""},""]
[null,"R320","",{"$f":"IFERROR(INDIRECT(\"'\"&B326&\"'!C8\"),\"\")","v":""},{"$f":"IFERROR(INDIRECT(\"'\"&B326&\"'!f8\"),\"\")","v":""},{"$f":"_xlfn.SINGLE(IFERROR(INDIRECT(\"'\"&B326&\"'!c21\"),\"\"))","v":""},"",{"$f":"IFERROR(IF(INDIRECT(\"'\"&B326&\"'!C10\")=\"NÃO\",\"\",INDIRECT(\"'\"&B326&\"'!f10\")),\"\")","v":""},""]
[null,"R321","",{"$f":"IFERROR(INDIRECT(\"'\"&B327&\"'!C8\"),\"\")","v":""},{"$f":"IFERROR(INDIRECT(\"'\"&B327&\"'!f8\"),\"\")","v":""},{"$f":"_xlfn.SINGLE(IFERROR(INDIRECT(\"'\"&B327&\"'!c21\"),\"\"))","v":""},"",{"$f":"IFERROR(IF(INDIRECT(\"'\"&B327&\"'!C10\")=\"NÃO\",\"\",INDIRECT(\"'\"&B327&\"'!f10\")),\"\")","v":""},""]
[null,"R322",{"$f":"IF(A328=\"\",\"\",MID(B328,2,15))","v":""},{"$f":"IFERROR(INDIRECT(\"'\"&B328&\"'!C8\"),\"\")","v":""},{"$f":"IFERROR(INDIRECT(\"'\"&B328&\"'!f8\"),\"\")","v":""},{"$f":"_xlfn.SINGLE(IFERROR(INDIRECT(\"'\"&B328&\"'!c21\"),\"\"))","v":""},{"$f":"IFERROR(IF(F328=\"Preço Único\",INDIRECT(\"'\"&B328&\"'!c15\"),INDIRECT(\"'\"&B328&\"'!g21\")),\"\")","v":""},{"$f":"IFERROR(IF(INDIRECT(\"'\"&B328&\"'!C10\")=\"NÃO\",\"\",INDIRECT(\"'\"&B328&\"'!f10\")),\"\")","v":""},{"$f":"_xlfn.IFS(AND(G328=\"\",H328=\"\"),\"\",\n$B$1=5,\"\",\nOR(G328=\"\",G328=\"INFORME OS DADOS DA PESQUISA DE PREÇOS\"),\"Falta valor de mercado\",\nH328=\"\",\"Preço contratado não informado\",\nG328=\"Não foi possível calcular.\",\"Não foi possível avaliar.\",\nAND(INDIRECT(\"'\"&B328&\"'!K27\")=\"OK\",G328>=H328),\"Ok\",\nAND(INDIRECT(\"'\"&B328&\"'!K27\")<>\"OK\",G328>=H328),\"Ok, desde que justificado os problemas da pesquisa\",\nAND(INDIRECT(\"'\"&B328&\"'!K27\")=\"OK\",G328<H328),\"Negociar preço contratado\",\nAND(INDIRECT(\"'\"&B328&\"'!K27\")<>\"OK\",G328<H328),\"Negociar preço contratado e justificar problemas da pesquisa\")","v":""}]
[null,"R323","",{"$f":"IFERROR(INDIRECT(\"'\"&B329&\"'!C8\"),\"\")","v":""},{"$f":"IFERROR(INDIRECT(\"'\"&B329&\"'!f8\"),\"\")","v":""},{"$f":"_xlfn.SINGLE(IFERROR(INDIRECT(\"'\"&B329&\"'!c21\"),\"\"))","v":""},"",{"$f":"IFERROR(IF(INDIRECT(\"'\"&B329&\"'!C10\")=\"NÃO\",\"\",INDIRECT(\"'\"&B329&\"'!f10\")),\"\")","v":""},""]
[null,"R324","",{"$f":"IFERROR(INDIRECT(\"'\"&B330&\"'!C8\"),\"\")","v":""},{"$f":"IFERROR(INDIRECT(\"'\"&B330&\"'!f8\"),\"\")","v":""},{"$f":"_xlfn.SINGLE(IFERROR(INDIRECT(\"'\"&B330&\"'!c21\"),\"\"))","v":""},"",{"$f":"IFERROR(IF(INDIRECT(\"'\"&B330&\"'!C10\")=\"NÃO\",\"\",INDIRECT(\"'\"&B330&\"'!f10\")),\"\")","v":""},""]
[null,"R325","",{"$f":"IFERROR(INDIRECT(\"'\"&B331&\"'!C8\"),\"\")","v":""},{"$f":"IFERROR(INDIRECT(\"'\"&B331&\"'!f8\"),\"\")","v":""},{"$f":"_xlfn.SINGLE(IFERROR(INDIRECT(\"'\"&B331&\"'!c21\"),\"\"))","v":""},"",{"$f":"IFERROR(IF(INDIRECT(\"'\"&B331&\"'!C10\")=\"NÃO\",\"\",INDIRECT(\"'\"&B331&\"'!f10\")),\"\")","v":""},""]
[null,"R326","",{"$f":"IFERROR(INDIRECT(\"'\"&B332&\"'!C8\"),\"\")","v":""},{"$f":"IFERROR(INDIRECT(\"'\"&B332&\"'!f8\"),\"\")","v":""},{"$f":"_xlfn.SINGLE(IFERROR(INDIRECT(\"'\"&B332&\"'!c21\"),\"\"))","v":""},"",{"$f":"IFERROR(IF(INDIRECT(\"'\"&B332&\"'!C10\")=\"NÃO\",\"\",INDIRECT(\"'\"&B332&\"'!f10\")),\"\")","v":""},""]
[null,"R327","",{"$f":"IFERROR(INDIRECT(\"'\"&B333&\"'!C8\"),\"\")","v":""},{"$f":"IFERROR(INDIRECT(\"'\"&B333&\"'!f8\"),\"\")","v":""},{"$f":"_xlfn.SINGLE(IFERROR(INDIRECT(\"'\"&B333&\"'!c21\"),\"\"))","v":""},"",{"$f":"IFERROR(IF(INDIRECT(\"'\"&B333&\"'!C10\")=\"NÃO\",\"\",INDIRECT(\"'\"&B333&\"'!f10\")),\"\")","v":""},""]
[null,"R328","",{"$f":"IFERROR(INDIRECT(\"'\"&B334&\"'!C8\"),\"\")","v":""},{"$f":"IFERROR(INDIRECT(\"'\"&B334&\"'!f8\"),\"\")","v":""},{"$f":"_xlfn.SINGLE(IFERROR(INDIRECT(\"'\"&B334&\"'!c21\"),\"\"))","v":""},"",{"$f":"IFERROR(IF(INDIRECT(\"'\"&B334&\"'!C10\")=\"NÃO\",\"\",INDIRECT(\"'\"&B334&\"'!f10\")),\"\")","v":""},""]
[null,"R329","",{"$f":"IFERROR(INDIRECT(\"'\"&B335&\"'!C8\"),\"\")","v":""},{"$f":"IFERROR(INDIRECT(\"'\"&B335&\"'!f8\"),\"\")","v":""},{"$f":"_xlfn.SINGLE(IFERROR(INDIRECT(\"'\"&B335&\"'!c21\"),\"\"))","v":""},"",{"$f":"IFERROR(IF(INDIRECT(\"'\"&B335&\"'!C10\")=\"NÃO\",\"\",INDIRECT(\"'\"&B335&\"'!f10\")),\"\")","v":""},""]
[null,"R330","",{"$f":"IFERROR(INDIRECT(\"'\"&B336&\"'!C8\"),\"\")","v":""},{"$f":"IFERROR(INDIRECT(\"'\"&B336&\"'!f8\"),\"\")","v":""},{"$f":"_xlfn.SINGLE(IFERROR(INDIRECT(\"'\"&B336&\"'!c21\"),\"\"))","v":""},"",{"$f":"IFERROR(IF(INDIRECT(\"'\"&B336&\"'!C10\")=\"NÃO\",\"\",INDIRECT(\"'\"&B336&\"'!f10\")),\"\")","v":""},""]
[null,"R331","",{"$f":"IFERROR(INDIRECT(\"'\"&B337&\"'!C8\"),\"\")","v":""},{"$f":"IFERROR(INDIRECT(\"'\"&B337&\"'!f8\"),\"\")","v":""},{"$f":"_xlfn.SINGLE(IFERROR(INDIRECT(\"'\"&B337&\"'!c21\"),\"\"))","v":""},"",{"$f":"IFERROR(IF(INDIRECT(\"'\"&B337&\"'!C10\")=\"NÃO\",\"\",INDIRECT(\"'\"&B337&\"'!f10\")),\"\")","v":""},""]
[null,"R332","",{"$f":"IFERROR(INDIRECT(\"'\"&B338&\"'!C8\"),\"\")","v":""},{"$f":"IFERROR(INDIRECT(\"'\"&B338&\"'!f8\"),\"\")","v":""},{"$f":"_xlfn.SINGLE(IFERROR(INDIRECT(\"'\"&B338&\"'!c21\"),\"\"))","v":""},"",{"$f":"IFERROR(IF(INDIRECT(\"'\"&B338&\"'!C10\")=\"NÃO\",\"\",INDIRECT(\"'\"&B338&\"'!f10\")),\"\")","v":""},""]
[null,"R333","",{"$f":"IFERROR(INDIRECT(\"'\"&B339&\"'!C8\"),\"\")","v":""},{"$f":"IFERROR(INDIRECT(\"'\"&B339&\"'!f8\"),\"\")","v":""},{"$f":"_xlfn.SINGLE(IFERROR(INDIRECT(\"'\"&B339&\"'!c21\"),\"\"))","v":""},"",{"$f":"IFERROR(IF(INDIRECT(\"'\"&B339&\"'!C10\")=\"NÃO\",\"\",INDIRECT(\"'\"&B339&\"'!f10\")),\"\")","v":""},""]
[null,"R334","",{"$f":"IFERROR(INDIRECT(\"'\"&B340&\"'!C8\"),\"\")","v":""},{"$f":"IFERROR(INDIRECT(\"'\"&B340&\"'!f8\"),\"\")","v":""},{"$f":"_xlfn.SINGLE(IFERROR(INDIRECT(\"'\"&B340&\"'!c21\"),\"\"))","v":""},"",{"$f":"IFERROR(IF(INDIRECT(\"'\"&B340&\"'!C10\")=\"NÃO\",\"\",INDIRECT(\"'\"&B340&\"'!f10\")),\"\")","v":""},""]
[null,"R335","",{"$f":"IFERROR(INDIRECT(\"'\"&B341&\"'!C8\"),\"\")","v":""},{"$f":"IFERROR(INDIRECT(\"'\"&B341&\"'!f8\"),\"\")","v":""},{"$f":"_xlfn.SINGLE(IFERROR(INDIRECT(\"'\"&B341&\"'!c21\"),\"\"))","v":""},"",{"$f":"IFERROR(IF(INDIRECT(\"'\"&B341&\"'!C10\")=\"NÃO\",\"\",INDIRECT(\"'\"&B341&\"'!f10\")),\"\")","v":""},""]
[null,"R336","",{"$f":"IFERROR(INDIRECT(\"'\"&B342&\"'!C8\"),\"\")","v":""},{"$f":"IFERROR(INDIRECT(\"'\"&B342&\"'!f8\"),\"\")","v":""},{"$f":"_xlfn.SINGLE(IFERROR(INDIRECT(\"'\"&B342&\"'!c21\"),\"\"))","v":""},"",{"$f":"IFERROR(IF(INDIRECT(\"'\"&B342&\"'!C10\")=\"NÃO\",\"\",INDIRECT(\"'\"&B342&\"'!f10\")),\"\")","v":""},""]
[null,"R337","",{"$f":"IFERROR(INDIRECT(\"'\"&B343&\"'!C8\"),\"\")","v":""},{"$f":"IFERROR(INDIRECT(\"'\"&B343&\"'!f8\"),\"\")","v":""},{"$f":"_xlfn.SINGLE(IFERROR(INDIRECT(\"'\"&B343&\"'!c21\"),\"\"))","v":""},"",{"$f":"IFERROR(IF(INDIRECT(\"'\"&B343&\"'!C10\")=\"NÃO\",\"\",INDIRECT(\"'\"&B343&\"'!f10\")),\"\")","v":""},""]
[null,"R338","",{"$f":"IFERROR(INDIRECT(\"'\"&B344&\"'!C8\"),\"\")","v":""},{"$f":"IFERROR(INDIRECT(\"'\"&B344&\"'!f8\"),\"\")","v":""},{"$f":"_xlfn.SINGLE(IFERROR(INDIRECT(\"'\"&B344&\"'!c21\"),\"\"))","v":""},"",{"$f":"IFERROR(IF(INDIRECT(\"'\"&B344&\"'!C10\")=\"NÃO\",\"\",INDIRECT(\"'\"&B344&\"'!f10\")),\"\")","v":""},""]
[null,"R339","",{"$f":"IFERROR(INDIRECT(\"'\"&B345&\"'!C8\"),\"\")","v":""},{"$f":"IFERROR(INDIRECT(\"'\"&B345&\"'!f8\"),\"\")","v":""},{"$f":"_xlfn.SINGLE(IFERROR(INDIRECT(\"'\"&B345&\"'!c21\"),\"\"))","v":""},"",{"$f":"IFERROR(IF(INDIRECT(\"'\"&B345&\"'!C10\")=\"NÃO\",\"\",INDIRECT(\"'\"&B345&\"'!f10\")),\"\")","v":""},""]
[null,"R340","",{"$f":"IFERROR(INDIRECT(\"'\"&B346&\"'!C8\"),\"\")","v":""},{"$f":"IFERROR(INDIRECT(\"'\"&B346&\"'!f8\"),\"\")","v":""},{"$f":"_xlfn.SINGLE(IFERROR(INDIRECT(\"'\"&B346&\"'!c21\"),\"\"))","v":""},"",{"$f":"IFERROR(IF(INDIRECT(\"'\"&B346&\"'!C10\")=\"NÃO\",\"\",INDIRECT(\"'\"&B346&\"'!f10\")),\"\")","v":""},""]
[null,"R341","",{"$f":"IFERROR(INDIRECT(\"'\"&B347&\"'!C8\"),\"\")","v":""},{"$f":"IFERROR(INDIRECT(\"'\"&B347&\"'!f8\"),\"\")","v":""},{"$f":"_xlfn.SINGLE(IFERROR(INDIRECT(\"'\"&B347&\"'!c21\"),\"\"))","v":""},"",{"$f":"IFERROR(IF(INDIRECT(\"'\"&B347&\"'!C10\")=\"NÃO\",\"\",INDIRECT(\"'\"&B347&\"'!f10\")),\"\")","v":""},""]
[null,"R342","",{"$f":"IFERROR(INDIRECT(\"'\"&B348&\"'!C8\"),\"\")","v":""},{"$f":"IFERROR(INDIRECT(\"'\"&B348&\"'!f8\"),\"\")","v":""},{"$f":"_xlfn.SINGLE(IFERROR(INDIRECT(\"'\"&B348&\"'!c21\"),\"\"))","v":""},"",{"$f":"IFERROR(IF(INDIRECT(\"'\"&B348&\"'!C10\")=\"NÃO\",\"\",INDIRECT(\"'\"&B348&\"'!f10\")),\"\")","v":""},""]
[null,"R343","",{"$f":"IFERROR(INDIRECT(\"'\"&B349&\"'!C8\"),\"\")","v":""},{"$f":"IFERROR(INDIRECT(\"'\"&B349&\"'!f8\"),\"\")","v":""},{"$f":"_xlfn.SINGLE(IFERROR(INDIRECT(\"'\"&B349&\"'!c21\"),\"\"))","v":""},"",{"$f":"IFERROR(IF(INDIRECT(\"'\"&B349&\"'!C10\")=\"NÃO\",\"\",INDIRECT(\"'\"&B349&\"'!f10\")),\"\")","v":""},""]
[null,"R344","",{"$f":"IFERROR(INDIRECT(\"'\"&B350&\"'!C8\"),\"\")","v":""},{"$f":"IFERROR(INDIRECT(\"'\"&B350&\"'!f8\"),\"\")","v":""},{"$f":"_xlfn.SINGLE(IFERROR(INDIRECT(\"'\"&B350&\"'!c21\"),\"\"))","v":""},"",{"$f":"IFERROR(IF(INDIRECT(\"'\"&B350&\"'!C10\")=\"NÃO\",\"\",INDIRECT(\"'\"&B350&\"'!f10\")),\"\")","v":""},""]
[null,"R345","",{"$f":"IFERROR(INDIRECT(\"'\"&B351&\"'!C8\"),\"\")","v":""},{"$f":"IFERROR(INDIRECT(\"'\"&B351&\"'!f8\"),\"\")","v":""},{"$f":"_xlfn.SINGLE(IFERROR(INDIRECT(\"'\"&B351&\"'!c21\"),\"\"))","v":""},"",{"$f":"IFERROR(IF(INDIRECT(\"'\"&B351&\"'!C10\")=\"NÃO\",\"\",INDIRECT(\"'\"&B351&\"'!f10\")),\"\")","v":""},""]
[null,"R346","",{"$f":"IFERROR(INDIRECT(\"'\"&B352&\"'!C8\"),\"\")","v":""},{"$f":"IFERROR(INDIRECT(\"'\"&B352&\"'!f8\"),\"\")","v":""},{"$f":"_xlfn.SINGLE(IFERROR(INDIRECT(\"'\"&B352&\"'!c21\"),\"\"))","v":""},"",{"$f":"IFERROR(IF(INDIRECT(\"'\"&B352&\"'!C10\")=\"NÃO\",\"\",INDIRECT(\"'\"&B352&\"'!f10\")),\"\")","v":""},""]
[null,"R347","",{"$f":"IFERROR(INDIRECT(\"'\"&B353&\"'!C8\"),\"\")","v":""},{"$f":"IFERROR(INDIRECT(\"'\"&B353&\"'!f8\"),\"\")","v":""},{"$f":"_xlfn.SINGLE(IFERROR(INDIRECT(\"'\"&B353&\"'!c21\"),\"\"))","v":""},"",{"$f":"IFERROR(IF(INDIRECT(\"'\"&B353&\"'!C10\")=\"NÃO\",\"\",INDIRECT(\"'\"&B353&\"'!f10\")),\"\")","v":""},""]
[null,"R348","",{"$f":"IFERROR(INDIRECT(\"'\"&B354&\"'!C8\"),\"\")","v":""},{"$f":"IFERROR(INDIRECT(\"'\"&B354&\"'!f8\"),\"\")","v":""},{"$f":"_xlfn.SINGLE(IFERROR(INDIRECT(\"'\"&B354&\"'!c21\"),\"\"))","v":""},"",{"$f":"IFERROR(IF(INDIRECT(\"'\"&B354&\"'!C10\")=\"NÃO\",\"\",INDIRECT(\"'\"&B354&\"'!f10\")),\"\")","v":""},""]
[null,"R349","",{"$f":"IFERROR(INDIRECT(\"'\"&B355&\"'!C8\"),\"\")","v":""},{"$f":"IFERROR(INDIRECT(\"'\"&B355&\"'!f8\"),\"\")","v":""},{"$f":"_xlfn.SINGLE(IFERROR(INDIRECT(\"'\"&B355&\"'!c21\"),\"\"))","v":""},"",{"$f":"IFERROR(IF(INDIRECT(\"'\"&B355&\"'!C10\")=\"NÃO\",\"\",INDIRECT(\"'\"&B355&\"'!f10\")),\"\")","v":""},""]
[null,"R350","",{"$f":"IFERROR(INDIRECT(\"'\"&B356&\"'!C8\"),\"\")","v":""},{"$f":"IFERROR(INDIRECT(\"'\"&B356&\"'!f8\"),\"\")","v":""},{"$f":"_xlfn.SINGLE(IFERROR(INDIRECT(\"'\"&B356&\"'!c21\"),\"\"))","v":""},"",{"$f":"IFERROR(IF(INDIRECT(\"'\"&B356&\"'!C10\")=\"NÃO\",\"\",INDIRECT(\"'\"&B356&\"'!f10\")),\"\")","v":""},""]
[null,"R351","",{"$f":"IFERROR(INDIRECT(\"'\"&B357&\"'!C8\"),\"\")","v":""},{"$f":"IFERROR(INDIRECT(\"'\"&B357&\"'!f8\"),\"\")","v":""},{"$f":"_xlfn.SINGLE(IFERROR(INDIRECT(\"'\"&B357&\"'!c21\"),\"\"))","v":""},"",{"$f":"IFERROR(IF(INDIRECT(\"'\"&B357&\"'!C10\")=\"NÃO\",\"\",INDIRECT(\"'\"&B357&\"'!f10\")),\"\")","v":""},""]
[null,"R352","",{"$f":"IFERROR(INDIRECT(\"'\"&B358&\"'!C8\"),\"\")","v":""},{"$f":"IFERROR(INDIRECT(\"'\"&B358&\"'!f8\"),\"\")","v":""},{"$f":"_xlfn.SINGLE(IFERROR(INDIRECT(\"'\"&B358&\"'!c21\"),\"\"))","v":""},"",{"$f":"IFERROR(IF(INDIRECT(\"'\"&B358&\"'!C10\")=\"NÃO\",\"\",INDIRECT(\"'\"&B358&\"'!f10\")),\"\")","v":""},""]
[null,"R353","",{"$f":"IFERROR(INDIRECT(\"'\"&B359&\"'!C8\"),\"\")","v":""},{"$f":"IFERROR(INDIRECT(\"'\"&B359&\"'!f8\"),\"\")","v":""},{"$f":"_xlfn.SINGLE(IFERROR(INDIRECT(\"'\"&B359&\"'!c21\"),\"\"))","v":""},"",{"$f":"IFERROR(IF(INDIRECT(\"'\"&B359&\"'!C10\")=\"NÃO\",\"\",INDIRECT(\"'\"&B359&\"'!f10\")),\"\")","v":""},""]
[null,"R354","",{"$f":"IFERROR(INDIRECT(\"'\"&B360&\"'!C8\"),\"\")","v":""},{"$f":"IFERROR(INDIRECT(\"'\"&B360&\"'!f8\"),\"\")","v":""},{"$f":"_xlfn.SINGLE(IFERROR(INDIRECT(\"'\"&B360&\"'!c21\"),\"\"))","v":""},"",{"$f":"IFERROR(IF(INDIRECT(\"'\"&B360&\"'!C10\")=\"NÃO\",\"\",INDIRECT(\"'\"&B360&\"'!f10\")),\"\")","v":""},""]
[null,"R355","",{"$f":"IFERROR(INDIRECT(\"'\"&B361&\"'!C8\"),\"\")","v":""},{"$f":"IFERROR(INDIRECT(\"'\"&B361&\"'!f8\"),\"\")","v":""},{"$f":"_xlfn.SINGLE(IFERROR(INDIRECT(\"'\"&B361&\"'!c21\"),\"\"))","v":""},"",{"$f":"IFERROR(IF(INDIRECT(\"'\"&B361&\"'!C10\")=\"NÃO\",\"\",INDIRECT(\"'\"&B361&\"'!f10\")),\"\")","v":""},""]
[null,"R356","",{"$f":"IFERROR(INDIRECT(\"'\"&B362&\"'!C8\"),\"\")","v":""},{"$f":"IFERROR(INDIRECT(\"'\"&B362&\"'!f8\"),\"\")","v":""},{"$f":"_xlfn.SINGLE(IFERROR(INDIRECT(\"'\"&B362&\"'!c21\"),\"\"))","v":""},"",{"$f":"IFERROR(IF(INDIRECT(\"'\"&B362&\"'!C10\")=\"NÃO\",\"\",INDIRECT(\"'\"&B362&\"'!f10\")),\"\")","v":""},""]
[null,"R357","",{"$f":"IFERROR(INDIRECT(\"'\"&B363&\"'!C8\"),\"\")","v":""},{"$f":"IFERROR(INDIRECT(\"'\"&B363&\"'!f8\"),\"\")","v":""},{"$f":"_xlfn.SINGLE(IFERROR(INDIRECT(\"'\"&B363&\"'!c21\"),\"\"))","v":""},"",{"$f":"IFERROR(IF(INDIRECT(\"'\"&B363&\"'!C10\")=\"NÃO\",\"\",INDIRECT(\"'\"&B363&\"'!f10\")),\"\")","v":""},""]
[null,"R358","",{"$f":"IFERROR(INDIRECT(\"'\"&B364&\"'!C8\"),\"\")","v":""},{"$f":"IFERROR(INDIRECT(\"'\"&B364&\"'!f8\"),\"\")","v":""},{"$f":"_xlfn.SINGLE(IFERROR(INDIRECT(\"'\"&B364&\"'!c21\"),\"\"))","v":""},"",{"$f":"IFERROR(IF(INDIRECT(\"'\"&B364&\"'!C10\")=\"NÃO\",\"\",INDIRECT(\"'\"&B364&\"'!f10\")),\"\")","v":""},""]
[null,"R359","",{"$f":"IFERROR(INDIRECT(\"'\"&B365&\"'!C8\"),\"\")","v":""},{"$f":"IFERROR(INDIRECT(\"'\"&B365&\"'!f8\"),\"\")","v":""},{"$f":"_xlfn.SINGLE(IFERROR(INDIRECT(\"'\"&B365&\"'!c21\"),\"\"))","v":""},"",{"$f":"IFERROR(IF(INDIRECT(\"'\"&B365&\"'!C10\")=\"NÃO\",\"\",INDIRECT(\"'\"&B365&\"'!f10\")),\"\")","v":""},""]
[null,"R360","",{"$f":"IFERROR(INDIRECT(\"'\"&B366&\"'!C8\"),\"\")","v":""},{"$f":"IFERROR(INDIRECT(\"'\"&B366&\"'!f8\"),\"\")","v":""},{"$f":"_xlfn.SINGLE(IFERROR(INDIRECT(\"'\"&B366&\"'!c21\"),\"\"))","v":""},"",{"$f":"IFERROR(IF(INDIRECT(\"'\"&B366&\"'!C10\")=\"NÃO\",\"\",INDIRECT(\"'\"&B366&\"'!f10\")),\"\")","v":""},""]
[null,"R361","",{"$f":"IFERROR(INDIRECT(\"'\"&B367&\"'!C8\"),\"\")","v":""},{"$f":"IFERROR(INDIRECT(\"'\"&B367&\"'!f8\"),\"\")","v":""},{"$f":"_xlfn.SINGLE(IFERROR(INDIRECT(\"'\"&B367&\"'!c21\"),\"\"))","v":""},"",{"$f":"IFERROR(IF(INDIRECT(\"'\"&B367&\"'!C10\")=\"NÃO\",\"\",INDIRECT(\"'\"&B367&\"'!f10\")),\"\")","v":""},""]
[null,"R362","",{"$f":"IFERROR(INDIRECT(\"'\"&B368&\"'!C8\"),\"\")","v":""},{"$f":"IFERROR(INDIRECT(\"'\"&B368&\"'!f8\"),\"\")","v":""},{"$f":"_xlfn.SINGLE(IFERROR(INDIRECT(\"'\"&B368&\"'!c21\"),\"\"))","v":""},"",{"$f":"IFERROR(IF(INDIRECT(\"'\"&B368&\"'!C10\")=\"NÃO\",\"\",INDIRECT(\"'\"&B368&\"'!f10\")),\"\")","v":""},""]
[null,"R363","",{"$f":"IFERROR(INDIRECT(\"'\"&B369&\"'!C8\"),\"\")","v":""},{"$f":"IFERROR(INDIRECT(\"'\"&B369&\"'!f8\"),\"\")","v":""},{"$f":"_xlfn.SINGLE(IFERROR(INDIRECT(\"'\"&B369&\"'!c21\"),\"\"))","v":""},"",{"$f":"IFERROR(IF(INDIRECT(\"'\"&B369&\"'!C10\")=\"NÃO\",\"\",INDIRECT(\"'\"&B369&\"'!f10\")),\"\")","v":""},""]
[null,"R364","",{"$f":"IFERROR(INDIRECT(\"'\"&B370&\"'!C8\"),\"\")","v":""},{"$f":"IFERROR(INDIRECT(\"'\"&B370&\"'!f8\"),\"\")","v":""},{"$f":"_xlfn.SINGLE(IFERROR(INDIRECT(\"'\"&B370&\"'!c21\"),\"\"))","v":""},"",{"$f":"IFERROR(IF(INDIRECT(\"'\"&B370&\"'!C10\")=\"NÃO\",\"\",INDIRECT(\"'\"&B370&\"'!f10\")),\"\")","v":""},""]
[null,"R365","",{"$f":"IFERROR(INDIRECT(\"'\"&B371&\"'!C8\"),\"\")","v":""},{"$f":"IFERROR(INDIRECT(\"'\"&B371&\"'!f8\"),\"\")","v":""},{"$f":"_xlfn.SINGLE(IFERROR(INDIRECT(\"'\"&B371&\"'!c21\"),\"\"))","v":""},"",{"$f":"IFERROR(IF(INDIRECT(\"'\"&B371&\"'!C10\")=\"NÃO\",\"\",INDIRECT(\"'\"&B371&\"'!f10\")),\"\")","v":""},""]
[null,"R366","",{"$f":"IFERROR(INDIRECT(\"'\"&B372&\"'!C8\"),\"\")","v":""},{"$f":"IFERROR(INDIRECT(\"'\"&B372&\"'!f8\"),\"\")","v":""},{"$f":"_xlfn.SINGLE(IFERROR(INDIRECT(\"'\"&B372&\"'!c21\"),\"\"))","v":""},"",{"$f":"IFERROR(IF(INDIRECT(\"'\"&B372&\"'!C10\")=\"NÃO\",\"\",INDIRECT(\"'\"&B372&\"'!f10\")),\"\")","v":""},""]
[null,"R367","",{"$f":"IFERROR(INDIRECT(\"'\"&B373&\"'!C8\"),\"\")","v":""},{"$f":"IFERROR(INDIRECT(\"'\"&B373&\"'!f8\"),\"\")","v":""},{"$f":"_xlfn.SINGLE(IFERROR(INDIRECT(\"'\"&B373&\"'!c21\"),\"\"))","v":""},"",{"$f":"IFERROR(IF(INDIRECT(\"'\"&B373&\"'!C10\")=\"NÃO\",\"\",INDIRECT(\"'\"&B373&\"'!f10\")),\"\")","v":""},""]
[null,"R368","",{"$f":"IFERROR(INDIRECT(\"'\"&B374&\"'!C8\"),\"\")","v":""},{"$f":"IFERROR(INDIRECT(\"'\"&B374&\"'!f8\"),\"\")","v":""},{"$f":"_xlfn.SINGLE(IFERROR(INDIRECT(\"'\"&B374&\"'!c21\"),\"\"))","v":""},"",{"$f":"IFERROR(IF(INDIRECT(\"'\"&B374&\"'!C10\")=\"NÃO\",\"\",INDIRECT(\"'\"&B374&\"'!f10\")),\"\")","v":""},""]
[null,"R369","",{"$f":"IFERROR(INDIRECT(\"'\"&B375&\"'!C8\"),\"\")","v":""},{"$f":"IFERROR(INDIRECT(\"'\"&B375&\"'!f8\"),\"\")","v":""},{"$f":"_xlfn.SINGLE(IFERROR(INDIRECT(\"'\"&B375&\"'!c21\"),\"\"))","v":""},"",{"$f":"IFERROR(IF(INDIRECT(\"'\"&B375&\"'!C10\")=\"NÃO\",\"\",INDIRECT(\"'\"&B375&\"'!f10\")),\"\")","v":""},""]
[null,"R370","",{"$f":"IFERROR(INDIRECT(\"'\"&B376&\"'!C8\"),\"\")","v":""},{"$f":"IFERROR(INDIRECT(\"'\"&B376&\"'!f8\"),\"\")","v":""},{"$f":"_xlfn.SINGLE(IFERROR(INDIRECT(\"'\"&B376&\"'!c21\"),\"\"))","v":""},"",{"$f":"IFERROR(IF(INDIRECT(\"'\"&B376&\"'!C10\")=\"NÃO\",\"\",INDIRECT(\"'\"&B376&\"'!f10\")),\"\")","v":""},""]
[null,"R371","",{"$f":"IFERROR(INDIRECT(\"'\"&B377&\"'!C8\"),\"\")","v":""},{"$f":"IFERROR(INDIRECT(\"'\"&B377&\"'!f8\"),\"\")","v":""},{"$f":"_xlfn.SINGLE(IFERROR(INDIRECT(\"'\"&B377&\"'!c21\"),\"\"))","v":""},"",{"$f":"IFERROR(IF(INDIRECT(\"'\"&B377&\"'!C10\")=\"NÃO\",\"\",INDIRECT(\"'\"&B377&\"'!f10\")),\"\")","v":""},""]
[null,"R372","",{"$f":"IFERROR(INDIRECT(\"'\"&B378&\"'!C8\"),\"\")","v":""},{"$f":"IFERROR(INDIRECT(\"'\"&B378&\"'!f8\"),\"\")","v":""},{"$f":"_xlfn.SINGLE(IFERROR(INDIRECT(\"'\"&B378&\"'!c21\"),\"\"))","v":""},"",{"$f":"IFERROR(IF(INDIRECT(\"'\"&B378&\"'!C10\")=\"NÃO\",\"\",INDIRECT(\"'\"&B378&\"'!f10\")),\"\")","v":""},""]
[null,"R373","",{"$f":"IFERROR(INDIRECT(\"'\"&B379&\"'!C8\"),\"\")","v":""},{"$f":"IFERROR(INDIRECT(\"'\"&B379&\"'!f8\"),\"\")","v":""},{"$f":"_xlfn.SINGLE(IFERROR(INDIRECT(\"'\"&B379&\"'!c21\"),\"\"))","v":""},"",{"$f":"IFERROR(IF(INDIRECT(\"'\"&B379&\"'!C10\")=\"NÃO\",\"\",INDIRECT(\"'\"&B379&\"'!f10\")),\"\")","v":""},""]
[null,"R374","",{"$f":"IFERROR(INDIRECT(\"'\"&B380&\"'!C8\"),\"\")","v":""},{"$f":"IFERROR(INDIRECT(\"'\"&B380&\"'!f8\"),\"\")","v":""},{"$f":"_xlfn.SINGLE(IFERROR(INDIRECT(\"'\"&B380&\"'!c21\"),\"\"))","v":""},"",{"$f":"IFERROR(IF(INDIRECT(\"'\"&B380&\"'!C10\")=\"NÃO\",\"\",INDIRECT(\"'\"&B380&\"'!f10\")),\"\")","v":""},""]
[null,"R375","",{"$f":"IFERROR(INDIRECT(\"'\"&B381&\"'!C8\"),\"\")","v":""},{"$f":"IFERROR(INDIRECT(\"'\"&B381&\"'!f8\"),\"\")","v":""},{"$f":"_xlfn.SINGLE(IFERROR(INDIRECT(\"'\"&B381&\"'!c21\"),\"\"))","v":""},"",{"$f":"IFERROR(IF(INDIRECT(\"'\"&B381&\"'!C10\")=\"NÃO\",\"\",INDIRECT(\"'\"&B381&\"'!f10\")),\"\")","v":""},""]
[null,"R376","",{"$f":"IFERROR(INDIRECT(\"'\"&B382&\"'!C8\"),\"\")","v":""},{"$f":"IFERROR(INDIRECT(\"'\"&B382&\"'!f8\"),\"\")","v":""},{"$f":"_xlfn.SINGLE(IFERROR(INDIRECT(\"'\"&B382&\"'!c21\"),\"\"))","v":""},"",{"$f":"IFERROR(IF(INDIRECT(\"'\"&B382&\"'!C10\")=\"NÃO\",\"\",INDIRECT(\"'\"&B382&\"'!f10\")),\"\")","v":""},""]
[null,"R377","",{"$f":"IFERROR(INDIRECT(\"'\"&B383&\"'!C8\"),\"\")","v":""},{"$f":"IFERROR(INDIRECT(\"'\"&B383&\"'!f8\"),\"\")","v":""},{"$f":"_xlfn.SINGLE(IFERROR(INDIRECT(\"'\"&B383&\"'!c21\"),\"\"))","v":""},"",{"$f":"IFERROR(IF(INDIRECT(\"'\"&B383&\"'!C10\")=\"NÃO\",\"\",INDIRECT(\"'\"&B383&\"'!f10\")),\"\")","v":""},""]
[null,"R378","",{"$f":"IFERROR(INDIRECT(\"'\"&B384&\"'!C8\"),\"\")","v":""},{"$f":"IFERROR(INDIRECT(\"'\"&B384&\"'!f8\"),\"\")","v":""},{"$f":"_xlfn.SINGLE(IFERROR(INDIRECT(\"'\"&B384&\"'!c21\"),\"\"))","v":""},"",{"$f":"IFERROR(IF(INDIRECT(\"'\"&B384&\"'!C10\")=\"NÃO\",\"\",INDIRECT(\"'\"&B384&\"'!f10\")),\"\")","v":""},""]
[null,"R379","",{"$f":"IFERROR(INDIRECT(\"'\"&B385&\"'!C8\"),\"\")","v":""},{"$f":"IFERROR(INDIRECT(\"'\"&B385&\"'!f8\"),\"\")","v":""},{"$f":"_xlfn.SINGLE(IFERROR(INDIRECT(\"'\"&B385&\"'!c21\"),\"\"))","v":""},"",{"$f":"IFERROR(IF(INDIRECT(\"'\"&B385&\"'!C10\")=\"NÃO\",\"\",INDIRECT(\"'\"&B385&\"'!f10\")),\"\")","v":""},""]
[null,"R380","",{"$f":"IFERROR(INDIRECT(\"'\"&B386&\"'!C8\"),\"\")","v":""},{"$f":"IFERROR(INDIRECT(\"'\"&B386&\"'!f8\"),\"\")","v":""},{"$f":"_xlfn.SINGLE(IFERROR(INDIRECT(\"'\"&B386&\"'!c21\"),\"\"))","v":""},"",{"$f":"IFERROR(IF(INDIRECT(\"'\"&B386&\"'!C10\")=\"NÃO\",\"\",INDIRECT(\"'\"&B386&\"'!f10\")),\"\")","v":""},""]
[null,"R381","",{"$f":"IFERROR(INDIRECT(\"'\"&B387&\"'!C8\"),\"\")","v":""},{"$f":"IFERROR(INDIRECT(\"'\"&B387&\"'!f8\"),\"\")","v":""},{"$f":"_xlfn.SINGLE(IFERROR(INDIRECT(\"'\"&B387&\"'!c21\"),\"\"))","v":""},"",{"$f":"IFERROR(IF(INDIRECT(\"'\"&B387&\"'!C10\")=\"NÃO\",\"\",INDIRECT(\"'\"&B387&\"'!f10\")),\"\")","v":""},""]
[null,"R382","",{"$f":"IFERROR(INDIRECT(\"'\"&B388&\"'!C8\"),\"\")","v":""},{"$f":"IFERROR(INDIRECT(\"'\"&B388&\"'!f8\"),\"\")","v":""},{"$f":"_xlfn.SINGLE(IFERROR(INDIRECT(\"'\"&B388&\"'!c21\"),\"\"))","v":""},"",{"$f":"IFERROR(IF(INDIRECT(\"'\"&B388&\"'!C10\")=\"NÃO\",\"\",INDIRECT(\"'\"&B388&\"'!f10\")),\"\")","v":""},""]
[null,"R383","",{"$f":"IFERROR(INDIRECT(\"'\"&B389&\"'!C8\"),\"\")","v":""},{"$f":"IFERROR(INDIRECT(\"'\"&B389&\"'!f8\"),\"\")","v":""},{"$f":"_xlfn.SINGLE(IFERROR(INDIRECT(\"'\"&B389&\"'!c21\"),\"\"))","v":""},"",{"$f":"IFERROR(IF(INDIRECT(\"'\"&B389&\"'!C10\")=\"NÃO\",\"\",INDIRECT(\"'\"&B389&\"'!f10\")),\"\")","v":""},""]
[null,"R384","",{"$f":"IFERROR(INDIRECT(\"'\"&B390&\"'!C8\"),\"\")","v":""},{"$f":"IFERROR(INDIRECT(\"'\"&B390&\"'!f8\"),\"\")","v":""},{"$f":"_xlfn.SINGLE(IFERROR(INDIRECT(\"'\"&B390&\"'!c21\"),\"\"))","v":""},"",{"$f":"IFERROR(IF(INDIRECT(\"'\"&B390&\"'!C10\")=\"NÃO\",\"\",INDIRECT(\"'\"&B390&\"'!f10\")),\"\")","v":""},""]
[null,"R385","",{"$f":"IFERROR(INDIRECT(\"'\"&B391&\"'!C8\"),\"\")","v":""},{"$f":"IFERROR(INDIRECT(\"'\"&B391&\"'!f8\"),\"\")","v":""},{"$f":"_xlfn.SINGLE(IFERROR(INDIRECT(\"'\"&B391&\"'!c21\"),\"\"))","v":""},"",{"$f":"IFERROR(IF(INDIRECT(\"'\"&B391&\"'!C10\")=\"NÃO\",\"\",INDIRECT(\"'\"&B391&\"'!f10\")),\"\")","v":""},""]
[null,"R386",{"$f":"IF(A392=\"\",\"\",MID(B392,2,15))","v":""},{"$f":"IFERROR(INDIRECT(\"'\"&B392&\"'!C8\"),\"\")","v":""},{"$f":"IFERROR(INDIRECT(\"'\"&B392&\"'!f8\"),\"\")","v":""},{"$f":"_xlfn.SINGLE(IFERROR(INDIRECT(\"'\"&B392&\"'!c21\"),\"\"))","v":""},{"$f":"IFERROR(IF(F392=\"Preço Único\",INDIRECT(\"'\"&B392&\"'!c15\"),INDIRECT(\"'\"&B392&\"'!g21\")),\"\")","v":""},{"$f":"IFERROR(IF(INDIRECT(\"'\"&B392&\"'!C10\")=\"NÃO\",\"\",INDIRECT(\"'\"&B392&\"'!f10\")),\"\")","v":""},{"$f":"_xlfn.IFS(AND(G392=\"\",H392=\"\"),\"\",\n$B$1=5,\"\",\nOR(G392=\"\",G392=\"INFORME OS DADOS DA PESQUISA DE PREÇOS\"),\"Falta valor de mercado\",\nH392=\"\",\"Preço contratado não informado\",\nG392=\"Não foi possível calcular.\",\"Não foi possível avaliar.\",\nAND(INDIRECT(\"'\"&B392&\"'!K27\")=\"OK\",G392>=H392),\"Ok\",\nAND(INDIRECT(\"'\"&B392&\"'!K27\")<>\"OK\",G392>=H392),\"Ok, desde que justificado os problemas da pesquisa\",\nAND(INDIRECT(\"'\"&B392&\"'!K27\")=\"OK\",G392<H392),\"Negociar preço contratado\",\nAND(INDIRECT(\"'\"&B392&\"'!K27\")<>\"OK\",G392<H392),\"Negociar preço contratado e justificar problemas da pesquisa\")","v":""}]
[null,"R387","",{"$f":"IFERROR(INDIRECT(\"'\"&B393&\"'!C8\"),\"\")","v":""},{"$f":"IFERROR(INDIRECT(\"'\"&B393&\"'!f8\"),\"\")","v":""},{"$f":"_xlfn.SINGLE(IFERROR(INDIRECT(\"'\"&B393&\"'!c21\"),\"\"))","v":""},"",{"$f":"IFERROR(IF(INDIRECT(\"'\"&B393&\"'!C10\")=\"NÃO\",\"\",INDIRECT(\"'\"&B393&\"'!f10\")),\"\")","v":""},""]
[null,"R388","",{"$f":"IFERROR(INDIRECT(\"'\"&B394&\"'!C8\"),\"\")","v":""},{"$f":"IFERROR(INDIRECT(\"'\"&B394&\"'!f8\"),\"\")","v":""},{"$f":"_xlfn.SINGLE(IFERROR(INDIRECT(\"'\"&B394&\"'!c21\"),\"\"))","v":""},"",{"$f":"IFERROR(IF(INDIRECT(\"'\"&B394&\"'!C10\")=\"NÃO\",\"\",INDIRECT(\"'\"&B394&\"'!f10\")),\"\")","v":""},""]
[null,"R389","",{"$f":"IFERROR(INDIRECT(\"'\"&B395&\"'!C8\"),\"\")","v":""},{"$f":"IFERROR(INDIRECT(\"'\"&B395&\"'!f8\"),\"\")","v":""},{"$f":"_xlfn.SINGLE(IFERROR(INDIRECT(\"'\"&B395&\"'!c21\"),\"\"))","v":""},"",{"$f":"IFERROR(IF(INDIRECT(\"'\"&B395&\"'!C10\")=\"NÃO\",\"\",INDIRECT(\"'\"&B395&\"'!f10\")),\"\")","v":""},""]
[null,"R390","",{"$f":"IFERROR(INDIRECT(\"'\"&B396&\"'!C8\"),\"\")","v":""},{"$f":"IFERROR(INDIRECT(\"'\"&B396&\"'!f8\"),\"\")","v":""},{"$f":"_xlfn.SINGLE(IFERROR(INDIRECT(\"'\"&B396&\"'!c21\"),\"\"))","v":""},"",{"$f":"IFERROR(IF(INDIRECT(\"'\"&B396&\"'!C10\")=\"NÃO\",\"\",INDIRECT(\"'\"&B396&\"'!f10\")),\"\")","v":""},""]
[null,"R391","",{"$f":"IFERROR(INDIRECT(\"'\"&B397&\"'!C8\"),\"\")","v":""},{"$f":"IFERROR(INDIRECT(\"'\"&B397&\"'!f8\"),\"\")","v":""},{"$f":"_xlfn.SINGLE(IFERROR(INDIRECT(\"'\"&B397&\"'!c21\"),\"\"))","v":""},"",{"$f":"IFERROR(IF(INDIRECT(\"'\"&B397&\"'!C10\")=\"NÃO\",\"\",INDIRECT(\"'\"&B397&\"'!f10\")),\"\")","v":""},""]
[null,"R392","",{"$f":"IFERROR(INDIRECT(\"'\"&B398&\"'!C8\"),\"\")","v":""},{"$f":"IFERROR(INDIRECT(\"'\"&B398&\"'!f8\"),\"\")","v":""},{"$f":"_xlfn.SINGLE(IFERROR(INDIRECT(\"'\"&B398&\"'!c21\"),\"\"))","v":""},"",{"$f":"IFERROR(IF(INDIRECT(\"'\"&B398&\"'!C10\")=\"NÃO\",\"\",INDIRECT(\"'\"&B398&\"'!f10\")),\"\")","v":""},""]
[null,"R393","",{"$f":"IFERROR(INDIRECT(\"'\"&B399&\"'!C8\"),\"\")","v":""},{"$f":"IFERROR(INDIRECT(\"'\"&B399&\"'!f8\"),\"\")","v":""},{"$f":"_xlfn.SINGLE(IFERROR(INDIRECT(\"'\"&B399&\"'!c21\"),\"\"))","v":""},"",{"$f":"IFERROR(IF(INDIRECT(\"'\"&B399&\"'!C10\")=\"NÃO\",\"\",INDIRECT(\"'\"&B399&\"'!f10\")),\"\")","v":""},""]
[null,"R394","",{"$f":"IFERROR(INDIRECT(\"'\"&B400&\"'!C8\"),\"\")","v":""},{"$f":"IFERROR(INDIRECT(\"'\"&B400&\"'!f8\"),\"\")","v":""},{"$f":"_xlfn.SINGLE(IFERROR(INDIRECT(\"'\"&B400&\"'!c21\"),\"\"))","v":""},"",{"$f":"IFERROR(IF(INDIRECT(\"'\"&B400&\"'!C10\")=\"NÃO\",\"\",INDIRECT(\"'\"&B400&\"'!f10\")),\"\")","v":""},""]
[null,"R395","",{"$f":"IFERROR(INDIRECT(\"'\"&B401&\"'!C8\"),\"\")","v":""},{"$f":"IFERROR(INDIRECT(\"'\"&B401&\"'!f8\"),\"\")","v":""},{"$f":"_xlfn.SINGLE(IFERROR(INDIRECT(\"'\"&B401&\"'!c21\"),\"\"))","v":""},"",{"$f":"IFERROR(IF(INDIRECT(\"'\"&B401&\"'!C10\")=\"NÃO\",\"\",INDIRECT(\"'\"&B401&\"'!f10\")),\"\")","v":""},""]
[null,"R396","",{"$f":"IFERROR(INDIRECT(\"'\"&B402&\"'!C8\"),\"\")","v":""},{"$f":"IFERROR(INDIRECT(\"'\"&B402&\"'!f8\"),\"\")","v":""},{"$f":"_xlfn.SINGLE(IFERROR(INDIRECT(\"'\"&B402&\"'!c21\"),\"\"))","v":""},"",{"$f":"IFERROR(IF(INDIRECT(\"'\"&B402&\"'!C10\")=\"NÃO\",\"\",INDIRECT(\"'\"&B402&\"'!f10\")),\"\")","v":""},""]
[null,"R397","",{"$f":"IFERROR(INDIRECT(\"'\"&B403&\"'!C8\"),\"\")","v":""},{"$f":"IFERROR(INDIRECT(\"'\"&B403&\"'!f8\"),\"\")","v":""},{"$f":"_xlfn.SINGLE(IFERROR(INDIRECT(\"'\"&B403&\"'!c21\"),\"\"))","v":""},"",{"$f":"IFERROR(IF(INDIRECT(\"'\"&B403&\"'!C10\")=\"NÃO\",\"\",INDIRECT(\"'\"&B403&\"'!f10\")),\"\")","v":""},""]
[null,"R398","",{"$f":"IFERROR(INDIRECT(\"'\"&B404&\"'!C8\"),\"\")","v":""},{"$f":"IFERROR(INDIRECT(\"'\"&B404&\"'!f8\"),\"\")","v":""},{"$f":"_xlfn.SINGLE(IFERROR(INDIRECT(\"'\"&B404&\"'!c21\"),\"\"))","v":""},"",{"$f":"IFERROR(IF(INDIRECT(\"'\"&B404&\"'!C10\")=\"NÃO\",\"\",INDIRECT(\"'\"&B404&\"'!f10\")),\"\")","v":""},""]
[null,"R399","",{"$f":"IFERROR(INDIRECT(\"'\"&B405&\"'!C8\"),\"\")","v":""},{"$f":"IFERROR(INDIRECT(\"'\"&B405&\"'!f8\"),\"\")","v":""},{"$f":"_xlfn.SINGLE(IFERROR(INDIRECT(\"'\"&B405&\"'!c21\"),\"\"))","v":""},"",{"$f":"IFERROR(IF(INDIRECT(\"'\"&B405&\"'!C10\")=\"NÃO\",\"\",INDIRECT(\"'\"&B405&\"'!f10\")),\"\")","v":""},""]
[null,"R400","",{"$f":"IFERROR(INDIRECT(\"'\"&B406&\"'!C8\"),\"\")","v":""},{"$f":"IFERROR(INDIRECT(\"'\"&B406&\"'!f8\"),\"\")","v":""},{"$f":"_xlfn.SINGLE(IFERROR(INDIRECT(\"'\"&B406&\"'!c21\"),\"\"))","v":""},"",{"$f":"IFERROR(IF(INDIRECT(\"'\"&B406&\"'!C10\")=\"NÃO\",\"\",INDIRECT(\"'\"&B406&\"'!f10\")),\"\")","v":""},""]
[null,"R401","",{"$f":"IFERROR(INDIRECT(\"'\"&B407&\"'!C8\"),\"\")","v":""},{"$f":"IFERROR(INDIRECT(\"'\"&B407&\"'!f8\"),\"\")","v":""},{"$f":"_xlfn.SINGLE(IFERROR(INDIRECT(\"'\"&B407&\"'!c21\"),\"\"))","v":""},"",{"$f":"IFERROR(IF(INDIRECT(\"'\"&B407&\"'!C10\")=\"NÃO\",\"\",INDIRECT(\"'\"&B407&\"'!f10\")),\"\")","v":""},""]
[null,"R402","",{"$f":"IFERROR(INDIRECT(\"'\"&B408&\"'!C8\"),\"\")","v":""},{"$f":"IFERROR(INDIRECT(\"'\"&B408&\"'!f8\"),\"\")","v":""},{"$f":"_xlfn.SINGLE(IFERROR(INDIRECT(\"'\"&B408&\"'!c21\"),\"\"))","v":""},"",{"$f":"IFERROR(IF(INDIRECT(\"'\"&B408&\"'!C10\")=\"NÃO\",\"\",INDIRECT(\"'\"&B408&\"'!f10\")),\"\")","v":""},""]
[null,"R403","",{"$f":"IFERROR(INDIRECT(\"'\"&B409&\"'!C8\"),\"\")","v":""},{"$f":"IFERROR(INDIRECT(\"'\"&B409&\"'!f8\"),\"\")","v":""},{"$f":"_xlfn.SINGLE(IFERROR(INDIRECT(\"'\"&B409&\"'!c21\"),\"\"))","v":""},"",{"$f":"IFERROR(IF(INDIRECT(\"'\"&B409&\"'!C10\")=\"NÃO\",\"\",INDIRECT(\"'\"&B409&\"'!f10\")),\"\")","v":""},""]
[null,"R404","",{"$f":"IFERROR(INDIRECT(\"'\"&B410&\"'!C8\"),\"\")","v":""},{"$f":"IFERROR(INDIRECT(\"'\"&B410&\"'!f8\"),\"\")","v":""},{"$f":"_xlfn.SINGLE(IFERROR(INDIRECT(\"'\"&B410&\"'!c21\"),\"\"))","v":""},"",{"$f":"IFERROR(IF(INDIRECT(\"'\"&B410&\"'!C10\")=\"NÃO\",\"\",INDIRECT(\"'\"&B410&\"'!f10\")),\"\")","v":""},""]

{"sheet":"LISTAS","index":6,"n_rows":7,"n_cols":2,"rows_kept":7,"cut":false,"hidden":true,"merged":[]}
["ATA","Sim"]
["CONTRATO","Não"]
["COMPRASNET"]
["FORNECEDOR"]
["PESQUISA INTERNET"]
["MIDIA ESPECIALIZADA"]
["OUTROS"]